Workbook

Sheet Notes
A1: VolatAdjRSI.xlsm; Traders Tip spreadsheet created for the March 2022 Issue
A2: Coded beginning 2022-Jan-14 by Ronald McAllister (rpmac_xltt@sprynet.com)
A4: This Workbook demonstrates an EXCEL version of the ideas presented
A5: by Vitali Apirine in an article titled "The Relative Strength Volatility-Adjusted Exponential Moving Average", which originally appeared in the March 2022 issue of
A6: "Technical Analysis of Stocks and Commodities" magazine.
A8: * * * * * * * * * * * * * * * *
A10: Janyary 18 2022 - Random "Name of Company" Retrieval Errors
A11: For the last couple of months my data retrievals would randomly get a soft error on the company name.
A12: By soft I mean that the HTML Get request for a summary for the InputPriceData tab target symbol would have a good return code but the company name field would contain garbage.
A13: Simply clicking the get data button on the InputPriceData tab to rerun the data retrieval would fix" it.
A14: Remarkably, the historical pricing data is always retrieved and is correct.
A16: Sunday (Jan 16) while working on this spreadsheet, five out of six tries for the same symbol displayed junk in the company name.
A17: So I set a trap to copy the HTML text to disc for the bad return and the good return so that I could compare them.
A18: (for those with a technical bent Notepad++ has a really nice Compare addin)
A19: As it turns out the correct required data is present in both versions.
A20: But the formatting of the new version does not contain the landmarks I was using to parse out what was needed.
A22: I think Yahoo Finance is experimenting with a new/upgraded HTML generator and perhaps does not have it installed on all of their servers.
A23: So the randomness of the "failure" is probably an artifact of which server answered my HTML request.
A25: The result is that I spent the last day and a half comparing the two formats and have come up with a new set of landmarks
A26: that are common to both formats. It requires a few extra steps to ignore minor internal differences in these landmarks and the result is
A27: code that does not care which HTML format is returned.
A29: The fix - What Changed:
A30: Complete rewrite of:
A31: VBA Procedure: ExtractCompanyIdFromSummaryText as found in VBA Module: InputPriceDataLoader
A33: Retrofiting to older Traders Tips spreadsheets:
A34: For those of you with some familiarity with the EXCEL VBA editor, you can try the following copy and paste steps.
A36: First we need to grab a copy of the corrected ExtractCompanyIdFromSummaryText Sub.
A37: Open the VBA editor in this spreadsheet and navigate to module InputPriceDataLoader and then to procedure ExtractCompanyIdFromSummaryText
A38: Copy all of procedure ExtractCompanyIdFromSummaryText from the beginning Sub statement to and including the closing End Sub statement to a new Notepad or Notepad++ text document.
A39: Close this workbook, but do not close the Notepad or Notepad++ document.
A41: Now for the target of your retrofit attempt.
A42: Make a backup copy of this retrofit target spreadsheet in case you have a problem and need to start over with a fresh copy.
A43: Open the retrofit target.
A44: Open the VBA editor in this target spreadsheet and navigate to module InputPriceDataLoader and then to procedure ExtractCompanyIdFromSummaryText
A46: Delete all of the ExtractCompanyIdFromSummaryText procedure starting with the begining Sub statement to and including the closing End Sub statement.
A48: Do not close the VBA editor or the spread sheet.
A50: Navigate (Alt-Tab) to your Notepad or Notepad++ instance and select all of the text (Ctrl-a). Then Copy the selected text (Ctrl-c).
A51: Navigate (Alt-Tab) back to the VBA editor window. The VBA editor cursor should still be on the line where you just deleted the old version of ExtractCompanyIdFromSummaryText.
A52: This is probably a blank line just above a line that reads "Sub FormatPriceHistory(..."
A53: If there is no blank line above the "Sub FormatPriceHistory(..." line then click on the "S" of Sub and press enter to insert a blank line.
A54: Move your mouse cursor to this blank line and left-click to be sure of the VBA cursor location.
A55: Then (Ctrl-v) to paste the new version of ExtractCompanyIdFromSummaryText that you copied from the Notepad or Notepad++ text document.
A57: You are done with the tricky part. Close the VBA editor and save the now retrofitted spreadsheet.
A59: Go to the inputPriceData tab and retrieve some data to verify that nothing is broken.
A60: Easter egg time: (Curious minds want to know...)
A61: If the data retrieval encounters a new format HTML response, the company name this code will display will have an asterisk(*) as a prefix.
A63: Foot Note: Today (Jan 19 2022) I have not encountered a single instance of the new format HTML while testing this spreadsheet for submission to the editors.
A64: So maybe YahooFinance is not test/using the new version right now?
A66: New for May 2021
A67: Upgraded the data download logic to do a better job of catching the common data download errors and provide a more graceful resolution.
A68: This includes better user notification of the nature of the error and some user control over how the error should be handled.
A69: User notification comes in the form of a MSGbox display that includes the (sometimes cryptic) description of the error and offers the user three options.
A71: Abort - If I could customize the title, I would rename this button to "Debug"
A72: This choice places you in Debug mode at the failing VBA statement.
A73: Unless you are feeling good about your VBA (and Network) debugging skills, this is probably not for you.
A75: Retry
A76: Lets the code retry the failed download request.
A77: This is a reasonable option if the download request timed out (similar to video buffering) or your network connection has dropped out..
A78: Probably a good idea to make sure your internet connection is alive and well before you select Retry.
A80: Ignore
A81: Lets the code fall thru to a (hopefully) graceful error completion with the error indicated at the top of the InputPriceData tab
A83: New for August 2020
A84: Restructured my Symbol-Not-Found detection and now stop further processing in the not found case
A86: New with the May 2020 version of my T-Tips template: VBA to implement a "Perpetual" U.S. Markets Closed Holiday Calendar.
A88: Why we need one: The Yahoo Finance recently has begun having occasional filtration problems where bars for U.S. Market Closed Holidays
A89: make their way onto the Historical Data web page and into the Historical Data download.
A91: While testing this May 2020 spreadsheet with different symbols, I found that I sometimes had bars with the text "null" in the price fields.
A92: My code always translates the "null" text price values to zeros.
A93: The resulting zeros cause real problems with indicator computations and the amount of blank space below price candles on the price chart.
A95: "null" price bars can be valid for very lightly traded penny sheet symbols which may not trade every day the markets are open.
A96: But is definitely not normal for symbols on the big boards.
A98: A closer look determined that these "bars" were for holiday dates when the US markets are normally closed.
A99: I found it interesting that some times the next download for the same symbol would not contain any of these "holiday" bars. Weird!
A101: My approach here was to write code to determine if the DATE on a null price values bar falls on one of the 9 market closed U.S. Holidays.
A102: If the bar date corresponds to one of these market closed holidays, I drop the bar before it reaches the InputPriceData tab.
A103: If the date is not a holiday, I let the bar through with the resulting zero values.
A105: No messy tables to update over the years as there are good solid rules that can be used in VBA or any other programming language to determine
A106: the dates for U.S. Market Closed Holidays for any given calendar year.
A108: This workbook contains and uses VBA macros and may take advantage of user defined VBA Class structures.
A109: Input Data:
A110: The data in this workbook is sorted date-descending (most recent date at the top). All cell formulas and
A111: VBA routines are built assuming this date sequence.
A113: ERROR 9 (already fixed in this spreadsheet)
A114: On or about Jan 29, 2020 Yahoo Finance changed the format of the split factor expression used their historical data downloads.
A115: The Split expression went from using "/" as in "New Share Number/Old Share Number",
A116: to using ":" as in "New Share Number:Old Share Number".
A117: This caused the then current version of my VBA code to fail with a "Runtime Error '9': subscript out of range".
A119: Fix for this ERROR 9
A120: For T-Tip spreadsheets from September 2018 up to present:
A121: Selecting the Debug option takes one into the VBA at the code line which causes the failure:
A122: CellArray(C_A_RowNdx, C_A_ColNdx + 1) = SplitFactors(1)
A123: Two lines above the failing VBA line is a line that reads:
A124: SplitFactors = Split(CsvColumns(CsvColNdx), "/")
A125: Change the / to a :
A126: The corrected line should now read
A127: SplitFactors = Split(CsvColumns(CsvColNdx), ":")
A129: If you are fixing several spreadsheets and do not want to use the failure to find the fix location,
A130: you can use VBA’s FIND dialog (Ctrl F) to look for the substring
A131: SplitFactors =
A132: Do include one space and the equal sign in your FIND string
A133: Select the "Current Project" option
A134: There should only be one instance.
A136: T-Tip spreadsheets prior to the September 2018 spreadsheet do not hard fail.
A138: They just get weird results in the split columns of the Input Price Data tab (soft fail).
A139: These older spreadsheets used different data retrieval and formatting logic.
A141: To fix these older spreadsheets:
A142: In the VBA editor, use find (CTRL-F).
A143: Select the "Current Project" option, and search for the following:
A144: OtherChar:="/"
A145: You are looking for a hit in a line reading:
A146: Other:=True, OtherChar:="/", _
A147: This line is part of a multiline block of code starting with a line that reads:
A148: SplitRange.Offset(0, 1).Resize(SpRows, 1).TextToColumns
A149: Change the / to a : so that the line reads
A150: Other:=True, OtherChar:=":", _
A153: 2019-04-04 Finally came up with a mechanism to align the left location and overall length of the cursor scroll bar so that the left most and right most
A154: scroll bar thumb positions visually align reasonably well with the left and right ends of the price chart horizontal axis.
A155: Makes it a little easier to visually align the Thumb and thus the cursor with points of interest on the charts.
A157: Older:
B158: My sincere apologies to our Macintosh based readers: Neither MSXML nor WinHttpRequest are supported in your environment. So as it stands this version of the spreadsheet will not work for you.
B159: See "Why this approach does not work for Macintosh" below.
B160: I am investigating cURL as a non-Querytable based approach for the Macintosh environment.
A162: The new Yahoo Finance history download interface has changed rather radically. The biggest hurdle being a pseudo-security requirement of adding a
B163: crumb character string to any URL requesting any type of history download. That crumb must match up (by way of some sort of hash algorithm) with
B164: the Yahoo Finance cookie that must also be sent with any request to the new Yahoo History down load interface.
B166: A crumb value is returned, buried in the HTML for any of what I call the "entry level" Yahoo Finance web pages (no crumb security requirement for entry level pages).
B167: A crumb may come with other Yahoo Finance pages. A crumb may even accompany some of the secured pages as well. I have not checked.
B169: Entry level pages are the top level pages of the various Yahoo Finance dialogs and include: Quote Lookup, Stock Summary Quote, and any of the pages
B170: with links in the horizontal row with the "Summary" link on the quote summary page such as Options, Historical Data, and the rest.
B172: To date I have found no way to get at this crumb value using any native EXCEL capabilities.
B174: So this crumb requirement effectively shuts out any solution that attempts to exclusively use built-in facilities of EXCEL, which is to say a purely Querytables solution.
B176: The approach built for this Traders Tip spreadsheet uses WINHTTP calls to Load the InputPriceData worksheet.
B178: First I call to get the HTML text for the Yahoo Summary Quote page using the requested symbol. From this HTML text I extract the full company name,
B179: the market it trades, the market status and time stamp, and finally the associated crumb string. There is a bunch of other useful bits buried in this HTML
B180: text that do not necessarily appear on the web page your browser presents. Perhaps some day I will go after and build a worksheet with these other bits.
B182: Next I add the freshly extracted crumb string to the URLs I use in three separate WINHTTP calls to retrieve Price history, Split history, and Dividend history respectively.
B184: From there VBA code proceeds as in the past to fill in the cell formulas and formatting that make the "prettied up" InputPriceData sheet.
A186: Why this approach works for Windows:
B187: WINHTTP maintains a temporary computer memory cache where cookies are maintained for as long as the WINHTTP object is instantiated.
B188: WINHTTP updates this cache any time a "set cookie" header accompanies a web response.
B189: Subsequent WINHTTP calls automatically search this cache for cookies and add any "appropriate" cookies to the headers
B190: of any web requests that get sent out.
B191: This cookie handling automation means that even if the response to our WINHTTP call for the Summary web page includes a new version of
B192: the Yahoo Finance cookie, the imbedded Crumb value will always match the cookie newly installed in the cache!
A195: Why this approach does not work for Macintosh:
B196: For what it is worth, the Macintosh version of the MS Office suite of products do in fact maintain a special, shared amongst themselves only, cookie cache.
B197: They automate cookie handling into and from this cache JUST for the Office products and any Querytable activity they might originate.
B199: This cache is not tied to, nor shared with, any browser that might be installed on the MAC. And I have not found anything with HTTP capabilities similar to
B200: MSXML that can work with that Office product cookie cache.
B202: When working in the MAC EXCEL environment, I have not yet become conversant with a Mac based WINHTTP like capability.
B203: So l currently have no mechanism to replicate the non-Querytable data retrieval process I am using in Windows environments.
B204: A software product called CURL has been suggested as providing this capability in the MAC environment.
B205: A version of CURL is available for the Windows So some day I may explore its capabilities and how to access those capabilities from VBA.
A207: Calculation and Chart Worksheet Usage Comments:
C208: In General, Items in Bolded BLUE are items you may freely change to play what-if games.
C209: Be sure to have a backup copy of the spreadsheet before you alter anything else.
A211: Features carried forward from the June 2016 version of my T-Tips Template
A212: Added a pair of buttons near cell F12 that will allow the user to step the charting window forward or backward one bar for each click.
A213: I find this to be a good way to test my understanding of the author's ideas as I step through the evolution of the price behavior and the indicators.
B215: First: In the "Help! I would like to plot data" area.
B216: Added button to resolve #NA problems by locating the bar in the input data with a slightly more recent date than what the user actually requested.
B217: I find this particularly useful when I have a general idea of where I want to be date wise. Now I can pick a set of dates "out of the air".
B218: If either (or both) of my date specifications fall between dates that are available in the price history,
B219: this button will resolve them to the dates of the nearest, slightly more recent input bars.
B220: I can then refine my data interval search as necessary from there.
B221: Really great when working with Weekly or Monthly studies!
C222: 2016Jun11 - added logic to the "I would like to chart.." button to detect #N/A values and terminate
C223: gracefully with a message instead of blowing up in the charting logic.
B225: Second: In the "Price Chart Windowing Controls" area. (A11 and A12)
B226: When retrieving data for a new symbol or when changing from daily to weekly or monthly data, there was the possibility that the
B227: residual settings in A11 and A12 would fall outside of the number bars available on the input data tab after the new data retrieval.
B228: In certain combinations, this could create a serious error in the chart sizing logic and crash the spreadsheet.
B229: I have taken this opportunity to update the validity checking logic used in the chart sizing macros
B230: to adjust these values as necessary so that they fall within the boundaries of the newly retrieved input data.
A231: Features carried forward from the October 2015 Traders Tips Template
B232: Improved automation: changes to any of the following will automatically initiate calculations appropriate to reflect a change.
C233: Changing either of cells A11 (pan) or A12 (zoom) will automatically initiate the same chart sizing macros that the manual
C234: "Set Chart" button uses.

Sheet InputPriceData
A1: S&P 500 (^GSPC) -SNP (Daily)
M2: To retrieve data for symbols traded on non US Exchanges, | II2: 241.79
A3: Request Online Yahoo History for: | F3: Market State == > | G3: As of | H3: 12:52:00 | I3: EST. Market open. | M3: you will need to append the dot-suffix for the exchange to the symbol.
A4: Symbol | B4: ^GSPC | D4: Valid | I4: =OFFSET(I4,-2,0,1,1) -> 0 | M4: The following links provide a description of how to use the exchange suffix
A5: From | B5: 1950-10-01 | D5: Data | M5: along with a list of suffixes for the major world exchanges. | AD5: Trailing 12 Div return (Cur Close)
A6: To | B6: =NOW() -> 2022-01-19T12:52:48.700 | D6: Types | E6: =VLOOKUP(B7,D7:E10,2,FALSE) -> d | M6: https://help.yahoo.com/kb/finance/SLN2310.html
A7: Data Type | B7: Daily | D7: Daily | E7: d | M7: And
A8: Crumb | B8: /FtA.CKYzWJ | D8: Weekly | E8: w | M8: https://www.stockmarketeye.com/users-guide/ticker-symbols-and-data-providers/data-providers.html
A9: Available Data | D9: Monthly | E9: m
A10: Bar Count: | B10: 17942 | M10: You may search on “exchange suffixes” for additional discussions | AD10: =OFFSET(AC15,1,0,1,1)/OFFSET(N15,1,0,1,1) -> 0
A11: From: | B11: =IF(B10<=0,"",OFFSET(B15,B10,IF(HistReqDataType="v",1,0),1,1)) -> 1950-10-02 | W11: Trailing 12 Month Dividend Returns
A12: To: | B12: =IF(B10<=0,"",IF(HistReqDataType="v",OFFSET(B15,2,1,1,1),OFFSET(B15,1,0,1,1))) -> 2022-01-19 | W12: Raw Close price on Dividend date | X12: Div Year and Month | Y12: Looking for year ago Div Year and Month | Z12: Year ago Div Date we found | AA12: row offset to year ago div Date | AB12: Same month flag | AC12: Trailing 12 Div Total | AD12: Trailing 12 Div return
Q13: Split History | S13: 0 | T13: Running | U13: Dividend History
B14: Raw Data Values | H14: Adjusted | I14: Price Adjust | J14: Vol Adjust | K14: Adjusted Values | P14: Last | Q14: Effective | R14: Shares | T14: Vol Adjust | V14: 0
A15: RelRow | B15: Date | C15: Open | D15: High | E15: Low | F15: Close | G15: Volume | H15: Close | I15: Factor | J15: Factor | K15: Open | L15: High | M15: Low | N15: Close | O15: Volume | P15: Trade | Q15: 44581 | R15: New | S15: Old | T15: 1 | U15: Date | V15: $ / Share
A16: 1 | B16: 2022-01-19 | C16: 4588.029785 | D16: 4611.549805 | E16: 4562.100098 | F16: 4591.790039 | G16: 1192034000 | H16: 4591.790039 | I16: =IF(F16=0,1,H16/F16) -> 1 | J16: =INDEX(OFFSET($T$15,0,0,$S$13+1,1),MATCH(B16,OFFSET($Q$15,0,0,$S$13+1,1),-1)) -> 1 | K16: =ROUND($I16*C16,2) -> 4588.03 | L16: =ROUND($I16*D16,2) -> 4611.55 | M16: 4562.1 | N16: 4591.79 | O16: =G16*J16 -> 1192034000
A17: 2 | B17: 2022-01-18 | C17: 4632.240234 | D17: 4632.240234 | E17: 4568.700195 | F17: 4577.109863 | G17: 3324960000 | H17: 4577.109863 | I17: =IF(F17=0,1,H17/F17) -> 1 | J17: =INDEX(OFFSET($T$15,0,0,$S$13+1,1),MATCH(B17,OFFSET($Q$15,0,0,$S$13+1,1),-1)) -> 1 | K17: =ROUND($I17*C17,2) -> 4632.24 | L17: =ROUND($I17*D17,2) -> 4632.24 | M17: =ROUND($I17*E17,2) -> 4568.7 | N17: =ROUND($I17*F17,2) -> 4577.11 | O17: =G17*J17 -> 3324960000
A18: 3 | B18: 2022-01-14 | C18: 4637.990234 | D18: 4665.129883 | E18: 4614.75 | F18: 4662.850098 | G18: 3483530000 | H18: 4662.850098 | I18: 1 | J18: 1 | K18: 4637.99 | L18: 4665.13 | M18: 4614.75 | N18: 4662.85 | O18: 3483530000
A19: 4 | B19: 2022-01-13 | C19: 4733.560059 | D19: 4744.129883 | E19: 4650.290039 | F19: 4659.029785 | G19: 3539830000 | H19: 4659.029785 | I19: 1 | J19: 1 | K19: 4733.56 | L19: 4744.13 | M19: 4650.29 | N19: 4659.03 | O19: 3539830000
A20: 5 | B20: 2022-01-12 | C20: 4728.589844 | D20: 4748.830078 | E20: 4706.709961 | F20: 4726.350098 | G20: 3060040000 | H20: 4726.350098 | I20: 1 | J20: 1 | K20: 4728.59 | L20: 4748.83 | M20: 4706.71 | N20: 4726.35 | O20: 3060040000
A21: 6 | B21: 2022-01-11 | C21: 4669.140137 | D21: 4714.129883 | E21: 4638.27002 | F21: 4713.069824 | G21: 3421600000 | H21: 4713.069824 | I21: 1 | J21: 1 | K21: 4669.14 | L21: 4714.13 | M21: 4638.27 | N21: 4713.07 | O21: 3421600000
A22: 7 | B22: 2022-01-10 | C22: 4655.339844 | D22: 4673.02002 | E22: 4582.240234 | F22: 4670.290039 | G22: 3621800000 | H22: 4670.290039 | I22: 1 | J22: 1 | K22: 4655.34 | L22: 4673.02 | M22: 4582.24 | N22: 4670.29 | O22: 3621800000
A23: 8 | B23: 2022-01-07 | C23: 4697.660156 | D23: 4707.950195 | E23: 4662.740234 | F23: 4677.029785 | G23: 3279870000 | H23: 4677.029785 | I23: 1 | J23: 1 | K23: 4697.66 | L23: 4707.95 | M23: 4662.74 | N23: 4677.03 | O23: 3279870000
A24: 9 | B24: 2022-01-06 | C24: 4693.390137 | D24: 4725.009766 | E24: 4671.259766 | F24: 4696.049805 | G24: 3371250000 | H24: 4696.049805 | I24: 1 | J24: 1 | K24: 4693.39 | L24: 4725.01 | M24: 4671.26 | N24: 4696.05 | O24: 3371250000
A25: 10 | B25: 2022-01-05 | C25: 4787.990234 | D25: 4797.700195 | E25: 4699.439941 | F25: 4700.580078 | G25: 3733540000 | H25: 4700.580078 | I25: 1 | J25: 1 | K25: 4787.99 | L25: 4797.7 | M25: 4699.44 | N25: 4700.58 | O25: 3733540000
A26: 11 | B26: 2022-01-04 | C26: 4804.509766 | D26: 4818.620117 | E26: 4774.27002 | F26: 4793.540039 | G26: 3641050000 | H26: 4793.540039 | I26: 1 | J26: 1 | K26: 4804.51 | L26: 4818.62 | M26: 4774.27 | N26: 4793.54 | O26: 3641050000
A27: 12 | B27: 2022-01-03 | C27: 4778.140137 | D27: 4796.640137 | E27: 4758.169922 | F27: 4796.560059 | G27: 2775190000 | H27: 4796.560059 | I27: 1 | J27: 1 | K27: 4778.14 | L27: 4796.64 | M27: 4758.17 | N27: 4796.56 | O27: 2775190000
A28: 13 | B28: 2021-12-31 | C28: 4775.209961 | D28: 4786.830078 | E28: 4765.75 | F28: 4766.180176 | G28: 2446190000 | H28: 4766.180176 | I28: 1 | J28: 1 | K28: 4775.21 | L28: 4786.83 | M28: 4765.75 | N28: 4766.18 | O28: 2446190000
A29: 14 | B29: 2021-12-30 | C29: 4794.22998 | D29: 4808.930176 | E29: 4775.330078 | F29: 4778.72998 | G29: 2390990000 | H29: 4778.72998 | I29: 1 | J29: 1 | K29: 4794.23 | L29: 4808.93 | M29: 4775.33 | N29: 4778.73 | O29: 2390990000
A30: 15 | B30: 2021-12-29 | C30: 4788.640137 | D30: 4804.060059 | E30: 4778.080078 | F30: 4793.060059 | G30: 2369370000 | H30: 4793.060059 | I30: 1 | J30: 1 | K30: 4788.64 | L30: 4804.06 | M30: 4778.08 | N30: 4793.06 | O30: 2369370000
A31: 16 | B31: 2021-12-28 | C31: 4795.490234 | D31: 4807.02002 | E31: 4780.040039 | F31: 4786.350098 | G31: 2217050000 | H31: 4786.350098 | I31: 1 | J31: 1 | K31: 4795.49 | L31: 4807.02 | M31: 4780.04 | N31: 4786.35 | O31: 2217050000
A32: 17 | B32: 2021-12-27 | C32: 4733.990234 | D32: 4791.490234 | E32: 4733.990234 | F32: 4791.189941 | G32: 2264120000 | H32: 4791.189941 | I32: 1 | J32: 1 | K32: 4733.99 | L32: 4791.49 | M32: 4733.99 | N32: 4791.19 | O32: 2264120000
A33: 18 | B33: 2021-12-23 | C33: 4703.959961 | D33: 4740.740234 | E33: 4703.959961 | F33: 4725.790039 | G33: 2194630000 | H33: 4725.790039 | I33: 1 | J33: 1 | K33: 4703.96 | L33: 4740.74 | M33: 4703.96 | N33: 4725.79 | O33: 2194630000
A34: 19 | B34: 2021-12-22 | C34: 4650.359863 | D34: 4697.669922 | E34: 4645.529785 | F34: 4696.560059 | G34: 2439570000 | H34: 4696.560059 | I34: 1 | J34: 1 | K34: 4650.36 | L34: 4697.67 | M34: 4645.53 | N34: 4696.56 | O34: 2439570000
A35: 20 | B35: 2021-12-21 | C35: 4594.959961 | D35: 4651.140137 | E35: 4583.160156 | F35: 4649.22998 | G35: 2564370000 | H35: 4649.22998 | I35: 1 | J35: 1 | K35: 4594.96 | L35: 4651.14 | M35: 4583.16 | N35: 4649.23 | O35: 2564370000
A36: 21 | B36: 2021-12-20 | C36: 4587.899902 | D36: 4587.899902 | E36: 4531.100098 | F36: 4568.02002 | G36: 3395780000 | H36: 4568.02002 | I36: 1 | J36: 1 | K36: 4587.9 | L36: 4587.9 | M36: 4531.1 | N36: 4568.02 | O36: 3395780000
A37: 22 | B37: 2021-12-17 | C37: 4652.5 | D37: 4666.700195 | E37: 4600.220215 | F37: 4620.640137 | G37: 5609780000 | H37: 4620.640137 | I37: 1 | J37: 1 | K37: 4652.5 | L37: 4666.7 | M37: 4600.22 | N37: 4620.64 | O37: 5609780000
A38: 23 | B38: 2021-12-16 | C38: 4719.129883 | D38: 4731.990234 | E38: 4651.890137 | F38: 4668.669922 | G38: 3592810000 | H38: 4668.669922 | I38: 1 | J38: 1 | K38: 4719.13 | L38: 4731.99 | M38: 4651.89 | N38: 4668.67 | O38: 3592810000
A39: 24 | B39: 2021-12-15 | C39: 4636.459961 | D39: 4712.600098 | E39: 4611.220215 | F39: 4709.850098 | G39: 3367580000 | H39: 4709.850098 | I39: 1 | J39: 1 | K39: 4636.46 | L39: 4712.6 | M39: 4611.22 | N39: 4709.85 | O39: 3367580000
A40: 25 | B40: 2021-12-14 | C40: 4642.990234 | D40: 4660.470215 | E40: 4606.52002 | F40: 4634.089844 | G40: 3292740000 | H40: 4634.089844 | I40: 1 | J40: 1 | K40: 4642.99 | L40: 4660.47 | M40: 4606.52 | N40: 4634.09 | O40: 3292740000
A41: 26 | B41: 2021-12-13 | C41: 4710.299805 | D41: 4710.299805 | E41: 4667.600098 | F41: 4668.970215 | G41: 3322050000 | H41: 4668.970215 | I41: 1 | J41: 1 | K41: 4710.3 | L41: 4710.3 | M41: 4667.6 | N41: 4668.97 | O41: 3322050000
A42: 27 | B42: 2021-12-10 | C42: 4687.640137 | D42: 4713.569824 | E42: 4670.240234 | F42: 4712.02002 | G42: 2858310000 | H42: 4712.02002 | I42: 1 | J42: 1 | K42: 4687.64 | L42: 4713.57 | M42: 4670.24 | N42: 4712.02 | O42: 2858310000
A43: 28 | B43: 2021-12-09 | C43: 4691 | D43: 4695.259766 | E43: 4665.97998 | F43: 4667.450195 | G43: 2851660000 | H43: 4667.450195 | I43: 1 | J43: 1 | K43: 4691 | L43: 4695.26 | M43: 4665.98 | N43: 4667.45 | O43: 2851660000
A44: 29 | B44: 2021-12-08 | C44: 4690.859863 | D44: 4705.060059 | E44: 4674.52002 | F44: 4701.209961 | G44: 3061550000 | H44: 4701.209961 | I44: 1 | J44: 1 | K44: 4690.86 | L44: 4705.06 | M44: 4674.52 | N44: 4701.21 | O44: 3061550000
A45: 30 | B45: 2021-12-07 | C45: 4631.970215 | D45: 4694.040039 | E45: 4631.970215 | F45: 4686.75 | G45: 3334320000 | H45: 4686.75 | I45: 1 | J45: 1 | K45: 4631.97 | L45: 4694.04 | M45: 4631.97 | N45: 4686.75 | O45: 3334320000
A46: 31 | B46: 2021-12-06 | C46: 4548.370117 | D46: 4612.600098 | E46: 4540.509766 | F46: 4591.669922 | G46: 3305690000 | H46: 4591.669922 | I46: 1 | J46: 1 | K46: 4548.37 | L46: 4612.6 | M46: 4540.51 | N46: 4591.67 | O46: 3305690000
A47: 32 | B47: 2021-12-03 | C47: 4589.490234 | D47: 4608.029785 | E47: 4495.120117 | F47: 4538.430176 | G47: 3971500000 | H47: 4538.430176 | I47: 1 | J47: 1 | K47: 4589.49 | L47: 4608.03 | M47: 4495.12 | N47: 4538.43 | O47: 3971500000
A48: 33 | B48: 2021-12-02 | C48: 4504.72998 | D48: 4595.459961 | E48: 4504.72998 | F48: 4577.100098 | G48: 3771510000 | H48: 4577.100098 | I48: 1 | J48: 1 | K48: 4504.73 | L48: 4595.46 | M48: 4504.73 | N48: 4577.1 | O48: 3771510000
A49: 34 | B49: 2021-12-01 | C49: 4602.819824 | D49: 4652.939941 | E49: 4510.27002 | F49: 4513.040039 | G49: 4078260000 | H49: 4513.040039 | I49: 1 | J49: 1 | K49: 4602.82 | L49: 4652.94 | M49: 4510.27 | N49: 4513.04 | O49: 4078260000
A50: 35 | B50: 2021-11-30 | C50: 4640.25 | D50: 4646.02002 | E50: 4560 | F50: 4567 | G50: 4950190000 | H50: 4567 | I50: 1 | J50: 1 | K50: 4640.25 | L50: 4646.02 | M50: 4560 | N50: 4567 | O50: 4950190000
A51: 36 | B51: 2021-11-29 | C51: 4628.75 | D51: 4672.950195 | E51: 4625.259766 | F51: 4655.27002 | G51: 3471380000 | H51: 4655.27002 | I51: 1 | J51: 1 | K51: 4628.75 | L51: 4672.95 | M51: 4625.26 | N51: 4655.27 | O51: 3471380000
A52: 37 | B52: 2021-11-26 | C52: 4664.629883 | D52: 4664.629883 | E52: 4585.430176 | F52: 4594.620117 | G52: 2676740000 | H52: 4594.620117 | I52: 1 | J52: 1 | K52: 4664.63 | L52: 4664.63 | M52: 4585.43 | N52: 4594.62 | O52: 2676740000
A53: 38 | B53: 2021-11-24 | C53: 4675.779785 | D53: 4702.870117 | E53: 4659.890137 | F53: 4701.459961 | G53: 2464040000 | H53: 4701.459961 | I53: 1 | J53: 1 | K53: 4675.78 | L53: 4702.87 | M53: 4659.89 | N53: 4701.46 | O53: 2464040000
A54: 39 | B54: 2021-11-23 | C54: 4678.47998 | D54: 4699.390137 | E54: 4652.660156 | F54: 4690.700195 | G54: 3428780000 | H54: 4690.700195 | I54: 1 | J54: 1 | K54: 4678.48 | L54: 4699.39 | M54: 4652.66 | N54: 4690.7 | O54: 3428780000
A55: 40 | B55: 2021-11-22 | C55: 4712 | D55: 4743.830078 | E55: 4682.169922 | F55: 4682.939941 | G55: 3206280000 | H55: 4682.939941 | I55: 1 | J55: 1 | K55: 4712 | L55: 4743.83 | M55: 4682.17 | N55: 4682.94 | O55: 3206280000
A56: 41 | B56: 2021-11-19 | C56: 4708.439941 | D56: 4717.75 | E56: 4694.220215 | F56: 4697.959961 | G56: 3265600000 | H56: 4697.959961 | I56: 1 | J56: 1 | K56: 4708.44 | L56: 4717.75 | M56: 4694.22 | N56: 4697.96 | O56: 3265600000
A57: 42 | B57: 2021-11-18 | C57: 4700.720215 | D57: 4708.799805 | E57: 4672.779785 | F57: 4704.540039 | G57: 3335620000 | H57: 4704.540039 | I57: 1 | J57: 1 | K57: 4700.72 | L57: 4708.8 | M57: 4672.78 | N57: 4704.54 | O57: 3335620000
A58: 43 | B58: 2021-11-17 | C58: 4701.5 | D58: 4701.5 | E58: 4684.410156 | F58: 4688.669922 | G58: 3221250000 | H58: 4688.669922 | I58: 1 | J58: 1 | K58: 4701.5 | L58: 4701.5 | M58: 4684.41 | N58: 4688.67 | O58: 3221250000
A59: 44 | B59: 2021-11-16 | C59: 4679.419922 | D59: 4714.950195 | E59: 4679.419922 | F59: 4700.899902 | G59: 2838210000 | H59: 4700.899902 | I59: 1 | J59: 1 | K59: 4679.42 | L59: 4714.95 | M59: 4679.42 | N59: 4700.9 | O59: 2838210000
A60: 45 | B60: 2021-11-15 | C60: 4689.299805 | D60: 4697.419922 | E60: 4672.859863 | F60: 4682.799805 | G60: 2618980000 | H60: 4682.799805 | I60: 1 | J60: 1 | K60: 4689.3 | L60: 4697.42 | M60: 4672.86 | N60: 4682.8 | O60: 2618980000
A61: 46 | B61: 2021-11-12 | C61: 4655.240234 | D61: 4688.470215 | E61: 4650.77002 | F61: 4682.850098 | G61: 2865790000 | H61: 4682.850098 | I61: 1 | J61: 1 | K61: 4655.24 | L61: 4688.47 | M61: 4650.77 | N61: 4682.85 | O61: 2865790000
A62: 47 | B62: 2021-11-11 | C62: 4659.390137 | D62: 4664.549805 | E62: 4648.310059 | F62: 4649.27002 | G62: 2623140000 | H62: 4649.27002 | I62: 1 | J62: 1 | K62: 4659.39 | L62: 4664.55 | M62: 4648.31 | N62: 4649.27 | O62: 2623140000
A63: 48 | B63: 2021-11-10 | C63: 4670.259766 | D63: 4684.850098 | E63: 4630.859863 | F63: 4646.709961 | G63: 3581630000 | H63: 4646.709961 | I63: 1 | J63: 1 | K63: 4670.26 | L63: 4684.85 | M63: 4630.86 | N63: 4646.71 | O63: 3581630000
A64: 49 | B64: 2021-11-09 | C64: 4707.25 | D64: 4708.529785 | E64: 4670.870117 | F64: 4685.25 | G64: 3110230000 | H64: 4685.25 | I64: 1 | J64: 1 | K64: 4707.25 | L64: 4708.53 | M64: 4670.87 | N64: 4685.25 | O64: 3110230000
A65: 50 | B65: 2021-11-08 | C65: 4701.47998 | D65: 4714.919922 | E65: 4694.390137 | F65: 4701.700195 | G65: 3465720000 | H65: 4701.700195 | I65: 1 | J65: 1 | K65: 4701.48 | L65: 4714.92 | M65: 4694.39 | N65: 4701.7 | O65: 3465720000
A66: 51 | B66: 2021-11-05 | C66: 4699.259766 | D66: 4718.5 | E66: 4681.319824 | F66: 4697.529785 | G66: 3491150000 | H66: 4697.529785 | I66: 1 | J66: 1 | K66: 4699.26 | L66: 4718.5 | M66: 4681.32 | N66: 4697.53 | O66: 3491150000
A67: 52 | B67: 2021-11-04 | C67: 4662.930176 | D67: 4683 | E67: 4662.589844 | F67: 4680.060059 | G67: 3332940000 | H67: 4680.060059 | I67: 1 | J67: 1 | K67: 4662.93 | L67: 4683 | M67: 4662.59 | N67: 4680.06 | O67: 3332940000
A68: 53 | B68: 2021-11-03 | C68: 4630.649902 | D68: 4663.459961 | E68: 4621.189941 | F68: 4660.569824 | G68: 3339440000 | H68: 4660.569824 | I68: 1 | J68: 1 | K68: 4630.65 | L68: 4663.46 | M68: 4621.19 | N68: 4660.57 | O68: 3339440000
A69: 54 | B69: 2021-11-02 | C69: 4613.339844 | D69: 4635.149902 | E69: 4613.339844 | F69: 4630.649902 | G69: 3309690000 | H69: 4630.649902 | I69: 1 | J69: 1 | K69: 4613.34 | L69: 4635.15 | M69: 4613.34 | N69: 4630.65 | O69: 3309690000
A70: 55 | B70: 2021-11-01 | C70: 4610.620117 | D70: 4620.339844 | E70: 4595.060059 | F70: 4613.669922 | G70: 2924000000 | H70: 4613.669922 | I70: 1 | J70: 1 | K70: 4610.62 | L70: 4620.34 | M70: 4595.06 | N70: 4613.67 | O70: 2924000000
A71: 56 | B71: 2021-10-29 | C71: 4572.870117 | D71: 4608.080078 | E71: 4567.589844 | F71: 4605.379883 | G71: 3632260000 | H71: 4605.379883 | I71: 1 | J71: 1 | K71: 4572.87 | L71: 4608.08 | M71: 4567.59 | N71: 4605.38 | O71: 3632260000
A72: 57 | B72: 2021-10-28 | C72: 4562.839844 | D72: 4597.549805 | E72: 4562.839844 | F72: 4596.419922 | G72: 3197560000 | H72: 4596.419922 | I72: 1 | J72: 1 | K72: 4562.84 | L72: 4597.55 | M72: 4562.84 | N72: 4596.42 | O72: 3197560000
A73: 58 | B73: 2021-10-27 | C73: 4580.220215 | D73: 4584.569824 | E73: 4551.660156 | F73: 4551.680176 | G73: 3259510000 | H73: 4551.680176 | I73: 1 | J73: 1 | K73: 4580.22 | L73: 4584.57 | M73: 4551.66 | N73: 4551.68 | O73: 3259510000
A74: 59 | B74: 2021-10-26 | C74: 4578.689941 | D74: 4598.529785 | E74: 4569.169922 | F74: 4574.790039 | G74: 2866500000 | H74: 4574.790039 | I74: 1 | J74: 1 | K74: 4578.69 | L74: 4598.53 | M74: 4569.17 | N74: 4574.79 | O74: 2866500000
A75: 60 | B75: 2021-10-25 | C75: 4553.689941 | D75: 4572.620117 | E75: 4537.359863 | F75: 4566.47998 | G75: 3250210000 | H75: 4566.47998 | I75: 1 | J75: 1 | K75: 4553.69 | L75: 4572.62 | M75: 4537.36 | N75: 4566.48 | O75: 3250210000
A76: 61 | B76: 2021-10-22 | C76: 4546.120117 | D76: 4559.669922 | E76: 4524 | F76: 4544.899902 | G76: 3062810000 | H76: 4544.899902 | I76: 1 | J76: 1 | K76: 4546.12 | L76: 4559.67 | M76: 4524 | N76: 4544.9 | O76: 3062810000
A77: 62 | B77: 2021-10-21 | C77: 4532.240234 | D77: 4551.439941 | E77: 4526.890137 | F77: 4549.779785 | G77: 3016950000 | H77: 4549.779785 | I77: 1 | J77: 1 | K77: 4532.24 | L77: 4551.44 | M77: 4526.89 | N77: 4549.78 | O77: 3016950000
A78: 63 | B78: 2021-10-20 | C78: 4524.419922 | D78: 4540.870117 | E78: 4524.399902 | F78: 4536.189941 | G78: 2671560000 | H78: 4536.189941 | I78: 1 | J78: 1 | K78: 4524.42 | L78: 4540.87 | M78: 4524.4 | N78: 4536.19 | O78: 2671560000
A79: 64 | B79: 2021-10-19 | C79: 4497.339844 | D79: 4520.399902 | E79: 4496.410156 | F79: 4519.629883 | G79: 2531210000 | H79: 4519.629883 | I79: 1 | J79: 1 | K79: 4497.34 | L79: 4520.4 | M79: 4496.41 | N79: 4519.63 | O79: 2531210000
A80: 65 | B80: 2021-10-18 | C80: 4463.720215 | D80: 4488.75 | E80: 4447.470215 | F80: 4486.459961 | G80: 2683540000 | H80: 4486.459961 | I80: 1 | J80: 1 | K80: 4463.72 | L80: 4488.75 | M80: 4447.47 | N80: 4486.46 | O80: 2683540000
A81: 66 | B81: 2021-10-15 | C81: 4447.689941 | D81: 4475.819824 | E81: 4447.689941 | F81: 4471.370117 | G81: 3000560000 | H81: 4471.370117 | I81: =IF(F81=0,1,H81/F81) -> 1 | J81: =INDEX(OFFSET($T$15,0,0,$S$13+1,1),MATCH(B81,OFFSET($Q$15,0,0,$S$13+1,1),-1)) -> 1 | K81: =ROUND($I81*C81,2) -> 4447.69 | L81: =ROUND($I81*D81,2) -> 4475.82 | M81: =ROUND($I81*E81,2) -> 4447.69 | N81: =ROUND($I81*F81,2) -> 4471.37 | O81: =G81*J81 -> 3000560000
A82: 67 | B82: 2021-10-14 | C82: 4386.75 | D82: 4439.72998 | E82: 4386.75 | F82: 4438.259766 | G82: 2642920000 | H82: 4438.259766 | I82: 1 | J82: 1 | K82: 4386.75 | L82: 4439.73 | M82: 4386.75 | N82: 4438.26 | O82: 2642920000
A83: 68 | B83: 2021-10-13 | C83: 4358.009766 | D83: 4372.870117 | E83: 4329.919922 | F83: 4363.799805 | G83: 2926460000 | H83: 4363.799805 | I83: 1 | J83: 1 | K83: 4358.01 | L83: 4372.87 | M83: 4329.92 | N83: 4363.8 | O83: 2926460000
A84: 69 | B84: 2021-10-12 | C84: 4368.310059 | D84: 4374.890137 | E84: 4342.089844 | F84: 4350.649902 | G84: 2608150000 | H84: 4350.649902 | I84: 1 | J84: 1 | K84: 4368.31 | L84: 4374.89 | M84: 4342.09 | N84: 4350.65 | O84: 2608150000
A85: 70 | B85: 2021-10-11 | C85: 4385.439941 | D85: 4415.879883 | E85: 4360.589844 | F85: 4361.189941 | G85: 2580000000 | H85: 4361.189941 | I85: 1 | J85: 1 | K85: 4385.44 | L85: 4415.88 | M85: 4360.59 | N85: 4361.19 | O85: 2580000000
A86: 71 | B86: 2021-10-08 | C86: 4406.509766 | D86: 4412.02002 | E86: 4386.220215 | F86: 4391.339844 | G86: 2401890000 | H86: 4391.339844 | I86: 1 | J86: 1 | K86: 4406.51 | L86: 4412.02 | M86: 4386.22 | N86: 4391.34 | O86: 2401890000
A87: 72 | B87: 2021-10-07 | C87: 4383.72998 | D87: 4429.970215 | E87: 4383.72998 | F87: 4399.759766 | G87: 3096080000 | H87: 4399.759766 | I87: 1 | J87: 1 | K87: 4383.73 | L87: 4429.97 | M87: 4383.73 | N87: 4399.76 | O87: 3096080000
A88: 73 | B88: 2021-10-06 | C88: 4319.569824 | D88: 4365.569824 | E88: 4290.490234 | F88: 4363.549805 | G88: 3219590000 | H88: 4363.549805 | I88: 1 | J88: 1 | K88: 4319.57 | L88: 4365.57 | M88: 4290.49 | N88: 4363.55 | O88: 3219590000
A89: 74 | B89: 2021-10-05 | C89: 4309.870117 | D89: 4369.22998 | E89: 4309.870117 | F89: 4345.720215 | G89: 2967400000 | H89: 4345.720215 | I89: 1 | J89: 1 | K89: 4309.87 | L89: 4369.23 | M89: 4309.87 | N89: 4345.72 | O89: 2967400000
A90: 75 | B90: 2021-10-04 | C90: 4348.839844 | D90: 4355.509766 | E90: 4278.939941 | F90: 4300.459961 | G90: 3110560000 | H90: 4300.459961 | I90: 1 | J90: 1 | K90: 4348.84 | L90: 4355.51 | M90: 4278.94 | N90: 4300.46 | O90: 3110560000
A91: 76 | B91: 2021-10-01 | C91: 4317.160156 | D91: 4375.189941 | E91: 4288.52002 | F91: 4357.040039 | G91: 3148980000 | H91: 4357.040039 | I91: 1 | J91: 1 | K91: 4317.16 | L91: 4375.19 | M91: 4288.52 | N91: 4357.04 | O91: 3148980000
A92: 77 | B92: 2021-09-30 | C92: 4370.669922 | D92: 4382.549805 | E92: 4306.240234 | F92: 4307.540039 | G92: 3123770000 | H92: 4307.540039 | I92: 1 | J92: 1 | K92: 4370.67 | L92: 4382.55 | M92: 4306.24 | N92: 4307.54 | O92: 3123770000
A93: 78 | B93: 2021-09-29 | C93: 4362.410156 | D93: 4385.569824 | E93: 4355.080078 | F93: 4359.459961 | G93: 2753800000 | H93: 4359.459961 | I93: 1 | J93: 1 | K93: 4362.41 | L93: 4385.57 | M93: 4355.08 | N93: 4359.46 | O93: 2753800000
A94: 79 | B94: 2021-09-28 | C94: 4419.540039 | D94: 4419.540039 | E94: 4346.330078 | F94: 4352.629883 | G94: 3495970000 | H94: 4352.629883 | I94: 1 | J94: 1 | K94: 4419.54 | L94: 4419.54 | M94: 4346.33 | N94: 4352.63 | O94: 3495970000
A95: 80 | B95: 2021-09-27 | C95: 4442.120117 | D95: 4457.299805 | E95: 4436.189941 | F95: 4443.109863 | G95: 3032870000 | H95: 4443.109863 | I95: 1 | J95: 1 | K95: 4442.12 | L95: 4457.3 | M95: 4436.19 | N95: 4443.11 | O95: 3032870000
A96: 81 | B96: 2021-09-24 | C96: 4438.040039 | D96: 4463.120117 | E96: 4430.27002 | F96: 4455.47998 | G96: 2772090000 | H96: 4455.47998 | I96: 1 | J96: 1 | K96: 4438.04 | L96: 4463.12 | M96: 4430.27 | N96: 4455.48 | O96: 2772090000
A97: 82 | B97: 2021-09-23 | C97: 4406.75 | D97: 4465.399902 | E97: 4406.75 | F97: 4448.97998 | G97: 2833290000 | H97: 4448.97998 | I97: 1 | J97: 1 | K97: 4406.75 | L97: 4465.4 | M97: 4406.75 | N97: 4448.98 | O97: 2833290000
A98: 83 | B98: 2021-09-22 | C98: 4367.430176 | D98: 4416.75 | E98: 4367.430176 | F98: 4395.640137 | G98: 3273670000 | H98: 4395.640137 | I98: 1 | J98: 1 | K98: 4367.43 | L98: 4416.75 | M98: 4367.43 | N98: 4395.64 | O98: 3273670000
A99: 84 | B99: 2021-09-21 | C99: 4374.450195 | D99: 4394.870117 | E99: 4347.959961 | F99: 4354.189941 | G99: 3044300000 | H99: 4354.189941 | I99: 1 | J99: 1 | K99: 4374.45 | L99: 4394.87 | M99: 4347.96 | N99: 4354.19 | O99: 3044300000
A100: 85 | B100: 2021-09-20 | C100: 4402.950195 | D100: 4402.950195 | E100: 4305.910156 | F100: 4357.72998 | G100: 3773680000 | H100: 4357.72998 | I100: 1 | J100: 1 | K100: 4402.95 | L100: 4402.95 | M100: 4305.91 | N100: 4357.73 | O100: 3773680000
A101: 86 | B101: 2021-09-17 | C101: 4469.740234 | D101: 4471.52002 | E101: 4427.759766 | F101: 4432.990234 | G101: 5622210000 | H101: 4432.990234 | I101: 1 | J101: 1 | K101: 4469.74 | L101: 4471.52 | M101: 4427.76 | N101: 4432.99 | O101: 5622210000
A102: 87 | B102: 2021-09-16 | C102: 4477.089844 | D102: 4485.870117 | E102: 4443.799805 | F102: 4473.75 | G102: 3321030000 | H102: 4473.75 | I102: 1 | J102: 1 | K102: 4477.09 | L102: 4485.87 | M102: 4443.8 | N102: 4473.75 | O102: 3321030000
A103: 88 | B103: 2021-09-15 | C103: 4447.490234 | D103: 4486.870117 | E103: 4438.370117 | F103: 4480.700195 | G103: 3154760000 | H103: 4480.700195 | I103: 1 | J103: 1 | K103: 4447.49 | L103: 4486.87 | M103: 4438.37 | N103: 4480.7 | O103: 3154760000
A104: 89 | B104: 2021-09-14 | C104: 4479.330078 | D104: 4485.680176 | E104: 4435.459961 | F104: 4443.049805 | G104: 2568730000 | H104: 4443.049805 | I104: 1 | J104: 1 | K104: 4479.33 | L104: 4485.68 | M104: 4435.46 | N104: 4443.05 | O104: 2568730000
A105: 90 | B105: 2021-09-13 | C105: 4474.810059 | D105: 4492.990234 | E105: 4445.700195 | F105: 4468.72998 | G105: 3096390000 | H105: 4468.72998 | I105: 1 | J105: 1 | K105: 4474.81 | L105: 4492.99 | M105: 4445.7 | N105: 4468.73 | O105: 3096390000
A106: 91 | B106: 2021-09-10 | C106: 4506.919922 | D106: 4520.470215 | E106: 4457.660156 | F106: 4458.580078 | G106: 2851140000 | H106: 4458.580078 | I106: 1 | J106: 1 | K106: 4506.92 | L106: 4520.47 | M106: 4457.66 | N106: 4458.58 | O106: 2851140000
A107: 92 | B107: 2021-09-09 | C107: 4513.02002 | D107: 4529.899902 | E107: 4492.069824 | F107: 4493.279785 | G107: 3035300000 | H107: 4493.279785 | I107: 1 | J107: 1 | K107: 4513.02 | L107: 4529.9 | M107: 4492.07 | N107: 4493.28 | O107: 3035300000
A108: 93 | B108: 2021-09-08 | C108: 4518.089844 | D108: 4521.790039 | E108: 4493.950195 | F108: 4514.069824 | G108: 2808480000 | H108: 4514.069824 | I108: 1 | J108: 1 | K108: 4518.09 | L108: 4521.79 | M108: 4493.95 | N108: 4514.07 | O108: 2808480000
A109: 94 | B109: 2021-09-07 | C109: 4535.379883 | D109: 4535.379883 | E109: 4513 | F109: 4520.029785 | G109: 3098870000 | H109: 4520.029785 | I109: 1 | J109: 1 | K109: 4535.38 | L109: 4535.38 | M109: 4513 | N109: 4520.03 | O109: 3098870000
A110: 95 | B110: 2021-09-03 | C110: 4532.419922 | D110: 4541.450195 | E110: 4521.299805 | F110: 4535.430176 | G110: 2609660000 | H110: 4535.430176 | I110: 1 | J110: 1 | K110: 4532.42 | L110: 4541.45 | M110: 4521.3 | N110: 4535.43 | O110: 2609660000
A111: 96 | B111: 2021-09-02 | C111: 4534.47998 | D111: 4545.850098 | E111: 4524.660156 | F111: 4536.950195 | G111: 2897010000 | H111: 4536.950195 | I111: 1 | J111: 1 | K111: 4534.48 | L111: 4545.85 | M111: 4524.66 | N111: 4536.95 | O111: 2897010000
A112: 97 | B112: 2021-09-01 | C112: 4528.799805 | D112: 4537.109863 | E112: 4522.02002 | F112: 4524.089844 | G112: 3101830000 | H112: 4524.089844 | I112: 1 | J112: 1 | K112: 4528.8 | L112: 4537.11 | M112: 4522.02 | N112: 4524.09 | O112: 3101830000
A113: 98 | B113: 2021-08-31 | C113: 4529.75 | D113: 4531.390137 | E113: 4515.799805 | F113: 4522.680176 | G113: 3090380000 | H113: 4522.680176 | I113: 1 | J113: 1 | K113: 4529.75 | L113: 4531.39 | M113: 4515.8 | N113: 4522.68 | O113: 3090380000
A114: 99 | B114: 2021-08-30 | C114: 4513.759766 | D114: 4537.359863 | E114: 4513.759766 | F114: 4528.790039 | G114: 2557300000 | H114: 4528.790039 | I114: 1 | J114: 1 | K114: 4513.76 | L114: 4537.36 | M114: 4513.76 | N114: 4528.79 | O114: 2557300000
A115: 100 | B115: 2021-08-27 | C115: 4474.100098 | D115: 4513.330078 | E115: 4474.100098 | F115: 4509.370117 | G115: 2862360000 | H115: 4509.370117 | I115: 1 | J115: 1 | K115: 4474.1 | L115: 4513.33 | M115: 4474.1 | N115: 4509.37 | O115: 2862360000
A116: 101 | B116: 2021-08-26 | C116: 4493.75 | D116: 4495.899902 | E116: 4468.990234 | F116: 4470 | G116: 2704600000 | H116: 4470 | I116: 1 | J116: 1 | K116: 4493.75 | L116: 4495.9 | M116: 4468.99 | N116: 4470 | O116: 2704600000
A117: 102 | B117: 2021-08-25 | C117: 4490.450195 | D117: 4501.709961 | E117: 4485.660156 | F117: 4496.189941 | G117: 2554680000 | H117: 4496.189941 | I117: 1 | J117: 1 | K117: 4490.45 | L117: 4501.71 | M117: 4485.66 | N117: 4496.19 | O117: 2554680000
A118: 103 | B118: 2021-08-24 | C118: 4484.399902 | D118: 4492.810059 | E118: 4482.279785 | F118: 4486.22998 | G118: 3037770000 | H118: 4486.22998 | I118: 1 | J118: 1 | K118: 4484.4 | L118: 4492.81 | M118: 4482.28 | N118: 4486.23 | O118: 3037770000
A119: 104 | B119: 2021-08-23 | C119: 4450.290039 | D119: 4489.879883 | E119: 4450.290039 | F119: 4479.529785 | G119: 2965520000 | H119: 4479.529785 | I119: 1 | J119: 1 | K119: 4450.29 | L119: 4489.88 | M119: 4450.29 | N119: 4479.53 | O119: 2965520000
A120: 105 | B120: 2021-08-20 | C120: 4410.560059 | D120: 4444.350098 | E120: 4406.799805 | F120: 4441.669922 | G120: 2867770000 | H120: 4441.669922 | I120: 1 | J120: 1 | K120: 4410.56 | L120: 4444.35 | M120: 4406.8 | N120: 4441.67 | O120: 2867770000
A121: 106 | B121: 2021-08-19 | C121: 4382.439941 | D121: 4418.609863 | E121: 4367.72998 | F121: 4405.799805 | G121: 3120840000 | H121: 4405.799805 | I121: 1 | J121: 1 | K121: 4382.44 | L121: 4418.61 | M121: 4367.73 | N121: 4405.8 | O121: 3120840000
A122: 107 | B122: 2021-08-18 | C122: 4440.939941 | D122: 4454.319824 | E122: 4397.589844 | F122: 4400.27002 | G122: 2965210000 | H122: 4400.27002 | I122: 1 | J122: 1 | K122: 4440.94 | L122: 4454.32 | M122: 4397.59 | N122: 4400.27 | O122: 2965210000
A123: 108 | B123: 2021-08-17 | C123: 4462.120117 | D123: 4462.120117 | E123: 4417.830078 | F123: 4448.080078 | G123: 2884000000 | H123: 4448.080078 | I123: 1 | J123: 1 | K123: 4462.12 | L123: 4462.12 | M123: 4417.83 | N123: 4448.08 | O123: 2884000000
A124: 109 | B124: 2021-08-16 | C124: 4461.649902 | D124: 4480.259766 | E124: 4437.660156 | F124: 4479.709961 | G124: 2707170000 | H124: 4479.709961 | I124: 1 | J124: 1 | K124: 4461.65 | L124: 4480.26 | M124: 4437.66 | N124: 4479.71 | O124: 2707170000
A125: 110 | B125: 2021-08-13 | C125: 4464.839844 | D125: 4468.370117 | E125: 4460.819824 | F125: 4468 | G125: 2371630000 | H125: 4468 | I125: 1 | J125: 1 | K125: 4464.84 | L125: 4468.37 | M125: 4460.82 | N125: 4468 | O125: 2371630000
A126: 111 | B126: 2021-08-12 | C126: 4446.080078 | D126: 4461.77002 | E126: 4435.959961 | F126: 4460.830078 | G126: 2543860000 | H126: 4460.830078 | I126: 1 | J126: 1 | K126: 4446.08 | L126: 4461.77 | M126: 4435.96 | N126: 4460.83 | O126: 2543860000
A127: 112 | B127: 2021-08-11 | C127: 4442.180176 | D127: 4449.439941 | E127: 4436.419922 | F127: 4442.410156 | G127: 2803060000 | H127: 4442.410156 | I127: 1 | J127: 1 | K127: 4442.18 | L127: 4449.44 | M127: 4436.42 | N127: 4442.41 | O127: 2803060000
A128: 113 | B128: 2021-08-10 | C128: 4435.790039 | D128: 4445.209961 | E128: 4430.029785 | F128: 4436.75 | G128: 3219840000 | H128: 4436.75 | I128: 1 | J128: 1 | K128: 4435.79 | L128: 4445.21 | M128: 4430.03 | N128: 4436.75 | O128: 3219840000
A129: 114 | B129: 2021-08-09 | C129: 4437.77002 | D129: 4439.390137 | E129: 4424.740234 | F129: 4432.350098 | G129: 2779880000 | H129: 4432.350098 | I129: 1 | J129: 1 | K129: 4437.77 | L129: 4439.39 | M129: 4424.74 | N129: 4432.35 | O129: 2779880000
A130: 115 | B130: 2021-08-06 | C130: 4429.069824 | D130: 4440.819824 | E130: 4429.069824 | F130: 4436.52002 | G130: 2839970000 | H130: 4436.52002 | I130: 1 | J130: 1 | K130: 4429.07 | L130: 4440.82 | M130: 4429.07 | N130: 4436.52 | O130: 2839970000
A131: 116 | B131: 2021-08-05 | C131: 4408.859863 | D131: 4429.759766 | E131: 4408.859863 | F131: 4429.100098 | G131: 2734220000 | H131: 4429.100098 | I131: 1 | J131: 1 | K131: 4408.86 | L131: 4429.76 | M131: 4408.86 | N131: 4429.1 | O131: 2734220000
A132: 117 | B132: 2021-08-04 | C132: 4415.950195 | D132: 4416.169922 | E132: 4400.22998 | F132: 4402.660156 | G132: 3382620000 | H132: 4402.660156 | I132: 1 | J132: 1 | K132: 4415.95 | L132: 4416.17 | M132: 4400.23 | N132: 4402.66 | O132: 3382620000
A133: 118 | B133: 2021-08-03 | C133: 4392.740234 | D133: 4423.790039 | E133: 4373 | F133: 4423.149902 | G133: 3305340000 | H133: 4423.149902 | I133: 1 | J133: 1 | K133: 4392.74 | L133: 4423.79 | M133: 4373 | N133: 4423.15 | O133: 3305340000
A134: 119 | B134: 2021-08-02 | C134: 4406.859863 | D134: 4422.180176 | E134: 4384.810059 | F134: 4387.160156 | G134: 2919940000 | H134: 4387.160156 | I134: 1 | J134: 1 | K134: 4406.86 | L134: 4422.18 | M134: 4384.81 | N134: 4387.16 | O134: 2919940000
A135: 120 | B135: 2021-07-30 | C135: 4395.120117 | D135: 4412.25 | E135: 4389.649902 | F135: 4395.259766 | G135: 2861600000 | H135: 4395.259766 | I135: 1 | J135: 1 | K135: 4395.12 | L135: 4412.25 | M135: 4389.65 | N135: 4395.26 | O135: 2861600000
A136: 121 | B136: 2021-07-29 | C136: 4403.589844 | D136: 4429.970215 | E136: 4403.589844 | F136: 4419.149902 | G136: 2815510000 | H136: 4419.149902 | I136: 1 | J136: 1 | K136: 4403.59 | L136: 4429.97 | M136: 4403.59 | N136: 4419.15 | O136: 2815510000
A137: 122 | B137: 2021-07-28 | C137: 4402.950195 | D137: 4415.470215 | E137: 4387.009766 | F137: 4400.640137 | G137: 3215130000 | H137: 4400.640137 | I137: 1 | J137: 1 | K137: 4402.95 | L137: 4415.47 | M137: 4387.01 | N137: 4400.64 | O137: 3215130000
A138: 123 | B138: 2021-07-27 | C138: 4416.379883 | D138: 4416.379883 | E138: 4372.509766 | F138: 4401.459961 | G138: 3381080000 | H138: 4401.459961 | I138: 1 | J138: 1 | K138: 4416.38 | L138: 4416.38 | M138: 4372.51 | N138: 4401.46 | O138: 3381080000
A139: 124 | B139: 2021-07-26 | C139: 4409.580078 | D139: 4422.72998 | E139: 4405.450195 | F139: 4422.299805 | G139: 2679110000 | H139: 4422.299805 | I139: 1 | J139: 1 | K139: 4409.58 | L139: 4422.73 | M139: 4405.45 | N139: 4422.3 | O139: 2679110000
A140: 125 | B140: 2021-07-23 | C140: 4381.200195 | D140: 4415.180176 | E140: 4381.200195 | F140: 4411.790039 | G140: 3490730000 | H140: 4411.790039 | I140: 1 | J140: 1 | K140: 4381.2 | L140: 4415.18 | M140: 4381.2 | N140: 4411.79 | O140: 3490730000
A141: 126 | B141: 2021-07-22 | C141: 4361.27002 | D141: 4369.870117 | E141: 4350.060059 | F141: 4367.47998 | G141: 2907910000 | H141: 4367.47998 | I141: 1 | J141: 1 | K141: 4361.27 | L141: 4369.87 | M141: 4350.06 | N141: 4367.48 | O141: 2907910000
A142: 127 | B142: 2021-07-21 | C142: 4331.129883 | D142: 4359.700195 | E142: 4331.129883 | F142: 4358.689941 | G142: 3078550000 | H142: 4358.689941 | I142: 1 | J142: 1 | K142: 4331.13 | L142: 4359.7 | M142: 4331.13 | N142: 4358.69 | O142: 3078550000
A143: 128 | B143: 2021-07-20 | C143: 4265.109863 | D143: 4336.839844 | E143: 4262.049805 | F143: 4323.060059 | G143: 3634190000 | H143: 4323.060059 | I143: 1 | J143: 1 | K143: 4265.11 | L143: 4336.84 | M143: 4262.05 | N143: 4323.06 | O143: 3634190000
A144: 129 | B144: 2021-07-19 | C144: 4296.399902 | D144: 4296.399902 | E144: 4233.129883 | F144: 4258.490234 | G144: 4155790000 | H144: 4258.490234 | I144: 1 | J144: 1 | K144: 4296.4 | L144: 4296.4 | M144: 4233.13 | N144: 4258.49 | O144: 4155790000
A145: 130 | B145: 2021-07-16 | C145: 4367.430176 | D145: 4375.089844 | E145: 4322.529785 | F145: 4327.160156 | G145: 3165160000 | H145: 4327.160156 | I145: =IF(F145=0,1,H145/F145) -> 1 | J145: =INDEX(OFFSET($T$15,0,0,$S$13+1,1),MATCH(B145,OFFSET($Q$15,0,0,$S$13+1,1),-1)) -> 1 | K145: =ROUND($I145*C145,2) -> 4367.43 | L145: =ROUND($I145*D145,2) -> 4375.09 | M145: =ROUND($I145*E145,2) -> 4322.53 | N145: =ROUND($I145*F145,2) -> 4327.16 | O145: =G145*J145 -> 3165160000
A146: 131 | B146: 2021-07-15 | C146: 4369.02002 | D146: 4369.02002 | E146: 4340.700195 | F146: 4360.029785 | G146: 3226930000 | H146: 4360.029785 | I146: 1 | J146: 1 | K146: 4369.02 | L146: 4369.02 | M146: 4340.7 | N146: 4360.03 | O146: 3226930000
A147: 132 | B147: 2021-07-14 | C147: 4380.109863 | D147: 4393.680176 | E147: 4362.359863 | F147: 4374.299805 | G147: 3213870000 | H147: 4374.299805 | I147: 1 | J147: 1 | K147: 4380.11 | L147: 4393.68 | M147: 4362.36 | N147: 4374.3 | O147: 3213870000
A148: 133 | B148: 2021-07-13 | C148: 4381.069824 | D148: 4392.370117 | E148: 4366.919922 | F148: 4369.209961 | G148: 3166900000 | H148: 4369.209961 | I148: 1 | J148: 1 | K148: 4381.07 | L148: 4392.37 | M148: 4366.92 | N148: 4369.21 | O148: 3166900000
A149: 134 | B149: 2021-07-12 | C149: 4372.410156 | D149: 4386.680176 | E149: 4364.029785 | F149: 4384.629883 | G149: 2983980000 | H149: 4384.629883 | I149: 1 | J149: 1 | K149: 4372.41 | L149: 4386.68 | M149: 4364.03 | N149: 4384.63 | O149: 2983980000
A150: 135 | B150: 2021-07-09 | C150: 4329.379883 | D150: 4371.600098 | E150: 4329.379883 | F150: 4369.549805 | G150: 2738280000 | H150: 4369.549805 | I150: 1 | J150: 1 | K150: 4329.38 | L150: 4371.6 | M150: 4329.38 | N150: 4369.55 | O150: 2738280000
A151: 136 | B151: 2021-07-08 | C151: 4321.069824 | D151: 4330.879883 | E151: 4289.370117 | F151: 4320.819824 | G151: 3393780000 | H151: 4320.819824 | I151: 1 | J151: 1 | K151: 4321.07 | L151: 4330.88 | M151: 4289.37 | N151: 4320.82 | O151: 3393780000
A152: 137 | B152: 2021-07-07 | C152: 4351.009766 | D152: 4361.879883 | E152: 4329.790039 | F152: 4358.129883 | G152: 3243900000 | H152: 4358.129883 | I152: 1 | J152: 1 | K152: 4351.01 | L152: 4361.88 | M152: 4329.79 | N152: 4358.13 | O152: 3243900000
A153: 138 | B153: 2021-07-06 | C153: 4356.459961 | D153: 4356.459961 | E153: 4314.370117 | F153: 4343.540039 | G153: 3437900000 | H153: 4343.540039 | I153: 1 | J153: 1 | K153: 4356.46 | L153: 4356.46 | M153: 4314.37 | N153: 4343.54 | O153: 3437900000
A154: 139 | B154: 2021-07-02 | C154: 4326.600098 | D154: 4355.430176 | E154: 4326.600098 | F154: 4352.339844 | G154: 2628550000 | H154: 4352.339844 | I154: 1 | J154: 1 | K154: 4326.6 | L154: 4355.43 | M154: 4326.6 | N154: 4352.34 | O154: 2628550000
A155: 140 | B155: 2021-07-01 | C155: 4300.72998 | D155: 4320.660156 | E155: 4300.72998 | F155: 4319.939941 | G155: 3077580000 | H155: 4319.939941 | I155: 1 | J155: 1 | K155: 4300.73 | L155: 4320.66 | M155: 4300.73 | N155: 4319.94 | O155: 3077580000
A156: 141 | B156: 2021-06-30 | C156: 4290.649902 | D156: 4302.430176 | E156: 4287.959961 | F156: 4297.5 | G156: 3687880000 | H156: 4297.5 | I156: 1 | J156: 1 | K156: 4290.65 | L156: 4302.43 | M156: 4287.96 | N156: 4297.5 | O156: 3687880000
A157: 142 | B157: 2021-06-29 | C157: 4293.209961 | D157: 4300.52002 | E157: 4287.040039 | F157: 4291.799805 | G157: 3049560000 | H157: 4291.799805 | I157: 1 | J157: 1 | K157: 4293.21 | L157: 4300.52 | M157: 4287.04 | N157: 4291.8 | O157: 3049560000
A158: 143 | B158: 2021-06-28 | C158: 4284.899902 | D158: 4292.140137 | E158: 4274.669922 | F158: 4290.609863 | G158: 3415610000 | H158: 4290.609863 | I158: 1 | J158: 1 | K158: 4284.9 | L158: 4292.14 | M158: 4274.67 | N158: 4290.61 | O158: 3415610000
A159: 144 | B159: 2021-06-25 | C159: 4274.450195 | D159: 4286.120117 | E159: 4271.160156 | F159: 4280.700195 | G159: 6248390000 | H159: 4280.700195 | I159: 1 | J159: 1 | K159: 4274.45 | L159: 4286.12 | M159: 4271.16 | N159: 4280.7 | O159: 6248390000
A160: 145 | B160: 2021-06-24 | C160: 4256.970215 | D160: 4271.279785 | E160: 4256.970215 | F160: 4266.490234 | G160: 3141680000 | H160: 4266.490234 | I160: 1 | J160: 1 | K160: 4256.97 | L160: 4271.28 | M160: 4256.97 | N160: 4266.49 | O160: 3141680000
A161: 146 | B161: 2021-06-23 | C161: 4249.27002 | D161: 4256.600098 | E161: 4241.430176 | F161: 4241.839844 | G161: 3172440000 | H161: 4241.839844 | I161: 1 | J161: 1 | K161: 4249.27 | L161: 4256.6 | M161: 4241.43 | N161: 4241.84 | O161: 3172440000
A162: 147 | B162: 2021-06-22 | C162: 4224.609863 | D162: 4255.839844 | E162: 4217.27002 | F162: 4246.439941 | G162: 3208760000 | H162: 4246.439941 | I162: 1 | J162: 1 | K162: 4224.61 | L162: 4255.84 | M162: 4217.27 | N162: 4246.44 | O162: 3208760000
A163: 148 | B163: 2021-06-21 | C163: 4173.399902 | D163: 4226.240234 | E163: 4173.399902 | F163: 4224.790039 | G163: 3391740000 | H163: 4224.790039 | I163: 1 | J163: 1 | K163: 4173.4 | L163: 4226.24 | M163: 4173.4 | N163: 4224.79 | O163: 3391740000
A164: 149 | B164: 2021-06-18 | C164: 4204.779785 | D164: 4204.779785 | E164: 4164.399902 | F164: 4166.450195 | G164: 6084980000 | H164: 4166.450195 | I164: 1 | J164: 1 | K164: 4204.78 | L164: 4204.78 | M164: 4164.4 | N164: 4166.45 | O164: 6084980000
A165: 150 | B165: 2021-06-17 | C165: 4220.370117 | D165: 4232.290039 | E165: 4196.049805 | F165: 4221.859863 | G165: 3952110000 | H165: 4221.859863 | I165: 1 | J165: 1 | K165: 4220.37 | L165: 4232.29 | M165: 4196.05 | N165: 4221.86 | O165: 3952110000
A166: 151 | B166: 2021-06-16 | C166: 4248.870117 | D166: 4251.890137 | E166: 4202.450195 | F166: 4223.700195 | G166: 3722050000 | H166: 4223.700195 | I166: 1 | J166: 1 | K166: 4248.87 | L166: 4251.89 | M166: 4202.45 | N166: 4223.7 | O166: 3722050000
A167: 152 | B167: 2021-06-15 | C167: 4255.279785 | D167: 4257.160156 | E167: 4238.350098 | F167: 4246.589844 | G167: 3578450000 | H167: 4246.589844 | I167: 1 | J167: 1 | K167: 4255.28 | L167: 4257.16 | M167: 4238.35 | N167: 4246.59 | O167: 3578450000
A168: 153 | B168: 2021-06-14 | C168: 4248.310059 | D168: 4255.589844 | E168: 4234.069824 | F168: 4255.149902 | G168: 3612050000 | H168: 4255.149902 | I168: 1 | J168: 1 | K168: 4248.31 | L168: 4255.59 | M168: 4234.07 | N168: 4255.15 | O168: 3612050000
A169: 154 | B169: 2021-06-11 | C169: 4242.899902 | D169: 4248.379883 | E169: 4232.25 | F169: 4247.439941 | G169: 3204280000 | H169: 4247.439941 | I169: 1 | J169: 1 | K169: 4242.9 | L169: 4248.38 | M169: 4232.25 | N169: 4247.44 | O169: 3204280000
A170: 155 | B170: 2021-06-10 | C170: 4228.560059 | D170: 4249.740234 | E170: 4220.339844 | F170: 4239.180176 | G170: 3502480000 | H170: 4239.180176 | I170: 1 | J170: 1 | K170: 4228.56 | L170: 4249.74 | M170: 4220.34 | N170: 4239.18 | O170: 3502480000
A171: 156 | B171: 2021-06-09 | C171: 4232.990234 | D171: 4237.089844 | E171: 4218.740234 | F171: 4219.549805 | G171: 3902870000 | H171: 4219.549805 | I171: 1 | J171: 1 | K171: 4232.99 | L171: 4237.09 | M171: 4218.74 | N171: 4219.55 | O171: 3902870000
A172: 157 | B172: 2021-06-08 | C172: 4233.810059 | D172: 4236.740234 | E172: 4208.410156 | F172: 4227.259766 | G172: 3943870000 | H172: 4227.259766 | I172: 1 | J172: 1 | K172: 4233.81 | L172: 4236.74 | M172: 4208.41 | N172: 4227.26 | O172: 3943870000
A173: 158 | B173: 2021-06-07 | C173: 4229.339844 | D173: 4232.339844 | E173: 4215.660156 | F173: 4226.52002 | G173: 3835570000 | H173: 4226.52002 | I173: 1 | J173: 1 | K173: 4229.34 | L173: 4232.34 | M173: 4215.66 | N173: 4226.52 | O173: 3835570000
A174: 159 | B174: 2021-06-04 | C174: 4206.049805 | D174: 4233.450195 | E174: 4206.049805 | F174: 4229.890137 | G174: 3487070000 | H174: 4229.890137 | I174: 1 | J174: 1 | K174: 4206.05 | L174: 4233.45 | M174: 4206.05 | N174: 4229.89 | O174: 3487070000
A175: 160 | B175: 2021-06-03 | C175: 4191.430176 | D175: 4204.390137 | E175: 4167.930176 | F175: 4192.850098 | G175: 4579450000 | H175: 4192.850098 | I175: 1 | J175: 1 | K175: 4191.43 | L175: 4204.39 | M175: 4167.93 | N175: 4192.85 | O175: 4579450000
A176: 161 | B176: 2021-06-02 | C176: 4206.819824 | D176: 4217.370117 | E176: 4198.27002 | F176: 4208.120117 | G176: 4860930000 | H176: 4208.120117 | I176: 1 | J176: 1 | K176: 4206.82 | L176: 4217.37 | M176: 4198.27 | N176: 4208.12 | O176: 4860930000
A177: 162 | B177: 2021-06-01 | C177: 4216.52002 | D177: 4234.120117 | E177: 4197.589844 | F177: 4202.040039 | G177: 4122960000 | H177: 4202.040039 | I177: 1 | J177: 1 | K177: 4216.52 | L177: 4234.12 | M177: 4197.59 | N177: 4202.04 | O177: 4122960000
A178: 163 | B178: 2021-05-28 | C178: 4210.77002 | D178: 4218.359863 | E178: 4203.569824 | F178: 4204.109863 | G178: 4199270000 | H178: 4204.109863 | I178: 1 | J178: 1 | K178: 4210.77 | L178: 4218.36 | M178: 4203.57 | N178: 4204.11 | O178: 4199270000
A179: 164 | B179: 2021-05-27 | C179: 4201.939941 | D179: 4213.379883 | E179: 4197.779785 | F179: 4200.879883 | G179: 5201110000 | H179: 4200.879883 | I179: 1 | J179: 1 | K179: 4201.94 | L179: 4213.38 | M179: 4197.78 | N179: 4200.88 | O179: 5201110000
A180: 165 | B180: 2021-05-26 | C180: 4191.589844 | D180: 4202.609863 | E180: 4184.109863 | F180: 4195.990234 | G180: 3674490000 | H180: 4195.990234 | I180: 1 | J180: 1 | K180: 4191.59 | L180: 4202.61 | M180: 4184.11 | N180: 4195.99 | O180: 3674490000
A181: 166 | B181: 2021-05-25 | C181: 4205.939941 | D181: 4213.419922 | E181: 4182.52002 | F181: 4188.129883 | G181: 3420870000 | H181: 4188.129883 | I181: 1 | J181: 1 | K181: 4205.94 | L181: 4213.42 | M181: 4182.52 | N181: 4188.13 | O181: 3420870000
A182: 167 | B182: 2021-05-24 | C182: 4170.160156 | D182: 4209.52002 | E182: 4170.160156 | F182: 4197.049805 | G182: 2947400000 | H182: 4197.049805 | I182: 1 | J182: 1 | K182: 4170.16 | L182: 4209.52 | M182: 4170.16 | N182: 4197.05 | O182: 2947400000
A183: 168 | B183: 2021-05-21 | C183: 4168.609863 | D183: 4188.720215 | E183: 4151.720215 | F183: 4155.859863 | G183: 3344620000 | H183: 4155.859863 | I183: 1 | J183: 1 | K183: 4168.61 | L183: 4188.72 | M183: 4151.72 | N183: 4155.86 | O183: 3344620000
A184: 169 | B184: 2021-05-20 | C184: 4121.970215 | D184: 4172.799805 | E184: 4121.970215 | F184: 4159.120117 | G184: 3019060000 | H184: 4159.120117 | I184: 1 | J184: 1 | K184: 4121.97 | L184: 4172.8 | M184: 4121.97 | N184: 4159.12 | O184: 3019060000
A185: 170 | B185: 2021-05-19 | C185: 4098.450195 | D185: 4116.930176 | E185: 4061.409912 | F185: 4115.680176 | G185: 3485550000 | H185: 4115.680176 | I185: 1 | J185: 1 | K185: 4098.45 | L185: 4116.93 | M185: 4061.41 | N185: 4115.68 | O185: 3485550000
A186: 171 | B186: 2021-05-18 | C186: 4165.939941 | D186: 4169.149902 | E186: 4125.990234 | F186: 4127.830078 | G186: 3559790000 | H186: 4127.830078 | I186: 1 | J186: 1 | K186: 4165.94 | L186: 4169.15 | M186: 4125.99 | N186: 4127.83 | O186: 3559790000
A187: 172 | B187: 2021-05-17 | C187: 4169.919922 | D187: 4171.919922 | E187: 4142.689941 | F187: 4163.290039 | G187: 3307130000 | H187: 4163.290039 | I187: 1 | J187: 1 | K187: 4169.92 | L187: 4171.92 | M187: 4142.69 | N187: 4163.29 | O187: 3307130000
A188: 173 | B188: 2021-05-14 | C188: 4129.580078 | D188: 4183.129883 | E188: 4129.580078 | F188: 4173.850098 | G188: 3251920000 | H188: 4173.850098 | I188: 1 | J188: 1 | K188: 4129.58 | L188: 4183.13 | M188: 4129.58 | N188: 4173.85 | O188: 3251920000
A189: 174 | B189: 2021-05-13 | C189: 4074.98999 | D189: 4131.580078 | E189: 4074.98999 | F189: 4112.5 | G189: 3687780000 | H189: 4112.5 | I189: 1 | J189: 1 | K189: 4074.99 | L189: 4131.58 | M189: 4074.99 | N189: 4112.5 | O189: 3687780000
A190: 175 | B190: 2021-05-12 | C190: 4130.549805 | D190: 4134.72998 | E190: 4056.879883 | F190: 4063.040039 | G190: 3735080000 | H190: 4063.040039 | I190: 1 | J190: 1 | K190: 4130.55 | L190: 4134.73 | M190: 4056.88 | N190: 4063.04 | O190: 3735080000
A191: 176 | B191: 2021-05-11 | C191: 4150.339844 | D191: 4162.040039 | E191: 4111.529785 | F191: 4152.100098 | G191: 3593110000 | H191: 4152.100098 | I191: 1 | J191: 1 | K191: 4150.34 | L191: 4162.04 | M191: 4111.53 | N191: 4152.1 | O191: 3593110000
A192: 177 | B192: 2021-05-10 | C192: 4228.290039 | D192: 4236.390137 | E192: 4188.129883 | F192: 4188.430176 | G192: 3678970000 | H192: 4188.430176 | I192: 1 | J192: 1 | K192: 4228.29 | L192: 4236.39 | M192: 4188.13 | N192: 4188.43 | O192: 3678970000
A193: 178 | B193: 2021-05-07 | C193: 4210.339844 | D193: 4238.040039 | E193: 4201.640137 | F193: 4232.600098 | G193: 4013060000 | H193: 4232.600098 | I193: 1 | J193: 1 | K193: 4210.34 | L193: 4238.04 | M193: 4201.64 | N193: 4232.6 | O193: 4013060000
A194: 179 | B194: 2021-05-06 | C194: 4169.140137 | D194: 4202.700195 | E194: 4147.330078 | F194: 4201.620117 | G194: 4504860000 | H194: 4201.620117 | I194: 1 | J194: 1 | K194: 4169.14 | L194: 4202.7 | M194: 4147.33 | N194: 4201.62 | O194: 4504860000
A195: 180 | B195: 2021-05-05 | C195: 4177.060059 | D195: 4187.720215 | E195: 4160.939941 | F195: 4167.589844 | G195: 4029050000 | H195: 4167.589844 | I195: 1 | J195: 1 | K195: 4177.06 | L195: 4187.72 | M195: 4160.94 | N195: 4167.59 | O195: 4029050000
A196: 181 | B196: 2021-05-04 | C196: 4179.040039 | D196: 4179.040039 | E196: 4128.589844 | F196: 4164.660156 | G196: 4441080000 | H196: 4164.660156 | I196: 1 | J196: 1 | K196: 4179.04 | L196: 4179.04 | M196: 4128.59 | N196: 4164.66 | O196: 4441080000
A197: 182 | B197: 2021-05-03 | C197: 4191.97998 | D197: 4209.390137 | E197: 4188.029785 | F197: 4192.660156 | G197: 4061170000 | H197: 4192.660156 | I197: 1 | J197: 1 | K197: 4191.98 | L197: 4209.39 | M197: 4188.03 | N197: 4192.66 | O197: 4061170000
A198: 183 | B198: 2021-04-30 | C198: 4198.100098 | D198: 4198.100098 | E198: 4174.850098 | F198: 4181.169922 | G198: 4273680000 | H198: 4181.169922 | I198: 1 | J198: 1 | K198: 4198.1 | L198: 4198.1 | M198: 4174.85 | N198: 4181.17 | O198: 4273680000
A199: 184 | B199: 2021-04-29 | C199: 4206.140137 | D199: 4218.779785 | E199: 4176.810059 | F199: 4211.470215 | G199: 4288940000 | H199: 4211.470215 | I199: 1 | J199: 1 | K199: 4206.14 | L199: 4218.78 | M199: 4176.81 | N199: 4211.47 | O199: 4288940000
A200: 185 | B200: 2021-04-28 | C200: 4185.140137 | D200: 4201.529785 | E200: 4181.779785 | F200: 4183.180176 | G200: 3772390000 | H200: 4183.180176 | I200: 1 | J200: 1 | K200: 4185.14 | L200: 4201.53 | M200: 4181.78 | N200: 4183.18 | O200: 3772390000
... 4300 more rows

Sheet InputIndexData
A1: CBOE Volatility Index (^VIX) -Chicago Options (Daily)
M2: To retrieve data for symbols traded on non US Exchanges, | II2: 241.79
A3: Request Online Yahoo History for: | F3: Market State == > | G3: As of | H3: 12:37:00 | I3: EST. Market open. | M3: you will need to append the dot-suffix for the exchange to the symbol.
A4: Symbol | B4: ^VIX | D4: Valid | I4: =OFFSET(I4,-2,0,1,1) -> 0 | M4: The following links provide a description of how to use the exchange suffix
A5: From | B5: 1950-10-01 | D5: Data | M5: along with a list of suffixes for the major world exchanges. | AD5: Trailing 12 Div return (Cur Close)
A6: To | B6: =NOW() -> 2022-01-19T12:52:48.700 | D6: Types | E6: =VLOOKUP(B7,D7:E10,2,FALSE) -> d | M6: https://help.yahoo.com/kb/finance/SLN2310.html
A7: Data Type | B7: Daily | D7: Daily | E7: d | M7: And
A8: Crumb | B8: JcvIfW2OgfW | D8: Weekly | E8: w | M8: https://www.stockmarketeye.com/users-guide/ticker-symbols-and-data-providers/data-providers.html
A9: Available Data | D9: Monthly | E9: m
A10: Bar Count: | B10: 8076 | M10: You may search on “exchange suffixes” for additional discussions | AD10: =OFFSET(AC15,1,0,1,1)/OFFSET(N15,1,0,1,1) -> 0
A11: From: | B11: =IF(B10<=0,"",OFFSET(B15,B10,IF(HistReqDataType="v",1,0),1,1)) -> 1990-01-02 | W11: Trailing 12 Month Dividend Returns
A12: To: | B12: =IF(B10<=0,"",IF(HistReqDataType="v",OFFSET(B15,2,1,1,1),OFFSET(B15,1,0,1,1))) -> 2022-01-19 | W12: Raw Close price on Dividend date | X12: Div Year and Month | Y12: Looking for year ago Div Year and Month | Z12: Year ago Div Date we found | AA12: row offset to year ago div Date | AB12: Same month flag | AC12: Trailing 12 Div Total | AD12: Trailing 12 Div return
Q13: Split History | S13: 0 | T13: Running | U13: Dividend History
B14: Raw Data Values | H14: Adjusted | I14: Price Adjust | J14: Vol Adjust | K14: Adjusted Values | P14: Last | Q14: Effective | R14: Shares | T14: Vol Adjust | V14: 0
A15: RelRow | B15: Date | C15: Open | D15: High | E15: Low | F15: Close | G15: Volume | H15: Close | I15: Factor | J15: Factor | K15: Open | L15: High | M15: Low | N15: Close | O15: Volume | P15: Trade | Q15: 44581 | R15: New | S15: Old | T15: 1 | U15: Date | V15: $ / Share
A16: 1 | B16: 2022-01-19 | C16: 23.120001 | D16: 23.93 | E16: 21.85 | F16: 22.4 | G16: 0 | H16: 22.4 | I16: =IF(F16=0,1,H16/F16) -> 1 | J16: =INDEX(OFFSET($T$15,0,0,$S$13+1,1),MATCH(B16,OFFSET($Q$15,0,0,$S$13+1,1),-1)) -> 1 | K16: =ROUND($I16*C16,2) -> 23.12 | L16: =ROUND($I16*D16,2) -> 23.93 | M16: 21.85 | N16: 22.4 | O16: =G16*J16 -> 0
A17: 2 | B17: 2022-01-18 | C17: 21.18 | D17: 23.200001 | E17: 21.18 | F17: 22.790001 | G17: 0 | H17: 22.790001 | I17: =IF(F17=0,1,H17/F17) -> 1 | J17: =INDEX(OFFSET($T$15,0,0,$S$13+1,1),MATCH(B17,OFFSET($Q$15,0,0,$S$13+1,1),-1)) -> 1 | K17: =ROUND($I17*C17,2) -> 21.18 | L17: =ROUND($I17*D17,2) -> 23.2 | M17: =ROUND($I17*E17,2) -> 21.18 | N17: =ROUND($I17*F17,2) -> 22.79 | O17: =G17*J17 -> 0
A18: 3 | B18: 2022-01-14 | C18: 20.110001 | D18: 22.07 | E18: 19.049999 | F18: 19.190001 | G18: 0 | H18: 19.190001 | I18: 1 | J18: 1 | K18: 20.11 | L18: 22.07 | M18: 19.05 | N18: 19.19 | O18: 0
A19: 4 | B19: 2022-01-13 | C19: 18.059999 | D19: 20.610001 | E19: 17.450001 | F19: 20.309999 | G19: 0 | H19: 20.309999 | I19: 1 | J19: 1 | K19: 18.06 | L19: 20.61 | M19: 17.45 | N19: 20.31 | O19: 0
A20: 5 | B20: 2022-01-12 | C20: 18.17 | D20: 18.690001 | E20: 17.360001 | F20: 17.620001 | G20: 0 | H20: 17.620001 | I20: 1 | J20: 1 | K20: 18.17 | L20: 18.69 | M20: 17.36 | N20: 17.62 | O20: 0
A21: 6 | B21: 2022-01-11 | C21: 19.620001 | D21: 21 | E21: 18.200001 | F21: 18.41 | G21: 0 | H21: 18.41 | I21: 1 | J21: 1 | K21: 19.62 | L21: 21 | M21: 18.2 | N21: 18.41 | O21: 0
A22: 7 | B22: 2022-01-10 | C22: 19.58 | D22: 23.33 | E22: 19.290001 | F22: 19.4 | G22: 0 | H22: 19.4 | I22: 1 | J22: 1 | K22: 19.58 | L22: 23.33 | M22: 19.29 | N22: 19.4 | O22: 0
A23: 8 | B23: 2022-01-07 | C23: 19.85 | D23: 20.799999 | E23: 18.57 | F23: 18.76 | G23: 0 | H23: 18.76 | I23: 1 | J23: 1 | K23: 19.85 | L23: 20.8 | M23: 18.57 | N23: 18.76 | O23: 0
A24: 9 | B24: 2022-01-06 | C24: 20.290001 | D24: 21.059999 | E24: 19.08 | F24: 19.610001 | G24: 0 | H24: 19.610001 | I24: 1 | J24: 1 | K24: 20.29 | L24: 21.06 | M24: 19.08 | N24: 19.61 | O24: 0
A25: 10 | B25: 2022-01-05 | C25: 17.07 | D25: 20.17 | E25: 16.58 | F25: 19.73 | G25: 0 | H25: 19.73 | I25: 1 | J25: 1 | K25: 17.07 | L25: 20.17 | M25: 16.58 | N25: 19.73 | O25: 0
A26: 11 | B26: 2022-01-04 | C26: 16.57 | D26: 17.809999 | E26: 16.34 | F26: 16.91 | G26: 0 | H26: 16.91 | I26: 1 | J26: 1 | K26: 16.57 | L26: 17.81 | M26: 16.34 | N26: 16.91 | O26: 0
A27: 12 | B27: 2022-01-03 | C27: 17.6 | D27: 18.540001 | E27: 16.559999 | F27: 16.6 | G27: 0 | H27: 16.6 | I27: 1 | J27: 1 | K27: 17.6 | L27: 18.54 | M27: 16.56 | N27: 16.6 | O27: 0
A28: 13 | B28: 2021-12-31 | C28: 17.629999 | D28: 18.27 | E28: 16.99 | F28: 17.219999 | G28: 0 | H28: 17.219999 | I28: 1 | J28: 1 | K28: 17.63 | L28: 18.27 | M28: 16.99 | N28: 17.22 | O28: 0
A29: 14 | B29: 2021-12-30 | C29: 17.299999 | D29: 17.790001 | E29: 16.620001 | F29: 17.33 | G29: 0 | H29: 17.33 | I29: 1 | J29: 1 | K29: 17.3 | L29: 17.79 | M29: 16.62 | N29: 17.33 | O29: 0
A30: 15 | B30: 2021-12-29 | C30: 17.629999 | D30: 18 | E30: 16.709999 | F30: 16.950001 | G30: 0 | H30: 16.950001 | I30: 1 | J30: 1 | K30: 17.63 | L30: 18 | M30: 16.71 | N30: 16.95 | O30: 0
A31: 16 | B31: 2021-12-28 | C31: 17.780001 | D31: 18.469999 | E31: 17.51 | F31: 17.540001 | G31: 0 | H31: 17.540001 | I31: 1 | J31: 1 | K31: 17.78 | L31: 18.47 | M31: 17.51 | N31: 17.54 | O31: 0
A32: 17 | B32: 2021-12-27 | C32: 19.370001 | D32: 19.41 | E32: 17.549999 | F32: 17.68 | G32: 0 | H32: 17.68 | I32: 1 | J32: 1 | K32: 19.37 | L32: 19.41 | M32: 17.55 | N32: 17.68 | O32: 0
A33: 18 | B33: 2021-12-23 | C33: 18.809999 | D33: 18.93 | E33: 17.620001 | F33: 17.959999 | G33: 0 | H33: 17.959999 | I33: 1 | J33: 1 | K33: 18.81 | L33: 18.93 | M33: 17.62 | N33: 17.96 | O33: 0
A34: 19 | B34: 2021-12-22 | C34: 21.040001 | D34: 21.360001 | E34: 18.59 | F34: 18.629999 | G34: 0 | H34: 18.629999 | I34: 1 | J34: 1 | K34: 21.04 | L34: 21.36 | M34: 18.59 | N34: 18.63 | O34: 0
A35: 20 | B35: 2021-12-21 | C35: 22.280001 | D35: 22.68 | E35: 20.9 | F35: 21.01 | G35: 0 | H35: 21.01 | I35: 1 | J35: 1 | K35: 22.28 | L35: 22.68 | M35: 20.9 | N35: 21.01 | O35: 0
A36: 21 | B36: 2021-12-20 | C36: 25.889999 | D36: 27.389999 | E36: 22.85 | F36: 22.870001 | G36: 0 | H36: 22.870001 | I36: 1 | J36: 1 | K36: 25.89 | L36: 27.39 | M36: 22.85 | N36: 22.87 | O36: 0
A37: 22 | B37: 2021-12-17 | C37: 20.700001 | D37: 23.26 | E37: 20.49 | F37: 21.57 | G37: 0 | H37: 21.57 | I37: 1 | J37: 1 | K37: 20.7 | L37: 23.26 | M37: 20.49 | N37: 21.57 | O37: 0
A38: 23 | B38: 2021-12-16 | C38: 18.559999 | D38: 22.129999 | E38: 18.190001 | F38: 20.57 | G38: 0 | H38: 20.57 | I38: 1 | J38: 1 | K38: 18.56 | L38: 22.13 | M38: 18.19 | N38: 20.57 | O38: 0
A39: 24 | B39: 2021-12-15 | C39: 21.6 | D39: 23.469999 | E39: 19.02 | F39: 19.290001 | G39: 0 | H39: 19.290001 | I39: 1 | J39: 1 | K39: 21.6 | L39: 23.47 | M39: 19.02 | N39: 19.29 | O39: 0
A40: 25 | B40: 2021-12-14 | C40: 19.67 | D40: 23 | E40: 19.67 | F40: 21.889999 | G40: 0 | H40: 21.889999 | I40: 1 | J40: 1 | K40: 19.67 | L40: 23 | M40: 19.67 | N40: 21.89 | O40: 0
A41: 26 | B41: 2021-12-13 | C41: 19.290001 | D41: 21.18 | E41: 18.959999 | F41: 20.309999 | G41: 0 | H41: 20.309999 | I41: 1 | J41: 1 | K41: 19.29 | L41: 21.18 | M41: 18.96 | N41: 20.31 | O41: 0
A42: 27 | B42: 2021-12-10 | C42: 21.27 | D42: 21.299999 | E42: 18.690001 | F42: 18.690001 | G42: 0 | H42: 18.690001 | I42: 1 | J42: 1 | K42: 21.27 | L42: 21.3 | M42: 18.69 | N42: 18.69 | O42: 0
A43: 28 | B43: 2021-12-09 | C43: 20.309999 | D43: 22.120001 | E43: 19.940001 | F43: 21.58 | G43: 0 | H43: 21.58 | I43: 1 | J43: 1 | K43: 20.31 | L43: 22.12 | M43: 19.94 | N43: 21.58 | O43: 0
A44: 29 | B44: 2021-12-08 | C44: 21.74 | D44: 23.110001 | E44: 19.85 | F44: 19.9 | G44: 0 | H44: 19.9 | I44: 1 | J44: 1 | K44: 21.74 | L44: 23.11 | M44: 19.85 | N44: 19.9 | O44: 0
A45: 30 | B45: 2021-12-07 | C45: 24.58 | D45: 24.690001 | E45: 21.58 | F45: 21.889999 | G45: 0 | H45: 21.889999 | I45: 1 | J45: 1 | K45: 24.58 | L45: 24.69 | M45: 21.58 | N45: 21.89 | O45: 0
A46: 31 | B46: 2021-12-06 | C46: 28.99 | D46: 30.82 | E46: 26.75 | F46: 27.18 | G46: 0 | H46: 27.18 | I46: 1 | J46: 1 | K46: 28.99 | L46: 30.82 | M46: 26.75 | N46: 27.18 | O46: 0
A47: 32 | B47: 2021-12-03 | C47: 26.950001 | D47: 35.32 | E47: 25.889999 | F47: 30.67 | G47: 0 | H47: 30.67 | I47: 1 | J47: 1 | K47: 26.95 | L47: 35.32 | M47: 25.89 | N47: 30.67 | O47: 0
A48: 33 | B48: 2021-12-02 | C48: 29.440001 | D48: 30.68 | E48: 27.15 | F48: 27.950001 | G48: 0 | H48: 27.950001 | I48: 1 | J48: 1 | K48: 29.44 | L48: 30.68 | M48: 27.15 | N48: 27.95 | O48: 0
A49: 34 | B49: 2021-12-01 | C49: 24.92 | D49: 32.610001 | E49: 22.379999 | F49: 31.120001 | G49: 0 | H49: 31.120001 | I49: 1 | J49: 1 | K49: 24.92 | L49: 32.61 | M49: 22.38 | N49: 31.12 | O49: 0
A50: 35 | B50: 2021-11-30 | C50: 26.23 | D50: 28.559999 | E50: 23.709999 | F50: 27.190001 | G50: 0 | H50: 27.190001 | I50: 1 | J50: 1 | K50: 26.23 | L50: 28.56 | M50: 23.71 | N50: 27.19 | O50: 0
A51: 36 | B51: 2021-11-29 | C51: 25.309999 | D51: 25.690001 | E51: 21.709999 | F51: 22.959999 | G51: 0 | H51: 22.959999 | I51: 1 | J51: 1 | K51: 25.31 | L51: 25.69 | M51: 21.71 | N51: 22.96 | O51: 0
A52: 37 | B52: 2021-11-26 | C52: 26.620001 | D52: 28.99 | E52: 23.879999 | F52: 28.620001 | G52: 0 | H52: 28.620001 | I52: 1 | J52: 1 | K52: 26.62 | L52: 28.99 | M52: 23.88 | N52: 28.62 | O52: 0
A53: 38 | B53: 2021-11-24 | C53: 19.17 | D53: 20.959999 | E53: 18.52 | F53: 18.58 | G53: 0 | H53: 18.58 | I53: 1 | J53: 1 | K53: 19.17 | L53: 20.96 | M53: 18.52 | N53: 18.58 | O53: 0
A54: 39 | B54: 2021-11-23 | C54: 20.24 | D54: 20.91 | E54: 19.030001 | F54: 19.379999 | G54: 0 | H54: 19.379999 | I54: 1 | J54: 1 | K54: 20.24 | L54: 20.91 | M54: 19.03 | N54: 19.38 | O54: 0
A55: 40 | B55: 2021-11-22 | C55: 18.200001 | D55: 19.59 | E55: 17.35 | F55: 19.17 | G55: 0 | H55: 19.17 | I55: 1 | J55: 1 | K55: 18.2 | L55: 19.59 | M55: 17.35 | N55: 19.17 | O55: 0
A56: 41 | B56: 2021-11-19 | C56: 17.360001 | D56: 19.01 | E56: 17.23 | F56: 17.91 | G56: 0 | H56: 17.91 | I56: 1 | J56: 1 | K56: 17.36 | L56: 19.01 | M56: 17.23 | N56: 17.91 | O56: 0
A57: 42 | B57: 2021-11-18 | C57: 16.809999 | D57: 18.15 | E57: 16.379999 | F57: 17.59 | G57: 0 | H57: 17.59 | I57: 1 | J57: 1 | K57: 16.81 | L57: 18.15 | M57: 16.38 | N57: 17.59 | O57: 0
A58: 43 | B58: 2021-11-17 | C58: 16.360001 | D58: 17.190001 | E58: 16.280001 | F58: 17.110001 | G58: 0 | H58: 17.110001 | I58: 1 | J58: 1 | K58: 16.36 | L58: 17.19 | M58: 16.28 | N58: 17.11 | O58: 0
A59: 44 | B59: 2021-11-16 | C59: 16.860001 | D59: 17.08 | E59: 16.030001 | F59: 16.370001 | G59: 0 | H59: 16.370001 | I59: 1 | J59: 1 | K59: 16.86 | L59: 17.08 | M59: 16.03 | N59: 16.37 | O59: 0
A60: 45 | B60: 2021-11-15 | C60: 17.030001 | D60: 17.459999 | E60: 16.49 | F60: 16.49 | G60: 0 | H60: 16.49 | I60: 1 | J60: 1 | K60: 17.03 | L60: 17.46 | M60: 16.49 | N60: 16.49 | O60: 0
A61: 46 | B61: 2021-11-12 | C61: 17.49 | D61: 17.690001 | E61: 16.15 | F61: 16.290001 | G61: 0 | H61: 16.290001 | I61: 1 | J61: 1 | K61: 17.49 | L61: 17.69 | M61: 16.15 | N61: 16.29 | O61: 0
A62: 47 | B62: 2021-11-11 | C62: 18.34 | D62: 18.389999 | E62: 17.27 | F62: 17.66 | G62: 0 | H62: 17.66 | I62: 1 | J62: 1 | K62: 18.34 | L62: 18.39 | M62: 17.27 | N62: 17.66 | O62: 0
A63: 48 | B63: 2021-11-10 | C63: 17.74 | D63: 19.9 | E63: 17.219999 | F63: 18.73 | G63: 0 | H63: 18.73 | I63: 1 | J63: 1 | K63: 17.74 | L63: 19.9 | M63: 17.22 | N63: 18.73 | O63: 0
A64: 49 | B64: 2021-11-09 | C64: 17.43 | D64: 18.57 | E64: 17.209999 | F64: 17.780001 | G64: 0 | H64: 17.780001 | I64: 1 | J64: 1 | K64: 17.43 | L64: 18.57 | M64: 17.21 | N64: 17.78 | O64: 0
A65: 50 | B65: 2021-11-08 | C65: 17.23 | D65: 17.690001 | E65: 16.440001 | F65: 17.219999 | G65: 0 | H65: 17.219999 | I65: 1 | J65: 1 | K65: 17.23 | L65: 17.69 | M65: 16.44 | N65: 17.22 | O65: 0
A66: 51 | B66: 2021-11-05 | C66: 15.59 | D66: 17.02 | E66: 14.95 | F66: 16.48 | G66: 0 | H66: 16.48 | I66: 1 | J66: 1 | K66: 15.59 | L66: 17.02 | M66: 14.95 | N66: 16.48 | O66: 0
A67: 52 | B67: 2021-11-04 | C67: 15.06 | D67: 16.139999 | E67: 14.73 | F67: 15.44 | G67: 0 | H67: 15.44 | I67: 1 | J67: 1 | K67: 15.06 | L67: 16.14 | M67: 14.73 | N67: 15.44 | O67: 0
A68: 53 | B68: 2021-11-03 | C68: 16.110001 | D68: 16.389999 | E68: 14.9 | F68: 15.1 | G68: 0 | H68: 15.1 | I68: 1 | J68: 1 | K68: 16.11 | L68: 16.39 | M68: 14.9 | N68: 15.1 | O68: 0
A69: 54 | B69: 2021-11-02 | C69: 16.540001 | D69: 16.65 | E69: 15.89 | F69: 16.030001 | G69: 0 | H69: 16.030001 | I69: 1 | J69: 1 | K69: 16.54 | L69: 16.65 | M69: 15.89 | N69: 16.03 | O69: 0
A70: 55 | B70: 2021-11-01 | C70: 16.85 | D70: 17.700001 | E70: 16.32 | F70: 16.41 | G70: 0 | H70: 16.41 | I70: 1 | J70: 1 | K70: 16.85 | L70: 17.7 | M70: 16.32 | N70: 16.41 | O70: 0
A71: 56 | B71: 2021-10-29 | C71: 17.4 | D71: 18.059999 | E71: 16.129999 | F71: 16.26 | G71: 0 | H71: 16.26 | I71: 1 | J71: 1 | K71: 17.4 | L71: 18.06 | M71: 16.13 | N71: 16.26 | O71: 0
A72: 57 | B72: 2021-10-28 | C72: 17.059999 | D72: 17.16 | E72: 16.23 | F72: 16.530001 | G72: 0 | H72: 16.530001 | I72: 1 | J72: 1 | K72: 17.06 | L72: 17.16 | M72: 16.23 | N72: 16.53 | O72: 0
A73: 58 | B73: 2021-10-27 | C73: 15.79 | D73: 17.290001 | E73: 15.54 | F73: 16.98 | G73: 0 | H73: 16.98 | I73: 1 | J73: 1 | K73: 15.79 | L73: 17.29 | M73: 15.54 | N73: 16.98 | O73: 0
A74: 59 | B74: 2021-10-26 | C74: 15.02 | D74: 16.709999 | E74: 14.9 | F74: 15.98 | G74: 0 | H74: 15.98 | I74: 1 | J74: 1 | K74: 15.02 | L74: 16.71 | M74: 14.9 | N74: 15.98 | O74: 0
A75: 60 | B75: 2021-10-25 | C75: 16.139999 | D75: 16.33 | E75: 15.1 | F75: 15.24 | G75: 0 | H75: 15.24 | I75: 1 | J75: 1 | K75: 16.14 | L75: 16.33 | M75: 15.1 | N75: 15.24 | O75: 0
A76: 61 | B76: 2021-10-22 | C76: 15.35 | D76: 16.389999 | E76: 14.84 | F76: 15.43 | G76: 0 | H76: 15.43 | I76: 1 | J76: 1 | K76: 15.35 | L76: 16.39 | M76: 14.84 | N76: 15.43 | O76: 0
A77: 62 | B77: 2021-10-21 | C77: 16.059999 | D77: 16.110001 | E77: 14.92 | F77: 15.01 | G77: 0 | H77: 15.01 | I77: 1 | J77: 1 | K77: 16.06 | L77: 16.11 | M77: 14.92 | N77: 15.01 | O77: 0
A78: 63 | B78: 2021-10-20 | C78: 15.82 | D78: 15.89 | E78: 15.29 | F78: 15.49 | G78: 0 | H78: 15.49 | I78: 1 | J78: 1 | K78: 15.82 | L78: 15.89 | M78: 15.29 | N78: 15.49 | O78: 0
A79: 64 | B79: 2021-10-19 | C79: 16.09 | D79: 16.309999 | E79: 15.57 | F79: 15.7 | G79: 0 | H79: 15.7 | I79: 1 | J79: 1 | K79: 16.09 | L79: 16.31 | M79: 15.57 | N79: 15.7 | O79: 0
A80: 65 | B80: 2021-10-18 | C80: 17.290001 | D80: 17.93 | E80: 16.27 | F80: 16.309999 | G80: 0 | H80: 16.309999 | I80: 1 | J80: 1 | K80: 17.29 | L80: 17.93 | M80: 16.27 | N80: 16.31 | O80: 0
A81: 66 | B81: 2021-10-15 | C81: 16.639999 | D81: 16.85 | E81: 15.72 | F81: 16.299999 | G81: 0 | H81: 16.299999 | I81: =IF(F81=0,1,H81/F81) -> 1 | J81: =INDEX(OFFSET($T$15,0,0,$S$13+1,1),MATCH(B81,OFFSET($Q$15,0,0,$S$13+1,1),-1)) -> 1 | K81: =ROUND($I81*C81,2) -> 16.64 | L81: =ROUND($I81*D81,2) -> 16.85 | M81: =ROUND($I81*E81,2) -> 15.72 | N81: =ROUND($I81*F81,2) -> 16.3 | O81: =G81*J81 -> 0
A82: 67 | B82: 2021-10-14 | C82: 18.01 | D82: 18.08 | E82: 16.799999 | F82: 16.860001 | G82: 0 | H82: 16.860001 | I82: 1 | J82: 1 | K82: 18.01 | L82: 18.08 | M82: 16.8 | N82: 16.86 | O82: 0
A83: 68 | B83: 2021-10-13 | C83: 20.139999 | D83: 20.23 | E83: 18.440001 | F83: 18.639999 | G83: 0 | H83: 18.639999 | I83: 1 | J83: 1 | K83: 20.14 | L83: 20.23 | M83: 18.44 | N83: 18.64 | O83: 0
A84: 69 | B84: 2021-10-12 | C84: 20.620001 | D84: 20.809999 | E84: 18.969999 | F84: 19.85 | G84: 0 | H84: 19.85 | I84: 1 | J84: 1 | K84: 20.62 | L84: 20.81 | M84: 18.97 | N84: 19.85 | O84: 0
A85: 70 | B85: 2021-10-11 | C85: 19.93 | D85: 20.450001 | E85: 18.110001 | F85: 20 | G85: 0 | H85: 20 | I85: 1 | J85: 1 | K85: 19.93 | L85: 20.45 | M85: 18.11 | N85: 20 | O85: 0
A86: 71 | B86: 2021-10-08 | C86: 19.459999 | D86: 19.940001 | E86: 18.200001 | F86: 18.77 | G86: 0 | H86: 18.77 | I86: 1 | J86: 1 | K86: 19.46 | L86: 19.94 | M86: 18.2 | N86: 18.77 | O86: 0
A87: 72 | B87: 2021-10-07 | C87: 20.540001 | D87: 20.76 | E87: 19.07 | F87: 19.540001 | G87: 0 | H87: 19.540001 | I87: 1 | J87: 1 | K87: 20.54 | L87: 20.76 | M87: 19.07 | N87: 19.54 | O87: 0
A88: 73 | B88: 2021-10-06 | C88: 22.950001 | D88: 24.4 | E88: 20.99 | F88: 21 | G88: 0 | H88: 21 | I88: 1 | J88: 1 | K88: 22.95 | L88: 24.4 | M88: 20.99 | N88: 21 | O88: 0
A89: 74 | B89: 2021-10-05 | C89: 22.92 | D89: 23.17 | E89: 20.620001 | F89: 21.299999 | G89: 0 | H89: 21.299999 | I89: 1 | J89: 1 | K89: 22.92 | L89: 23.17 | M89: 20.62 | N89: 21.3 | O89: 0
A90: 75 | B90: 2021-10-04 | C90: 22.9 | D90: 24.58 | E90: 21.879999 | F90: 22.959999 | G90: 0 | H90: 22.959999 | I90: 1 | J90: 1 | K90: 22.9 | L90: 24.58 | M90: 21.88 | N90: 22.96 | O90: 0
A91: 76 | B91: 2021-10-01 | C91: 24.780001 | D91: 24.889999 | E91: 20.85 | F91: 21.1 | G91: 0 | H91: 21.1 | I91: 1 | J91: 1 | K91: 24.78 | L91: 24.89 | M91: 20.85 | N91: 21.1 | O91: 0
A92: 77 | B92: 2021-09-30 | C92: 21.48 | D92: 24.709999 | E92: 20.6 | F92: 23.139999 | G92: 0 | H92: 23.139999 | I92: 1 | J92: 1 | K92: 21.48 | L92: 24.71 | M92: 20.6 | N92: 23.14 | O92: 0
A93: 78 | B93: 2021-09-29 | C93: 22.07 | D93: 23.790001 | E93: 21.450001 | F93: 22.559999 | G93: 0 | H93: 22.559999 | I93: 1 | J93: 1 | K93: 22.07 | L93: 23.79 | M93: 21.45 | N93: 22.56 | O93: 0
A94: 79 | B94: 2021-09-28 | C94: 19.74 | D94: 24.82 | E94: 19.709999 | F94: 23.25 | G94: 0 | H94: 23.25 | I94: 1 | J94: 1 | K94: 19.74 | L94: 24.82 | M94: 19.71 | N94: 23.25 | O94: 0
A95: 80 | B95: 2021-09-27 | C95: 17.780001 | D95: 19.32 | E95: 17.74 | F95: 18.76 | G95: 0 | H95: 18.76 | I95: 1 | J95: 1 | K95: 17.78 | L95: 19.32 | M95: 17.74 | N95: 18.76 | O95: 0
A96: 81 | B96: 2021-09-24 | C96: 19.33 | D96: 20.41 | E96: 17.629999 | F96: 17.75 | G96: 0 | H96: 17.75 | I96: 1 | J96: 1 | K96: 19.33 | L96: 20.41 | M96: 17.63 | N96: 17.75 | O96: 0
A97: 82 | B97: 2021-09-23 | C97: 19.91 | D97: 20.209999 | E97: 18.42 | F97: 18.629999 | G97: 0 | H97: 18.629999 | I97: 1 | J97: 1 | K97: 19.91 | L97: 20.21 | M97: 18.42 | N97: 18.63 | O97: 0
A98: 83 | B98: 2021-09-22 | C98: 22.719999 | D98: 23.4 | E98: 20.75 | F98: 20.870001 | G98: 0 | H98: 20.870001 | I98: 1 | J98: 1 | K98: 22.72 | L98: 23.4 | M98: 20.75 | N98: 20.87 | O98: 0
A99: 84 | B99: 2021-09-21 | C99: 23.41 | D99: 25.6 | E99: 21.709999 | F99: 24.360001 | G99: 0 | H99: 24.360001 | I99: 1 | J99: 1 | K99: 23.41 | L99: 25.6 | M99: 21.71 | N99: 24.36 | O99: 0
A100: 85 | B100: 2021-09-20 | C100: 24.25 | D100: 28.790001 | E100: 23.9 | F100: 25.709999 | G100: 0 | H100: 25.709999 | I100: 1 | J100: 1 | K100: 24.25 | L100: 28.79 | M100: 23.9 | N100: 25.71 | O100: 0
A101: 86 | B101: 2021-09-17 | C101: 18.370001 | D101: 21.51 | E101: 18.35 | F101: 20.809999 | G101: 0 | H101: 20.809999 | I101: 1 | J101: 1 | K101: 18.37 | L101: 21.51 | M101: 18.35 | N101: 20.81 | O101: 0
A102: 87 | B102: 2021-09-16 | C102: 18.41 | D102: 19.76 | E102: 17.65 | F102: 18.690001 | G102: 0 | H102: 18.690001 | I102: 1 | J102: 1 | K102: 18.41 | L102: 19.76 | M102: 17.65 | N102: 18.69 | O102: 0
A103: 88 | B103: 2021-09-15 | C103: 19.299999 | D103: 20.27 | E103: 18.01 | F103: 18.18 | G103: 0 | H103: 18.18 | I103: 1 | J103: 1 | K103: 19.3 | L103: 20.27 | M103: 18.01 | N103: 18.18 | O103: 0
A104: 89 | B104: 2021-09-14 | C104: 19.58 | D104: 20.469999 | E104: 18.389999 | F104: 19.459999 | G104: 0 | H104: 19.459999 | I104: 1 | J104: 1 | K104: 19.58 | L104: 20.47 | M104: 18.39 | N104: 19.46 | O104: 0
A105: 90 | B105: 2021-09-13 | C105: 19.639999 | D105: 21.18 | E105: 18.76 | F105: 19.370001 | G105: 0 | H105: 19.370001 | I105: 1 | J105: 1 | K105: 19.64 | L105: 21.18 | M105: 18.76 | N105: 19.37 | O105: 0
A106: 91 | B106: 2021-09-10 | C106: 17.940001 | D106: 21.129999 | E106: 16.99 | F106: 20.950001 | G106: 0 | H106: 20.950001 | I106: 1 | J106: 1 | K106: 17.94 | L106: 21.13 | M106: 16.99 | N106: 20.95 | O106: 0
A107: 92 | B107: 2021-09-09 | C107: 19.440001 | D107: 19.540001 | E107: 17.17 | F107: 18.799999 | G107: 0 | H107: 18.799999 | I107: 1 | J107: 1 | K107: 19.44 | L107: 19.54 | M107: 17.17 | N107: 18.8 | O107: 0
A108: 93 | B108: 2021-09-08 | C108: 18.969999 | D108: 19.639999 | E108: 17.780001 | F108: 17.959999 | G108: 0 | H108: 17.959999 | I108: 1 | J108: 1 | K108: 18.97 | L108: 19.64 | M108: 17.78 | N108: 17.96 | O108: 0
A109: 94 | B109: 2021-09-07 | C109: 16.940001 | D109: 18.389999 | E109: 16.889999 | F109: 18.139999 | G109: 0 | H109: 18.139999 | I109: 1 | J109: 1 | K109: 16.94 | L109: 18.39 | M109: 16.89 | N109: 18.14 | O109: 0
A110: 95 | B110: 2021-09-03 | C110: 16.27 | D110: 17.059999 | E110: 16.08 | F110: 16.41 | G110: 0 | H110: 16.41 | I110: 1 | J110: 1 | K110: 16.27 | L110: 17.06 | M110: 16.08 | N110: 16.41 | O110: 0
A111: 96 | B111: 2021-09-02 | C111: 16.27 | D111: 16.98 | E111: 15.73 | F111: 16.41 | G111: 0 | H111: 16.41 | I111: 1 | J111: 1 | K111: 16.27 | L111: 16.98 | M111: 15.73 | N111: 16.41 | O111: 0
A112: 97 | B112: 2021-09-01 | C112: 16.059999 | D112: 16.709999 | E112: 15.68 | F112: 16.110001 | G112: 0 | H112: 16.110001 | I112: 1 | J112: 1 | K112: 16.06 | L112: 16.71 | M112: 15.68 | N112: 16.11 | O112: 0
A113: 98 | B113: 2021-08-31 | C113: 15.98 | D113: 17.07 | E113: 15.91 | F113: 16.48 | G113: 0 | H113: 16.48 | I113: 1 | J113: 1 | K113: 15.98 | L113: 17.07 | M113: 15.91 | N113: 16.48 | O113: 0
A114: 99 | B114: 2021-08-30 | C114: 16.77 | D114: 16.799999 | E114: 15.98 | F114: 16.190001 | G114: 0 | H114: 16.190001 | I114: 1 | J114: 1 | K114: 16.77 | L114: 16.8 | M114: 15.98 | N114: 16.19 | O114: 0
A115: 100 | B115: 2021-08-27 | C115: 17.950001 | D115: 18.219999 | E115: 16.110001 | F115: 16.389999 | G115: 0 | H115: 16.389999 | I115: 1 | J115: 1 | K115: 17.95 | L115: 18.22 | M115: 16.11 | N115: 16.39 | O115: 0
A116: 101 | B116: 2021-08-26 | C116: 17.459999 | D116: 19.27 | E116: 17.16 | F116: 18.84 | G116: 0 | H116: 18.84 | I116: 1 | J116: 1 | K116: 17.46 | L116: 19.27 | M116: 17.16 | N116: 18.84 | O116: 0
A117: 102 | B117: 2021-08-25 | C117: 17.42 | D117: 17.5 | E117: 16.459999 | F117: 16.790001 | G117: 0 | H117: 16.790001 | I117: 1 | J117: 1 | K117: 17.42 | L117: 17.5 | M117: 16.46 | N117: 16.79 | O117: 0
A118: 103 | B118: 2021-08-24 | C118: 16.959999 | D118: 17.51 | E118: 16.940001 | F118: 17.219999 | G118: 0 | H118: 17.219999 | I118: 1 | J118: 1 | K118: 16.96 | L118: 17.51 | M118: 16.94 | N118: 17.22 | O118: 0
A119: 104 | B119: 2021-08-23 | C119: 18.83 | D119: 18.950001 | E119: 16.950001 | F119: 17.15 | G119: 0 | H119: 17.15 | I119: 1 | J119: 1 | K119: 18.83 | L119: 18.95 | M119: 16.95 | N119: 17.15 | O119: 0
A120: 105 | B120: 2021-08-20 | C120: 22.74 | D120: 23.9 | E120: 18.18 | F120: 18.559999 | G120: 0 | H120: 18.559999 | I120: 1 | J120: 1 | K120: 22.74 | L120: 23.9 | M120: 18.18 | N120: 18.56 | O120: 0
A121: 106 | B121: 2021-08-19 | C121: 23.120001 | D121: 24.74 | E121: 20.370001 | F121: 21.67 | G121: 0 | H121: 21.67 | I121: 1 | J121: 1 | K121: 23.12 | L121: 24.74 | M121: 20.37 | N121: 21.67 | O121: 0
A122: 107 | B122: 2021-08-18 | C122: 17.559999 | D122: 21.639999 | E122: 17.309999 | F122: 21.57 | G122: 0 | H122: 21.57 | I122: 1 | J122: 1 | K122: 17.56 | L122: 21.64 | M122: 17.31 | N122: 21.57 | O122: 0
A123: 108 | B123: 2021-08-17 | C123: 17.309999 | D123: 19.559999 | E123: 16.709999 | F123: 17.91 | G123: 0 | H123: 17.91 | I123: 1 | J123: 1 | K123: 17.31 | L123: 19.56 | M123: 16.71 | N123: 17.91 | O123: 0
A124: 109 | B124: 2021-08-16 | C124: 17.049999 | D124: 17.709999 | E124: 16.02 | F124: 16.120001 | G124: 0 | H124: 16.120001 | I124: 1 | J124: 1 | K124: 17.05 | L124: 17.71 | M124: 16.02 | N124: 16.12 | O124: 0
A125: 110 | B125: 2021-08-13 | C125: 15.68 | D125: 15.72 | E125: 15.19 | F125: 15.45 | G125: 0 | H125: 15.45 | I125: 1 | J125: 1 | K125: 15.68 | L125: 15.72 | M125: 15.19 | N125: 15.45 | O125: 0
A126: 111 | B126: 2021-08-12 | C126: 16.33 | D126: 16.42 | E126: 15.49 | F126: 15.59 | G126: 0 | H126: 15.59 | I126: 1 | J126: 1 | K126: 16.33 | L126: 16.42 | M126: 15.49 | N126: 15.59 | O126: 0
A127: 112 | B127: 2021-08-11 | C127: 16.809999 | D127: 17.09 | E127: 16.07 | F127: 16.17 | G127: 0 | H127: 16.17 | I127: 1 | J127: 1 | K127: 16.81 | L127: 17.09 | M127: 16.07 | N127: 16.17 | O127: 0
A128: 113 | B128: 2021-08-10 | C128: 16.82 | D128: 17.049999 | E128: 16.34 | F128: 16.790001 | G128: 0 | H128: 16.790001 | I128: 1 | J128: 1 | K128: 16.82 | L128: 17.05 | M128: 16.34 | N128: 16.79 | O128: 0
A129: 114 | B129: 2021-08-09 | C129: 17.120001 | D129: 17.389999 | E129: 16.59 | F129: 16.719999 | G129: 0 | H129: 16.719999 | I129: 1 | J129: 1 | K129: 17.12 | L129: 17.39 | M129: 16.59 | N129: 16.72 | O129: 0
A130: 115 | B130: 2021-08-06 | C130: 17.459999 | D130: 17.5 | E130: 16.139999 | F130: 16.15 | G130: 0 | H130: 16.15 | I130: 1 | J130: 1 | K130: 17.46 | L130: 17.5 | M130: 16.14 | N130: 16.15 | O130: 0
A131: 116 | B131: 2021-08-05 | C131: 17.73 | D131: 17.84 | E131: 17.23 | F131: 17.280001 | G131: 0 | H131: 17.280001 | I131: 1 | J131: 1 | K131: 17.73 | L131: 17.84 | M131: 17.23 | N131: 17.28 | O131: 0
A132: 117 | B132: 2021-08-04 | C132: 18.23 | D132: 18.9 | E132: 17.67 | F132: 17.969999 | G132: 0 | H132: 17.969999 | I132: 1 | J132: 1 | K132: 18.23 | L132: 18.9 | M132: 17.67 | N132: 17.97 | O132: 0
A133: 118 | B133: 2021-08-03 | C133: 19.17 | D133: 20.440001 | E133: 17.700001 | F133: 18.040001 | G133: 0 | H133: 18.040001 | I133: 1 | J133: 1 | K133: 19.17 | L133: 20.44 | M133: 17.7 | N133: 18.04 | O133: 0
A134: 119 | B134: 2021-08-02 | C134: 18.16 | D134: 19.870001 | E134: 17.99 | F134: 19.459999 | G134: 0 | H134: 19.459999 | I134: 1 | J134: 1 | K134: 18.16 | L134: 19.87 | M134: 17.99 | N134: 19.46 | O134: 0
A135: 120 | B135: 2021-07-30 | C135: 19.690001 | D135: 19.719999 | E135: 17.530001 | F135: 18.24 | G135: 0 | H135: 18.24 | I135: 1 | J135: 1 | K135: 19.69 | L135: 19.72 | M135: 17.53 | N135: 18.24 | O135: 0
A136: 121 | B136: 2021-07-29 | C136: 17.91 | D136: 18.01 | E136: 17.190001 | F136: 17.700001 | G136: 0 | H136: 17.700001 | I136: 1 | J136: 1 | K136: 17.91 | L136: 18.01 | M136: 17.19 | N136: 17.7 | O136: 0
A137: 122 | B137: 2021-07-28 | C137: 19.41 | D137: 19.620001 | E137: 17.52 | F137: 18.309999 | G137: 0 | H137: 18.309999 | I137: 1 | J137: 1 | K137: 19.41 | L137: 19.62 | M137: 17.52 | N137: 18.31 | O137: 0
A138: 123 | B138: 2021-07-27 | C138: 18.620001 | D138: 20.440001 | E138: 18.25 | F138: 19.360001 | G138: 0 | H138: 19.360001 | I138: 1 | J138: 1 | K138: 18.62 | L138: 20.44 | M138: 18.25 | N138: 19.36 | O138: 0
A139: 124 | B139: 2021-07-26 | C139: 18.67 | D139: 19.389999 | E139: 17.530001 | F139: 17.58 | G139: 0 | H139: 17.58 | I139: 1 | J139: 1 | K139: 18.67 | L139: 19.39 | M139: 17.53 | N139: 17.58 | O139: 0
A140: 125 | B140: 2021-07-23 | C140: 16.98 | D140: 17.48 | E140: 16.33 | F140: 17.200001 | G140: 0 | H140: 17.200001 | I140: 1 | J140: 1 | K140: 16.98 | L140: 17.48 | M140: 16.33 | N140: 17.2 | O140: 0
A141: 126 | B141: 2021-07-22 | C141: 17.59 | D141: 18.450001 | E141: 17.4 | F141: 17.690001 | G141: 0 | H141: 17.690001 | I141: 1 | J141: 1 | K141: 17.59 | L141: 18.45 | M141: 17.4 | N141: 17.69 | O141: 0
A142: 127 | B142: 2021-07-21 | C142: 19.73 | D142: 19.82 | E142: 17.809999 | F142: 17.91 | G142: 0 | H142: 17.91 | I142: 1 | J142: 1 | K142: 19.73 | L142: 19.82 | M142: 17.81 | N142: 17.91 | O142: 0
A143: 128 | B143: 2021-07-20 | C143: 20.889999 | D143: 22.969999 | E143: 19.370001 | F143: 19.73 | G143: 0 | H143: 19.73 | I143: 1 | J143: 1 | K143: 20.89 | L143: 22.97 | M143: 19.37 | N143: 19.73 | O143: 0
A144: 129 | B144: 2021-07-19 | C144: 19.610001 | D144: 25.09 | E144: 19.27 | F144: 22.5 | G144: 0 | H144: 22.5 | I144: 1 | J144: 1 | K144: 19.61 | L144: 25.09 | M144: 19.27 | N144: 22.5 | O144: 0
A145: 130 | B145: 2021-07-16 | C145: 16.799999 | D145: 18.700001 | E145: 16.030001 | F145: 18.450001 | G145: 0 | H145: 18.450001 | I145: =IF(F145=0,1,H145/F145) -> 1 | J145: =INDEX(OFFSET($T$15,0,0,$S$13+1,1),MATCH(B145,OFFSET($Q$15,0,0,$S$13+1,1),-1)) -> 1 | K145: =ROUND($I145*C145,2) -> 16.8 | L145: =ROUND($I145*D145,2) -> 18.7 | M145: =ROUND($I145*E145,2) -> 16.03 | N145: =ROUND($I145*F145,2) -> 18.45 | O145: =G145*J145 -> 0
A146: 131 | B146: 2021-07-15 | C146: 16.700001 | D146: 18.09 | E146: 16.559999 | F146: 17.01 | G146: 0 | H146: 17.01 | I146: 1 | J146: 1 | K146: 16.7 | L146: 18.09 | M146: 16.56 | N146: 17.01 | O146: 0
A147: 132 | B147: 2021-07-14 | C147: 17.34 | D147: 17.51 | E147: 15.95 | F147: 16.33 | G147: 0 | H147: 16.33 | I147: 1 | J147: 1 | K147: 17.34 | L147: 17.51 | M147: 15.95 | N147: 16.33 | O147: 0
A148: 133 | B148: 2021-07-13 | C148: 16.389999 | D148: 17.23 | E148: 15.94 | F148: 17.120001 | G148: 0 | H148: 17.120001 | I148: 1 | J148: 1 | K148: 16.39 | L148: 17.23 | M148: 15.94 | N148: 17.12 | O148: 0
A149: 134 | B149: 2021-07-12 | C149: 16.85 | D149: 17.52 | E149: 16.139999 | F149: 16.17 | G149: 0 | H149: 16.17 | I149: 1 | J149: 1 | K149: 16.85 | L149: 17.52 | M149: 16.14 | N149: 16.17 | O149: 0
A150: 135 | B150: 2021-07-09 | C150: 17.879999 | D150: 18.129999 | E150: 16.08 | F150: 16.18 | G150: 0 | H150: 16.18 | I150: 1 | J150: 1 | K150: 17.88 | L150: 18.13 | M150: 16.08 | N150: 16.18 | O150: 0
A151: 136 | B151: 2021-07-08 | C151: 17.74 | D151: 21.290001 | E151: 17.74 | F151: 19 | G151: 0 | H151: 19 | I151: 1 | J151: 1 | K151: 17.74 | L151: 21.29 | M151: 17.74 | N151: 19 | O151: 0
A152: 137 | B152: 2021-07-07 | C152: 16.43 | D152: 17.639999 | E152: 16.08 | F152: 16.200001 | G152: 0 | H152: 16.200001 | I152: 1 | J152: 1 | K152: 16.43 | L152: 17.64 | M152: 16.08 | N152: 16.2 | O152: 0
A153: 138 | B153: 2021-07-06 | C153: 15.77 | D153: 17.940001 | E153: 15.73 | F153: 16.440001 | G153: 0 | H153: 16.440001 | I153: 1 | J153: 1 | K153: 15.77 | L153: 17.94 | M153: 15.73 | N153: 16.44 | O153: 0
A154: 139 | B154: 2021-07-02 | C154: 15.53 | D154: 15.54 | E154: 14.25 | F154: 15.07 | G154: 0 | H154: 15.07 | I154: 1 | J154: 1 | K154: 15.53 | L154: 15.54 | M154: 14.25 | N154: 15.07 | O154: 0
A155: 140 | B155: 2021-07-01 | C155: 15.62 | D155: 16.01 | E155: 15.31 | F155: 15.48 | G155: 0 | H155: 15.48 | I155: 1 | J155: 1 | K155: 15.62 | L155: 16.01 | M155: 15.31 | N155: 15.48 | O155: 0
A156: 141 | B156: 2021-06-30 | C156: 16.18 | D156: 17.309999 | E156: 15.58 | F156: 15.83 | G156: 0 | H156: 15.83 | I156: 1 | J156: 1 | K156: 16.18 | L156: 17.31 | M156: 15.58 | N156: 15.83 | O156: 0
A157: 142 | B157: 2021-06-29 | C157: 15.69 | D157: 16.309999 | E157: 14.1 | F157: 16.02 | G157: 0 | H157: 16.02 | I157: 1 | J157: 1 | K157: 15.69 | L157: 16.31 | M157: 14.1 | N157: 16.02 | O157: 0
A158: 143 | B158: 2021-06-28 | C158: 16.07 | D158: 16.459999 | E158: 15.39 | F158: 15.76 | G158: 0 | H158: 15.76 | I158: 1 | J158: 1 | K158: 16.07 | L158: 16.46 | M158: 15.39 | N158: 15.76 | O158: 0
A159: 144 | B159: 2021-06-25 | C159: 16.040001 | D159: 16.17 | E159: 15.21 | F159: 15.62 | G159: 0 | H159: 15.62 | I159: 1 | J159: 1 | K159: 16.04 | L159: 16.17 | M159: 15.21 | N159: 15.62 | O159: 0
A160: 145 | B160: 2021-06-24 | C160: 15.99 | D160: 16.049999 | E160: 14.19 | F160: 15.97 | G160: 0 | H160: 15.97 | I160: 1 | J160: 1 | K160: 15.99 | L160: 16.05 | M160: 14.19 | N160: 15.97 | O160: 0
A161: 146 | B161: 2021-06-23 | C161: 16.25 | D161: 16.84 | E161: 14.86 | F161: 16.32 | G161: 0 | H161: 16.32 | I161: 1 | J161: 1 | K161: 16.25 | L161: 16.84 | M161: 14.86 | N161: 16.32 | O161: 0
A162: 147 | B162: 2021-06-22 | C162: 17.91 | D162: 18.32 | E162: 15.76 | F162: 16.66 | G162: 0 | H162: 16.66 | I162: 1 | J162: 1 | K162: 17.91 | L162: 18.32 | M162: 15.76 | N162: 16.66 | O162: 0
A163: 148 | B163: 2021-06-21 | C163: 21.74 | D163: 21.82 | E163: 17.809999 | F163: 17.889999 | G163: 0 | H163: 17.889999 | I163: 1 | J163: 1 | K163: 21.74 | L163: 21.82 | M163: 17.81 | N163: 17.89 | O163: 0
A164: 149 | B164: 2021-06-18 | C164: 16.959999 | D164: 21.040001 | E164: 16.92 | F164: 20.700001 | G164: 0 | H164: 20.700001 | I164: 1 | J164: 1 | K164: 16.96 | L164: 21.04 | M164: 16.92 | N164: 20.7 | O164: 0
A165: 150 | B165: 2021-06-17 | C165: 18.49 | D165: 19.219999 | E165: 16.709999 | F165: 17.75 | G165: 0 | H165: 17.75 | I165: 1 | J165: 1 | K165: 18.49 | L165: 19.22 | M165: 16.71 | N165: 17.75 | O165: 0
A166: 151 | B166: 2021-06-16 | C166: 16.99 | D166: 19.110001 | E166: 16.42 | F166: 18.15 | G166: 0 | H166: 18.15 | I166: 1 | J166: 1 | K166: 16.99 | L166: 19.11 | M166: 16.42 | N166: 18.15 | O166: 0
A167: 152 | B167: 2021-06-15 | C167: 16.27 | D167: 17.35 | E167: 16.139999 | F167: 17.02 | G167: 0 | H167: 17.02 | I167: 1 | J167: 1 | K167: 16.27 | L167: 17.35 | M167: 16.14 | N167: 17.02 | O167: 0
A168: 153 | B168: 2021-06-14 | C168: 16.040001 | D168: 17.040001 | E168: 15.04 | F168: 16.389999 | G168: 0 | H168: 16.389999 | I168: 1 | J168: 1 | K168: 16.04 | L168: 17.04 | M168: 15.04 | N168: 16.39 | O168: 0
A169: 154 | B169: 2021-06-11 | C169: 16.18 | D169: 16.200001 | E169: 15.15 | F169: 15.65 | G169: 0 | H169: 15.65 | I169: 1 | J169: 1 | K169: 16.18 | L169: 16.2 | M169: 15.15 | N169: 15.65 | O169: 0
A170: 155 | B170: 2021-06-10 | C170: 18.18 | D170: 18.290001 | E170: 16.01 | F170: 16.1 | G170: 0 | H170: 16.1 | I170: 1 | J170: 1 | K170: 18.18 | L170: 18.29 | M170: 16.01 | N170: 16.1 | O170: 0
A171: 156 | B171: 2021-06-09 | C171: 17.18 | D171: 17.959999 | E171: 15.55 | F171: 17.889999 | G171: 0 | H171: 17.889999 | I171: 1 | J171: 1 | K171: 17.18 | L171: 17.96 | M171: 15.55 | N171: 17.89 | O171: 0
A172: 157 | B172: 2021-06-08 | C172: 16.58 | D172: 17.75 | E172: 15.15 | F172: 17.07 | G172: 0 | H172: 17.07 | I172: 1 | J172: 1 | K172: 16.58 | L172: 17.75 | M172: 15.15 | N172: 17.07 | O172: 0
A173: 158 | B173: 2021-06-07 | C173: 17.34 | D173: 17.35 | E173: 15.78 | F173: 16.42 | G173: 0 | H173: 16.42 | I173: 1 | J173: 1 | K173: 17.34 | L173: 17.35 | M173: 15.78 | N173: 16.42 | O173: 0
A174: 159 | B174: 2021-06-04 | C174: 18.09 | D174: 18.42 | E174: 16.18 | F174: 16.42 | G174: 0 | H174: 16.42 | I174: 1 | J174: 1 | K174: 18.09 | L174: 18.42 | M174: 16.18 | N174: 16.42 | O174: 0
A175: 160 | B175: 2021-06-03 | C175: 17.73 | D175: 19.27 | E175: 17.450001 | F175: 18.040001 | G175: 0 | H175: 18.040001 | I175: 1 | J175: 1 | K175: 17.73 | L175: 19.27 | M175: 17.45 | N175: 18.04 | O175: 0
A176: 161 | B176: 2021-06-02 | C176: 17.860001 | D176: 18.309999 | E176: 16.74 | F176: 17.48 | G176: 0 | H176: 17.48 | I176: 1 | J176: 1 | K176: 17.86 | L176: 18.31 | M176: 16.74 | N176: 17.48 | O176: 0
A177: 162 | B177: 2021-06-01 | C177: 17.24 | D177: 18.530001 | E177: 15.68 | F177: 17.9 | G177: 0 | H177: 17.9 | I177: 1 | J177: 1 | K177: 17.24 | L177: 18.53 | M177: 15.68 | N177: 17.9 | O177: 0
A178: 163 | B178: 2021-05-28 | C178: 16.799999 | D178: 16.860001 | E178: 15.9 | F178: 16.76 | G178: 0 | H178: 16.76 | I178: 1 | J178: 1 | K178: 16.8 | L178: 16.86 | M178: 15.9 | N178: 16.76 | O178: 0
A179: 164 | B179: 2021-05-27 | C179: 18.030001 | D179: 18.17 | E179: 16.52 | F179: 16.74 | G179: 0 | H179: 16.74 | I179: 1 | J179: 1 | K179: 18.03 | L179: 18.17 | M179: 16.52 | N179: 16.74 | O179: 0
A180: 165 | B180: 2021-05-26 | C180: 18.370001 | D180: 18.92 | E180: 17.35 | F180: 17.360001 | G180: 0 | H180: 17.360001 | I180: 1 | J180: 1 | K180: 18.37 | L180: 18.92 | M180: 17.35 | N180: 17.36 | O180: 0
A181: 166 | B181: 2021-05-25 | C181: 18.35 | D181: 19.290001 | E181: 16.870001 | F181: 18.84 | G181: 0 | H181: 18.84 | I181: 1 | J181: 1 | K181: 18.35 | L181: 19.29 | M181: 16.87 | N181: 18.84 | O181: 0
A182: 167 | B182: 2021-05-24 | C182: 20.5 | D182: 20.51 | E182: 18.379999 | F182: 18.4 | G182: 0 | H182: 18.4 | I182: 1 | J182: 1 | K182: 20.5 | L182: 20.51 | M182: 18.38 | N182: 18.4 | O182: 0
A183: 168 | B183: 2021-05-21 | C183: 20.42 | D183: 20.889999 | E183: 19.530001 | F183: 20.15 | G183: 0 | H183: 20.15 | I183: 1 | J183: 1 | K183: 20.42 | L183: 20.89 | M183: 19.53 | N183: 20.15 | O183: 0
A184: 169 | B184: 2021-05-20 | C184: 22.33 | D184: 23.5 | E184: 20.190001 | F184: 20.67 | G184: 0 | H184: 20.67 | I184: 1 | J184: 1 | K184: 22.33 | L184: 23.5 | M184: 20.19 | N184: 20.67 | O184: 0
A185: 170 | B185: 2021-05-19 | C185: 22.459999 | D185: 25.959999 | E185: 21.879999 | F185: 22.18 | G185: 0 | H185: 22.18 | I185: 1 | J185: 1 | K185: 22.46 | L185: 25.96 | M185: 21.88 | N185: 22.18 | O185: 0
A186: 171 | B186: 2021-05-18 | C186: 18.889999 | D186: 21.450001 | E186: 18.809999 | F186: 21.34 | G186: 0 | H186: 21.34 | I186: 1 | J186: 1 | K186: 18.89 | L186: 21.45 | M186: 18.81 | N186: 21.34 | O186: 0
A187: 172 | B187: 2021-05-17 | C187: 19.889999 | D187: 21.58 | E187: 19.67 | F187: 19.719999 | G187: 0 | H187: 19.719999 | I187: 1 | J187: 1 | K187: 19.89 | L187: 21.58 | M187: 19.67 | N187: 19.72 | O187: 0
A188: 173 | B188: 2021-05-14 | C188: 21.77 | D188: 22.1 | E188: 18.66 | F188: 18.809999 | G188: 0 | H188: 18.809999 | I188: 1 | J188: 1 | K188: 21.77 | L188: 22.1 | M188: 18.66 | N188: 18.81 | O188: 0
A189: 174 | B189: 2021-05-13 | C189: 26.030001 | D189: 28.93 | E189: 22.23 | F189: 23.129999 | G189: 0 | H189: 23.129999 | I189: 1 | J189: 1 | K189: 26.03 | L189: 28.93 | M189: 22.23 | N189: 23.13 | O189: 0
A190: 175 | B190: 2021-05-12 | C190: 22.42 | D190: 28.379999 | E190: 21.66 | F190: 27.59 | G190: 0 | H190: 27.59 | I190: 1 | J190: 1 | K190: 22.42 | L190: 28.38 | M190: 21.66 | N190: 27.59 | O190: 0
A191: 176 | B191: 2021-05-11 | C191: 21.17 | D191: 23.73 | E191: 20.709999 | F191: 21.84 | G191: 0 | H191: 21.84 | I191: 1 | J191: 1 | K191: 21.17 | L191: 23.73 | M191: 20.71 | N191: 21.84 | O191: 0
A192: 177 | B192: 2021-05-10 | C192: 17.34 | D192: 19.75 | E192: 17.07 | F192: 19.66 | G192: 0 | H192: 19.66 | I192: 1 | J192: 1 | K192: 17.34 | L192: 19.75 | M192: 17.07 | N192: 19.66 | O192: 0
A193: 178 | B193: 2021-05-07 | C193: 18.450001 | D193: 18.57 | E193: 16.68 | F193: 16.690001 | G193: 0 | H193: 16.690001 | I193: 1 | J193: 1 | K193: 18.45 | L193: 18.57 | M193: 16.68 | N193: 16.69 | O193: 0
A194: 179 | B194: 2021-05-06 | C194: 18.41 | D194: 20.6 | E194: 18.209999 | F194: 18.389999 | G194: 0 | H194: 18.389999 | I194: 1 | J194: 1 | K194: 18.41 | L194: 20.6 | M194: 18.21 | N194: 18.39 | O194: 0
A195: 180 | B195: 2021-05-05 | C195: 18.84 | D195: 19.58 | E195: 17.889999 | F195: 19.15 | G195: 0 | H195: 19.15 | I195: 1 | J195: 1 | K195: 18.84 | L195: 19.58 | M195: 17.89 | N195: 19.15 | O195: 0
A196: 181 | B196: 2021-05-04 | C196: 18.16 | D196: 21.85 | E196: 18.110001 | F196: 19.48 | G196: 0 | H196: 19.48 | I196: 1 | J196: 1 | K196: 18.16 | L196: 21.85 | M196: 18.11 | N196: 19.48 | O196: 0
A197: 182 | B197: 2021-05-03 | C197: 18.65 | D197: 19.120001 | E197: 17.799999 | F197: 18.309999 | G197: 0 | H197: 18.309999 | I197: 1 | J197: 1 | K197: 18.65 | L197: 19.12 | M197: 17.8 | N197: 18.31 | O197: 0
A198: 183 | B198: 2021-04-30 | C198: 17.67 | D198: 19.25 | E198: 17.639999 | F198: 18.610001 | G198: 0 | H198: 18.610001 | I198: 1 | J198: 1 | K198: 17.67 | L198: 19.25 | M198: 17.64 | N198: 18.61 | O198: 0
A199: 184 | B199: 2021-04-29 | C199: 16.879999 | D199: 18.870001 | E199: 16.77 | F199: 17.610001 | G199: 0 | H199: 17.610001 | I199: 1 | J199: 1 | K199: 16.88 | L199: 18.87 | M199: 16.77 | N199: 17.61 | O199: 0
A200: 185 | B200: 2021-04-28 | C200: 17.469999 | D200: 17.84 | E200: 16.67 | F200: 17.280001 | G200: 0 | H200: 17.280001 | I200: 1 | J200: 1 | K200: 17.47 | L200: 17.84 | M200: 16.67 | N200: 17.28 | O200: 0
... 4300 more rows

Sheet CalculationsAndCharts
A1: VolatAdjRSI.xlsm
A2: =InputPriceData!A1 -> S&P 500 (^GSPC) -SNP (Daily)
A4: User Charting Controls | E4: Click to Shift Chart One Bar:
A5: Data Control | C5: TRUE
A6: =InputPriceData!$B$10 -> 17942 | B6: Available Input Data Rows | E6: Earliest: | F6: =OFFSET(InputPriceData!B15,CalculationsAndCharts!A6,0,1,1) -> 1950-10-02
A7: =MAX(A33:A56896) -> 2500 | B7: Available Calculation Rows | E7: Latest: | F7: =OFFSET(InputPriceData!B15,1,0,1,1) -> 2022-01-19
A8: =MIN(AvailableInputRows-DataPanRows,A7) -> 2500 | B8: Logically Available for Calc / Plot | E8: $ Change: | F8: =G33-G34 -> 22.44
A10: Historical Price Windowing Specifications | F10: Click to Shift
A11: 139 | B11: Input Data Offset (Pan) | F11: Points to Plot
A12: 210 | B12: Data Points to Plot (Zoom)
B13: First: | C13: =OFFSET(B32,A12,0,1,1) -> 2020-09-01
B14: ="Last: " & IF(OFFSET(InputPriceData!P15,1+A11,0,1,1)="","",TEXT(OFFSET(InputPriceData!P15,1+A11,0,1,1),"H:MM AM/PM")) -> Last: | C14: =B33 -> 2021-07-01
A15: User Controls | D15: Calulated from user values
A16: 1st Volat RS adjusted EMA | D16: Alpha
A17: 10 | B17: MovAveLen | C17: Mltp1: | D17: =2/(A17+1) -> 0.1818181818
A18: 10 | B18: VolatStrenLen | C18: PDS | D18: =2/(A18+1) -> 0.1818181818
A19: 10 | B19: VolatStrenMult
A21: 2nd Volat RS adjusted EMA | D21: Alpha
A22: 20 | B22: MovAveLen | C22: Mltp1: | D22: =2/(A22+1) -> 0.09523809524
A23: 20 | B23: VolatStrenLen | C23: PDS | D23: =2/(A23+1) -> 0.09523809524
A24: 10 | B24: VolatStrenMult
A25: Help! I would like to plot data
A26: From | B26: 2020-09-01 | C26: =OFFSET(InputPriceData!$A$15,MATCH(B26,OFFSET(InputPriceData!B15,1,0,InputPriceData!$B$10,1),0),0,1,1)-C27 -> 210 | E26: 142
A27: To | B27: 2021-07-01 | C27: =OFFSET(InputPriceData!$A$15,MATCH(B27,OFFSET(InputPriceData!$B$15,1,0,InputPriceData!$B$10,1),0),0,1,1)-1 -> 139 | E27: =$A$12-$E$26+1 -> 69 | M27: =100-O32 -> 
H28: Value @ Cursor => | I28: =OFFSET(A32,$E$27,0,1,1)&"(RR)" -> 69(RR) | J28: =OFFSET($B$32,E27,0,1,1) -> 2021-03-25 | L28: =TEXT(OFFSET(E32,$E$27,0,1,1),"#,##0.00")&"(h)" -> 3,919.54(h) | M28: =TEXT(OFFSET(F32,$E$27,0,1,1),"#,##0.00")&"(l)" -> 3,853.50(l) | N28: =TEXT(OFFSET(G32,$E$27,0,1,1),"#,##0.00")&"(c)" -> 3,909.52(c) | O28: =TEXT(OFFSET(C32,$E$27,0,1,1),"#,##0.00,,""M""")&"(v)" -> 4,940.80M(v)
E29: Cursor ==> | AY29: Work Area For Chart Cursors
B30: =LogicallyAvailableRows -> 2500 | C30: <== Calculation Rel Row Limits ==> | N30: =LogicallyAvailableRows-1 -> 2499 | P30: =N30-$A18+1 -> 2490 | U30: ="Volat RS Adjusted EMA("&$A$17&","&$A$18&","&$A$19&")" -> Volat RS Adjusted EMA(10,10,10) | V30: =LogicallyAvailableRows-1 -> 2499 | X30: =V30-$A23+1 -> 2480 | AC30: ="Volat RS Adjusted EMA("&$A$22&","&$A$23&","&$A$24&")" -> Volat RS Adjusted EMA(20,20,10)
A31: Rel Row | B31: =InputPriceData!A1 -> S&P 500 (^GSPC) -SNP (Daily) | H31: =InputIndexData!A1 -> CBOE Volatility Index (^VIX) -Chicago Options (Daily) | N31: Volatility Relative Strength Adjusted EMA of Close | V31: 2nd Volatility Relative Strength Adjusted EMA of Close | AW31: Used To Color Vol Bars
B32: Date | C32: Volume | D32: Open | E32: High | F32: Low | G32: Close | H32: Date | I32: Volume | J32: Open | K32: High | L32: Low | M32: Close | N32: VolatUp | O32: VolatDn | P32: ="EMA(Vup,"&$A$18&")" -> EMA(Vup,10) | Q32: ="EMA(Vdn,"&$A$18&")" -> EMA(Vdn,10) | R32: ="VolatRS("&$A$18&")" -> VolatRS(10) | S32: ="RS x "&$A$19 -> RS x 10 | T32: Rate | V32: VolatUp | W32: VolatDn | X32: ="EMA(Vup,"&$A$23&")" -> EMA(Vup,20) | Y32: ="EMA(Vdn,"&$A$18&")" -> EMA(Vdn,10) | Z32: ="VolatRS("&$A$18&")" -> VolatRS(10) | AA32: ="RS x "&$A$24 -> RS x 10 | AB32: Rate | AW32: Up Vol | AX32: Dn Vol | AY32: Volume Cursor | AZ32: =MAX(OFFSET(C33,0,0,A12,1)) -> 9878040000 | BA32: Price Chart Cursor | BC32: Indicator 01 Cursor | BE32: Indicator 02 Cursor | BG32: Indicator 03 Cursor | BI32: Indicator 04 Cursor
A33: 1 | B33: =IF($A33>$B$30,NA(),IF($A33>$A$8,"",OFFSET(InputPriceData!$B$15,$A33+$A$11,0,1,1))) -> 2021-07-01 | C33: =IF($A33>$B$30,NA(),IF($A33>$A$8,"",OFFSET(InputPriceData!$G$15,CalculationsAndCharts!$A33+$A$11,IF($C$5,8,0),1,1))) -> 3077580000 | D33: =IF($A33>$B$30,NA(),IF($A33>$A$8,"",OFFSET(InputPriceData!$C$15,CalculationsAndCharts!$A33+$A$11,IF($C$5,8,0),1,1))) -> 4300.73 | E33: =IF($A33>$B$30,NA(),IF($A33>$A$8,"",OFFSET(InputPriceData!$D$15,CalculationsAndCharts!$A33+$A$11,IF($C$5,8,0),1,1))) -> 4320.66 | F33: =IF($A33>$B$30,NA(),IF($A33>$A$8,"",OFFSET(InputPriceData!$E$15,CalculationsAndCharts!$A33+$A$11,IF($C$5,8,0),1,1))) -> 4300.73 | G33: =IF($A33>$B$30,NA(),IF($A33>$A$8,"",OFFSET(InputPriceData!$F$15,CalculationsAndCharts!$A33+$A$11,IF($C$5,8,0),1,1))) -> 4319.94 | H33: =IF($A33>$B$30,NA(),IF($A33>$A$8,"",OFFSET(InputIndexData!$B$15,$A33+$A$11,0,1,1))) -> 2021-07-01 | I33: =IF($A33>$B$30,NA(),IF($A33>$A$8,"",OFFSET(InputIndexData!$G$15,CalculationsAndCharts!$A33+$A$11,IF($C$5,8,0),1,1))) -> 0 | J33: =IF($A33>$B$30,NA(),IF($A33>$A$8,"",OFFSET(InputIndexData!$C$15,CalculationsAndCharts!$A33+$A$11,IF($C$5,8,0),1,1))) -> 15.62 | K33: =IF($A33>$B$30,NA(),IF($A33>$A$8,"",OFFSET(InputIndexData!$D$15,CalculationsAndCharts!$A33+$A$11,IF($C$5,8,0),1,1))) -> 16.01 | L33: =IF($A33>$B$30,NA(),IF($A33>$A$8,"",OFFSET(InputIndexData!$E$15,CalculationsAndCharts!$A33+$A$11,IF($C$5,8,0),1,1))) -> 15.31 | M33: =IF($A33>$B$30,NA(),IF($A33>$A$8,"",OFFSET(InputIndexData!$F$15,CalculationsAndCharts!$A33+$A$11,IF($C$5,8,0),1,1))) -> 15.48 | N33: =IF($A33>$N$30,NA(),IF($G33>$G34,$M33,0)) -> 15.48 | O33: =IF($A33>$N$30,NA(),IF($G33<$G34,$M33,0)) -> 0 | P33: =IF($A33>$P$30,NA(),IF($A33=$P$30,AVERAGE(OFFSET(N33,0,0,$A$18,1)),$D$18*(N33-P34)+P34)) -> 13.28998814 | Q33: =IF($A33>$P$30,NA(),IF($A33=$P$30,AVERAGE(OFFSET(O33,0,0,$A$18,1)),$D$18*(O33-Q34)+Q34)) -> 2.961682184 | R33: =IF($A33>$P$30,NA(),ABS(P33-Q33)/(P33+Q33+0.00001)) -> 0.635522343 | S33: =IF($A33>$P$30,NA(),R33*$A$19) -> 6.35522343 | T33: =IF($A33>$P$30,NA(),$D$17*(1+S33)) -> 1.337313351 | U33: =IF($A33>$P$30,NA(),IF($A33=$P$30,AVERAGE(OFFSET($G33,0,0,$A$18,1)),T33*($G33-U34)+U34)) -> 4327.139732 | V33: =IF($A33>$V$30,NA(),IF($G33>$G34,$M33,0)) -> 15.48 | W33: =IF($A33>$V$30,NA(),IF($G33<$G34,$M33,0)) -> 0 | X33: =IF($A33>$X$30,NA(),IF($A33=$X$30,AVERAGE(OFFSET(V33,0,0,$A$23,1)),$D$23*(V33-X34)+X34)) -> 11.58970318 | Y33: =IF($A33>$X$30,NA(),IF($A33=$X$30,AVERAGE(OFFSET(W33,0,0,$A$23,1)),$D$23*(W33-Y34)+Y34)) -> 5.220060313 | Z33: =IF($A33>$X$30,NA(),ABS(X33-Y33)/(X33+Y33+0.00001)) -> 0.3789249671 | AA33: =IF($A33>$X$30,NA(),Z33*$A$24) -> 3.789249671 | AB33: =IF($A33>$X$30,NA(),$D$22*(1+AA33)) -> 0.4561190163 | AC33: =IF($A33>$X$30,NA(),IF($A33=$X$30,AVERAGE(OFFSET($G33,0,0,$A$23,1)),AB33*($G33-AC34)+AC34)) -> 4297.078157 | AW33: =IF(G33>=D33,C33,NA()) -> 3077580000 | AX33: =IF(G33<D33,C33,NA()) ->  | AY33: =$E$27 -> 69 | AZ33: 0 | BA33: =$E$27 -> 69 | BB33: 3129.21375 | BC33: =$E$27 -> 69 | BE33: =$E$27 -> 69 | BG33: =$E$27 -> 69 | BH33: 15.48 | BI33: =$E$27 -> 69
A34: 2 | B34: =IF(A34>$B$30,NA(),IF($A34>$A$8,"",OFFSET(InputPriceData!$B$15,$A34+$A$11,0,1,1))) -> 2021-06-30 | C34: =IF(A34>$B$30,NA(),IF($A34>$A$8,"",OFFSET(InputPriceData!$G$15,CalculationsAndCharts!$A34+$A$11,IF($C$5,8,0),1,1))) -> 3687880000 | D34: =IF(A34>$B$30,NA(),IF(A34>$A$8,"",OFFSET(InputPriceData!$C$15,CalculationsAndCharts!$A34+$A$11,IF($C$5,8,0),1,1))) -> 4290.65 | E34: =IF(A34>$B$30,NA(),IF(A34>$A$8,"",OFFSET(InputPriceData!$D$15,CalculationsAndCharts!$A34+$A$11,IF($C$5,8,0),1,1))) -> 4302.43 | F34: =IF(A34>$B$30,NA(),IF(A34>$A$8,"",OFFSET(InputPriceData!$E$15,CalculationsAndCharts!$A34+$A$11,IF($C$5,8,0),1,1))) -> 4287.96 | G34: =IF(A34>$B$30,NA(),IF(A34>$A$8,"",OFFSET(InputPriceData!$F$15,CalculationsAndCharts!$A34+$A$11,IF($C$5,8,0),1,1))) -> 4297.5 | H34: =IF($A34>$B$30,NA(),IF($A34>$A$8,"",OFFSET(InputIndexData!$B$15,$A34+$A$11,0,1,1))) -> 2021-06-30 | I34: =IF($A34>$B$30,NA(),IF($A34>$A$8,"",OFFSET(InputIndexData!$G$15,CalculationsAndCharts!$A34+$A$11,IF($C$5,8,0),1,1))) -> 0 | J34: =IF($A34>$B$30,NA(),IF($A34>$A$8,"",OFFSET(InputIndexData!$C$15,CalculationsAndCharts!$A34+$A$11,IF($C$5,8,0),1,1))) -> 16.18 | K34: =IF($A34>$B$30,NA(),IF($A34>$A$8,"",OFFSET(InputIndexData!$D$15,CalculationsAndCharts!$A34+$A$11,IF($C$5,8,0),1,1))) -> 17.31 | L34: =IF($A34>$B$30,NA(),IF($A34>$A$8,"",OFFSET(InputIndexData!$E$15,CalculationsAndCharts!$A34+$A$11,IF($C$5,8,0),1,1))) -> 15.58 | M34: =IF($A34>$B$30,NA(),IF($A34>$A$8,"",OFFSET(InputIndexData!$F$15,CalculationsAndCharts!$A34+$A$11,IF($C$5,8,0),1,1))) -> 15.83 | N34: =IF($A34>$N$30,NA(),IF($G34>$G35,$M34,0)) -> 15.83 | O34: =IF($A34>$N$30,NA(),IF($G34<$G35,$M34,0)) -> 0 | P34: =IF($A34>$P$30,NA(),IF($A34=$P$30,AVERAGE(OFFSET(N34,0,0,$A$18,1)),$D$18*(N34-P35)+P35)) -> 12.80331884 | Q34: =IF($A34>$P$30,NA(),IF($A34=$P$30,AVERAGE(OFFSET(O34,0,0,$A$18,1)),$D$18*(O34-Q35)+Q35)) -> 3.61983378 | R34: =IF($A34>$P$30,NA(),ABS(P34-Q34)/(P34+Q34+0.00001)) -> 0.5591788422 | S34: =IF($A34>$P$30,NA(),R34*$A$19) -> 5.591788422 | T34: =IF($A34>$P$30,NA(),$D$17*(1+S34)) -> 1.198506986 | U34: =IF($A34>$P$30,NA(),IF($A34=$P$30,AVERAGE(OFFSET($G34,0,0,$A$18,1)),T34*($G34-U35)+U35)) -> 4298.595658 | V34: =IF($A34>$V$30,NA(),IF($G34>$G35,$M34,0)) -> 15.83 | W34: =IF($A34>$V$30,NA(),IF($G34<$G35,$M34,0)) -> 0 | X34: =IF($A34>$X$30,NA(),IF($A34=$X$30,AVERAGE(OFFSET(V34,0,0,$A$23,1)),$D$23*(V34-X35)+X35)) -> 11.18019825 | Y34: =IF($A34>$X$30,NA(),IF($A34=$X$30,AVERAGE(OFFSET(W34,0,0,$A$23,1)),$D$23*(W34-Y35)+Y35)) -> 5.769540345 | Z34: =IF($A34>$X$30,NA(),ABS(X34-Y34)/(X34+Y34+0.00001)) -> 0.3192175905 | AA34: =IF($A34>$X$30,NA(),Z34*$A$24) -> 3.192175905 | AB34: =IF($A34>$X$30,NA(),$D$22*(1+AA34)) -> 0.3992548481 | AC34: =IF($A34>$X$30,NA(),IF($A34=$X$30,AVERAGE(OFFSET($G34,0,0,$A$23,1)),AB34*($G34-AC35)+AC35)) -> 4277.905358 | AW34: 3687880000 | AY34: =$E$27 -> 69 | AZ34: =CEILING(AZ32,10^INT(LOG10(AZ32))/8) -> 10000000000 | BA34: =$E$27 -> 69 | BB34: 4435.318225 | BC34: =$E$27 -> 69 | BD34: 0 | BE34: =$E$27 -> 69 | BF34: 0 | BG34: =$E$27 -> 69 | BH34: 40.28 | BI34: =$E$27 -> 69 | BJ34: 0
A35: 3 | B35: =IF(A35>$B$30,NA(),IF($A35>$A$8,"",OFFSET(InputPriceData!$B$15,$A35+$A$11,0,1,1))) -> 2021-06-29 | C35: =IF(A35>$B$30,NA(),IF($A35>$A$8,"",OFFSET(InputPriceData!$G$15,CalculationsAndCharts!$A35+$A$11,IF($C$5,8,0),1,1))) -> 3049560000 | D35: =IF(A35>$B$30,NA(),IF(A35>$A$8,"",OFFSET(InputPriceData!$C$15,CalculationsAndCharts!$A35+$A$11,IF($C$5,8,0),1,1))) -> 4293.21 | E35: =IF(A35>$B$30,NA(),IF(A35>$A$8,"",OFFSET(InputPriceData!$D$15,CalculationsAndCharts!$A35+$A$11,IF($C$5,8,0),1,1))) -> 4300.52 | F35: =IF(A35>$B$30,NA(),IF(A35>$A$8,"",OFFSET(InputPriceData!$E$15,CalculationsAndCharts!$A35+$A$11,IF($C$5,8,0),1,1))) -> 4287.04 | G35: =IF(A35>$B$30,NA(),IF(A35>$A$8,"",OFFSET(InputPriceData!$F$15,CalculationsAndCharts!$A35+$A$11,IF($C$5,8,0),1,1))) -> 4291.8 | H35: =IF($A35>$B$30,NA(),IF($A35>$A$8,"",OFFSET(InputIndexData!$B$15,$A35+$A$11,0,1,1))) -> 2021-06-29 | I35: =IF($A35>$B$30,NA(),IF($A35>$A$8,"",OFFSET(InputIndexData!$G$15,CalculationsAndCharts!$A35+$A$11,IF($C$5,8,0),1,1))) -> 0 | J35: =IF($A35>$B$30,NA(),IF($A35>$A$8,"",OFFSET(InputIndexData!$C$15,CalculationsAndCharts!$A35+$A$11,IF($C$5,8,0),1,1))) -> 15.69 | K35: =IF($A35>$B$30,NA(),IF($A35>$A$8,"",OFFSET(InputIndexData!$D$15,CalculationsAndCharts!$A35+$A$11,IF($C$5,8,0),1,1))) -> 16.31 | L35: =IF($A35>$B$30,NA(),IF($A35>$A$8,"",OFFSET(InputIndexData!$E$15,CalculationsAndCharts!$A35+$A$11,IF($C$5,8,0),1,1))) -> 14.1 | M35: =IF($A35>$B$30,NA(),IF($A35>$A$8,"",OFFSET(InputIndexData!$F$15,CalculationsAndCharts!$A35+$A$11,IF($C$5,8,0),1,1))) -> 16.02 | N35: 16.02 | O35: 0 | P35: 12.13072303 | Q35: 4.424241287 | R35: 0.465508529 | S35: 4.65508529 | T35: 1.028197325 | U35: 4291.980509 | V35: 16.02 | W35: 0 | X35: 10.69074544 | Y35: 6.376860382 | Z35: 0.2527526457 | AA35: 2.527526457 | AB35: 0.3359549007 | AC35: 4264.88277 | AX35: 3049560000
A36: 4 | B36: =IF(A36>$B$30,NA(),IF($A36>$A$8,"",OFFSET(InputPriceData!$B$15,$A36+$A$11,0,1,1))) -> 2021-06-28 | C36: =IF(A36>$B$30,NA(),IF($A36>$A$8,"",OFFSET(InputPriceData!$G$15,CalculationsAndCharts!$A36+$A$11,IF($C$5,8,0),1,1))) -> 3415610000 | D36: =IF(A36>$B$30,NA(),IF(A36>$A$8,"",OFFSET(InputPriceData!$C$15,CalculationsAndCharts!$A36+$A$11,IF($C$5,8,0),1,1))) -> 4284.9 | E36: =IF(A36>$B$30,NA(),IF(A36>$A$8,"",OFFSET(InputPriceData!$D$15,CalculationsAndCharts!$A36+$A$11,IF($C$5,8,0),1,1))) -> 4292.14 | F36: =IF(A36>$B$30,NA(),IF(A36>$A$8,"",OFFSET(InputPriceData!$E$15,CalculationsAndCharts!$A36+$A$11,IF($C$5,8,0),1,1))) -> 4274.67 | G36: =IF(A36>$B$30,NA(),IF(A36>$A$8,"",OFFSET(InputPriceData!$F$15,CalculationsAndCharts!$A36+$A$11,IF($C$5,8,0),1,1))) -> 4290.61 | H36: =IF($A36>$B$30,NA(),IF($A36>$A$8,"",OFFSET(InputIndexData!$B$15,$A36+$A$11,0,1,1))) -> 2021-06-28 | I36: =IF($A36>$B$30,NA(),IF($A36>$A$8,"",OFFSET(InputIndexData!$G$15,CalculationsAndCharts!$A36+$A$11,IF($C$5,8,0),1,1))) -> 0 | J36: =IF($A36>$B$30,NA(),IF($A36>$A$8,"",OFFSET(InputIndexData!$C$15,CalculationsAndCharts!$A36+$A$11,IF($C$5,8,0),1,1))) -> 16.07 | K36: =IF($A36>$B$30,NA(),IF($A36>$A$8,"",OFFSET(InputIndexData!$D$15,CalculationsAndCharts!$A36+$A$11,IF($C$5,8,0),1,1))) -> 16.46 | L36: =IF($A36>$B$30,NA(),IF($A36>$A$8,"",OFFSET(InputIndexData!$E$15,CalculationsAndCharts!$A36+$A$11,IF($C$5,8,0),1,1))) -> 15.39 | M36: =IF($A36>$B$30,NA(),IF($A36>$A$8,"",OFFSET(InputIndexData!$F$15,CalculationsAndCharts!$A36+$A$11,IF($C$5,8,0),1,1))) -> 15.76 | N36: 15.76 | O36: 0 | P36: 11.26643926 | Q36: 5.407406017 | R36: 0.3513904338 | S36: 3.513904338 | T36: 0.8207098797 | U36: 4285.398372 | V36: 15.76 | W36: 0 | X36: 10.12977127 | Y36: 7.048108843 | Z36: 0.1793970277 | AA36: 1.793970277 | AB36: 0.2660924073 | AC36: 4251.264757 | AW36: 3415610000
A37: 5 | B37: =IF(A37>$B$30,NA(),IF($A37>$A$8,"",OFFSET(InputPriceData!$B$15,$A37+$A$11,0,1,1))) -> 2021-06-25 | C37: =IF(A37>$B$30,NA(),IF($A37>$A$8,"",OFFSET(InputPriceData!$G$15,CalculationsAndCharts!$A37+$A$11,IF($C$5,8,0),1,1))) -> 6248390000 | D37: =IF(A37>$B$30,NA(),IF(A37>$A$8,"",OFFSET(InputPriceData!$C$15,CalculationsAndCharts!$A37+$A$11,IF($C$5,8,0),1,1))) -> 4274.45 | E37: =IF(A37>$B$30,NA(),IF(A37>$A$8,"",OFFSET(InputPriceData!$D$15,CalculationsAndCharts!$A37+$A$11,IF($C$5,8,0),1,1))) -> 4286.12 | F37: =IF(A37>$B$30,NA(),IF(A37>$A$8,"",OFFSET(InputPriceData!$E$15,CalculationsAndCharts!$A37+$A$11,IF($C$5,8,0),1,1))) -> 4271.16 | G37: =IF(A37>$B$30,NA(),IF(A37>$A$8,"",OFFSET(InputPriceData!$F$15,CalculationsAndCharts!$A37+$A$11,IF($C$5,8,0),1,1))) -> 4280.7 | H37: =IF($A37>$B$30,NA(),IF($A37>$A$8,"",OFFSET(InputIndexData!$B$15,$A37+$A$11,0,1,1))) -> 2021-06-25 | I37: =IF($A37>$B$30,NA(),IF($A37>$A$8,"",OFFSET(InputIndexData!$G$15,CalculationsAndCharts!$A37+$A$11,IF($C$5,8,0),1,1))) -> 0 | J37: =IF($A37>$B$30,NA(),IF($A37>$A$8,"",OFFSET(InputIndexData!$C$15,CalculationsAndCharts!$A37+$A$11,IF($C$5,8,0),1,1))) -> 16.04 | K37: =IF($A37>$B$30,NA(),IF($A37>$A$8,"",OFFSET(InputIndexData!$D$15,CalculationsAndCharts!$A37+$A$11,IF($C$5,8,0),1,1))) -> 16.17 | L37: =IF($A37>$B$30,NA(),IF($A37>$A$8,"",OFFSET(InputIndexData!$E$15,CalculationsAndCharts!$A37+$A$11,IF($C$5,8,0),1,1))) -> 15.21 | M37: =IF($A37>$B$30,NA(),IF($A37>$A$8,"",OFFSET(InputIndexData!$F$15,CalculationsAndCharts!$A37+$A$11,IF($C$5,8,0),1,1))) -> 15.62 | N37: 15.62 | O37: 0 | P37: 10.2678702 | Q37: 6.609051799 | R37: 0.2167940478 | S37: 2.167940478 | T37: 0.5759891777 | U37: 4261.541871 | V37: 15.62 | W37: 0 | X37: 9.537115616 | Y37: 7.790015037 | Z37: 0.1008302878 | AA37: 1.008302878 | AB37: 0.1912669408 | AC37: 4236.999377 | AW37: 6248390000
A38: 6 | B38: =IF(A38>$B$30,NA(),IF($A38>$A$8,"",OFFSET(InputPriceData!$B$15,$A38+$A$11,0,1,1))) -> 2021-06-24 | C38: =IF(A38>$B$30,NA(),IF($A38>$A$8,"",OFFSET(InputPriceData!$G$15,CalculationsAndCharts!$A38+$A$11,IF($C$5,8,0),1,1))) -> 3141680000 | D38: =IF(A38>$B$30,NA(),IF(A38>$A$8,"",OFFSET(InputPriceData!$C$15,CalculationsAndCharts!$A38+$A$11,IF($C$5,8,0),1,1))) -> 4256.97 | E38: =IF(A38>$B$30,NA(),IF(A38>$A$8,"",OFFSET(InputPriceData!$D$15,CalculationsAndCharts!$A38+$A$11,IF($C$5,8,0),1,1))) -> 4271.28 | F38: =IF(A38>$B$30,NA(),IF(A38>$A$8,"",OFFSET(InputPriceData!$E$15,CalculationsAndCharts!$A38+$A$11,IF($C$5,8,0),1,1))) -> 4256.97 | G38: =IF(A38>$B$30,NA(),IF(A38>$A$8,"",OFFSET(InputPriceData!$F$15,CalculationsAndCharts!$A38+$A$11,IF($C$5,8,0),1,1))) -> 4266.49 | H38: =IF($A38>$B$30,NA(),IF($A38>$A$8,"",OFFSET(InputIndexData!$B$15,$A38+$A$11,0,1,1))) -> 2021-06-24 | I38: =IF($A38>$B$30,NA(),IF($A38>$A$8,"",OFFSET(InputIndexData!$G$15,CalculationsAndCharts!$A38+$A$11,IF($C$5,8,0),1,1))) -> 0 | J38: =IF($A38>$B$30,NA(),IF($A38>$A$8,"",OFFSET(InputIndexData!$C$15,CalculationsAndCharts!$A38+$A$11,IF($C$5,8,0),1,1))) -> 15.99 | K38: =IF($A38>$B$30,NA(),IF($A38>$A$8,"",OFFSET(InputIndexData!$D$15,CalculationsAndCharts!$A38+$A$11,IF($C$5,8,0),1,1))) -> 16.05 | L38: =IF($A38>$B$30,NA(),IF($A38>$A$8,"",OFFSET(InputIndexData!$E$15,CalculationsAndCharts!$A38+$A$11,IF($C$5,8,0),1,1))) -> 14.19 | M38: =IF($A38>$B$30,NA(),IF($A38>$A$8,"",OFFSET(InputIndexData!$F$15,CalculationsAndCharts!$A38+$A$11,IF($C$5,8,0),1,1))) -> 15.97 | N38: 15.97 | O38: 0 | P38: 9.078508023 | Q38: 8.077729977 | R38: 0.05833315343 | S38: 0.5833315343 | T38: 0.2878784608 | U38: 4235.516886 | V38: 15.97 | W38: 0 | X38: 8.896811997 | Y38: 8.61001662 | Z38: 0.01638190555 | AA38: 0.1638190555 | AB38: 0.11083991 | AC38: 4226.664095 | AW38: 3141680000
A39: 7 | B39: =IF(A39>$B$30,NA(),IF($A39>$A$8,"",OFFSET(InputPriceData!$B$15,$A39+$A$11,0,1,1))) -> 2021-06-23 | C39: =IF(A39>$B$30,NA(),IF($A39>$A$8,"",OFFSET(InputPriceData!$G$15,CalculationsAndCharts!$A39+$A$11,IF($C$5,8,0),1,1))) -> 3172440000 | D39: =IF(A39>$B$30,NA(),IF(A39>$A$8,"",OFFSET(InputPriceData!$C$15,CalculationsAndCharts!$A39+$A$11,IF($C$5,8,0),1,1))) -> 4249.27 | E39: =IF(A39>$B$30,NA(),IF(A39>$A$8,"",OFFSET(InputPriceData!$D$15,CalculationsAndCharts!$A39+$A$11,IF($C$5,8,0),1,1))) -> 4256.6 | F39: =IF(A39>$B$30,NA(),IF(A39>$A$8,"",OFFSET(InputPriceData!$E$15,CalculationsAndCharts!$A39+$A$11,IF($C$5,8,0),1,1))) -> 4241.43 | G39: =IF(A39>$B$30,NA(),IF(A39>$A$8,"",OFFSET(InputPriceData!$F$15,CalculationsAndCharts!$A39+$A$11,IF($C$5,8,0),1,1))) -> 4241.84 | H39: =IF($A39>$B$30,NA(),IF($A39>$A$8,"",OFFSET(InputIndexData!$B$15,$A39+$A$11,0,1,1))) -> 2021-06-23 | I39: =IF($A39>$B$30,NA(),IF($A39>$A$8,"",OFFSET(InputIndexData!$G$15,CalculationsAndCharts!$A39+$A$11,IF($C$5,8,0),1,1))) -> 0 | J39: =IF($A39>$B$30,NA(),IF($A39>$A$8,"",OFFSET(InputIndexData!$C$15,CalculationsAndCharts!$A39+$A$11,IF($C$5,8,0),1,1))) -> 16.25 | K39: =IF($A39>$B$30,NA(),IF($A39>$A$8,"",OFFSET(InputIndexData!$D$15,CalculationsAndCharts!$A39+$A$11,IF($C$5,8,0),1,1))) -> 16.84 | L39: =IF($A39>$B$30,NA(),IF($A39>$A$8,"",OFFSET(InputIndexData!$E$15,CalculationsAndCharts!$A39+$A$11,IF($C$5,8,0),1,1))) -> 14.86 | M39: =IF($A39>$B$30,NA(),IF($A39>$A$8,"",OFFSET(InputIndexData!$F$15,CalculationsAndCharts!$A39+$A$11,IF($C$5,8,0),1,1))) -> 16.32 | N39: 0 | O39: 16.32 | P39: 7.547065362 | Q39: 9.872781082 | R39: 0.1335094654 | S39: 1.335094654 | T39: 0.4245626643 | U39: 4222.99586 | V39: 0 | W39: 16.32 | X39: 8.152265891 | Y39: 9.516334159 | Z39: 0.07720291885 | AA39: 0.7720291885 | AB39: 0.1687646846 | AC39: 4221.699523 | AX39: 3172440000
A40: 8 | B40: =IF(A40>$B$30,NA(),IF($A40>$A$8,"",OFFSET(InputPriceData!$B$15,$A40+$A$11,0,1,1))) -> 2021-06-22 | C40: =IF(A40>$B$30,NA(),IF($A40>$A$8,"",OFFSET(InputPriceData!$G$15,CalculationsAndCharts!$A40+$A$11,IF($C$5,8,0),1,1))) -> 3208760000 | D40: =IF(A40>$B$30,NA(),IF(A40>$A$8,"",OFFSET(InputPriceData!$C$15,CalculationsAndCharts!$A40+$A$11,IF($C$5,8,0),1,1))) -> 4224.61 | E40: =IF(A40>$B$30,NA(),IF(A40>$A$8,"",OFFSET(InputPriceData!$D$15,CalculationsAndCharts!$A40+$A$11,IF($C$5,8,0),1,1))) -> 4255.84 | F40: =IF(A40>$B$30,NA(),IF(A40>$A$8,"",OFFSET(InputPriceData!$E$15,CalculationsAndCharts!$A40+$A$11,IF($C$5,8,0),1,1))) -> 4217.27 | G40: =IF(A40>$B$30,NA(),IF(A40>$A$8,"",OFFSET(InputPriceData!$F$15,CalculationsAndCharts!$A40+$A$11,IF($C$5,8,0),1,1))) -> 4246.44 | H40: =IF($A40>$B$30,NA(),IF($A40>$A$8,"",OFFSET(InputIndexData!$B$15,$A40+$A$11,0,1,1))) -> 2021-06-22 | I40: =IF($A40>$B$30,NA(),IF($A40>$A$8,"",OFFSET(InputIndexData!$G$15,CalculationsAndCharts!$A40+$A$11,IF($C$5,8,0),1,1))) -> 0 | J40: =IF($A40>$B$30,NA(),IF($A40>$A$8,"",OFFSET(InputIndexData!$C$15,CalculationsAndCharts!$A40+$A$11,IF($C$5,8,0),1,1))) -> 17.91 | K40: =IF($A40>$B$30,NA(),IF($A40>$A$8,"",OFFSET(InputIndexData!$D$15,CalculationsAndCharts!$A40+$A$11,IF($C$5,8,0),1,1))) -> 18.32 | L40: =IF($A40>$B$30,NA(),IF($A40>$A$8,"",OFFSET(InputIndexData!$E$15,CalculationsAndCharts!$A40+$A$11,IF($C$5,8,0),1,1))) -> 15.76 | M40: =IF($A40>$B$30,NA(),IF($A40>$A$8,"",OFFSET(InputIndexData!$F$15,CalculationsAndCharts!$A40+$A$11,IF($C$5,8,0),1,1))) -> 16.66 | N40: 16.66 | O40: 0 | P40: 9.224190998 | Q40: 8.440065767 | R40: 0.04439047716 | S40: 0.4439047716 | T40: 0.2625281403 | U40: 4209.09249 | V40: 16.66 | W40: 0 | X40: 9.010399143 | Y40: 8.800158807 | Z40: 0.01180424656 | AA40: 0.1180424656 | AB40: 0.1064802348 | AC40: 4217.610426 | AW40: 3208760000
A41: 9 | B41: =IF(A41>$B$30,NA(),IF($A41>$A$8,"",OFFSET(InputPriceData!$B$15,$A41+$A$11,0,1,1))) -> 2021-06-21 | C41: =IF(A41>$B$30,NA(),IF($A41>$A$8,"",OFFSET(InputPriceData!$G$15,CalculationsAndCharts!$A41+$A$11,IF($C$5,8,0),1,1))) -> 3391740000 | D41: =IF(A41>$B$30,NA(),IF(A41>$A$8,"",OFFSET(InputPriceData!$C$15,CalculationsAndCharts!$A41+$A$11,IF($C$5,8,0),1,1))) -> 4173.4 | E41: =IF(A41>$B$30,NA(),IF(A41>$A$8,"",OFFSET(InputPriceData!$D$15,CalculationsAndCharts!$A41+$A$11,IF($C$5,8,0),1,1))) -> 4226.24 | F41: =IF(A41>$B$30,NA(),IF(A41>$A$8,"",OFFSET(InputPriceData!$E$15,CalculationsAndCharts!$A41+$A$11,IF($C$5,8,0),1,1))) -> 4173.4 | G41: =IF(A41>$B$30,NA(),IF(A41>$A$8,"",OFFSET(InputPriceData!$F$15,CalculationsAndCharts!$A41+$A$11,IF($C$5,8,0),1,1))) -> 4224.79 | H41: =IF($A41>$B$30,NA(),IF($A41>$A$8,"",OFFSET(InputIndexData!$B$15,$A41+$A$11,0,1,1))) -> 2021-06-21 | I41: =IF($A41>$B$30,NA(),IF($A41>$A$8,"",OFFSET(InputIndexData!$G$15,CalculationsAndCharts!$A41+$A$11,IF($C$5,8,0),1,1))) -> 0 | J41: =IF($A41>$B$30,NA(),IF($A41>$A$8,"",OFFSET(InputIndexData!$C$15,CalculationsAndCharts!$A41+$A$11,IF($C$5,8,0),1,1))) -> 21.74 | K41: =IF($A41>$B$30,NA(),IF($A41>$A$8,"",OFFSET(InputIndexData!$D$15,CalculationsAndCharts!$A41+$A$11,IF($C$5,8,0),1,1))) -> 21.82 | L41: =IF($A41>$B$30,NA(),IF($A41>$A$8,"",OFFSET(InputIndexData!$E$15,CalculationsAndCharts!$A41+$A$11,IF($C$5,8,0),1,1))) -> 17.81 | M41: =IF($A41>$B$30,NA(),IF($A41>$A$8,"",OFFSET(InputIndexData!$F$15,CalculationsAndCharts!$A41+$A$11,IF($C$5,8,0),1,1))) -> 17.89 | N41: 17.89 | O41: 0 | P41: 7.571788997 | Q41: 10.31563594 | R41: 0.1533952157 | S41: 1.533952157 | T41: 0.460718574 | U41: 4195.797376 | V41: 17.89 | W41: 0 | X41: 8.205178 | Y41: 9.726491313 | Z41: 0.08483942228 | AA41: 0.8483942228 | AB41: 0.176037545 | AC41: 4214.174822 | AW41: 3391740000
A42: 10 | B42: =IF(A42>$B$30,NA(),IF($A42>$A$8,"",OFFSET(InputPriceData!$B$15,$A42+$A$11,0,1,1))) -> 2021-06-18 | C42: =IF(A42>$B$30,NA(),IF($A42>$A$8,"",OFFSET(InputPriceData!$G$15,CalculationsAndCharts!$A42+$A$11,IF($C$5,8,0),1,1))) -> 6084980000 | D42: =IF(A42>$B$30,NA(),IF(A42>$A$8,"",OFFSET(InputPriceData!$C$15,CalculationsAndCharts!$A42+$A$11,IF($C$5,8,0),1,1))) -> 4204.78 | E42: =IF(A42>$B$30,NA(),IF(A42>$A$8,"",OFFSET(InputPriceData!$D$15,CalculationsAndCharts!$A42+$A$11,IF($C$5,8,0),1,1))) -> 4204.78 | F42: =IF(A42>$B$30,NA(),IF(A42>$A$8,"",OFFSET(InputPriceData!$E$15,CalculationsAndCharts!$A42+$A$11,IF($C$5,8,0),1,1))) -> 4164.4 | G42: =IF(A42>$B$30,NA(),IF(A42>$A$8,"",OFFSET(InputPriceData!$F$15,CalculationsAndCharts!$A42+$A$11,IF($C$5,8,0),1,1))) -> 4166.45 | H42: =IF($A42>$B$30,NA(),IF($A42>$A$8,"",OFFSET(InputIndexData!$B$15,$A42+$A$11,0,1,1))) -> 2021-06-18 | I42: =IF($A42>$B$30,NA(),IF($A42>$A$8,"",OFFSET(InputIndexData!$G$15,CalculationsAndCharts!$A42+$A$11,IF($C$5,8,0),1,1))) -> 0 | J42: =IF($A42>$B$30,NA(),IF($A42>$A$8,"",OFFSET(InputIndexData!$C$15,CalculationsAndCharts!$A42+$A$11,IF($C$5,8,0),1,1))) -> 16.96 | K42: =IF($A42>$B$30,NA(),IF($A42>$A$8,"",OFFSET(InputIndexData!$D$15,CalculationsAndCharts!$A42+$A$11,IF($C$5,8,0),1,1))) -> 21.04 | L42: =IF($A42>$B$30,NA(),IF($A42>$A$8,"",OFFSET(InputIndexData!$E$15,CalculationsAndCharts!$A42+$A$11,IF($C$5,8,0),1,1))) -> 16.92 | M42: =IF($A42>$B$30,NA(),IF($A42>$A$8,"",OFFSET(InputIndexData!$F$15,CalculationsAndCharts!$A42+$A$11,IF($C$5,8,0),1,1))) -> 20.7 | N42: 0 | O42: 20.7 | P42: 5.278853219 | Q42: 12.60799948 | R42: 0.4097502387 | S42: 4.097502387 | T42: 0.9268186159 | U42: 4171.028415 | V42: 0 | W42: 20.7 | X42: 7.185723052 | Y42: 10.7503325 | Z42: 0.1987397649 | AA42: 1.987397649 | AB42: 0.2845140618 | AC42: 4211.906916 | AX42: 6084980000
A43: 11 | B43: =IF(A43>$B$30,NA(),IF($A43>$A$8,"",OFFSET(InputPriceData!$B$15,$A43+$A$11,0,1,1))) -> 2021-06-17 | C43: =IF(A43>$B$30,NA(),IF($A43>$A$8,"",OFFSET(InputPriceData!$G$15,CalculationsAndCharts!$A43+$A$11,IF($C$5,8,0),1,1))) -> 3952110000 | D43: =IF(A43>$B$30,NA(),IF(A43>$A$8,"",OFFSET(InputPriceData!$C$15,CalculationsAndCharts!$A43+$A$11,IF($C$5,8,0),1,1))) -> 4220.37 | E43: =IF(A43>$B$30,NA(),IF(A43>$A$8,"",OFFSET(InputPriceData!$D$15,CalculationsAndCharts!$A43+$A$11,IF($C$5,8,0),1,1))) -> 4232.29 | F43: =IF(A43>$B$30,NA(),IF(A43>$A$8,"",OFFSET(InputPriceData!$E$15,CalculationsAndCharts!$A43+$A$11,IF($C$5,8,0),1,1))) -> 4196.05 | G43: =IF(A43>$B$30,NA(),IF(A43>$A$8,"",OFFSET(InputPriceData!$F$15,CalculationsAndCharts!$A43+$A$11,IF($C$5,8,0),1,1))) -> 4221.86 | H43: =IF($A43>$B$30,NA(),IF($A43>$A$8,"",OFFSET(InputIndexData!$B$15,$A43+$A$11,0,1,1))) -> 2021-06-17 | I43: =IF($A43>$B$30,NA(),IF($A43>$A$8,"",OFFSET(InputIndexData!$G$15,CalculationsAndCharts!$A43+$A$11,IF($C$5,8,0),1,1))) -> 0 | J43: =IF($A43>$B$30,NA(),IF($A43>$A$8,"",OFFSET(InputIndexData!$C$15,CalculationsAndCharts!$A43+$A$11,IF($C$5,8,0),1,1))) -> 18.49 | K43: =IF($A43>$B$30,NA(),IF($A43>$A$8,"",OFFSET(InputIndexData!$D$15,CalculationsAndCharts!$A43+$A$11,IF($C$5,8,0),1,1))) -> 19.22 | L43: =IF($A43>$B$30,NA(),IF($A43>$A$8,"",OFFSET(InputIndexData!$E$15,CalculationsAndCharts!$A43+$A$11,IF($C$5,8,0),1,1))) -> 16.71 | M43: =IF($A43>$B$30,NA(),IF($A43>$A$8,"",OFFSET(InputIndexData!$F$15,CalculationsAndCharts!$A43+$A$11,IF($C$5,8,0),1,1))) -> 17.75 | N43: 0 | O43: 17.75 | P43: 6.451931712 | Q43: 10.80977714 | R43: 0.2524572128 | S43: 2.524572128 | T43: 0.640831296 | U43: 4229.012559 | V43: 0 | W43: 17.75 | X43: 7.942114953 | Y43: 9.702999083 | Z43: 0.09979437533 | AA43: 0.9979437533 | AB43: 0.1902803575 | AC43: 4229.982927 | AW43: 3952110000
A44: 12 | B44: =IF(A44>$B$30,NA(),IF($A44>$A$8,"",OFFSET(InputPriceData!$B$15,$A44+$A$11,0,1,1))) -> 2021-06-16 | C44: =IF(A44>$B$30,NA(),IF($A44>$A$8,"",OFFSET(InputPriceData!$G$15,CalculationsAndCharts!$A44+$A$11,IF($C$5,8,0),1,1))) -> 3722050000 | D44: =IF(A44>$B$30,NA(),IF(A44>$A$8,"",OFFSET(InputPriceData!$C$15,CalculationsAndCharts!$A44+$A$11,IF($C$5,8,0),1,1))) -> 4248.87 | E44: =IF(A44>$B$30,NA(),IF(A44>$A$8,"",OFFSET(InputPriceData!$D$15,CalculationsAndCharts!$A44+$A$11,IF($C$5,8,0),1,1))) -> 4251.89 | F44: =IF(A44>$B$30,NA(),IF(A44>$A$8,"",OFFSET(InputPriceData!$E$15,CalculationsAndCharts!$A44+$A$11,IF($C$5,8,0),1,1))) -> 4202.45 | G44: =IF(A44>$B$30,NA(),IF(A44>$A$8,"",OFFSET(InputPriceData!$F$15,CalculationsAndCharts!$A44+$A$11,IF($C$5,8,0),1,1))) -> 4223.7 | H44: =IF($A44>$B$30,NA(),IF($A44>$A$8,"",OFFSET(InputIndexData!$B$15,$A44+$A$11,0,1,1))) -> 2021-06-16 | I44: =IF($A44>$B$30,NA(),IF($A44>$A$8,"",OFFSET(InputIndexData!$G$15,CalculationsAndCharts!$A44+$A$11,IF($C$5,8,0),1,1))) -> 0 | J44: =IF($A44>$B$30,NA(),IF($A44>$A$8,"",OFFSET(InputIndexData!$C$15,CalculationsAndCharts!$A44+$A$11,IF($C$5,8,0),1,1))) -> 16.99 | K44: =IF($A44>$B$30,NA(),IF($A44>$A$8,"",OFFSET(InputIndexData!$D$15,CalculationsAndCharts!$A44+$A$11,IF($C$5,8,0),1,1))) -> 19.11 | L44: =IF($A44>$B$30,NA(),IF($A44>$A$8,"",OFFSET(InputIndexData!$E$15,CalculationsAndCharts!$A44+$A$11,IF($C$5,8,0),1,1))) -> 16.42 | M44: =IF($A44>$B$30,NA(),IF($A44>$A$8,"",OFFSET(InputIndexData!$F$15,CalculationsAndCharts!$A44+$A$11,IF($C$5,8,0),1,1))) -> 18.15 | N44: 0 | O44: 18.15 | P44: 7.885694315 | Q44: 9.267505396 | R44: 0.08055699803 | S44: 0.8055699803 | T44: 0.328285451 | U44: 4241.774203 | V44: 0 | W44: 18.15 | X44: 8.778127053 | Y44: 8.855946355 | Z44: 0.00441300524 | AA44: 0.0441300524 | AB44: 0.09944095737 | AC44: 4231.891777 | AX44: 3722050000
A45: 13 | B45: =IF(A45>$B$30,NA(),IF($A45>$A$8,"",OFFSET(InputPriceData!$B$15,$A45+$A$11,0,1,1))) -> 2021-06-15 | C45: =IF(A45>$B$30,NA(),IF($A45>$A$8,"",OFFSET(InputPriceData!$G$15,CalculationsAndCharts!$A45+$A$11,IF($C$5,8,0),1,1))) -> 3578450000 | D45: =IF(A45>$B$30,NA(),IF(A45>$A$8,"",OFFSET(InputPriceData!$C$15,CalculationsAndCharts!$A45+$A$11,IF($C$5,8,0),1,1))) -> 4255.28 | E45: =IF(A45>$B$30,NA(),IF(A45>$A$8,"",OFFSET(InputPriceData!$D$15,CalculationsAndCharts!$A45+$A$11,IF($C$5,8,0),1,1))) -> 4257.16 | F45: =IF(A45>$B$30,NA(),IF(A45>$A$8,"",OFFSET(InputPriceData!$E$15,CalculationsAndCharts!$A45+$A$11,IF($C$5,8,0),1,1))) -> 4238.35 | G45: =IF(A45>$B$30,NA(),IF(A45>$A$8,"",OFFSET(InputPriceData!$F$15,CalculationsAndCharts!$A45+$A$11,IF($C$5,8,0),1,1))) -> 4246.59 | H45: =IF($A45>$B$30,NA(),IF($A45>$A$8,"",OFFSET(InputIndexData!$B$15,$A45+$A$11,0,1,1))) -> 2021-06-15 | I45: =IF($A45>$B$30,NA(),IF($A45>$A$8,"",OFFSET(InputIndexData!$G$15,CalculationsAndCharts!$A45+$A$11,IF($C$5,8,0),1,1))) -> 0 | J45: =IF($A45>$B$30,NA(),IF($A45>$A$8,"",OFFSET(InputIndexData!$C$15,CalculationsAndCharts!$A45+$A$11,IF($C$5,8,0),1,1))) -> 16.27 | K45: =IF($A45>$B$30,NA(),IF($A45>$A$8,"",OFFSET(InputIndexData!$D$15,CalculationsAndCharts!$A45+$A$11,IF($C$5,8,0),1,1))) -> 17.35 | L45: =IF($A45>$B$30,NA(),IF($A45>$A$8,"",OFFSET(InputIndexData!$E$15,CalculationsAndCharts!$A45+$A$11,IF($C$5,8,0),1,1))) -> 16.14 | M45: =IF($A45>$B$30,NA(),IF($A45>$A$8,"",OFFSET(InputIndexData!$F$15,CalculationsAndCharts!$A45+$A$11,IF($C$5,8,0),1,1))) -> 17.02 | N45: 0 | O45: 17.02 | P45: 9.638070829 | Q45: 7.293617706 | R45: 0.138465324 | S45: 1.38465324 | T45: 0.4335733163 | U45: 4250.607565 | V45: 0 | W45: 17.02 | X45: 9.702140427 | Y45: 7.877624919 | Z45: 0.103784916 | AA45: 1.03784916 | AB45: 0.1940808724 | AC45: 4232.796325 | AX45: 3578450000
A46: 14 | B46: =IF(A46>$B$30,NA(),IF($A46>$A$8,"",OFFSET(InputPriceData!$B$15,$A46+$A$11,0,1,1))) -> 2021-06-14 | C46: =IF(A46>$B$30,NA(),IF($A46>$A$8,"",OFFSET(InputPriceData!$G$15,CalculationsAndCharts!$A46+$A$11,IF($C$5,8,0),1,1))) -> 3612050000 | D46: =IF(A46>$B$30,NA(),IF(A46>$A$8,"",OFFSET(InputPriceData!$C$15,CalculationsAndCharts!$A46+$A$11,IF($C$5,8,0),1,1))) -> 4248.31 | E46: =IF(A46>$B$30,NA(),IF(A46>$A$8,"",OFFSET(InputPriceData!$D$15,CalculationsAndCharts!$A46+$A$11,IF($C$5,8,0),1,1))) -> 4255.59 | F46: =IF(A46>$B$30,NA(),IF(A46>$A$8,"",OFFSET(InputPriceData!$E$15,CalculationsAndCharts!$A46+$A$11,IF($C$5,8,0),1,1))) -> 4234.07 | G46: =IF(A46>$B$30,NA(),IF(A46>$A$8,"",OFFSET(InputPriceData!$F$15,CalculationsAndCharts!$A46+$A$11,IF($C$5,8,0),1,1))) -> 4255.15 | H46: =IF($A46>$B$30,NA(),IF($A46>$A$8,"",OFFSET(InputIndexData!$B$15,$A46+$A$11,0,1,1))) -> 2021-06-14 | I46: =IF($A46>$B$30,NA(),IF($A46>$A$8,"",OFFSET(InputIndexData!$G$15,CalculationsAndCharts!$A46+$A$11,IF($C$5,8,0),1,1))) -> 0 | J46: =IF($A46>$B$30,NA(),IF($A46>$A$8,"",OFFSET(InputIndexData!$C$15,CalculationsAndCharts!$A46+$A$11,IF($C$5,8,0),1,1))) -> 16.04 | K46: =IF($A46>$B$30,NA(),IF($A46>$A$8,"",OFFSET(InputIndexData!$D$15,CalculationsAndCharts!$A46+$A$11,IF($C$5,8,0),1,1))) -> 17.04 | L46: =IF($A46>$B$30,NA(),IF($A46>$A$8,"",OFFSET(InputIndexData!$E$15,CalculationsAndCharts!$A46+$A$11,IF($C$5,8,0),1,1))) -> 15.04 | M46: =IF($A46>$B$30,NA(),IF($A46>$A$8,"",OFFSET(InputIndexData!$F$15,CalculationsAndCharts!$A46+$A$11,IF($C$5,8,0),1,1))) -> 16.39 | N46: 16.39 | O46: 0 | P46: 11.77986435 | Q46: 5.132199418 | R46: 0.3930721342 | S46: 3.930721342 | T46: 0.8964947895 | U46: 4253.682825 | V46: 16.39 | W46: 0 | X46: 10.72341837 | Y46: 6.915269647 | Z46: 0.2158973818 | AA46: 2.158973818 | AB46: 0.3008546493 | AC46: 4229.474541 | AW46: 3612050000
A47: 15 | B47: =IF(A47>$B$30,NA(),IF($A47>$A$8,"",OFFSET(InputPriceData!$B$15,$A47+$A$11,0,1,1))) -> 2021-06-11 | C47: =IF(A47>$B$30,NA(),IF($A47>$A$8,"",OFFSET(InputPriceData!$G$15,CalculationsAndCharts!$A47+$A$11,IF($C$5,8,0),1,1))) -> 3204280000 | D47: =IF(A47>$B$30,NA(),IF(A47>$A$8,"",OFFSET(InputPriceData!$C$15,CalculationsAndCharts!$A47+$A$11,IF($C$5,8,0),1,1))) -> 4242.9 | E47: =IF(A47>$B$30,NA(),IF(A47>$A$8,"",OFFSET(InputPriceData!$D$15,CalculationsAndCharts!$A47+$A$11,IF($C$5,8,0),1,1))) -> 4248.38 | F47: =IF(A47>$B$30,NA(),IF(A47>$A$8,"",OFFSET(InputPriceData!$E$15,CalculationsAndCharts!$A47+$A$11,IF($C$5,8,0),1,1))) -> 4232.25 | G47: =IF(A47>$B$30,NA(),IF(A47>$A$8,"",OFFSET(InputPriceData!$F$15,CalculationsAndCharts!$A47+$A$11,IF($C$5,8,0),1,1))) -> 4247.44 | H47: =IF($A47>$B$30,NA(),IF($A47>$A$8,"",OFFSET(InputIndexData!$B$15,$A47+$A$11,0,1,1))) -> 2021-06-11 | I47: =IF($A47>$B$30,NA(),IF($A47>$A$8,"",OFFSET(InputIndexData!$G$15,CalculationsAndCharts!$A47+$A$11,IF($C$5,8,0),1,1))) -> 0 | J47: =IF($A47>$B$30,NA(),IF($A47>$A$8,"",OFFSET(InputIndexData!$C$15,CalculationsAndCharts!$A47+$A$11,IF($C$5,8,0),1,1))) -> 16.18 | K47: =IF($A47>$B$30,NA(),IF($A47>$A$8,"",OFFSET(InputIndexData!$D$15,CalculationsAndCharts!$A47+$A$11,IF($C$5,8,0),1,1))) -> 16.2 | L47: =IF($A47>$B$30,NA(),IF($A47>$A$8,"",OFFSET(InputIndexData!$E$15,CalculationsAndCharts!$A47+$A$11,IF($C$5,8,0),1,1))) -> 15.15 | M47: =IF($A47>$B$30,NA(),IF($A47>$A$8,"",OFFSET(InputIndexData!$F$15,CalculationsAndCharts!$A47+$A$11,IF($C$5,8,0),1,1))) -> 15.65 | N47: 15.65 | O47: 0 | P47: 10.75538976 | Q47: 6.272688178 | R47: 0.2632533727 | S47: 2.632533727 | T47: 0.6604606776 | U47: 4240.975109 | V47: 15.65 | W47: 0 | X47: 10.12693609 | Y47: 7.643192768 | Z47: 0.1397706197 | AA47: 1.397706197 | AB47: 0.2283529712 | AC47: 4218.425936 | AW47: 3204280000
A48: 16 | B48: =IF(A48>$B$30,NA(),IF($A48>$A$8,"",OFFSET(InputPriceData!$B$15,$A48+$A$11,0,1,1))) -> 2021-06-10 | C48: =IF(A48>$B$30,NA(),IF($A48>$A$8,"",OFFSET(InputPriceData!$G$15,CalculationsAndCharts!$A48+$A$11,IF($C$5,8,0),1,1))) -> 3502480000 | D48: =IF(A48>$B$30,NA(),IF(A48>$A$8,"",OFFSET(InputPriceData!$C$15,CalculationsAndCharts!$A48+$A$11,IF($C$5,8,0),1,1))) -> 4228.56 | E48: =IF(A48>$B$30,NA(),IF(A48>$A$8,"",OFFSET(InputPriceData!$D$15,CalculationsAndCharts!$A48+$A$11,IF($C$5,8,0),1,1))) -> 4249.74 | F48: =IF(A48>$B$30,NA(),IF(A48>$A$8,"",OFFSET(InputPriceData!$E$15,CalculationsAndCharts!$A48+$A$11,IF($C$5,8,0),1,1))) -> 4220.34 | G48: =IF(A48>$B$30,NA(),IF(A48>$A$8,"",OFFSET(InputPriceData!$F$15,CalculationsAndCharts!$A48+$A$11,IF($C$5,8,0),1,1))) -> 4239.18 | H48: =IF($A48>$B$30,NA(),IF($A48>$A$8,"",OFFSET(InputIndexData!$B$15,$A48+$A$11,0,1,1))) -> 2021-06-10 | I48: =IF($A48>$B$30,NA(),IF($A48>$A$8,"",OFFSET(InputIndexData!$G$15,CalculationsAndCharts!$A48+$A$11,IF($C$5,8,0),1,1))) -> 0 | J48: =IF($A48>$B$30,NA(),IF($A48>$A$8,"",OFFSET(InputIndexData!$C$15,CalculationsAndCharts!$A48+$A$11,IF($C$5,8,0),1,1))) -> 18.18 | K48: =IF($A48>$B$30,NA(),IF($A48>$A$8,"",OFFSET(InputIndexData!$D$15,CalculationsAndCharts!$A48+$A$11,IF($C$5,8,0),1,1))) -> 18.29 | L48: =IF($A48>$B$30,NA(),IF($A48>$A$8,"",OFFSET(InputIndexData!$E$15,CalculationsAndCharts!$A48+$A$11,IF($C$5,8,0),1,1))) -> 16.01 | M48: =IF($A48>$B$30,NA(),IF($A48>$A$8,"",OFFSET(InputIndexData!$F$15,CalculationsAndCharts!$A48+$A$11,IF($C$5,8,0),1,1))) -> 16.1 | N48: 16.1 | O48: 0 | P48: 9.667698592 | Q48: 7.666618884 | R48: 0.1154402852 | S48: 1.154402852 | T48: 0.3917096095 | U48: 4228.399818 | V48: 16.1 | W48: 0 | X48: 9.545560941 | Y48: 8.447739375 | Z48: 0.06101276231 | AA48: 0.6101276231 | AB48: 0.1533454879 | AC48: 4209.839824 | AW48: 3502480000
A49: 17 | B49: =IF(A49>$B$30,NA(),IF($A49>$A$8,"",OFFSET(InputPriceData!$B$15,$A49+$A$11,0,1,1))) -> 2021-06-09 | C49: =IF(A49>$B$30,NA(),IF($A49>$A$8,"",OFFSET(InputPriceData!$G$15,CalculationsAndCharts!$A49+$A$11,IF($C$5,8,0),1,1))) -> 3902870000 | D49: =IF(A49>$B$30,NA(),IF(A49>$A$8,"",OFFSET(InputPriceData!$C$15,CalculationsAndCharts!$A49+$A$11,IF($C$5,8,0),1,1))) -> 4232.99 | E49: =IF(A49>$B$30,NA(),IF(A49>$A$8,"",OFFSET(InputPriceData!$D$15,CalculationsAndCharts!$A49+$A$11,IF($C$5,8,0),1,1))) -> 4237.09 | F49: =IF(A49>$B$30,NA(),IF(A49>$A$8,"",OFFSET(InputPriceData!$E$15,CalculationsAndCharts!$A49+$A$11,IF($C$5,8,0),1,1))) -> 4218.74 | G49: =IF(A49>$B$30,NA(),IF(A49>$A$8,"",OFFSET(InputPriceData!$F$15,CalculationsAndCharts!$A49+$A$11,IF($C$5,8,0),1,1))) -> 4219.55 | H49: =IF($A49>$B$30,NA(),IF($A49>$A$8,"",OFFSET(InputIndexData!$B$15,$A49+$A$11,0,1,1))) -> 2021-06-09 | I49: =IF($A49>$B$30,NA(),IF($A49>$A$8,"",OFFSET(InputIndexData!$G$15,CalculationsAndCharts!$A49+$A$11,IF($C$5,8,0),1,1))) -> 0 | J49: =IF($A49>$B$30,NA(),IF($A49>$A$8,"",OFFSET(InputIndexData!$C$15,CalculationsAndCharts!$A49+$A$11,IF($C$5,8,0),1,1))) -> 17.18 | K49: =IF($A49>$B$30,NA(),IF($A49>$A$8,"",OFFSET(InputIndexData!$D$15,CalculationsAndCharts!$A49+$A$11,IF($C$5,8,0),1,1))) -> 17.96 | L49: =IF($A49>$B$30,NA(),IF($A49>$A$8,"",OFFSET(InputIndexData!$E$15,CalculationsAndCharts!$A49+$A$11,IF($C$5,8,0),1,1))) -> 15.55 | M49: =IF($A49>$B$30,NA(),IF($A49>$A$8,"",OFFSET(InputIndexData!$F$15,CalculationsAndCharts!$A49+$A$11,IF($C$5,8,0),1,1))) -> 17.89 | N49: 0 | O49: 17.89 | P49: 8.238298279 | Q49: 9.370311969 | R49: 0.06428747251 | S49: 0.6428747251 | T49: 0.2987044955 | U49: 4221.457901 | V49: 0 | W49: 17.89 | X49: 8.855619987 | Y49: 9.336975099 | Z49: 0.02645883366 | AA49: 0.2645883366 | AB49: 0.1204369844 | AC49: 4204.525752 | AX49: 3902870000
A50: 18 | B50: =IF(A50>$B$30,NA(),IF($A50>$A$8,"",OFFSET(InputPriceData!$B$15,$A50+$A$11,0,1,1))) -> 2021-06-08 | C50: =IF(A50>$B$30,NA(),IF($A50>$A$8,"",OFFSET(InputPriceData!$G$15,CalculationsAndCharts!$A50+$A$11,IF($C$5,8,0),1,1))) -> 3943870000 | D50: =IF(A50>$B$30,NA(),IF(A50>$A$8,"",OFFSET(InputPriceData!$C$15,CalculationsAndCharts!$A50+$A$11,IF($C$5,8,0),1,1))) -> 4233.81 | E50: =IF(A50>$B$30,NA(),IF(A50>$A$8,"",OFFSET(InputPriceData!$D$15,CalculationsAndCharts!$A50+$A$11,IF($C$5,8,0),1,1))) -> 4236.74 | F50: =IF(A50>$B$30,NA(),IF(A50>$A$8,"",OFFSET(InputPriceData!$E$15,CalculationsAndCharts!$A50+$A$11,IF($C$5,8,0),1,1))) -> 4208.41 | G50: =IF(A50>$B$30,NA(),IF(A50>$A$8,"",OFFSET(InputPriceData!$F$15,CalculationsAndCharts!$A50+$A$11,IF($C$5,8,0),1,1))) -> 4227.26 | H50: =IF($A50>$B$30,NA(),IF($A50>$A$8,"",OFFSET(InputIndexData!$B$15,$A50+$A$11,0,1,1))) -> 2021-06-08 | I50: =IF($A50>$B$30,NA(),IF($A50>$A$8,"",OFFSET(InputIndexData!$G$15,CalculationsAndCharts!$A50+$A$11,IF($C$5,8,0),1,1))) -> 0 | J50: =IF($A50>$B$30,NA(),IF($A50>$A$8,"",OFFSET(InputIndexData!$C$15,CalculationsAndCharts!$A50+$A$11,IF($C$5,8,0),1,1))) -> 16.58 | K50: =IF($A50>$B$30,NA(),IF($A50>$A$8,"",OFFSET(InputIndexData!$D$15,CalculationsAndCharts!$A50+$A$11,IF($C$5,8,0),1,1))) -> 17.75 | L50: =IF($A50>$B$30,NA(),IF($A50>$A$8,"",OFFSET(InputIndexData!$E$15,CalculationsAndCharts!$A50+$A$11,IF($C$5,8,0),1,1))) -> 15.15 | M50: =IF($A50>$B$30,NA(),IF($A50>$A$8,"",OFFSET(InputIndexData!$F$15,CalculationsAndCharts!$A50+$A$11,IF($C$5,8,0),1,1))) -> 17.07 | N50: 17.07 | O50: 0 | P50: 10.06903123 | Q50: 7.477047962 | R50: 0.1477242729 | S50: 1.477242729 | T50: 0.4504077689 | U50: 4222.270538 | V50: 17.07 | W50: 0 | X50: 9.787790512 | Y50: 8.436656688 | Z50: 0.07413849471 | AA50: 0.7413849471 | AB50: 0.1658461854 | AC50: 4202.468508 | AX50: 3943870000
A51: 19 | B51: =IF(A51>$B$30,NA(),IF($A51>$A$8,"",OFFSET(InputPriceData!$B$15,$A51+$A$11,0,1,1))) -> 2021-06-07 | C51: =IF(A51>$B$30,NA(),IF($A51>$A$8,"",OFFSET(InputPriceData!$G$15,CalculationsAndCharts!$A51+$A$11,IF($C$5,8,0),1,1))) -> 3835570000 | D51: =IF(A51>$B$30,NA(),IF(A51>$A$8,"",OFFSET(InputPriceData!$C$15,CalculationsAndCharts!$A51+$A$11,IF($C$5,8,0),1,1))) -> 4229.34 | E51: =IF(A51>$B$30,NA(),IF(A51>$A$8,"",OFFSET(InputPriceData!$D$15,CalculationsAndCharts!$A51+$A$11,IF($C$5,8,0),1,1))) -> 4232.34 | F51: =IF(A51>$B$30,NA(),IF(A51>$A$8,"",OFFSET(InputPriceData!$E$15,CalculationsAndCharts!$A51+$A$11,IF($C$5,8,0),1,1))) -> 4215.66 | G51: =IF(A51>$B$30,NA(),IF(A51>$A$8,"",OFFSET(InputPriceData!$F$15,CalculationsAndCharts!$A51+$A$11,IF($C$5,8,0),1,1))) -> 4226.52 | H51: =IF($A51>$B$30,NA(),IF($A51>$A$8,"",OFFSET(InputIndexData!$B$15,$A51+$A$11,0,1,1))) -> 2021-06-07 | I51: =IF($A51>$B$30,NA(),IF($A51>$A$8,"",OFFSET(InputIndexData!$G$15,CalculationsAndCharts!$A51+$A$11,IF($C$5,8,0),1,1))) -> 0 | J51: =IF($A51>$B$30,NA(),IF($A51>$A$8,"",OFFSET(InputIndexData!$C$15,CalculationsAndCharts!$A51+$A$11,IF($C$5,8,0),1,1))) -> 17.34 | K51: =IF($A51>$B$30,NA(),IF($A51>$A$8,"",OFFSET(InputIndexData!$D$15,CalculationsAndCharts!$A51+$A$11,IF($C$5,8,0),1,1))) -> 17.35 | L51: =IF($A51>$B$30,NA(),IF($A51>$A$8,"",OFFSET(InputIndexData!$E$15,CalculationsAndCharts!$A51+$A$11,IF($C$5,8,0),1,1))) -> 15.78 | M51: =IF($A51>$B$30,NA(),IF($A51>$A$8,"",OFFSET(InputIndexData!$F$15,CalculationsAndCharts!$A51+$A$11,IF($C$5,8,0),1,1))) -> 16.42 | N51: 0 | O51: 16.42 | P51: 8.513260392 | Q51: 9.138614176 | R51: 0.03542702659 | S51: 0.3542702659 | T51: 0.2462309574 | U51: 4218.18152 | V51: 0 | W51: 16.42 | X51: 9.021242145 | Y51: 9.324725814 | Z51: 0.01654224535 | AA51: 0.1654224535 | AB51: 0.1109926146 | AC51: 4197.539472 | AX51: 3835570000
A52: 20 | B52: =IF(A52>$B$30,NA(),IF($A52>$A$8,"",OFFSET(InputPriceData!$B$15,$A52+$A$11,0,1,1))) -> 2021-06-04 | C52: =IF(A52>$B$30,NA(),IF($A52>$A$8,"",OFFSET(InputPriceData!$G$15,CalculationsAndCharts!$A52+$A$11,IF($C$5,8,0),1,1))) -> 3487070000 | D52: =IF(A52>$B$30,NA(),IF(A52>$A$8,"",OFFSET(InputPriceData!$C$15,CalculationsAndCharts!$A52+$A$11,IF($C$5,8,0),1,1))) -> 4206.05 | E52: =IF(A52>$B$30,NA(),IF(A52>$A$8,"",OFFSET(InputPriceData!$D$15,CalculationsAndCharts!$A52+$A$11,IF($C$5,8,0),1,1))) -> 4233.45 | F52: =IF(A52>$B$30,NA(),IF(A52>$A$8,"",OFFSET(InputPriceData!$E$15,CalculationsAndCharts!$A52+$A$11,IF($C$5,8,0),1,1))) -> 4206.05 | G52: =IF(A52>$B$30,NA(),IF(A52>$A$8,"",OFFSET(InputPriceData!$F$15,CalculationsAndCharts!$A52+$A$11,IF($C$5,8,0),1,1))) -> 4229.89 | H52: =IF($A52>$B$30,NA(),IF($A52>$A$8,"",OFFSET(InputIndexData!$B$15,$A52+$A$11,0,1,1))) -> 2021-06-04 | I52: =IF($A52>$B$30,NA(),IF($A52>$A$8,"",OFFSET(InputIndexData!$G$15,CalculationsAndCharts!$A52+$A$11,IF($C$5,8,0),1,1))) -> 0 | J52: =IF($A52>$B$30,NA(),IF($A52>$A$8,"",OFFSET(InputIndexData!$C$15,CalculationsAndCharts!$A52+$A$11,IF($C$5,8,0),1,1))) -> 18.09 | K52: =IF($A52>$B$30,NA(),IF($A52>$A$8,"",OFFSET(InputIndexData!$D$15,CalculationsAndCharts!$A52+$A$11,IF($C$5,8,0),1,1))) -> 18.42 | L52: =IF($A52>$B$30,NA(),IF($A52>$A$8,"",OFFSET(InputIndexData!$E$15,CalculationsAndCharts!$A52+$A$11,IF($C$5,8,0),1,1))) -> 16.18 | M52: =IF($A52>$B$30,NA(),IF($A52>$A$8,"",OFFSET(InputIndexData!$F$15,CalculationsAndCharts!$A52+$A$11,IF($C$5,8,0),1,1))) -> 16.42 | N52: 16.42 | O52: 0 | P52: 10.40509603 | Q52: 7.520528438 | R52: 0.1609185773 | S52: 1.609185773 | T52: 0.4743974134 | U52: 4215.45762 | V52: 16.42 | W52: 0 | X52: 9.970846581 | Y52: 8.577854847 | Z52: 0.07509911081 | AA52: 0.7509911081 | AB52: 0.1667610579 | AC52: 4193.921252 | AW52: 3487070000
A53: 21 | B53: =IF(A53>$B$30,NA(),IF($A53>$A$8,"",OFFSET(InputPriceData!$B$15,$A53+$A$11,0,1,1))) -> 2021-06-03 | C53: =IF(A53>$B$30,NA(),IF($A53>$A$8,"",OFFSET(InputPriceData!$G$15,CalculationsAndCharts!$A53+$A$11,IF($C$5,8,0),1,1))) -> 4579450000 | D53: =IF(A53>$B$30,NA(),IF(A53>$A$8,"",OFFSET(InputPriceData!$C$15,CalculationsAndCharts!$A53+$A$11,IF($C$5,8,0),1,1))) -> 4191.43 | E53: =IF(A53>$B$30,NA(),IF(A53>$A$8,"",OFFSET(InputPriceData!$D$15,CalculationsAndCharts!$A53+$A$11,IF($C$5,8,0),1,1))) -> 4204.39 | F53: =IF(A53>$B$30,NA(),IF(A53>$A$8,"",OFFSET(InputPriceData!$E$15,CalculationsAndCharts!$A53+$A$11,IF($C$5,8,0),1,1))) -> 4167.93 | G53: =IF(A53>$B$30,NA(),IF(A53>$A$8,"",OFFSET(InputPriceData!$F$15,CalculationsAndCharts!$A53+$A$11,IF($C$5,8,0),1,1))) -> 4192.85 | H53: =IF($A53>$B$30,NA(),IF($A53>$A$8,"",OFFSET(InputIndexData!$B$15,$A53+$A$11,0,1,1))) -> 2021-06-03 | I53: =IF($A53>$B$30,NA(),IF($A53>$A$8,"",OFFSET(InputIndexData!$G$15,CalculationsAndCharts!$A53+$A$11,IF($C$5,8,0),1,1))) -> 0 | J53: =IF($A53>$B$30,NA(),IF($A53>$A$8,"",OFFSET(InputIndexData!$C$15,CalculationsAndCharts!$A53+$A$11,IF($C$5,8,0),1,1))) -> 17.73 | K53: =IF($A53>$B$30,NA(),IF($A53>$A$8,"",OFFSET(InputIndexData!$D$15,CalculationsAndCharts!$A53+$A$11,IF($C$5,8,0),1,1))) -> 19.27 | L53: =IF($A53>$B$30,NA(),IF($A53>$A$8,"",OFFSET(InputIndexData!$E$15,CalculationsAndCharts!$A53+$A$11,IF($C$5,8,0),1,1))) -> 17.45 | M53: =IF($A53>$B$30,NA(),IF($A53>$A$8,"",OFFSET(InputIndexData!$F$15,CalculationsAndCharts!$A53+$A$11,IF($C$5,8,0),1,1))) -> 18.04 | N53: 0 | O53: 18.04 | P53: 9.068450709 | Q53: 9.191756979 | R53: 0.006752727269 | S53: 0.06752727269 | T53: 0.1940958678 | U53: 4202.431269 | V53: 0 | W53: 18.04 | X53: 9.291988327 | Y53: 9.480786936 | Z53: 0.01005703769 | AA53: 0.1005703769 | AB53: 0.1048162264 | AC53: 4186.722613 | AW53: 4579450000
A54: 22 | B54: =IF(A54>$B$30,NA(),IF($A54>$A$8,"",OFFSET(InputPriceData!$B$15,$A54+$A$11,0,1,1))) -> 2021-06-02 | C54: =IF(A54>$B$30,NA(),IF($A54>$A$8,"",OFFSET(InputPriceData!$G$15,CalculationsAndCharts!$A54+$A$11,IF($C$5,8,0),1,1))) -> 4860930000 | D54: =IF(A54>$B$30,NA(),IF(A54>$A$8,"",OFFSET(InputPriceData!$C$15,CalculationsAndCharts!$A54+$A$11,IF($C$5,8,0),1,1))) -> 4206.82 | E54: =IF(A54>$B$30,NA(),IF(A54>$A$8,"",OFFSET(InputPriceData!$D$15,CalculationsAndCharts!$A54+$A$11,IF($C$5,8,0),1,1))) -> 4217.37 | F54: =IF(A54>$B$30,NA(),IF(A54>$A$8,"",OFFSET(InputPriceData!$E$15,CalculationsAndCharts!$A54+$A$11,IF($C$5,8,0),1,1))) -> 4198.27 | G54: =IF(A54>$B$30,NA(),IF(A54>$A$8,"",OFFSET(InputPriceData!$F$15,CalculationsAndCharts!$A54+$A$11,IF($C$5,8,0),1,1))) -> 4208.12 | H54: =IF($A54>$B$30,NA(),IF($A54>$A$8,"",OFFSET(InputIndexData!$B$15,$A54+$A$11,0,1,1))) -> 2021-06-02 | I54: =IF($A54>$B$30,NA(),IF($A54>$A$8,"",OFFSET(InputIndexData!$G$15,CalculationsAndCharts!$A54+$A$11,IF($C$5,8,0),1,1))) -> 0 | J54: =IF($A54>$B$30,NA(),IF($A54>$A$8,"",OFFSET(InputIndexData!$C$15,CalculationsAndCharts!$A54+$A$11,IF($C$5,8,0),1,1))) -> 17.86 | K54: =IF($A54>$B$30,NA(),IF($A54>$A$8,"",OFFSET(InputIndexData!$D$15,CalculationsAndCharts!$A54+$A$11,IF($C$5,8,0),1,1))) -> 18.31 | L54: =IF($A54>$B$30,NA(),IF($A54>$A$8,"",OFFSET(InputIndexData!$E$15,CalculationsAndCharts!$A54+$A$11,IF($C$5,8,0),1,1))) -> 16.74 | M54: =IF($A54>$B$30,NA(),IF($A54>$A$8,"",OFFSET(InputIndexData!$F$15,CalculationsAndCharts!$A54+$A$11,IF($C$5,8,0),1,1))) -> 17.48 | N54: 17.48 | O54: 0 | P54: 11.08366198 | Q54: 7.225480752 | R54: 0.2107241816 | S54: 2.107241816 | T54: 0.5649530575 | U54: 4204.738844 | V54: 17.48 | W54: 0 | X54: 10.27009236 | Y54: 8.579817139 | Z54: 0.08967015598 | AA54: 0.8967015598 | AB54: 0.1806382438 | AC54: 4186.005163 | AW54: 4860930000
A55: 23 | B55: =IF(A55>$B$30,NA(),IF($A55>$A$8,"",OFFSET(InputPriceData!$B$15,$A55+$A$11,0,1,1))) -> 2021-06-01 | C55: =IF(A55>$B$30,NA(),IF($A55>$A$8,"",OFFSET(InputPriceData!$G$15,CalculationsAndCharts!$A55+$A$11,IF($C$5,8,0),1,1))) -> 4122960000 | D55: =IF(A55>$B$30,NA(),IF(A55>$A$8,"",OFFSET(InputPriceData!$C$15,CalculationsAndCharts!$A55+$A$11,IF($C$5,8,0),1,1))) -> 4216.52 | E55: =IF(A55>$B$30,NA(),IF(A55>$A$8,"",OFFSET(InputPriceData!$D$15,CalculationsAndCharts!$A55+$A$11,IF($C$5,8,0),1,1))) -> 4234.12 | F55: =IF(A55>$B$30,NA(),IF(A55>$A$8,"",OFFSET(InputPriceData!$E$15,CalculationsAndCharts!$A55+$A$11,IF($C$5,8,0),1,1))) -> 4197.59 | G55: =IF(A55>$B$30,NA(),IF(A55>$A$8,"",OFFSET(InputPriceData!$F$15,CalculationsAndCharts!$A55+$A$11,IF($C$5,8,0),1,1))) -> 4202.04 | H55: =IF($A55>$B$30,NA(),IF($A55>$A$8,"",OFFSET(InputIndexData!$B$15,$A55+$A$11,0,1,1))) -> 2021-06-01 | I55: =IF($A55>$B$30,NA(),IF($A55>$A$8,"",OFFSET(InputIndexData!$G$15,CalculationsAndCharts!$A55+$A$11,IF($C$5,8,0),1,1))) -> 0 | J55: =IF($A55>$B$30,NA(),IF($A55>$A$8,"",OFFSET(InputIndexData!$C$15,CalculationsAndCharts!$A55+$A$11,IF($C$5,8,0),1,1))) -> 17.24 | K55: =IF($A55>$B$30,NA(),IF($A55>$A$8,"",OFFSET(InputIndexData!$D$15,CalculationsAndCharts!$A55+$A$11,IF($C$5,8,0),1,1))) -> 18.53 | L55: =IF($A55>$B$30,NA(),IF($A55>$A$8,"",OFFSET(InputIndexData!$E$15,CalculationsAndCharts!$A55+$A$11,IF($C$5,8,0),1,1))) -> 15.68 | M55: =IF($A55>$B$30,NA(),IF($A55>$A$8,"",OFFSET(InputIndexData!$F$15,CalculationsAndCharts!$A55+$A$11,IF($C$5,8,0),1,1))) -> 17.9 | N55: 0 | O55: 17.9 | P55: 9.662253529 | Q55: 8.831143142 | R55: 0.04494090254 | S55: 0.4494090254 | T55: 0.2635289137 | U55: 4200.348067 | V55: 0 | W55: 17.9 | X55: 9.511154715 | Y55: 9.482955786 | Z55: 0.001484613585 | AA55: 0.01484613585 | AB55: 0.09665201294 | AC55: 4181.129678 | AX55: 4122960000
A56: 24 | B56: =IF(A56>$B$30,NA(),IF($A56>$A$8,"",OFFSET(InputPriceData!$B$15,$A56+$A$11,0,1,1))) -> 2021-05-28 | C56: =IF(A56>$B$30,NA(),IF($A56>$A$8,"",OFFSET(InputPriceData!$G$15,CalculationsAndCharts!$A56+$A$11,IF($C$5,8,0),1,1))) -> 4199270000 | D56: =IF(A56>$B$30,NA(),IF(A56>$A$8,"",OFFSET(InputPriceData!$C$15,CalculationsAndCharts!$A56+$A$11,IF($C$5,8,0),1,1))) -> 4210.77 | E56: =IF(A56>$B$30,NA(),IF(A56>$A$8,"",OFFSET(InputPriceData!$D$15,CalculationsAndCharts!$A56+$A$11,IF($C$5,8,0),1,1))) -> 4218.36 | F56: =IF(A56>$B$30,NA(),IF(A56>$A$8,"",OFFSET(InputPriceData!$E$15,CalculationsAndCharts!$A56+$A$11,IF($C$5,8,0),1,1))) -> 4203.57 | G56: =IF(A56>$B$30,NA(),IF(A56>$A$8,"",OFFSET(InputPriceData!$F$15,CalculationsAndCharts!$A56+$A$11,IF($C$5,8,0),1,1))) -> 4204.11 | H56: =IF($A56>$B$30,NA(),IF($A56>$A$8,"",OFFSET(InputIndexData!$B$15,$A56+$A$11,0,1,1))) -> 2021-05-28 | I56: =IF($A56>$B$30,NA(),IF($A56>$A$8,"",OFFSET(InputIndexData!$G$15,CalculationsAndCharts!$A56+$A$11,IF($C$5,8,0),1,1))) -> 0 | J56: =IF($A56>$B$30,NA(),IF($A56>$A$8,"",OFFSET(InputIndexData!$C$15,CalculationsAndCharts!$A56+$A$11,IF($C$5,8,0),1,1))) -> 16.8 | K56: =IF($A56>$B$30,NA(),IF($A56>$A$8,"",OFFSET(InputIndexData!$D$15,CalculationsAndCharts!$A56+$A$11,IF($C$5,8,0),1,1))) -> 16.86 | L56: =IF($A56>$B$30,NA(),IF($A56>$A$8,"",OFFSET(InputIndexData!$E$15,CalculationsAndCharts!$A56+$A$11,IF($C$5,8,0),1,1))) -> 15.9 | M56: =IF($A56>$B$30,NA(),IF($A56>$A$8,"",OFFSET(InputIndexData!$F$15,CalculationsAndCharts!$A56+$A$11,IF($C$5,8,0),1,1))) -> 16.76 | N56: 16.76 | O56: 0 | P56: 11.80942098 | Q56: 6.815841618 | R56: 0.2681077195 | S56: 2.681077195 | T56: 0.6692867628 | U56: 4199.742648 | V56: 16.76 | W56: 0 | X56: 10.5123289 | Y56: 8.596951131 | Z56: 0.1002328062 | AA56: 1.002328062 | AB56: 0.1906979107 | AC56: 4178.892418 | AX56: 4199270000
A57: 25 | B57: =IF(A57>$B$30,NA(),IF($A57>$A$8,"",OFFSET(InputPriceData!$B$15,$A57+$A$11,0,1,1))) -> 2021-05-27 | C57: =IF(A57>$B$30,NA(),IF($A57>$A$8,"",OFFSET(InputPriceData!$G$15,CalculationsAndCharts!$A57+$A$11,IF($C$5,8,0),1,1))) -> 5201110000 | D57: =IF(A57>$B$30,NA(),IF(A57>$A$8,"",OFFSET(InputPriceData!$C$15,CalculationsAndCharts!$A57+$A$11,IF($C$5,8,0),1,1))) -> 4201.94 | E57: =IF(A57>$B$30,NA(),IF(A57>$A$8,"",OFFSET(InputPriceData!$D$15,CalculationsAndCharts!$A57+$A$11,IF($C$5,8,0),1,1))) -> 4213.38 | F57: =IF(A57>$B$30,NA(),IF(A57>$A$8,"",OFFSET(InputPriceData!$E$15,CalculationsAndCharts!$A57+$A$11,IF($C$5,8,0),1,1))) -> 4197.78 | G57: =IF(A57>$B$30,NA(),IF(A57>$A$8,"",OFFSET(InputPriceData!$F$15,CalculationsAndCharts!$A57+$A$11,IF($C$5,8,0),1,1))) -> 4200.88 | H57: =IF($A57>$B$30,NA(),IF($A57>$A$8,"",OFFSET(InputIndexData!$B$15,$A57+$A$11,0,1,1))) -> 2021-05-27 | I57: =IF($A57>$B$30,NA(),IF($A57>$A$8,"",OFFSET(InputIndexData!$G$15,CalculationsAndCharts!$A57+$A$11,IF($C$5,8,0),1,1))) -> 0 | J57: =IF($A57>$B$30,NA(),IF($A57>$A$8,"",OFFSET(InputIndexData!$C$15,CalculationsAndCharts!$A57+$A$11,IF($C$5,8,0),1,1))) -> 18.03 | K57: =IF($A57>$B$30,NA(),IF($A57>$A$8,"",OFFSET(InputIndexData!$D$15,CalculationsAndCharts!$A57+$A$11,IF($C$5,8,0),1,1))) -> 18.17 | L57: =IF($A57>$B$30,NA(),IF($A57>$A$8,"",OFFSET(InputIndexData!$E$15,CalculationsAndCharts!$A57+$A$11,IF($C$5,8,0),1,1))) -> 16.52 | M57: =IF($A57>$B$30,NA(),IF($A57>$A$8,"",OFFSET(InputIndexData!$F$15,CalculationsAndCharts!$A57+$A$11,IF($C$5,8,0),1,1))) -> 16.74 | N57: 16.74 | O57: 0 | P57: 10.70929231 | Q57: 8.330473089 | R57: 0.1249394581 | S57: 1.249394581 | T57: 0.4089808329 | U57: 4190.904142 | V57: 16.74 | W57: 0 | X57: 9.854679306 | Y57: 9.501893356 | Z57: 0.01822563186 | AA57: 0.1822563186 | AB57: 0.1125958399 | AC57: 4172.950335 | AX57: 5201110000
A58: 26 | B58: =IF(A58>$B$30,NA(),IF($A58>$A$8,"",OFFSET(InputPriceData!$B$15,$A58+$A$11,0,1,1))) -> 2021-05-26 | C58: =IF(A58>$B$30,NA(),IF($A58>$A$8,"",OFFSET(InputPriceData!$G$15,CalculationsAndCharts!$A58+$A$11,IF($C$5,8,0),1,1))) -> 3674490000 | D58: =IF(A58>$B$30,NA(),IF(A58>$A$8,"",OFFSET(InputPriceData!$C$15,CalculationsAndCharts!$A58+$A$11,IF($C$5,8,0),1,1))) -> 4191.59 | E58: =IF(A58>$B$30,NA(),IF(A58>$A$8,"",OFFSET(InputPriceData!$D$15,CalculationsAndCharts!$A58+$A$11,IF($C$5,8,0),1,1))) -> 4202.61 | F58: =IF(A58>$B$30,NA(),IF(A58>$A$8,"",OFFSET(InputPriceData!$E$15,CalculationsAndCharts!$A58+$A$11,IF($C$5,8,0),1,1))) -> 4184.11 | G58: =IF(A58>$B$30,NA(),IF(A58>$A$8,"",OFFSET(InputPriceData!$F$15,CalculationsAndCharts!$A58+$A$11,IF($C$5,8,0),1,1))) -> 4195.99 | H58: =IF($A58>$B$30,NA(),IF($A58>$A$8,"",OFFSET(InputIndexData!$B$15,$A58+$A$11,0,1,1))) -> 2021-05-26 | I58: =IF($A58>$B$30,NA(),IF($A58>$A$8,"",OFFSET(InputIndexData!$G$15,CalculationsAndCharts!$A58+$A$11,IF($C$5,8,0),1,1))) -> 0 | J58: =IF($A58>$B$30,NA(),IF($A58>$A$8,"",OFFSET(InputIndexData!$C$15,CalculationsAndCharts!$A58+$A$11,IF($C$5,8,0),1,1))) -> 18.37 | K58: =IF($A58>$B$30,NA(),IF($A58>$A$8,"",OFFSET(InputIndexData!$D$15,CalculationsAndCharts!$A58+$A$11,IF($C$5,8,0),1,1))) -> 18.92 | L58: =IF($A58>$B$30,NA(),IF($A58>$A$8,"",OFFSET(InputIndexData!$E$15,CalculationsAndCharts!$A58+$A$11,IF($C$5,8,0),1,1))) -> 17.35 | M58: =IF($A58>$B$30,NA(),IF($A58>$A$8,"",OFFSET(InputIndexData!$F$15,CalculationsAndCharts!$A58+$A$11,IF($C$5,8,0),1,1))) -> 17.36 | N58: 17.36 | O58: 0 | P58: 9.369135044 | Q58: 10.18168933 | R58: 0.04156110533 | S58: 0.4156110533 | T58: 0.2573838279 | U58: 4184.000923 | V58: 17.36 | W58: 0 | X58: 9.129908706 | Y58: 10.50209266 | Z58: 0.06989523004 | AA58: 0.6989523004 | AB58: 0.161804981 | AC58: 4169.406556 | AW58: 3674490000
A59: 27 | B59: =IF(A59>$B$30,NA(),IF($A59>$A$8,"",OFFSET(InputPriceData!$B$15,$A59+$A$11,0,1,1))) -> 2021-05-25 | C59: =IF(A59>$B$30,NA(),IF($A59>$A$8,"",OFFSET(InputPriceData!$G$15,CalculationsAndCharts!$A59+$A$11,IF($C$5,8,0),1,1))) -> 3420870000 | D59: =IF(A59>$B$30,NA(),IF(A59>$A$8,"",OFFSET(InputPriceData!$C$15,CalculationsAndCharts!$A59+$A$11,IF($C$5,8,0),1,1))) -> 4205.94 | E59: =IF(A59>$B$30,NA(),IF(A59>$A$8,"",OFFSET(InputPriceData!$D$15,CalculationsAndCharts!$A59+$A$11,IF($C$5,8,0),1,1))) -> 4213.42 | F59: =IF(A59>$B$30,NA(),IF(A59>$A$8,"",OFFSET(InputPriceData!$E$15,CalculationsAndCharts!$A59+$A$11,IF($C$5,8,0),1,1))) -> 4182.52 | G59: =IF(A59>$B$30,NA(),IF(A59>$A$8,"",OFFSET(InputPriceData!$F$15,CalculationsAndCharts!$A59+$A$11,IF($C$5,8,0),1,1))) -> 4188.13 | H59: =IF($A59>$B$30,NA(),IF($A59>$A$8,"",OFFSET(InputIndexData!$B$15,$A59+$A$11,0,1,1))) -> 2021-05-25 | I59: =IF($A59>$B$30,NA(),IF($A59>$A$8,"",OFFSET(InputIndexData!$G$15,CalculationsAndCharts!$A59+$A$11,IF($C$5,8,0),1,1))) -> 0 | J59: =IF($A59>$B$30,NA(),IF($A59>$A$8,"",OFFSET(InputIndexData!$C$15,CalculationsAndCharts!$A59+$A$11,IF($C$5,8,0),1,1))) -> 18.35 | K59: =IF($A59>$B$30,NA(),IF($A59>$A$8,"",OFFSET(InputIndexData!$D$15,CalculationsAndCharts!$A59+$A$11,IF($C$5,8,0),1,1))) -> 19.29 | L59: =IF($A59>$B$30,NA(),IF($A59>$A$8,"",OFFSET(InputIndexData!$E$15,CalculationsAndCharts!$A59+$A$11,IF($C$5,8,0),1,1))) -> 16.87 | M59: =IF($A59>$B$30,NA(),IF($A59>$A$8,"",OFFSET(InputIndexData!$F$15,CalculationsAndCharts!$A59+$A$11,IF($C$5,8,0),1,1))) -> 18.84 | N59: 0 | O59: 18.84 | P59: 7.593387276 | Q59: 12.44428696 | R59: 0.2420888376 | S59: 2.420888376 | T59: 0.6219797046 | U59: 4179.84562 | V59: 0 | W59: 18.84 | X59: 8.263583307 | Y59: 11.60757609 | Z59: 0.1682836435 | AA59: 1.682836435 | AB59: 0.2555082319 | AC59: 4164.274894 | AX59: 3420870000
A60: 28 | B60: =IF(A60>$B$30,NA(),IF($A60>$A$8,"",OFFSET(InputPriceData!$B$15,$A60+$A$11,0,1,1))) -> 2021-05-24 | C60: =IF(A60>$B$30,NA(),IF($A60>$A$8,"",OFFSET(InputPriceData!$G$15,CalculationsAndCharts!$A60+$A$11,IF($C$5,8,0),1,1))) -> 2947400000 | D60: =IF(A60>$B$30,NA(),IF(A60>$A$8,"",OFFSET(InputPriceData!$C$15,CalculationsAndCharts!$A60+$A$11,IF($C$5,8,0),1,1))) -> 4170.16 | E60: =IF(A60>$B$30,NA(),IF(A60>$A$8,"",OFFSET(InputPriceData!$D$15,CalculationsAndCharts!$A60+$A$11,IF($C$5,8,0),1,1))) -> 4209.52 | F60: =IF(A60>$B$30,NA(),IF(A60>$A$8,"",OFFSET(InputPriceData!$E$15,CalculationsAndCharts!$A60+$A$11,IF($C$5,8,0),1,1))) -> 4170.16 | G60: =IF(A60>$B$30,NA(),IF(A60>$A$8,"",OFFSET(InputPriceData!$F$15,CalculationsAndCharts!$A60+$A$11,IF($C$5,8,0),1,1))) -> 4197.05 | H60: =IF($A60>$B$30,NA(),IF($A60>$A$8,"",OFFSET(InputIndexData!$B$15,$A60+$A$11,0,1,1))) -> 2021-05-24 | I60: =IF($A60>$B$30,NA(),IF($A60>$A$8,"",OFFSET(InputIndexData!$G$15,CalculationsAndCharts!$A60+$A$11,IF($C$5,8,0),1,1))) -> 0 | J60: =IF($A60>$B$30,NA(),IF($A60>$A$8,"",OFFSET(InputIndexData!$C$15,CalculationsAndCharts!$A60+$A$11,IF($C$5,8,0),1,1))) -> 20.5 | K60: =IF($A60>$B$30,NA(),IF($A60>$A$8,"",OFFSET(InputIndexData!$D$15,CalculationsAndCharts!$A60+$A$11,IF($C$5,8,0),1,1))) -> 20.51 | L60: =IF($A60>$B$30,NA(),IF($A60>$A$8,"",OFFSET(InputIndexData!$E$15,CalculationsAndCharts!$A60+$A$11,IF($C$5,8,0),1,1))) -> 18.38 | M60: =IF($A60>$B$30,NA(),IF($A60>$A$8,"",OFFSET(InputIndexData!$F$15,CalculationsAndCharts!$A60+$A$11,IF($C$5,8,0),1,1))) -> 18.4 | N60: 18.4 | O60: 0 | P60: 9.28080667 | Q60: 11.02301739 | R60: 0.08580698202 | S60: 0.8580698202 | T60: 0.3378308764 | U60: 4166.214828 | V60: 18.4 | W60: 0 | X60: 9.133434181 | Y60: 10.84626831 | Z60: 0.0857286677 | AA60: 0.857286677 | AB60: 0.1768844454 | AC60: 4156.087865 | AW60: 2947400000
A61: 29 | B61: =IF(A61>$B$30,NA(),IF($A61>$A$8,"",OFFSET(InputPriceData!$B$15,$A61+$A$11,0,1,1))) -> 2021-05-21 | C61: =IF(A61>$B$30,NA(),IF($A61>$A$8,"",OFFSET(InputPriceData!$G$15,CalculationsAndCharts!$A61+$A$11,IF($C$5,8,0),1,1))) -> 3344620000 | D61: =IF(A61>$B$30,NA(),IF(A61>$A$8,"",OFFSET(InputPriceData!$C$15,CalculationsAndCharts!$A61+$A$11,IF($C$5,8,0),1,1))) -> 4168.61 | E61: =IF(A61>$B$30,NA(),IF(A61>$A$8,"",OFFSET(InputPriceData!$D$15,CalculationsAndCharts!$A61+$A$11,IF($C$5,8,0),1,1))) -> 4188.72 | F61: =IF(A61>$B$30,NA(),IF(A61>$A$8,"",OFFSET(InputPriceData!$E$15,CalculationsAndCharts!$A61+$A$11,IF($C$5,8,0),1,1))) -> 4151.72 | G61: =IF(A61>$B$30,NA(),IF(A61>$A$8,"",OFFSET(InputPriceData!$F$15,CalculationsAndCharts!$A61+$A$11,IF($C$5,8,0),1,1))) -> 4155.86 | H61: =IF($A61>$B$30,NA(),IF($A61>$A$8,"",OFFSET(InputIndexData!$B$15,$A61+$A$11,0,1,1))) -> 2021-05-21 | I61: =IF($A61>$B$30,NA(),IF($A61>$A$8,"",OFFSET(InputIndexData!$G$15,CalculationsAndCharts!$A61+$A$11,IF($C$5,8,0),1,1))) -> 0 | J61: =IF($A61>$B$30,NA(),IF($A61>$A$8,"",OFFSET(InputIndexData!$C$15,CalculationsAndCharts!$A61+$A$11,IF($C$5,8,0),1,1))) -> 20.42 | K61: =IF($A61>$B$30,NA(),IF($A61>$A$8,"",OFFSET(InputIndexData!$D$15,CalculationsAndCharts!$A61+$A$11,IF($C$5,8,0),1,1))) -> 20.89 | L61: =IF($A61>$B$30,NA(),IF($A61>$A$8,"",OFFSET(InputIndexData!$E$15,CalculationsAndCharts!$A61+$A$11,IF($C$5,8,0),1,1))) -> 19.53 | M61: =IF($A61>$B$30,NA(),IF($A61>$A$8,"",OFFSET(InputIndexData!$F$15,CalculationsAndCharts!$A61+$A$11,IF($C$5,8,0),1,1))) -> 20.15 | N61: 0 | O61: 20.15 | P61: 7.254319264 | Q61: 13.47257682 | R61: 0.3000089607 | S61: 3.000089607 | T61: 0.7272890195 | U61: 4150.483087 | V61: 0 | W61: 20.15 | X61: 8.1580062 | Y61: 11.98798077 | Z61: 0.1901109473 | AA61: 1.901109473 | AB61: 0.2762961403 | AC61: 4147.285255 | AX61: 3344620000
A62: 30 | B62: =IF(A62>$B$30,NA(),IF($A62>$A$8,"",OFFSET(InputPriceData!$B$15,$A62+$A$11,0,1,1))) -> 2021-05-20 | C62: =IF(A62>$B$30,NA(),IF($A62>$A$8,"",OFFSET(InputPriceData!$G$15,CalculationsAndCharts!$A62+$A$11,IF($C$5,8,0),1,1))) -> 3019060000 | D62: =IF(A62>$B$30,NA(),IF(A62>$A$8,"",OFFSET(InputPriceData!$C$15,CalculationsAndCharts!$A62+$A$11,IF($C$5,8,0),1,1))) -> 4121.97 | E62: =IF(A62>$B$30,NA(),IF(A62>$A$8,"",OFFSET(InputPriceData!$D$15,CalculationsAndCharts!$A62+$A$11,IF($C$5,8,0),1,1))) -> 4172.8 | F62: =IF(A62>$B$30,NA(),IF(A62>$A$8,"",OFFSET(InputPriceData!$E$15,CalculationsAndCharts!$A62+$A$11,IF($C$5,8,0),1,1))) -> 4121.97 | G62: =IF(A62>$B$30,NA(),IF(A62>$A$8,"",OFFSET(InputPriceData!$F$15,CalculationsAndCharts!$A62+$A$11,IF($C$5,8,0),1,1))) -> 4159.12 | H62: =IF($A62>$B$30,NA(),IF($A62>$A$8,"",OFFSET(InputIndexData!$B$15,$A62+$A$11,0,1,1))) -> 2021-05-20 | I62: =IF($A62>$B$30,NA(),IF($A62>$A$8,"",OFFSET(InputIndexData!$G$15,CalculationsAndCharts!$A62+$A$11,IF($C$5,8,0),1,1))) -> 0 | J62: =IF($A62>$B$30,NA(),IF($A62>$A$8,"",OFFSET(InputIndexData!$C$15,CalculationsAndCharts!$A62+$A$11,IF($C$5,8,0),1,1))) -> 22.33 | K62: =IF($A62>$B$30,NA(),IF($A62>$A$8,"",OFFSET(InputIndexData!$D$15,CalculationsAndCharts!$A62+$A$11,IF($C$5,8,0),1,1))) -> 23.5 | L62: =IF($A62>$B$30,NA(),IF($A62>$A$8,"",OFFSET(InputIndexData!$E$15,CalculationsAndCharts!$A62+$A$11,IF($C$5,8,0),1,1))) -> 20.19 | M62: =IF($A62>$B$30,NA(),IF($A62>$A$8,"",OFFSET(InputIndexData!$F$15,CalculationsAndCharts!$A62+$A$11,IF($C$5,8,0),1,1))) -> 20.67 | N62: 20.67 | O62: 0 | P62: 8.866390211 | Q62: 11.988705 | R62: 0.1497146504 | S62: 1.497146504 | T62: 0.4540266372 | U62: 4136.143476 | V62: 20.67 | W62: 0 | X62: 9.016743695 | Y62: 11.12882085 | Z62: 0.1048407505 | AA62: 1.048407505 | AB62: 0.195086429 | AC62: 4144.011584 | AW62: 3019060000
A63: 31 | B63: =IF(A63>$B$30,NA(),IF($A63>$A$8,"",OFFSET(InputPriceData!$B$15,$A63+$A$11,0,1,1))) -> 2021-05-19 | C63: =IF(A63>$B$30,NA(),IF($A63>$A$8,"",OFFSET(InputPriceData!$G$15,CalculationsAndCharts!$A63+$A$11,IF($C$5,8,0),1,1))) -> 3485550000 | D63: =IF(A63>$B$30,NA(),IF(A63>$A$8,"",OFFSET(InputPriceData!$C$15,CalculationsAndCharts!$A63+$A$11,IF($C$5,8,0),1,1))) -> 4098.45 | E63: =IF(A63>$B$30,NA(),IF(A63>$A$8,"",OFFSET(InputPriceData!$D$15,CalculationsAndCharts!$A63+$A$11,IF($C$5,8,0),1,1))) -> 4116.93 | F63: =IF(A63>$B$30,NA(),IF(A63>$A$8,"",OFFSET(InputPriceData!$E$15,CalculationsAndCharts!$A63+$A$11,IF($C$5,8,0),1,1))) -> 4061.41 | G63: =IF(A63>$B$30,NA(),IF(A63>$A$8,"",OFFSET(InputPriceData!$F$15,CalculationsAndCharts!$A63+$A$11,IF($C$5,8,0),1,1))) -> 4115.68 | H63: =IF($A63>$B$30,NA(),IF($A63>$A$8,"",OFFSET(InputIndexData!$B$15,$A63+$A$11,0,1,1))) -> 2021-05-19 | I63: =IF($A63>$B$30,NA(),IF($A63>$A$8,"",OFFSET(InputIndexData!$G$15,CalculationsAndCharts!$A63+$A$11,IF($C$5,8,0),1,1))) -> 0 | J63: =IF($A63>$B$30,NA(),IF($A63>$A$8,"",OFFSET(InputIndexData!$C$15,CalculationsAndCharts!$A63+$A$11,IF($C$5,8,0),1,1))) -> 22.46 | K63: =IF($A63>$B$30,NA(),IF($A63>$A$8,"",OFFSET(InputIndexData!$D$15,CalculationsAndCharts!$A63+$A$11,IF($C$5,8,0),1,1))) -> 25.96 | L63: =IF($A63>$B$30,NA(),IF($A63>$A$8,"",OFFSET(InputIndexData!$E$15,CalculationsAndCharts!$A63+$A$11,IF($C$5,8,0),1,1))) -> 21.88 | M63: =IF($A63>$B$30,NA(),IF($A63>$A$8,"",OFFSET(InputIndexData!$F$15,CalculationsAndCharts!$A63+$A$11,IF($C$5,8,0),1,1))) -> 22.18 | N63: 0 | O63: 22.18 | P63: 6.243365814 | Q63: 14.65286166 | R63: 0.4024406719 | S63: 4.024406719 | T63: 0.9135284943 | U63: 4117.036401 | V63: 0 | W63: 22.18 | X63: 7.790085137 | Y63: 12.30027568 | Z63: 0.2244951366 | AA63: 2.244951366 | AB63: 0.3090429872 | AC63: 4140.349766 | AW63: 3485550000
A64: 32 | B64: =IF(A64>$B$30,NA(),IF($A64>$A$8,"",OFFSET(InputPriceData!$B$15,$A64+$A$11,0,1,1))) -> 2021-05-18 | C64: =IF(A64>$B$30,NA(),IF($A64>$A$8,"",OFFSET(InputPriceData!$G$15,CalculationsAndCharts!$A64+$A$11,IF($C$5,8,0),1,1))) -> 3559790000 | D64: =IF(A64>$B$30,NA(),IF(A64>$A$8,"",OFFSET(InputPriceData!$C$15,CalculationsAndCharts!$A64+$A$11,IF($C$5,8,0),1,1))) -> 4165.94 | E64: =IF(A64>$B$30,NA(),IF(A64>$A$8,"",OFFSET(InputPriceData!$D$15,CalculationsAndCharts!$A64+$A$11,IF($C$5,8,0),1,1))) -> 4169.15 | F64: =IF(A64>$B$30,NA(),IF(A64>$A$8,"",OFFSET(InputPriceData!$E$15,CalculationsAndCharts!$A64+$A$11,IF($C$5,8,0),1,1))) -> 4125.99 | G64: =IF(A64>$B$30,NA(),IF(A64>$A$8,"",OFFSET(InputPriceData!$F$15,CalculationsAndCharts!$A64+$A$11,IF($C$5,8,0),1,1))) -> 4127.83 | H64: =IF($A64>$B$30,NA(),IF($A64>$A$8,"",OFFSET(InputIndexData!$B$15,$A64+$A$11,0,1,1))) -> 2021-05-18 | I64: =IF($A64>$B$30,NA(),IF($A64>$A$8,"",OFFSET(InputIndexData!$G$15,CalculationsAndCharts!$A64+$A$11,IF($C$5,8,0),1,1))) -> 0 | J64: =IF($A64>$B$30,NA(),IF($A64>$A$8,"",OFFSET(InputIndexData!$C$15,CalculationsAndCharts!$A64+$A$11,IF($C$5,8,0),1,1))) -> 18.89 | K64: =IF($A64>$B$30,NA(),IF($A64>$A$8,"",OFFSET(InputIndexData!$D$15,CalculationsAndCharts!$A64+$A$11,IF($C$5,8,0),1,1))) -> 21.45 | L64: =IF($A64>$B$30,NA(),IF($A64>$A$8,"",OFFSET(InputIndexData!$E$15,CalculationsAndCharts!$A64+$A$11,IF($C$5,8,0),1,1))) -> 18.81 | M64: =IF($A64>$B$30,NA(),IF($A64>$A$8,"",OFFSET(InputIndexData!$F$15,CalculationsAndCharts!$A64+$A$11,IF($C$5,8,0),1,1))) -> 21.34 | N64: 0 | O64: 21.34 | P64: 7.630780439 | Q64: 12.98016426 | R64: 0.2595408071 | S64: 2.595408071 | T64: 0.6537105584 | U64: 4131.366103 | V64: 0 | W64: 21.34 | X64: 8.610094098 | Y64: 11.26030469 | Z64: 0.1333747395 | AA64: 1.333747395 | AB64: 0.2222616566 | AC64: 4151.383763 | AX64: 3559790000
A65: 33 | B65: =IF(A65>$B$30,NA(),IF($A65>$A$8,"",OFFSET(InputPriceData!$B$15,$A65+$A$11,0,1,1))) -> 2021-05-17 | C65: =IF(A65>$B$30,NA(),IF($A65>$A$8,"",OFFSET(InputPriceData!$G$15,CalculationsAndCharts!$A65+$A$11,IF($C$5,8,0),1,1))) -> 3307130000 | D65: =IF(A65>$B$30,NA(),IF(A65>$A$8,"",OFFSET(InputPriceData!$C$15,CalculationsAndCharts!$A65+$A$11,IF($C$5,8,0),1,1))) -> 4169.92 | E65: =IF(A65>$B$30,NA(),IF(A65>$A$8,"",OFFSET(InputPriceData!$D$15,CalculationsAndCharts!$A65+$A$11,IF($C$5,8,0),1,1))) -> 4171.92 | F65: =IF(A65>$B$30,NA(),IF(A65>$A$8,"",OFFSET(InputPriceData!$E$15,CalculationsAndCharts!$A65+$A$11,IF($C$5,8,0),1,1))) -> 4142.69 | G65: =IF(A65>$B$30,NA(),IF(A65>$A$8,"",OFFSET(InputPriceData!$F$15,CalculationsAndCharts!$A65+$A$11,IF($C$5,8,0),1,1))) -> 4163.29 | H65: =IF($A65>$B$30,NA(),IF($A65>$A$8,"",OFFSET(InputIndexData!$B$15,$A65+$A$11,0,1,1))) -> 2021-05-17 | I65: =IF($A65>$B$30,NA(),IF($A65>$A$8,"",OFFSET(InputIndexData!$G$15,CalculationsAndCharts!$A65+$A$11,IF($C$5,8,0),1,1))) -> 0 | J65: =IF($A65>$B$30,NA(),IF($A65>$A$8,"",OFFSET(InputIndexData!$C$15,CalculationsAndCharts!$A65+$A$11,IF($C$5,8,0),1,1))) -> 19.89 | K65: =IF($A65>$B$30,NA(),IF($A65>$A$8,"",OFFSET(InputIndexData!$D$15,CalculationsAndCharts!$A65+$A$11,IF($C$5,8,0),1,1))) -> 21.58 | L65: =IF($A65>$B$30,NA(),IF($A65>$A$8,"",OFFSET(InputIndexData!$E$15,CalculationsAndCharts!$A65+$A$11,IF($C$5,8,0),1,1))) -> 19.67 | M65: =IF($A65>$B$30,NA(),IF($A65>$A$8,"",OFFSET(InputIndexData!$F$15,CalculationsAndCharts!$A65+$A$11,IF($C$5,8,0),1,1))) -> 19.72 | N65: 0 | O65: 19.72 | P65: 9.326509425 | Q65: 11.12242298 | R65: 0.0878242756 | S65: 0.878242756 | T65: 0.3414986829 | U65: 4138.041409 | V65: 0 | W65: 19.72 | X65: 9.516419793 | Y65: 10.19928414 | Z65: 0.03463553718 | AA65: 0.3463553718 | AB65: 0.1282243211 | AC65: 4158.114945 | AX65: 3307130000
A66: 34 | B66: =IF(A66>$B$30,NA(),IF($A66>$A$8,"",OFFSET(InputPriceData!$B$15,$A66+$A$11,0,1,1))) -> 2021-05-14 | C66: =IF(A66>$B$30,NA(),IF($A66>$A$8,"",OFFSET(InputPriceData!$G$15,CalculationsAndCharts!$A66+$A$11,IF($C$5,8,0),1,1))) -> 3251920000 | D66: =IF(A66>$B$30,NA(),IF(A66>$A$8,"",OFFSET(InputPriceData!$C$15,CalculationsAndCharts!$A66+$A$11,IF($C$5,8,0),1,1))) -> 4129.58 | E66: =IF(A66>$B$30,NA(),IF(A66>$A$8,"",OFFSET(InputPriceData!$D$15,CalculationsAndCharts!$A66+$A$11,IF($C$5,8,0),1,1))) -> 4183.13 | F66: =IF(A66>$B$30,NA(),IF(A66>$A$8,"",OFFSET(InputPriceData!$E$15,CalculationsAndCharts!$A66+$A$11,IF($C$5,8,0),1,1))) -> 4129.58 | G66: =IF(A66>$B$30,NA(),IF(A66>$A$8,"",OFFSET(InputPriceData!$F$15,CalculationsAndCharts!$A66+$A$11,IF($C$5,8,0),1,1))) -> 4173.85 | H66: =IF($A66>$B$30,NA(),IF($A66>$A$8,"",OFFSET(InputIndexData!$B$15,$A66+$A$11,0,1,1))) -> 2021-05-14 | I66: =IF($A66>$B$30,NA(),IF($A66>$A$8,"",OFFSET(InputIndexData!$G$15,CalculationsAndCharts!$A66+$A$11,IF($C$5,8,0),1,1))) -> 0 | J66: =IF($A66>$B$30,NA(),IF($A66>$A$8,"",OFFSET(InputIndexData!$C$15,CalculationsAndCharts!$A66+$A$11,IF($C$5,8,0),1,1))) -> 21.77 | K66: =IF($A66>$B$30,NA(),IF($A66>$A$8,"",OFFSET(InputIndexData!$D$15,CalculationsAndCharts!$A66+$A$11,IF($C$5,8,0),1,1))) -> 22.1 | L66: =IF($A66>$B$30,NA(),IF($A66>$A$8,"",OFFSET(InputIndexData!$E$15,CalculationsAndCharts!$A66+$A$11,IF($C$5,8,0),1,1))) -> 18.66 | M66: =IF($A66>$B$30,NA(),IF($A66>$A$8,"",OFFSET(InputIndexData!$F$15,CalculationsAndCharts!$A66+$A$11,IF($C$5,8,0),1,1))) -> 18.81 | N66: 18.81 | O66: 0 | P66: 11.39906708 | Q66: 9.211850307 | R66: 0.1061192797 | S66: 1.061192797 | T66: 0.3747623268 | U66: 4124.947494 | V66: 18.81 | W66: 0 | X66: 10.51814819 | Y66: 9.197103518 | Z66: 0.06700619515 | AA66: 0.6700619515 | AB66: 0.1590535192 | AC66: 4157.353777 | AW66: 3251920000
A67: 35 | B67: =IF(A67>$B$30,NA(),IF($A67>$A$8,"",OFFSET(InputPriceData!$B$15,$A67+$A$11,0,1,1))) -> 2021-05-13 | C67: =IF(A67>$B$30,NA(),IF($A67>$A$8,"",OFFSET(InputPriceData!$G$15,CalculationsAndCharts!$A67+$A$11,IF($C$5,8,0),1,1))) -> 3687780000 | D67: =IF(A67>$B$30,NA(),IF(A67>$A$8,"",OFFSET(InputPriceData!$C$15,CalculationsAndCharts!$A67+$A$11,IF($C$5,8,0),1,1))) -> 4074.99 | E67: =IF(A67>$B$30,NA(),IF(A67>$A$8,"",OFFSET(InputPriceData!$D$15,CalculationsAndCharts!$A67+$A$11,IF($C$5,8,0),1,1))) -> 4131.58 | F67: =IF(A67>$B$30,NA(),IF(A67>$A$8,"",OFFSET(InputPriceData!$E$15,CalculationsAndCharts!$A67+$A$11,IF($C$5,8,0),1,1))) -> 4074.99 | G67: =IF(A67>$B$30,NA(),IF(A67>$A$8,"",OFFSET(InputPriceData!$F$15,CalculationsAndCharts!$A67+$A$11,IF($C$5,8,0),1,1))) -> 4112.5 | H67: =IF($A67>$B$30,NA(),IF($A67>$A$8,"",OFFSET(InputIndexData!$B$15,$A67+$A$11,0,1,1))) -> 2021-05-13 | I67: =IF($A67>$B$30,NA(),IF($A67>$A$8,"",OFFSET(InputIndexData!$G$15,CalculationsAndCharts!$A67+$A$11,IF($C$5,8,0),1,1))) -> 0 | J67: =IF($A67>$B$30,NA(),IF($A67>$A$8,"",OFFSET(InputIndexData!$C$15,CalculationsAndCharts!$A67+$A$11,IF($C$5,8,0),1,1))) -> 26.03 | K67: =IF($A67>$B$30,NA(),IF($A67>$A$8,"",OFFSET(InputIndexData!$D$15,CalculationsAndCharts!$A67+$A$11,IF($C$5,8,0),1,1))) -> 28.93 | L67: =IF($A67>$B$30,NA(),IF($A67>$A$8,"",OFFSET(InputIndexData!$E$15,CalculationsAndCharts!$A67+$A$11,IF($C$5,8,0),1,1))) -> 22.23 | M67: =IF($A67>$B$30,NA(),IF($A67>$A$8,"",OFFSET(InputIndexData!$F$15,CalculationsAndCharts!$A67+$A$11,IF($C$5,8,0),1,1))) -> 23.13 | N67: 23.13 | O67: 0 | P67: 9.752193092 | Q67: 11.25892815 | R67: 0.0717112774 | S67: 0.717112774 | T67: 0.3122023226 | U67: 4095.635734 | V67: 23.13 | W67: 0 | X67: 9.645321686 | Y67: 10.16521968 | Z67: 0.02624348928 | AA67: 0.2624348928 | AB67: 0.1202318945 | AC67: 4154.233743 | AW67: 3687780000
A68: 36 | B68: =IF(A68>$B$30,NA(),IF($A68>$A$8,"",OFFSET(InputPriceData!$B$15,$A68+$A$11,0,1,1))) -> 2021-05-12 | C68: =IF(A68>$B$30,NA(),IF($A68>$A$8,"",OFFSET(InputPriceData!$G$15,CalculationsAndCharts!$A68+$A$11,IF($C$5,8,0),1,1))) -> 3735080000 | D68: =IF(A68>$B$30,NA(),IF(A68>$A$8,"",OFFSET(InputPriceData!$C$15,CalculationsAndCharts!$A68+$A$11,IF($C$5,8,0),1,1))) -> 4130.55 | E68: =IF(A68>$B$30,NA(),IF(A68>$A$8,"",OFFSET(InputPriceData!$D$15,CalculationsAndCharts!$A68+$A$11,IF($C$5,8,0),1,1))) -> 4134.73 | F68: =IF(A68>$B$30,NA(),IF(A68>$A$8,"",OFFSET(InputPriceData!$E$15,CalculationsAndCharts!$A68+$A$11,IF($C$5,8,0),1,1))) -> 4056.88 | G68: =IF(A68>$B$30,NA(),IF(A68>$A$8,"",OFFSET(InputPriceData!$F$15,CalculationsAndCharts!$A68+$A$11,IF($C$5,8,0),1,1))) -> 4063.04 | H68: =IF($A68>$B$30,NA(),IF($A68>$A$8,"",OFFSET(InputIndexData!$B$15,$A68+$A$11,0,1,1))) -> 2021-05-12 | I68: =IF($A68>$B$30,NA(),IF($A68>$A$8,"",OFFSET(InputIndexData!$G$15,CalculationsAndCharts!$A68+$A$11,IF($C$5,8,0),1,1))) -> 0 | J68: =IF($A68>$B$30,NA(),IF($A68>$A$8,"",OFFSET(InputIndexData!$C$15,CalculationsAndCharts!$A68+$A$11,IF($C$5,8,0),1,1))) -> 22.42 | K68: =IF($A68>$B$30,NA(),IF($A68>$A$8,"",OFFSET(InputIndexData!$D$15,CalculationsAndCharts!$A68+$A$11,IF($C$5,8,0),1,1))) -> 28.38 | L68: =IF($A68>$B$30,NA(),IF($A68>$A$8,"",OFFSET(InputIndexData!$E$15,CalculationsAndCharts!$A68+$A$11,IF($C$5,8,0),1,1))) -> 21.66 | M68: =IF($A68>$B$30,NA(),IF($A68>$A$8,"",OFFSET(InputIndexData!$F$15,CalculationsAndCharts!$A68+$A$11,IF($C$5,8,0),1,1))) -> 27.59 | N68: 0 | O68: 27.59 | P68: 6.779347112 | Q68: 13.76091219 | R68: 0.3398964723 | S68: 3.398964723 | T68: 0.7998117678 | U68: 4087.980775 | V68: 0 | W68: 27.59 | X68: 8.225881863 | Y68: 11.2352428 | Z68: 0.1546344029 | AA68: 1.546344029 | AB68: 0.2425089551 | AC68: 4159.937208 | AX68: 3735080000
A69: 37 | B69: =IF(A69>$B$30,NA(),IF($A69>$A$8,"",OFFSET(InputPriceData!$B$15,$A69+$A$11,0,1,1))) -> 2021-05-11 | C69: =IF(A69>$B$30,NA(),IF($A69>$A$8,"",OFFSET(InputPriceData!$G$15,CalculationsAndCharts!$A69+$A$11,IF($C$5,8,0),1,1))) -> 3593110000 | D69: =IF(A69>$B$30,NA(),IF(A69>$A$8,"",OFFSET(InputPriceData!$C$15,CalculationsAndCharts!$A69+$A$11,IF($C$5,8,0),1,1))) -> 4150.34 | E69: =IF(A69>$B$30,NA(),IF(A69>$A$8,"",OFFSET(InputPriceData!$D$15,CalculationsAndCharts!$A69+$A$11,IF($C$5,8,0),1,1))) -> 4162.04 | F69: =IF(A69>$B$30,NA(),IF(A69>$A$8,"",OFFSET(InputPriceData!$E$15,CalculationsAndCharts!$A69+$A$11,IF($C$5,8,0),1,1))) -> 4111.53 | G69: =IF(A69>$B$30,NA(),IF(A69>$A$8,"",OFFSET(InputPriceData!$F$15,CalculationsAndCharts!$A69+$A$11,IF($C$5,8,0),1,1))) -> 4152.1 | H69: =IF($A69>$B$30,NA(),IF($A69>$A$8,"",OFFSET(InputIndexData!$B$15,$A69+$A$11,0,1,1))) -> 2021-05-11 | I69: =IF($A69>$B$30,NA(),IF($A69>$A$8,"",OFFSET(InputIndexData!$G$15,CalculationsAndCharts!$A69+$A$11,IF($C$5,8,0),1,1))) -> 0 | J69: =IF($A69>$B$30,NA(),IF($A69>$A$8,"",OFFSET(InputIndexData!$C$15,CalculationsAndCharts!$A69+$A$11,IF($C$5,8,0),1,1))) -> 21.17 | K69: =IF($A69>$B$30,NA(),IF($A69>$A$8,"",OFFSET(InputIndexData!$D$15,CalculationsAndCharts!$A69+$A$11,IF($C$5,8,0),1,1))) -> 23.73 | L69: =IF($A69>$B$30,NA(),IF($A69>$A$8,"",OFFSET(InputIndexData!$E$15,CalculationsAndCharts!$A69+$A$11,IF($C$5,8,0),1,1))) -> 20.71 | M69: =IF($A69>$B$30,NA(),IF($A69>$A$8,"",OFFSET(InputIndexData!$F$15,CalculationsAndCharts!$A69+$A$11,IF($C$5,8,0),1,1))) -> 21.84 | N69: 0 | O69: 21.84 | P69: 8.285868693 | Q69: 10.68778156 | R69: 0.1265919615 | S69: 1.265919615 | T69: 0.4119853846 | U69: 4187.626617 | V69: 0 | W69: 21.84 | X69: 9.091764165 | Y69: 9.513689413 | Z69: 0.02267749182 | AA69: 0.2267749182 | AB69: 0.1168357065 | AC69: 4190.958618 | AW69: 3593110000
A70: 38 | B70: =IF(A70>$B$30,NA(),IF($A70>$A$8,"",OFFSET(InputPriceData!$B$15,$A70+$A$11,0,1,1))) -> 2021-05-10 | C70: =IF(A70>$B$30,NA(),IF($A70>$A$8,"",OFFSET(InputPriceData!$G$15,CalculationsAndCharts!$A70+$A$11,IF($C$5,8,0),1,1))) -> 3678970000 | D70: =IF(A70>$B$30,NA(),IF(A70>$A$8,"",OFFSET(InputPriceData!$C$15,CalculationsAndCharts!$A70+$A$11,IF($C$5,8,0),1,1))) -> 4228.29 | E70: =IF(A70>$B$30,NA(),IF(A70>$A$8,"",OFFSET(InputPriceData!$D$15,CalculationsAndCharts!$A70+$A$11,IF($C$5,8,0),1,1))) -> 4236.39 | F70: =IF(A70>$B$30,NA(),IF(A70>$A$8,"",OFFSET(InputPriceData!$E$15,CalculationsAndCharts!$A70+$A$11,IF($C$5,8,0),1,1))) -> 4188.13 | G70: =IF(A70>$B$30,NA(),IF(A70>$A$8,"",OFFSET(InputPriceData!$F$15,CalculationsAndCharts!$A70+$A$11,IF($C$5,8,0),1,1))) -> 4188.43 | H70: =IF($A70>$B$30,NA(),IF($A70>$A$8,"",OFFSET(InputIndexData!$B$15,$A70+$A$11,0,1,1))) -> 2021-05-10 | I70: =IF($A70>$B$30,NA(),IF($A70>$A$8,"",OFFSET(InputIndexData!$G$15,CalculationsAndCharts!$A70+$A$11,IF($C$5,8,0),1,1))) -> 0 | J70: =IF($A70>$B$30,NA(),IF($A70>$A$8,"",OFFSET(InputIndexData!$C$15,CalculationsAndCharts!$A70+$A$11,IF($C$5,8,0),1,1))) -> 17.34 | K70: =IF($A70>$B$30,NA(),IF($A70>$A$8,"",OFFSET(InputIndexData!$D$15,CalculationsAndCharts!$A70+$A$11,IF($C$5,8,0),1,1))) -> 19.75 | L70: =IF($A70>$B$30,NA(),IF($A70>$A$8,"",OFFSET(InputIndexData!$E$15,CalculationsAndCharts!$A70+$A$11,IF($C$5,8,0),1,1))) -> 17.07 | M70: =IF($A70>$B$30,NA(),IF($A70>$A$8,"",OFFSET(InputIndexData!$F$15,CalculationsAndCharts!$A70+$A$11,IF($C$5,8,0),1,1))) -> 19.66 | N70: 0 | O70: 19.66 | P70: 10.12717285 | Q70: 8.209510798 | R70: 0.1045805796 | S70: 1.045805796 | T70: 0.3719646901 | U70: 4212.517915 | V70: 0 | W70: 19.66 | X70: 10.04879197 | Y70: 8.216183035 | Z70: 0.1003345437 | AA70: 1.003345437 | AB70: 0.1907948035 | AC70: 4196.099309 | AX70: 3678970000
A71: 39 | B71: =IF(A71>$B$30,NA(),IF($A71>$A$8,"",OFFSET(InputPriceData!$B$15,$A71+$A$11,0,1,1))) -> 2021-05-07 | C71: =IF(A71>$B$30,NA(),IF($A71>$A$8,"",OFFSET(InputPriceData!$G$15,CalculationsAndCharts!$A71+$A$11,IF($C$5,8,0),1,1))) -> 4013060000 | D71: =IF(A71>$B$30,NA(),IF(A71>$A$8,"",OFFSET(InputPriceData!$C$15,CalculationsAndCharts!$A71+$A$11,IF($C$5,8,0),1,1))) -> 4210.34 | E71: =IF(A71>$B$30,NA(),IF(A71>$A$8,"",OFFSET(InputPriceData!$D$15,CalculationsAndCharts!$A71+$A$11,IF($C$5,8,0),1,1))) -> 4238.04 | F71: =IF(A71>$B$30,NA(),IF(A71>$A$8,"",OFFSET(InputPriceData!$E$15,CalculationsAndCharts!$A71+$A$11,IF($C$5,8,0),1,1))) -> 4201.64 | G71: =IF(A71>$B$30,NA(),IF(A71>$A$8,"",OFFSET(InputPriceData!$F$15,CalculationsAndCharts!$A71+$A$11,IF($C$5,8,0),1,1))) -> 4232.6 | H71: =IF($A71>$B$30,NA(),IF($A71>$A$8,"",OFFSET(InputIndexData!$B$15,$A71+$A$11,0,1,1))) -> 2021-05-07 | I71: =IF($A71>$B$30,NA(),IF($A71>$A$8,"",OFFSET(InputIndexData!$G$15,CalculationsAndCharts!$A71+$A$11,IF($C$5,8,0),1,1))) -> 0 | J71: =IF($A71>$B$30,NA(),IF($A71>$A$8,"",OFFSET(InputIndexData!$C$15,CalculationsAndCharts!$A71+$A$11,IF($C$5,8,0),1,1))) -> 18.45 | K71: =IF($A71>$B$30,NA(),IF($A71>$A$8,"",OFFSET(InputIndexData!$D$15,CalculationsAndCharts!$A71+$A$11,IF($C$5,8,0),1,1))) -> 18.57 | L71: =IF($A71>$B$30,NA(),IF($A71>$A$8,"",OFFSET(InputIndexData!$E$15,CalculationsAndCharts!$A71+$A$11,IF($C$5,8,0),1,1))) -> 16.68 | M71: =IF($A71>$B$30,NA(),IF($A71>$A$8,"",OFFSET(InputIndexData!$F$15,CalculationsAndCharts!$A71+$A$11,IF($C$5,8,0),1,1))) -> 16.69 | N71: 16.69 | O71: 0 | P71: 12.3776557 | Q71: 5.664957642 | R71: 0.372046677 | S71: 3.72046677 | T71: 0.8582666854 | U71: 4226.784396 | V71: 16.69 | W71: 0 | X71: 11.10655955 | Y71: 7.011570723 | Z71: 0.2260159577 | AA71: 2.260159577 | AB71: 0.3104913882 | AC71: 4197.907582 | AW71: 4013060000
A72: 40 | B72: =IF(A72>$B$30,NA(),IF($A72>$A$8,"",OFFSET(InputPriceData!$B$15,$A72+$A$11,0,1,1))) -> 2021-05-06 | C72: =IF(A72>$B$30,NA(),IF($A72>$A$8,"",OFFSET(InputPriceData!$G$15,CalculationsAndCharts!$A72+$A$11,IF($C$5,8,0),1,1))) -> 4504860000 | D72: =IF(A72>$B$30,NA(),IF(A72>$A$8,"",OFFSET(InputPriceData!$C$15,CalculationsAndCharts!$A72+$A$11,IF($C$5,8,0),1,1))) -> 4169.14 | E72: =IF(A72>$B$30,NA(),IF(A72>$A$8,"",OFFSET(InputPriceData!$D$15,CalculationsAndCharts!$A72+$A$11,IF($C$5,8,0),1,1))) -> 4202.7 | F72: =IF(A72>$B$30,NA(),IF(A72>$A$8,"",OFFSET(InputPriceData!$E$15,CalculationsAndCharts!$A72+$A$11,IF($C$5,8,0),1,1))) -> 4147.33 | G72: =IF(A72>$B$30,NA(),IF(A72>$A$8,"",OFFSET(InputPriceData!$F$15,CalculationsAndCharts!$A72+$A$11,IF($C$5,8,0),1,1))) -> 4201.62 | H72: =IF($A72>$B$30,NA(),IF($A72>$A$8,"",OFFSET(InputIndexData!$B$15,$A72+$A$11,0,1,1))) -> 2021-05-06 | I72: =IF($A72>$B$30,NA(),IF($A72>$A$8,"",OFFSET(InputIndexData!$G$15,CalculationsAndCharts!$A72+$A$11,IF($C$5,8,0),1,1))) -> 0 | J72: =IF($A72>$B$30,NA(),IF($A72>$A$8,"",OFFSET(InputIndexData!$C$15,CalculationsAndCharts!$A72+$A$11,IF($C$5,8,0),1,1))) -> 18.41 | K72: =IF($A72>$B$30,NA(),IF($A72>$A$8,"",OFFSET(InputIndexData!$D$15,CalculationsAndCharts!$A72+$A$11,IF($C$5,8,0),1,1))) -> 20.6 | L72: =IF($A72>$B$30,NA(),IF($A72>$A$8,"",OFFSET(InputIndexData!$E$15,CalculationsAndCharts!$A72+$A$11,IF($C$5,8,0),1,1))) -> 18.21 | M72: =IF($A72>$B$30,NA(),IF($A72>$A$8,"",OFFSET(InputIndexData!$F$15,CalculationsAndCharts!$A72+$A$11,IF($C$5,8,0),1,1))) -> 18.39 | N72: 18.39 | O72: 0 | P72: 11.41935697 | Q72: 6.923837119 | R72: 0.2450782224 | S72: 2.450782224 | T72: 0.6274149498 | U72: 4191.567984 | V72: 18.39 | W72: 0 | X72: 10.51882897 | Y72: 7.749630799 | Z72: 0.1515834774 | AA72: 1.515834774 | AB72: 0.2396033118 | AC72: 4182.285302 | AW72: 4504860000
A73: 41 | B73: =IF(A73>$B$30,NA(),IF($A73>$A$8,"",OFFSET(InputPriceData!$B$15,$A73+$A$11,0,1,1))) -> 2021-05-05 | C73: =IF(A73>$B$30,NA(),IF($A73>$A$8,"",OFFSET(InputPriceData!$G$15,CalculationsAndCharts!$A73+$A$11,IF($C$5,8,0),1,1))) -> 4029050000 | D73: =IF(A73>$B$30,NA(),IF(A73>$A$8,"",OFFSET(InputPriceData!$C$15,CalculationsAndCharts!$A73+$A$11,IF($C$5,8,0),1,1))) -> 4177.06 | E73: =IF(A73>$B$30,NA(),IF(A73>$A$8,"",OFFSET(InputPriceData!$D$15,CalculationsAndCharts!$A73+$A$11,IF($C$5,8,0),1,1))) -> 4187.72 | F73: =IF(A73>$B$30,NA(),IF(A73>$A$8,"",OFFSET(InputPriceData!$E$15,CalculationsAndCharts!$A73+$A$11,IF($C$5,8,0),1,1))) -> 4160.94 | G73: =IF(A73>$B$30,NA(),IF(A73>$A$8,"",OFFSET(InputPriceData!$F$15,CalculationsAndCharts!$A73+$A$11,IF($C$5,8,0),1,1))) -> 4167.59 | H73: =IF($A73>$B$30,NA(),IF($A73>$A$8,"",OFFSET(InputIndexData!$B$15,$A73+$A$11,0,1,1))) -> 2021-05-05 | I73: =IF($A73>$B$30,NA(),IF($A73>$A$8,"",OFFSET(InputIndexData!$G$15,CalculationsAndCharts!$A73+$A$11,IF($C$5,8,0),1,1))) -> 0 | J73: =IF($A73>$B$30,NA(),IF($A73>$A$8,"",OFFSET(InputIndexData!$C$15,CalculationsAndCharts!$A73+$A$11,IF($C$5,8,0),1,1))) -> 18.84 | K73: =IF($A73>$B$30,NA(),IF($A73>$A$8,"",OFFSET(InputIndexData!$D$15,CalculationsAndCharts!$A73+$A$11,IF($C$5,8,0),1,1))) -> 19.58 | L73: =IF($A73>$B$30,NA(),IF($A73>$A$8,"",OFFSET(InputIndexData!$E$15,CalculationsAndCharts!$A73+$A$11,IF($C$5,8,0),1,1))) -> 17.89 | M73: =IF($A73>$B$30,NA(),IF($A73>$A$8,"",OFFSET(InputIndexData!$F$15,CalculationsAndCharts!$A73+$A$11,IF($C$5,8,0),1,1))) -> 19.15 | N73: 19.15 | O73: 0 | P73: 9.870325184 | Q73: 8.462467589 | R73: 0.07679445485 | S73: 0.7679445485 | T73: 0.3214444634 | U73: 4174.640883 | V73: 19.15 | W73: 0 | X73: 9.690284655 | Y73: 8.56538141 | Z73: 0.06161936929 | AA73: 0.6161936929 | AB73: 0.1539232089 | AC73: 4176.192879 | AX73: 4029050000
A74: 42 | B74: =IF(A74>$B$30,NA(),IF($A74>$A$8,"",OFFSET(InputPriceData!$B$15,$A74+$A$11,0,1,1))) -> 2021-05-04 | C74: =IF(A74>$B$30,NA(),IF($A74>$A$8,"",OFFSET(InputPriceData!$G$15,CalculationsAndCharts!$A74+$A$11,IF($C$5,8,0),1,1))) -> 4441080000 | D74: =IF(A74>$B$30,NA(),IF(A74>$A$8,"",OFFSET(InputPriceData!$C$15,CalculationsAndCharts!$A74+$A$11,IF($C$5,8,0),1,1))) -> 4179.04 | E74: =IF(A74>$B$30,NA(),IF(A74>$A$8,"",OFFSET(InputPriceData!$D$15,CalculationsAndCharts!$A74+$A$11,IF($C$5,8,0),1,1))) -> 4179.04 | F74: =IF(A74>$B$30,NA(),IF(A74>$A$8,"",OFFSET(InputPriceData!$E$15,CalculationsAndCharts!$A74+$A$11,IF($C$5,8,0),1,1))) -> 4128.59 | G74: =IF(A74>$B$30,NA(),IF(A74>$A$8,"",OFFSET(InputPriceData!$F$15,CalculationsAndCharts!$A74+$A$11,IF($C$5,8,0),1,1))) -> 4164.66 | H74: =IF($A74>$B$30,NA(),IF($A74>$A$8,"",OFFSET(InputIndexData!$B$15,$A74+$A$11,0,1,1))) -> 2021-05-04 | I74: =IF($A74>$B$30,NA(),IF($A74>$A$8,"",OFFSET(InputIndexData!$G$15,CalculationsAndCharts!$A74+$A$11,IF($C$5,8,0),1,1))) -> 0 | J74: =IF($A74>$B$30,NA(),IF($A74>$A$8,"",OFFSET(InputIndexData!$C$15,CalculationsAndCharts!$A74+$A$11,IF($C$5,8,0),1,1))) -> 18.16 | K74: =IF($A74>$B$30,NA(),IF($A74>$A$8,"",OFFSET(InputIndexData!$D$15,CalculationsAndCharts!$A74+$A$11,IF($C$5,8,0),1,1))) -> 21.85 | L74: =IF($A74>$B$30,NA(),IF($A74>$A$8,"",OFFSET(InputIndexData!$E$15,CalculationsAndCharts!$A74+$A$11,IF($C$5,8,0),1,1))) -> 18.11 | M74: =IF($A74>$B$30,NA(),IF($A74>$A$8,"",OFFSET(InputIndexData!$F$15,CalculationsAndCharts!$A74+$A$11,IF($C$5,8,0),1,1))) -> 19.48 | N74: 0 | O74: 19.48 | P74: 7.808175225 | Q74: 10.34301594 | R74: 0.1396514034 | S74: 1.396514034 | T74: 0.4357298244 | U74: 4177.981018 | V74: 0 | W74: 19.48 | X74: 8.694525145 | Y74: 9.467000506 | Z74: 0.04253359272 | AA74: 0.4253359272 | AB74: 0.1357462788 | AC74: 4177.757965 | AX74: 4441080000
A75: 43 | B75: =IF(A75>$B$30,NA(),IF($A75>$A$8,"",OFFSET(InputPriceData!$B$15,$A75+$A$11,0,1,1))) -> 2021-05-03 | C75: =IF(A75>$B$30,NA(),IF($A75>$A$8,"",OFFSET(InputPriceData!$G$15,CalculationsAndCharts!$A75+$A$11,IF($C$5,8,0),1,1))) -> 4061170000 | D75: =IF(A75>$B$30,NA(),IF(A75>$A$8,"",OFFSET(InputPriceData!$C$15,CalculationsAndCharts!$A75+$A$11,IF($C$5,8,0),1,1))) -> 4191.98 | E75: =IF(A75>$B$30,NA(),IF(A75>$A$8,"",OFFSET(InputPriceData!$D$15,CalculationsAndCharts!$A75+$A$11,IF($C$5,8,0),1,1))) -> 4209.39 | F75: =IF(A75>$B$30,NA(),IF(A75>$A$8,"",OFFSET(InputPriceData!$E$15,CalculationsAndCharts!$A75+$A$11,IF($C$5,8,0),1,1))) -> 4188.03 | G75: =IF(A75>$B$30,NA(),IF(A75>$A$8,"",OFFSET(InputPriceData!$F$15,CalculationsAndCharts!$A75+$A$11,IF($C$5,8,0),1,1))) -> 4192.66 | H75: =IF($A75>$B$30,NA(),IF($A75>$A$8,"",OFFSET(InputIndexData!$B$15,$A75+$A$11,0,1,1))) -> 2021-05-03 | I75: =IF($A75>$B$30,NA(),IF($A75>$A$8,"",OFFSET(InputIndexData!$G$15,CalculationsAndCharts!$A75+$A$11,IF($C$5,8,0),1,1))) -> 0 | J75: =IF($A75>$B$30,NA(),IF($A75>$A$8,"",OFFSET(InputIndexData!$C$15,CalculationsAndCharts!$A75+$A$11,IF($C$5,8,0),1,1))) -> 18.65 | K75: =IF($A75>$B$30,NA(),IF($A75>$A$8,"",OFFSET(InputIndexData!$D$15,CalculationsAndCharts!$A75+$A$11,IF($C$5,8,0),1,1))) -> 19.12 | L75: =IF($A75>$B$30,NA(),IF($A75>$A$8,"",OFFSET(InputIndexData!$E$15,CalculationsAndCharts!$A75+$A$11,IF($C$5,8,0),1,1))) -> 17.8 | M75: =IF($A75>$B$30,NA(),IF($A75>$A$8,"",OFFSET(InputIndexData!$F$15,CalculationsAndCharts!$A75+$A$11,IF($C$5,8,0),1,1))) -> 18.31 | N75: 18.31 | O75: 0 | P75: 9.543325275 | Q75: 8.312575041 | R75: 0.06892677061 | S75: 0.6892677061 | T75: 0.3071395829 | U75: 4188.267518 | V75: 18.31 | W75: 0 | X75: 9.609738318 | Y75: 8.413000559 | Z75: 0.06640151108 | AA75: 0.6640151108 | AB75: 0.1584776296 | AC75: 4179.815232 | AW75: 4061170000
A76: 44 | B76: =IF(A76>$B$30,NA(),IF($A76>$A$8,"",OFFSET(InputPriceData!$B$15,$A76+$A$11,0,1,1))) -> 2021-04-30 | C76: =IF(A76>$B$30,NA(),IF($A76>$A$8,"",OFFSET(InputPriceData!$G$15,CalculationsAndCharts!$A76+$A$11,IF($C$5,8,0),1,1))) -> 4273680000 | D76: =IF(A76>$B$30,NA(),IF(A76>$A$8,"",OFFSET(InputPriceData!$C$15,CalculationsAndCharts!$A76+$A$11,IF($C$5,8,0),1,1))) -> 4198.1 | E76: =IF(A76>$B$30,NA(),IF(A76>$A$8,"",OFFSET(InputPriceData!$D$15,CalculationsAndCharts!$A76+$A$11,IF($C$5,8,0),1,1))) -> 4198.1 | F76: =IF(A76>$B$30,NA(),IF(A76>$A$8,"",OFFSET(InputPriceData!$E$15,CalculationsAndCharts!$A76+$A$11,IF($C$5,8,0),1,1))) -> 4174.85 | G76: =IF(A76>$B$30,NA(),IF(A76>$A$8,"",OFFSET(InputPriceData!$F$15,CalculationsAndCharts!$A76+$A$11,IF($C$5,8,0),1,1))) -> 4181.17 | H76: =IF($A76>$B$30,NA(),IF($A76>$A$8,"",OFFSET(InputIndexData!$B$15,$A76+$A$11,0,1,1))) -> 2021-04-30 | I76: =IF($A76>$B$30,NA(),IF($A76>$A$8,"",OFFSET(InputIndexData!$G$15,CalculationsAndCharts!$A76+$A$11,IF($C$5,8,0),1,1))) -> 0 | J76: =IF($A76>$B$30,NA(),IF($A76>$A$8,"",OFFSET(InputIndexData!$C$15,CalculationsAndCharts!$A76+$A$11,IF($C$5,8,0),1,1))) -> 17.67 | K76: =IF($A76>$B$30,NA(),IF($A76>$A$8,"",OFFSET(InputIndexData!$D$15,CalculationsAndCharts!$A76+$A$11,IF($C$5,8,0),1,1))) -> 19.25 | L76: =IF($A76>$B$30,NA(),IF($A76>$A$8,"",OFFSET(InputIndexData!$E$15,CalculationsAndCharts!$A76+$A$11,IF($C$5,8,0),1,1))) -> 17.64 | M76: =IF($A76>$B$30,NA(),IF($A76>$A$8,"",OFFSET(InputIndexData!$F$15,CalculationsAndCharts!$A76+$A$11,IF($C$5,8,0),1,1))) -> 18.61 | N76: 0 | O76: 18.61 | P76: 7.595175336 | Q76: 10.15981394 | R76: 0.1444459987 | S76: 1.444459987 | T76: 0.4444472704 | U76: 4186.320365 | V76: 0 | W76: 18.61 | X76: 8.693921299 | Y76: 9.298579565 | Z76: 0.03360610815 | AA76: 0.3360610815 | AB76: 0.1272439125 | AC76: 4177.396272 | AX76: 4273680000
A77: 45 | B77: =IF(A77>$B$30,NA(),IF($A77>$A$8,"",OFFSET(InputPriceData!$B$15,$A77+$A$11,0,1,1))) -> 2021-04-29 | C77: =IF(A77>$B$30,NA(),IF($A77>$A$8,"",OFFSET(InputPriceData!$G$15,CalculationsAndCharts!$A77+$A$11,IF($C$5,8,0),1,1))) -> 4288940000 | D77: =IF(A77>$B$30,NA(),IF(A77>$A$8,"",OFFSET(InputPriceData!$C$15,CalculationsAndCharts!$A77+$A$11,IF($C$5,8,0),1,1))) -> 4206.14 | E77: =IF(A77>$B$30,NA(),IF(A77>$A$8,"",OFFSET(InputPriceData!$D$15,CalculationsAndCharts!$A77+$A$11,IF($C$5,8,0),1,1))) -> 4218.78 | F77: =IF(A77>$B$30,NA(),IF(A77>$A$8,"",OFFSET(InputPriceData!$E$15,CalculationsAndCharts!$A77+$A$11,IF($C$5,8,0),1,1))) -> 4176.81 | G77: =IF(A77>$B$30,NA(),IF(A77>$A$8,"",OFFSET(InputPriceData!$F$15,CalculationsAndCharts!$A77+$A$11,IF($C$5,8,0),1,1))) -> 4211.47 | H77: =IF($A77>$B$30,NA(),IF($A77>$A$8,"",OFFSET(InputIndexData!$B$15,$A77+$A$11,0,1,1))) -> 2021-04-29 | I77: =IF($A77>$B$30,NA(),IF($A77>$A$8,"",OFFSET(InputIndexData!$G$15,CalculationsAndCharts!$A77+$A$11,IF($C$5,8,0),1,1))) -> 0 | J77: =IF($A77>$B$30,NA(),IF($A77>$A$8,"",OFFSET(InputIndexData!$C$15,CalculationsAndCharts!$A77+$A$11,IF($C$5,8,0),1,1))) -> 16.88 | K77: =IF($A77>$B$30,NA(),IF($A77>$A$8,"",OFFSET(InputIndexData!$D$15,CalculationsAndCharts!$A77+$A$11,IF($C$5,8,0),1,1))) -> 18.87 | L77: =IF($A77>$B$30,NA(),IF($A77>$A$8,"",OFFSET(InputIndexData!$E$15,CalculationsAndCharts!$A77+$A$11,IF($C$5,8,0),1,1))) -> 16.77 | M77: =IF($A77>$B$30,NA(),IF($A77>$A$8,"",OFFSET(InputIndexData!$F$15,CalculationsAndCharts!$A77+$A$11,IF($C$5,8,0),1,1))) -> 17.61 | N77: 17.61 | O77: 0 | P77: 9.282992078 | Q77: 8.281994814 | R77: 0.05698818337 | S77: 0.5698818337 | T77: 0.2854330607 | U77: 4190.440703 | V77: 17.61 | W77: 0 | X77: 9.60907091 | Y77: 8.318430046 | Z77: 0.07199219496 | AA77: 0.7199219496 | AB77: 0.1638020904 | AC77: 4176.84608 | AW77: 4288940000
A78: 46 | B78: =IF(A78>$B$30,NA(),IF($A78>$A$8,"",OFFSET(InputPriceData!$B$15,$A78+$A$11,0,1,1))) -> 2021-04-28 | C78: =IF(A78>$B$30,NA(),IF($A78>$A$8,"",OFFSET(InputPriceData!$G$15,CalculationsAndCharts!$A78+$A$11,IF($C$5,8,0),1,1))) -> 3772390000 | D78: =IF(A78>$B$30,NA(),IF(A78>$A$8,"",OFFSET(InputPriceData!$C$15,CalculationsAndCharts!$A78+$A$11,IF($C$5,8,0),1,1))) -> 4185.14 | E78: =IF(A78>$B$30,NA(),IF(A78>$A$8,"",OFFSET(InputPriceData!$D$15,CalculationsAndCharts!$A78+$A$11,IF($C$5,8,0),1,1))) -> 4201.53 | F78: =IF(A78>$B$30,NA(),IF(A78>$A$8,"",OFFSET(InputPriceData!$E$15,CalculationsAndCharts!$A78+$A$11,IF($C$5,8,0),1,1))) -> 4181.78 | G78: =IF(A78>$B$30,NA(),IF(A78>$A$8,"",OFFSET(InputPriceData!$F$15,CalculationsAndCharts!$A78+$A$11,IF($C$5,8,0),1,1))) -> 4183.18 | H78: =IF($A78>$B$30,NA(),IF($A78>$A$8,"",OFFSET(InputIndexData!$B$15,$A78+$A$11,0,1,1))) -> 2021-04-28 | I78: =IF($A78>$B$30,NA(),IF($A78>$A$8,"",OFFSET(InputIndexData!$G$15,CalculationsAndCharts!$A78+$A$11,IF($C$5,8,0),1,1))) -> 0 | J78: =IF($A78>$B$30,NA(),IF($A78>$A$8,"",OFFSET(InputIndexData!$C$15,CalculationsAndCharts!$A78+$A$11,IF($C$5,8,0),1,1))) -> 17.47 | K78: =IF($A78>$B$30,NA(),IF($A78>$A$8,"",OFFSET(InputIndexData!$D$15,CalculationsAndCharts!$A78+$A$11,IF($C$5,8,0),1,1))) -> 17.84 | L78: =IF($A78>$B$30,NA(),IF($A78>$A$8,"",OFFSET(InputIndexData!$E$15,CalculationsAndCharts!$A78+$A$11,IF($C$5,8,0),1,1))) -> 16.67 | M78: =IF($A78>$B$30,NA(),IF($A78>$A$8,"",OFFSET(InputIndexData!$F$15,CalculationsAndCharts!$A78+$A$11,IF($C$5,8,0),1,1))) -> 17.28 | N78: 0 | O78: 17.28 | P78: 7.432545873 | Q78: 10.12243811 | R78: 0.153226611 | S78: 1.53226611 | T78: 0.46041202 | U78: 4182.040572 | V78: 0 | W78: 17.28 | X78: 8.766867847 | Y78: 9.194054261 | Z78: 0.02378420068 | AA78: 0.2378420068 | AB78: 0.1178897149 | AC78: 4170.06363 | AX78: 3772390000
A79: 47 | B79: =IF(A79>$B$30,NA(),IF($A79>$A$8,"",OFFSET(InputPriceData!$B$15,$A79+$A$11,0,1,1))) -> 2021-04-27 | C79: =IF(A79>$B$30,NA(),IF($A79>$A$8,"",OFFSET(InputPriceData!$G$15,CalculationsAndCharts!$A79+$A$11,IF($C$5,8,0),1,1))) -> 3703240000 | D79: =IF(A79>$B$30,NA(),IF(A79>$A$8,"",OFFSET(InputPriceData!$C$15,CalculationsAndCharts!$A79+$A$11,IF($C$5,8,0),1,1))) -> 4188.25 | E79: =IF(A79>$B$30,NA(),IF(A79>$A$8,"",OFFSET(InputPriceData!$D$15,CalculationsAndCharts!$A79+$A$11,IF($C$5,8,0),1,1))) -> 4193.35 | F79: =IF(A79>$B$30,NA(),IF(A79>$A$8,"",OFFSET(InputPriceData!$E$15,CalculationsAndCharts!$A79+$A$11,IF($C$5,8,0),1,1))) -> 4176.22 | G79: =IF(A79>$B$30,NA(),IF(A79>$A$8,"",OFFSET(InputPriceData!$F$15,CalculationsAndCharts!$A79+$A$11,IF($C$5,8,0),1,1))) -> 4186.72 | H79: =IF($A79>$B$30,NA(),IF($A79>$A$8,"",OFFSET(InputIndexData!$B$15,$A79+$A$11,0,1,1))) -> 2021-04-27 | I79: =IF($A79>$B$30,NA(),IF($A79>$A$8,"",OFFSET(InputIndexData!$G$15,CalculationsAndCharts!$A79+$A$11,IF($C$5,8,0),1,1))) -> 0 | J79: =IF($A79>$B$30,NA(),IF($A79>$A$8,"",OFFSET(InputIndexData!$C$15,CalculationsAndCharts!$A79+$A$11,IF($C$5,8,0),1,1))) -> 17.62 | K79: =IF($A79>$B$30,NA(),IF($A79>$A$8,"",OFFSET(InputIndexData!$D$15,CalculationsAndCharts!$A79+$A$11,IF($C$5,8,0),1,1))) -> 18.16 | L79: =IF($A79>$B$30,NA(),IF($A79>$A$8,"",OFFSET(InputIndexData!$E$15,CalculationsAndCharts!$A79+$A$11,IF($C$5,8,0),1,1))) -> 16.97 | M79: =IF($A79>$B$30,NA(),IF($A79>$A$8,"",OFFSET(InputIndexData!$F$15,CalculationsAndCharts!$A79+$A$11,IF($C$5,8,0),1,1))) -> 17.56 | N79: 0 | O79: 17.56 | P79: 9.084222734 | Q79: 8.531868796 | R79: 0.03135506095 | S79: 0.3135506095 | T79: 0.2388273835 | U79: 4181.068336 | V79: 0 | W79: 17.56 | X79: 9.689696042 | Y79: 8.342902078 | Z79: 0.07468658748 | AA79: 0.7468658748 | AB79: 0.1663681786 | AC79: 4168.310691 | AX79: 3703240000
A80: 48 | B80: =IF(A80>$B$30,NA(),IF($A80>$A$8,"",OFFSET(InputPriceData!$B$15,$A80+$A$11,0,1,1))) -> 2021-04-26 | C80: =IF(A80>$B$30,NA(),IF($A80>$A$8,"",OFFSET(InputPriceData!$G$15,CalculationsAndCharts!$A80+$A$11,IF($C$5,8,0),1,1))) -> 3738920000 | D80: =IF(A80>$B$30,NA(),IF(A80>$A$8,"",OFFSET(InputPriceData!$C$15,CalculationsAndCharts!$A80+$A$11,IF($C$5,8,0),1,1))) -> 4185.03 | E80: =IF(A80>$B$30,NA(),IF(A80>$A$8,"",OFFSET(InputPriceData!$D$15,CalculationsAndCharts!$A80+$A$11,IF($C$5,8,0),1,1))) -> 4194.19 | F80: =IF(A80>$B$30,NA(),IF(A80>$A$8,"",OFFSET(InputPriceData!$E$15,CalculationsAndCharts!$A80+$A$11,IF($C$5,8,0),1,1))) -> 4182.36 | G80: =IF(A80>$B$30,NA(),IF(A80>$A$8,"",OFFSET(InputPriceData!$F$15,CalculationsAndCharts!$A80+$A$11,IF($C$5,8,0),1,1))) -> 4187.62 | H80: =IF($A80>$B$30,NA(),IF($A80>$A$8,"",OFFSET(InputIndexData!$B$15,$A80+$A$11,0,1,1))) -> 2021-04-26 | I80: =IF($A80>$B$30,NA(),IF($A80>$A$8,"",OFFSET(InputIndexData!$G$15,CalculationsAndCharts!$A80+$A$11,IF($C$5,8,0),1,1))) -> 0 | J80: =IF($A80>$B$30,NA(),IF($A80>$A$8,"",OFFSET(InputIndexData!$C$15,CalculationsAndCharts!$A80+$A$11,IF($C$5,8,0),1,1))) -> 17.94 | K80: =IF($A80>$B$30,NA(),IF($A80>$A$8,"",OFFSET(InputIndexData!$D$15,CalculationsAndCharts!$A80+$A$11,IF($C$5,8,0),1,1))) -> 18.17 | L80: =IF($A80>$B$30,NA(),IF($A80>$A$8,"",OFFSET(InputIndexData!$E$15,CalculationsAndCharts!$A80+$A$11,IF($C$5,8,0),1,1))) -> 16.87 | M80: =IF($A80>$B$30,NA(),IF($A80>$A$8,"",OFFSET(InputIndexData!$F$15,CalculationsAndCharts!$A80+$A$11,IF($C$5,8,0),1,1))) -> 17.64 | N80: 17.64 | O80: 0 | P80: 11.1029389 | Q80: 6.525617418 | R80: 0.2596536438 | S80: 2.596536438 | T80: 0.653915716 | U80: 4179.295057 | V80: 17.64 | W80: 0 | X80: 10.70966405 | Y80: 7.372681244 | Z80: 0.1845435923 | AA80: 1.845435923 | AB80: 0.2709938974 | AC80: 4164.636739 | AW80: 3738920000
A81: 49 | B81: =IF(A81>$B$30,NA(),IF($A81>$A$8,"",OFFSET(InputPriceData!$B$15,$A81+$A$11,0,1,1))) -> 2021-04-23 | C81: =IF(A81>$B$30,NA(),IF($A81>$A$8,"",OFFSET(InputPriceData!$G$15,CalculationsAndCharts!$A81+$A$11,IF($C$5,8,0),1,1))) -> 3568080000 | D81: =IF(A81>$B$30,NA(),IF(A81>$A$8,"",OFFSET(InputPriceData!$C$15,CalculationsAndCharts!$A81+$A$11,IF($C$5,8,0),1,1))) -> 4138.78 | E81: =IF(A81>$B$30,NA(),IF(A81>$A$8,"",OFFSET(InputPriceData!$D$15,CalculationsAndCharts!$A81+$A$11,IF($C$5,8,0),1,1))) -> 4194.17 | F81: =IF(A81>$B$30,NA(),IF(A81>$A$8,"",OFFSET(InputPriceData!$E$15,CalculationsAndCharts!$A81+$A$11,IF($C$5,8,0),1,1))) -> 4138.78 | G81: =IF(A81>$B$30,NA(),IF(A81>$A$8,"",OFFSET(InputPriceData!$F$15,CalculationsAndCharts!$A81+$A$11,IF($C$5,8,0),1,1))) -> 4180.17 | H81: =IF($A81>$B$30,NA(),IF($A81>$A$8,"",OFFSET(InputIndexData!$B$15,$A81+$A$11,0,1,1))) -> 2021-04-23 | I81: =IF($A81>$B$30,NA(),IF($A81>$A$8,"",OFFSET(InputIndexData!$G$15,CalculationsAndCharts!$A81+$A$11,IF($C$5,8,0),1,1))) -> 0 | J81: =IF($A81>$B$30,NA(),IF($A81>$A$8,"",OFFSET(InputIndexData!$C$15,CalculationsAndCharts!$A81+$A$11,IF($C$5,8,0),1,1))) -> 18.56 | K81: =IF($A81>$B$30,NA(),IF($A81>$A$8,"",OFFSET(InputIndexData!$D$15,CalculationsAndCharts!$A81+$A$11,IF($C$5,8,0),1,1))) -> 18.78 | L81: =IF($A81>$B$30,NA(),IF($A81>$A$8,"",OFFSET(InputIndexData!$E$15,CalculationsAndCharts!$A81+$A$11,IF($C$5,8,0),1,1))) -> 16.8 | M81: =IF($A81>$B$30,NA(),IF($A81>$A$8,"",OFFSET(InputIndexData!$F$15,CalculationsAndCharts!$A81+$A$11,IF($C$5,8,0),1,1))) -> 17.33 | N81: 17.33 | O81: 0 | P81: 9.650258651 | Q81: 7.975754622 | R81: 0.09500180521 | S81: 0.9500180521 | T81: 0.3545487367 | U81: 4163.565329 | V81: 17.33 | W81: 0 | X81: 9.980154999 | Y81: 8.148752954 | Z81: 0.1010210344 | AA81: 1.010210344 | AB81: 0.1914486042 | AC81: 4156.093157 | AW81: 3568080000
A82: 50 | B82: =IF(A82>$B$30,NA(),IF($A82>$A$8,"",OFFSET(InputPriceData!$B$15,$A82+$A$11,0,1,1))) -> 2021-04-22 | C82: =IF(A82>$B$30,NA(),IF($A82>$A$8,"",OFFSET(InputPriceData!$G$15,CalculationsAndCharts!$A82+$A$11,IF($C$5,8,0),1,1))) -> 4235040000 | D82: =IF(A82>$B$30,NA(),IF(A82>$A$8,"",OFFSET(InputPriceData!$C$15,CalculationsAndCharts!$A82+$A$11,IF($C$5,8,0),1,1))) -> 4170.46 | E82: =IF(A82>$B$30,NA(),IF(A82>$A$8,"",OFFSET(InputPriceData!$D$15,CalculationsAndCharts!$A82+$A$11,IF($C$5,8,0),1,1))) -> 4179.57 | F82: =IF(A82>$B$30,NA(),IF(A82>$A$8,"",OFFSET(InputPriceData!$E$15,CalculationsAndCharts!$A82+$A$11,IF($C$5,8,0),1,1))) -> 4123.69 | G82: =IF(A82>$B$30,NA(),IF(A82>$A$8,"",OFFSET(InputPriceData!$F$15,CalculationsAndCharts!$A82+$A$11,IF($C$5,8,0),1,1))) -> 4134.98 | H82: =IF($A82>$B$30,NA(),IF($A82>$A$8,"",OFFSET(InputIndexData!$B$15,$A82+$A$11,0,1,1))) -> 2021-04-22 | I82: =IF($A82>$B$30,NA(),IF($A82>$A$8,"",OFFSET(InputIndexData!$G$15,CalculationsAndCharts!$A82+$A$11,IF($C$5,8,0),1,1))) -> 0 | J82: =IF($A82>$B$30,NA(),IF($A82>$A$8,"",OFFSET(InputIndexData!$C$15,CalculationsAndCharts!$A82+$A$11,IF($C$5,8,0),1,1))) -> 17.28 | K82: =IF($A82>$B$30,NA(),IF($A82>$A$8,"",OFFSET(InputIndexData!$D$15,CalculationsAndCharts!$A82+$A$11,IF($C$5,8,0),1,1))) -> 19.9 | L82: =IF($A82>$B$30,NA(),IF($A82>$A$8,"",OFFSET(InputIndexData!$E$15,CalculationsAndCharts!$A82+$A$11,IF($C$5,8,0),1,1))) -> 16.99 | M82: =IF($A82>$B$30,NA(),IF($A82>$A$8,"",OFFSET(InputIndexData!$F$15,CalculationsAndCharts!$A82+$A$11,IF($C$5,8,0),1,1))) -> 18.71 | N82: 0 | O82: 18.71 | P82: 7.943649463 | Q82: 9.748144538 | R82: 0.1019961037 | S82: 1.019961037 | T82: 0.367265643 | U82: 4154.444323 | V82: 0 | W82: 18.71 | X82: 9.206487104 | Y82: 9.006516423 | Z82: 0.01097954935 | AA82: 0.1097954935 | AB82: 0.1056948089 | AC82: 4150.392248 | AX82: 4235040000
A83: 51 | B83: =IF(A83>$B$30,NA(),IF($A83>$A$8,"",OFFSET(InputPriceData!$B$15,$A83+$A$11,0,1,1))) -> 2021-04-21 | C83: =IF(A83>$B$30,NA(),IF($A83>$A$8,"",OFFSET(InputPriceData!$G$15,CalculationsAndCharts!$A83+$A$11,IF($C$5,8,0),1,1))) -> 3865820000 | D83: =IF(A83>$B$30,NA(),IF(A83>$A$8,"",OFFSET(InputPriceData!$C$15,CalculationsAndCharts!$A83+$A$11,IF($C$5,8,0),1,1))) -> 4128.42 | E83: =IF(A83>$B$30,NA(),IF(A83>$A$8,"",OFFSET(InputPriceData!$D$15,CalculationsAndCharts!$A83+$A$11,IF($C$5,8,0),1,1))) -> 4175.02 | F83: =IF(A83>$B$30,NA(),IF(A83>$A$8,"",OFFSET(InputPriceData!$E$15,CalculationsAndCharts!$A83+$A$11,IF($C$5,8,0),1,1))) -> 4126.35 | G83: =IF(A83>$B$30,NA(),IF(A83>$A$8,"",OFFSET(InputPriceData!$F$15,CalculationsAndCharts!$A83+$A$11,IF($C$5,8,0),1,1))) -> 4173.42 | H83: =IF($A83>$B$30,NA(),IF($A83>$A$8,"",OFFSET(InputIndexData!$B$15,$A83+$A$11,0,1,1))) -> 2021-04-21 | I83: =IF($A83>$B$30,NA(),IF($A83>$A$8,"",OFFSET(InputIndexData!$G$15,CalculationsAndCharts!$A83+$A$11,IF($C$5,8,0),1,1))) -> 0 | J83: =IF($A83>$B$30,NA(),IF($A83>$A$8,"",OFFSET(InputIndexData!$C$15,CalculationsAndCharts!$A83+$A$11,IF($C$5,8,0),1,1))) -> 18.48 | K83: =IF($A83>$B$30,NA(),IF($A83>$A$8,"",OFFSET(InputIndexData!$D$15,CalculationsAndCharts!$A83+$A$11,IF($C$5,8,0),1,1))) -> 19.29 | L83: =IF($A83>$B$30,NA(),IF($A83>$A$8,"",OFFSET(InputIndexData!$E$15,CalculationsAndCharts!$A83+$A$11,IF($C$5,8,0),1,1))) -> 16.91 | M83: =IF($A83>$B$30,NA(),IF($A83>$A$8,"",OFFSET(InputIndexData!$F$15,CalculationsAndCharts!$A83+$A$11,IF($C$5,8,0),1,1))) -> 17.5 | N83: 17.5 | O83: 0 | P83: 9.708904899 | Q83: 7.756621102 | R83: 0.1117792089 | S83: 1.117792089 | T83: 0.3850531071 | U83: 4165.742235 | V83: 17.5 | W83: 0 | X83: 10.17559101 | Y83: 7.985097099 | Z83: 0.1206172746 | AA83: 1.206172746 | AB83: 0.2101116901 | AC83: 4152.213768 | AW83: 3865820000
A84: 52 | B84: =IF(A84>$B$30,NA(),IF($A84>$A$8,"",OFFSET(InputPriceData!$B$15,$A84+$A$11,0,1,1))) -> 2021-04-20 | C84: =IF(A84>$B$30,NA(),IF($A84>$A$8,"",OFFSET(InputPriceData!$G$15,CalculationsAndCharts!$A84+$A$11,IF($C$5,8,0),1,1))) -> 4338230000 | D84: =IF(A84>$B$30,NA(),IF(A84>$A$8,"",OFFSET(InputPriceData!$C$15,CalculationsAndCharts!$A84+$A$11,IF($C$5,8,0),1,1))) -> 4159.18 | E84: =IF(A84>$B$30,NA(),IF(A84>$A$8,"",OFFSET(InputPriceData!$D$15,CalculationsAndCharts!$A84+$A$11,IF($C$5,8,0),1,1))) -> 4159.18 | F84: =IF(A84>$B$30,NA(),IF(A84>$A$8,"",OFFSET(InputPriceData!$E$15,CalculationsAndCharts!$A84+$A$11,IF($C$5,8,0),1,1))) -> 4118.38 | G84: =IF(A84>$B$30,NA(),IF(A84>$A$8,"",OFFSET(InputPriceData!$F$15,CalculationsAndCharts!$A84+$A$11,IF($C$5,8,0),1,1))) -> 4134.94 | H84: =IF($A84>$B$30,NA(),IF($A84>$A$8,"",OFFSET(InputIndexData!$B$15,$A84+$A$11,0,1,1))) -> 2021-04-20 | I84: =IF($A84>$B$30,NA(),IF($A84>$A$8,"",OFFSET(InputIndexData!$G$15,CalculationsAndCharts!$A84+$A$11,IF($C$5,8,0),1,1))) -> 0 | J84: =IF($A84>$B$30,NA(),IF($A84>$A$8,"",OFFSET(InputIndexData!$C$15,CalculationsAndCharts!$A84+$A$11,IF($C$5,8,0),1,1))) -> 17.36 | K84: =IF($A84>$B$30,NA(),IF($A84>$A$8,"",OFFSET(InputIndexData!$D$15,CalculationsAndCharts!$A84+$A$11,IF($C$5,8,0),1,1))) -> 19.7 | L84: =IF($A84>$B$30,NA(),IF($A84>$A$8,"",OFFSET(InputIndexData!$E$15,CalculationsAndCharts!$A84+$A$11,IF($C$5,8,0),1,1))) -> 17.24 | M84: =IF($A84>$B$30,NA(),IF($A84>$A$8,"",OFFSET(InputIndexData!$F$15,CalculationsAndCharts!$A84+$A$11,IF($C$5,8,0),1,1))) -> 18.68 | N84: 0 | O84: 18.68 | P84: 7.977550432 | Q84: 9.48031468 | R84: 0.0860794477 | S84: 0.860794477 | T84: 0.3383262686 | U84: 4160.934751 | V84: 0 | W84: 18.68 | X84: 9.404600589 | Y84: 8.825633636 | Z84: 0.03175859557 | AA84: 0.3175859557 | AB84: 0.1254843767 | AC84: 4146.572873 | AX84: 4338230000
A85: 53 | B85: =IF(A85>$B$30,NA(),IF($A85>$A$8,"",OFFSET(InputPriceData!$B$15,$A85+$A$11,0,1,1))) -> 2021-04-19 | C85: =IF(A85>$B$30,NA(),IF($A85>$A$8,"",OFFSET(InputPriceData!$G$15,CalculationsAndCharts!$A85+$A$11,IF($C$5,8,0),1,1))) -> 3788020000 | D85: =IF(A85>$B$30,NA(),IF(A85>$A$8,"",OFFSET(InputPriceData!$C$15,CalculationsAndCharts!$A85+$A$11,IF($C$5,8,0),1,1))) -> 4179.8 | E85: =IF(A85>$B$30,NA(),IF(A85>$A$8,"",OFFSET(InputPriceData!$D$15,CalculationsAndCharts!$A85+$A$11,IF($C$5,8,0),1,1))) -> 4180.81 | F85: =IF(A85>$B$30,NA(),IF(A85>$A$8,"",OFFSET(InputPriceData!$E$15,CalculationsAndCharts!$A85+$A$11,IF($C$5,8,0),1,1))) -> 4150.47 | G85: =IF(A85>$B$30,NA(),IF(A85>$A$8,"",OFFSET(InputPriceData!$F$15,CalculationsAndCharts!$A85+$A$11,IF($C$5,8,0),1,1))) -> 4163.26 | H85: =IF($A85>$B$30,NA(),IF($A85>$A$8,"",OFFSET(InputIndexData!$B$15,$A85+$A$11,0,1,1))) -> 2021-04-19 | I85: =IF($A85>$B$30,NA(),IF($A85>$A$8,"",OFFSET(InputIndexData!$G$15,CalculationsAndCharts!$A85+$A$11,IF($C$5,8,0),1,1))) -> 0 | J85: =IF($A85>$B$30,NA(),IF($A85>$A$8,"",OFFSET(InputIndexData!$C$15,CalculationsAndCharts!$A85+$A$11,IF($C$5,8,0),1,1))) -> 17.04 | K85: =IF($A85>$B$30,NA(),IF($A85>$A$8,"",OFFSET(InputIndexData!$D$15,CalculationsAndCharts!$A85+$A$11,IF($C$5,8,0),1,1))) -> 18.61 | L85: =IF($A85>$B$30,NA(),IF($A85>$A$8,"",OFFSET(InputIndexData!$E$15,CalculationsAndCharts!$A85+$A$11,IF($C$5,8,0),1,1))) -> 16.78 | M85: =IF($A85>$B$30,NA(),IF($A85>$A$8,"",OFFSET(InputIndexData!$F$15,CalculationsAndCharts!$A85+$A$11,IF($C$5,8,0),1,1))) -> 17.29 | N85: 0 | O85: 17.29 | P85: 9.750339417 | Q85: 7.435940164 | R85: 0.1346654403 | S85: 1.346654403 | T85: 0.4266644368 | U85: 4174.226359 | V85: 0 | W85: 17.29 | X85: 10.39455855 | Y85: 7.788331913 | Z85: 0.1433339328 | AA85: 1.433339328 | AB85: 0.2317466027 | AC85: 4148.242075 | AX85: 3788020000
A86: 54 | B86: =IF(A86>$B$30,NA(),IF($A86>$A$8,"",OFFSET(InputPriceData!$B$15,$A86+$A$11,0,1,1))) -> 2021-04-16 | C86: =IF(A86>$B$30,NA(),IF($A86>$A$8,"",OFFSET(InputPriceData!$G$15,CalculationsAndCharts!$A86+$A$11,IF($C$5,8,0),1,1))) -> 4157430000 | D86: =IF(A86>$B$30,NA(),IF(A86>$A$8,"",OFFSET(InputPriceData!$C$15,CalculationsAndCharts!$A86+$A$11,IF($C$5,8,0),1,1))) -> 4174.14 | E86: =IF(A86>$B$30,NA(),IF(A86>$A$8,"",OFFSET(InputPriceData!$D$15,CalculationsAndCharts!$A86+$A$11,IF($C$5,8,0),1,1))) -> 4191.31 | F86: =IF(A86>$B$30,NA(),IF(A86>$A$8,"",OFFSET(InputPriceData!$E$15,CalculationsAndCharts!$A86+$A$11,IF($C$5,8,0),1,1))) -> 4170.75 | G86: =IF(A86>$B$30,NA(),IF(A86>$A$8,"",OFFSET(InputPriceData!$F$15,CalculationsAndCharts!$A86+$A$11,IF($C$5,8,0),1,1))) -> 4185.47 | H86: =IF($A86>$B$30,NA(),IF($A86>$A$8,"",OFFSET(InputIndexData!$B$15,$A86+$A$11,0,1,1))) -> 2021-04-16 | I86: =IF($A86>$B$30,NA(),IF($A86>$A$8,"",OFFSET(InputIndexData!$G$15,CalculationsAndCharts!$A86+$A$11,IF($C$5,8,0),1,1))) -> 0 | J86: =IF($A86>$B$30,NA(),IF($A86>$A$8,"",OFFSET(InputIndexData!$C$15,CalculationsAndCharts!$A86+$A$11,IF($C$5,8,0),1,1))) -> 16.65 | K86: =IF($A86>$B$30,NA(),IF($A86>$A$8,"",OFFSET(InputIndexData!$D$15,CalculationsAndCharts!$A86+$A$11,IF($C$5,8,0),1,1))) -> 16.88 | L86: =IF($A86>$B$30,NA(),IF($A86>$A$8,"",OFFSET(InputIndexData!$E$15,CalculationsAndCharts!$A86+$A$11,IF($C$5,8,0),1,1))) -> 16.05 | M86: =IF($A86>$B$30,NA(),IF($A86>$A$8,"",OFFSET(InputIndexData!$F$15,CalculationsAndCharts!$A86+$A$11,IF($C$5,8,0),1,1))) -> 16.25 | N86: 16.25 | O86: 0 | P86: 11.91708151 | Q86: 5.246149089 | R86: 0.3886755757 | S86: 3.886755757 | T86: 0.8885010467 | U86: 4182.387295 | V86: 16.25 | W86: 0 | X86: 11.4887226 | Y86: 6.788156325 | Z86: 0.2571863459 | AA86: 2.571863459 | AB86: 0.3401774723 | AC86: 4143.71186 | AW86: 4157430000
A87: 55 | B87: =IF(A87>$B$30,NA(),IF($A87>$A$8,"",OFFSET(InputPriceData!$B$15,$A87+$A$11,0,1,1))) -> 2021-04-15 | C87: =IF(A87>$B$30,NA(),IF($A87>$A$8,"",OFFSET(InputPriceData!$G$15,CalculationsAndCharts!$A87+$A$11,IF($C$5,8,0),1,1))) -> 4027680000 | D87: =IF(A87>$B$30,NA(),IF(A87>$A$8,"",OFFSET(InputPriceData!$C$15,CalculationsAndCharts!$A87+$A$11,IF($C$5,8,0),1,1))) -> 4139.76 | E87: =IF(A87>$B$30,NA(),IF(A87>$A$8,"",OFFSET(InputPriceData!$D$15,CalculationsAndCharts!$A87+$A$11,IF($C$5,8,0),1,1))) -> 4173.49 | F87: =IF(A87>$B$30,NA(),IF(A87>$A$8,"",OFFSET(InputPriceData!$E$15,CalculationsAndCharts!$A87+$A$11,IF($C$5,8,0),1,1))) -> 4139.76 | G87: =IF(A87>$B$30,NA(),IF(A87>$A$8,"",OFFSET(InputPriceData!$F$15,CalculationsAndCharts!$A87+$A$11,IF($C$5,8,0),1,1))) -> 4170.42 | H87: =IF($A87>$B$30,NA(),IF($A87>$A$8,"",OFFSET(InputIndexData!$B$15,$A87+$A$11,0,1,1))) -> 2021-04-15 | I87: =IF($A87>$B$30,NA(),IF($A87>$A$8,"",OFFSET(InputIndexData!$G$15,CalculationsAndCharts!$A87+$A$11,IF($C$5,8,0),1,1))) -> 0 | J87: =IF($A87>$B$30,NA(),IF($A87>$A$8,"",OFFSET(InputIndexData!$C$15,CalculationsAndCharts!$A87+$A$11,IF($C$5,8,0),1,1))) -> 16.78 | K87: =IF($A87>$B$30,NA(),IF($A87>$A$8,"",OFFSET(InputIndexData!$D$15,CalculationsAndCharts!$A87+$A$11,IF($C$5,8,0),1,1))) -> 16.92 | L87: =IF($A87>$B$30,NA(),IF($A87>$A$8,"",OFFSET(InputIndexData!$E$15,CalculationsAndCharts!$A87+$A$11,IF($C$5,8,0),1,1))) -> 15.94 | M87: =IF($A87>$B$30,NA(),IF($A87>$A$8,"",OFFSET(InputIndexData!$F$15,CalculationsAndCharts!$A87+$A$11,IF($C$5,8,0),1,1))) -> 16.57 | N87: 16.57 | O87: 0 | P87: 10.95421073 | Q87: 6.411959998 | R87: 0.261557265 | S87: 2.61557265 | T87: 0.6573768454 | U87: 4157.822164 | V87: 16.57 | W87: 0 | X87: 10.98753551 | Y87: 7.502699096 | Z87: 0.188468919 | AA87: 1.88468919 | AB87: 0.2747323038 | AC87: 4122.183073 | AW87: 4027680000
A88: 56 | B88: =IF(A88>$B$30,NA(),IF($A88>$A$8,"",OFFSET(InputPriceData!$B$15,$A88+$A$11,0,1,1))) -> 2021-04-14 | C88: =IF(A88>$B$30,NA(),IF($A88>$A$8,"",OFFSET(InputPriceData!$G$15,CalculationsAndCharts!$A88+$A$11,IF($C$5,8,0),1,1))) -> 3976540000 | D88: =IF(A88>$B$30,NA(),IF(A88>$A$8,"",OFFSET(InputPriceData!$C$15,CalculationsAndCharts!$A88+$A$11,IF($C$5,8,0),1,1))) -> 4141.58 | E88: =IF(A88>$B$30,NA(),IF(A88>$A$8,"",OFFSET(InputPriceData!$D$15,CalculationsAndCharts!$A88+$A$11,IF($C$5,8,0),1,1))) -> 4151.69 | F88: =IF(A88>$B$30,NA(),IF(A88>$A$8,"",OFFSET(InputPriceData!$E$15,CalculationsAndCharts!$A88+$A$11,IF($C$5,8,0),1,1))) -> 4120.87 | G88: =IF(A88>$B$30,NA(),IF(A88>$A$8,"",OFFSET(InputPriceData!$F$15,CalculationsAndCharts!$A88+$A$11,IF($C$5,8,0),1,1))) -> 4124.66 | H88: =IF($A88>$B$30,NA(),IF($A88>$A$8,"",OFFSET(InputIndexData!$B$15,$A88+$A$11,0,1,1))) -> 2021-04-14 | I88: =IF($A88>$B$30,NA(),IF($A88>$A$8,"",OFFSET(InputIndexData!$G$15,CalculationsAndCharts!$A88+$A$11,IF($C$5,8,0),1,1))) -> 0 | J88: =IF($A88>$B$30,NA(),IF($A88>$A$8,"",OFFSET(InputIndexData!$C$15,CalculationsAndCharts!$A88+$A$11,IF($C$5,8,0),1,1))) -> 16.71 | K88: =IF($A88>$B$30,NA(),IF($A88>$A$8,"",OFFSET(InputIndexData!$D$15,CalculationsAndCharts!$A88+$A$11,IF($C$5,8,0),1,1))) -> 17.69 | L88: =IF($A88>$B$30,NA(),IF($A88>$A$8,"",OFFSET(InputIndexData!$E$15,CalculationsAndCharts!$A88+$A$11,IF($C$5,8,0),1,1))) -> 15.38 | M88: =IF($A88>$B$30,NA(),IF($A88>$A$8,"",OFFSET(InputIndexData!$F$15,CalculationsAndCharts!$A88+$A$11,IF($C$5,8,0),1,1))) -> 16.99 | N88: 0 | O88: 16.99 | P88: 9.706257564 | Q88: 7.836839998 | R88: 0.1065613694 | S88: 1.065613694 | T88: 0.3755661262 | U88: 4133.651219 | V88: 0 | W88: 16.99 | X88: 10.39990767 | Y88: 8.292456896 | Z88: 0.1127438767 | AA88: 1.127438767 | AB88: 0.2026132159 | AC88: 4103.910866 | AX88: 3976540000
A89: 57 | B89: =IF(A89>$B$30,NA(),IF($A89>$A$8,"",OFFSET(InputPriceData!$B$15,$A89+$A$11,0,1,1))) -> 2021-04-13 | C89: =IF(A89>$B$30,NA(),IF($A89>$A$8,"",OFFSET(InputPriceData!$G$15,CalculationsAndCharts!$A89+$A$11,IF($C$5,8,0),1,1))) -> 3728440000 | D89: =IF(A89>$B$30,NA(),IF(A89>$A$8,"",OFFSET(InputPriceData!$C$15,CalculationsAndCharts!$A89+$A$11,IF($C$5,8,0),1,1))) -> 4130.1 | E89: =IF(A89>$B$30,NA(),IF(A89>$A$8,"",OFFSET(InputPriceData!$D$15,CalculationsAndCharts!$A89+$A$11,IF($C$5,8,0),1,1))) -> 4148 | F89: =IF(A89>$B$30,NA(),IF(A89>$A$8,"",OFFSET(InputPriceData!$E$15,CalculationsAndCharts!$A89+$A$11,IF($C$5,8,0),1,1))) -> 4124.43 | G89: =IF(A89>$B$30,NA(),IF(A89>$A$8,"",OFFSET(InputPriceData!$F$15,CalculationsAndCharts!$A89+$A$11,IF($C$5,8,0),1,1))) -> 4141.59 | H89: =IF($A89>$B$30,NA(),IF($A89>$A$8,"",OFFSET(InputIndexData!$B$15,$A89+$A$11,0,1,1))) -> 2021-04-13 | I89: =IF($A89>$B$30,NA(),IF($A89>$A$8,"",OFFSET(InputIndexData!$G$15,CalculationsAndCharts!$A89+$A$11,IF($C$5,8,0),1,1))) -> 0 | J89: =IF($A89>$B$30,NA(),IF($A89>$A$8,"",OFFSET(InputIndexData!$C$15,CalculationsAndCharts!$A89+$A$11,IF($C$5,8,0),1,1))) -> 16.99 | K89: =IF($A89>$B$30,NA(),IF($A89>$A$8,"",OFFSET(InputIndexData!$D$15,CalculationsAndCharts!$A89+$A$11,IF($C$5,8,0),1,1))) -> 17.86 | L89: =IF($A89>$B$30,NA(),IF($A89>$A$8,"",OFFSET(InputIndexData!$E$15,CalculationsAndCharts!$A89+$A$11,IF($C$5,8,0),1,1))) -> 16.43 | M89: =IF($A89>$B$30,NA(),IF($A89>$A$8,"",OFFSET(InputIndexData!$F$15,CalculationsAndCharts!$A89+$A$11,IF($C$5,8,0),1,1))) -> 16.65 | N89: 16.65 | O89: 0 | P89: 11.86320369 | Q89: 5.802804442 | R89: 0.3430540602 | S89: 3.430540602 | T89: 0.8055528367 | U89: 4139.058993 | V89: 16.65 | W89: 0 | X89: 11.49463479 | Y89: 7.376926043 | Z89: 0.2181963963 | AA89: 2.181963963 | AB89: 0.3030441869 | AC89: 4098.638583 | AW89: 3728440000
A90: 58 | B90: =IF(A90>$B$30,NA(),IF($A90>$A$8,"",OFFSET(InputPriceData!$B$15,$A90+$A$11,0,1,1))) -> 2021-04-12 | C90: =IF(A90>$B$30,NA(),IF($A90>$A$8,"",OFFSET(InputPriceData!$G$15,CalculationsAndCharts!$A90+$A$11,IF($C$5,8,0),1,1))) -> 3578500000 | D90: =IF(A90>$B$30,NA(),IF(A90>$A$8,"",OFFSET(InputPriceData!$C$15,CalculationsAndCharts!$A90+$A$11,IF($C$5,8,0),1,1))) -> 4124.71 | E90: =IF(A90>$B$30,NA(),IF(A90>$A$8,"",OFFSET(InputPriceData!$D$15,CalculationsAndCharts!$A90+$A$11,IF($C$5,8,0),1,1))) -> 4131.76 | F90: =IF(A90>$B$30,NA(),IF(A90>$A$8,"",OFFSET(InputPriceData!$E$15,CalculationsAndCharts!$A90+$A$11,IF($C$5,8,0),1,1))) -> 4114.82 | G90: =IF(A90>$B$30,NA(),IF(A90>$A$8,"",OFFSET(InputPriceData!$F$15,CalculationsAndCharts!$A90+$A$11,IF($C$5,8,0),1,1))) -> 4127.99 | H90: =IF($A90>$B$30,NA(),IF($A90>$A$8,"",OFFSET(InputIndexData!$B$15,$A90+$A$11,0,1,1))) -> 2021-04-12 | I90: =IF($A90>$B$30,NA(),IF($A90>$A$8,"",OFFSET(InputIndexData!$G$15,CalculationsAndCharts!$A90+$A$11,IF($C$5,8,0),1,1))) -> 0 | J90: =IF($A90>$B$30,NA(),IF($A90>$A$8,"",OFFSET(InputIndexData!$C$15,CalculationsAndCharts!$A90+$A$11,IF($C$5,8,0),1,1))) -> 17.43 | K90: =IF($A90>$B$30,NA(),IF($A90>$A$8,"",OFFSET(InputIndexData!$D$15,CalculationsAndCharts!$A90+$A$11,IF($C$5,8,0),1,1))) -> 17.91 | L90: =IF($A90>$B$30,NA(),IF($A90>$A$8,"",OFFSET(InputIndexData!$E$15,CalculationsAndCharts!$A90+$A$11,IF($C$5,8,0),1,1))) -> 16.81 | M90: =IF($A90>$B$30,NA(),IF($A90>$A$8,"",OFFSET(InputIndexData!$F$15,CalculationsAndCharts!$A90+$A$11,IF($C$5,8,0),1,1))) -> 16.91 | N90: 0 | O90: 16.91 | P90: 10.79947118 | Q90: 7.09231654 | R90: 0.2071985551 | S90: 2.071985551 | T90: 0.5585428275 | U90: 4128.573577 | V90: 0 | W90: 16.91 | X90: 10.95196477 | Y90: 8.153444573 | Z90: 0.146477821 | AA90: 1.46477821 | AB90: 0.234740782 | AC90: 4079.962826 | AW90: 3578500000
A91: 59 | B91: =IF(A91>$B$30,NA(),IF($A91>$A$8,"",OFFSET(InputPriceData!$B$15,$A91+$A$11,0,1,1))) -> 2021-04-09 | C91: =IF(A91>$B$30,NA(),IF($A91>$A$8,"",OFFSET(InputPriceData!$G$15,CalculationsAndCharts!$A91+$A$11,IF($C$5,8,0),1,1))) -> 3634910000 | D91: =IF(A91>$B$30,NA(),IF(A91>$A$8,"",OFFSET(InputPriceData!$C$15,CalculationsAndCharts!$A91+$A$11,IF($C$5,8,0),1,1))) -> 4096.11 | E91: =IF(A91>$B$30,NA(),IF(A91>$A$8,"",OFFSET(InputPriceData!$D$15,CalculationsAndCharts!$A91+$A$11,IF($C$5,8,0),1,1))) -> 4129.48 | F91: =IF(A91>$B$30,NA(),IF(A91>$A$8,"",OFFSET(InputPriceData!$E$15,CalculationsAndCharts!$A91+$A$11,IF($C$5,8,0),1,1))) -> 4095.51 | G91: =IF(A91>$B$30,NA(),IF(A91>$A$8,"",OFFSET(InputPriceData!$F$15,CalculationsAndCharts!$A91+$A$11,IF($C$5,8,0),1,1))) -> 4128.8 | H91: =IF($A91>$B$30,NA(),IF($A91>$A$8,"",OFFSET(InputIndexData!$B$15,$A91+$A$11,0,1,1))) -> 2021-04-09 | I91: =IF($A91>$B$30,NA(),IF($A91>$A$8,"",OFFSET(InputIndexData!$G$15,CalculationsAndCharts!$A91+$A$11,IF($C$5,8,0),1,1))) -> 0 | J91: =IF($A91>$B$30,NA(),IF($A91>$A$8,"",OFFSET(InputIndexData!$C$15,CalculationsAndCharts!$A91+$A$11,IF($C$5,8,0),1,1))) -> 17.05 | K91: =IF($A91>$B$30,NA(),IF($A91>$A$8,"",OFFSET(InputIndexData!$D$15,CalculationsAndCharts!$A91+$A$11,IF($C$5,8,0),1,1))) -> 17.34 | L91: =IF($A91>$B$30,NA(),IF($A91>$A$8,"",OFFSET(InputIndexData!$E$15,CalculationsAndCharts!$A91+$A$11,IF($C$5,8,0),1,1))) -> 16.2 | M91: =IF($A91>$B$30,NA(),IF($A91>$A$8,"",OFFSET(InputIndexData!$F$15,CalculationsAndCharts!$A91+$A$11,IF($C$5,8,0),1,1))) -> 16.69 | N91: 16.69 | O91: 0 | P91: 13.19935366 | Q91: 4.910609104 | R91: 0.4576895097 | S91: 4.576895097 | T91: 1.013980927 | U91: 4129.311933 | V91: 16.69 | W91: 0 | X91: 12.10480317 | Y91: 7.231701897 | Z91: 0.2520154874 | AA91: 2.520154874 | AB91: 0.3352528452 | AC91: 4065.230646 | AW91: 3634910000
A92: 60 | B92: =IF(A92>$B$30,NA(),IF($A92>$A$8,"",OFFSET(InputPriceData!$B$15,$A92+$A$11,0,1,1))) -> 2021-04-08 | C92: =IF(A92>$B$30,NA(),IF($A92>$A$8,"",OFFSET(InputPriceData!$G$15,CalculationsAndCharts!$A92+$A$11,IF($C$5,8,0),1,1))) -> 3901910000 | D92: =IF(A92>$B$30,NA(),IF(A92>$A$8,"",OFFSET(InputPriceData!$C$15,CalculationsAndCharts!$A92+$A$11,IF($C$5,8,0),1,1))) -> 4089.95 | E92: =IF(A92>$B$30,NA(),IF(A92>$A$8,"",OFFSET(InputPriceData!$D$15,CalculationsAndCharts!$A92+$A$11,IF($C$5,8,0),1,1))) -> 4098.19 | F92: =IF(A92>$B$30,NA(),IF(A92>$A$8,"",OFFSET(InputPriceData!$E$15,CalculationsAndCharts!$A92+$A$11,IF($C$5,8,0),1,1))) -> 4082.54 | G92: =IF(A92>$B$30,NA(),IF(A92>$A$8,"",OFFSET(InputPriceData!$F$15,CalculationsAndCharts!$A92+$A$11,IF($C$5,8,0),1,1))) -> 4097.17 | H92: =IF($A92>$B$30,NA(),IF($A92>$A$8,"",OFFSET(InputIndexData!$B$15,$A92+$A$11,0,1,1))) -> 2021-04-08 | I92: =IF($A92>$B$30,NA(),IF($A92>$A$8,"",OFFSET(InputIndexData!$G$15,CalculationsAndCharts!$A92+$A$11,IF($C$5,8,0),1,1))) -> 0 | J92: =IF($A92>$B$30,NA(),IF($A92>$A$8,"",OFFSET(InputIndexData!$C$15,CalculationsAndCharts!$A92+$A$11,IF($C$5,8,0),1,1))) -> 16.92 | K92: =IF($A92>$B$30,NA(),IF($A92>$A$8,"",OFFSET(InputIndexData!$D$15,CalculationsAndCharts!$A92+$A$11,IF($C$5,8,0),1,1))) -> 17.36 | L92: =IF($A92>$B$30,NA(),IF($A92>$A$8,"",OFFSET(InputIndexData!$E$15,CalculationsAndCharts!$A92+$A$11,IF($C$5,8,0),1,1))) -> 16.55 | M92: =IF($A92>$B$30,NA(),IF($A92>$A$8,"",OFFSET(InputIndexData!$F$15,CalculationsAndCharts!$A92+$A$11,IF($C$5,8,0),1,1))) -> 16.95 | N92: 16.95 | O92: 0 | P92: 12.42365447 | Q92: 6.001855572 | R92: 0.3485274166 | S92: 3.485274166 | T92: 0.8155043938 | U92: 4092.183486 | V92: 16.95 | W92: 0 | X92: 11.62215087 | Y92: 7.992933676 | Z92: 0.1850216518 | AA92: 1.850216518 | AB92: 0.2714491922 | AC92: 4033.170627 | AW92: 3901910000
A93: 61 | B93: =IF(A93>$B$30,NA(),IF($A93>$A$8,"",OFFSET(InputPriceData!$B$15,$A93+$A$11,0,1,1))) -> 2021-04-07 | C93: =IF(A93>$B$30,NA(),IF($A93>$A$8,"",OFFSET(InputPriceData!$G$15,CalculationsAndCharts!$A93+$A$11,IF($C$5,8,0),1,1))) -> 4112640000 | D93: =IF(A93>$B$30,NA(),IF(A93>$A$8,"",OFFSET(InputPriceData!$C$15,CalculationsAndCharts!$A93+$A$11,IF($C$5,8,0),1,1))) -> 4074.29 | E93: =IF(A93>$B$30,NA(),IF(A93>$A$8,"",OFFSET(InputPriceData!$D$15,CalculationsAndCharts!$A93+$A$11,IF($C$5,8,0),1,1))) -> 4083.13 | F93: =IF(A93>$B$30,NA(),IF(A93>$A$8,"",OFFSET(InputPriceData!$E$15,CalculationsAndCharts!$A93+$A$11,IF($C$5,8,0),1,1))) -> 4068.31 | G93: =IF(A93>$B$30,NA(),IF(A93>$A$8,"",OFFSET(InputPriceData!$F$15,CalculationsAndCharts!$A93+$A$11,IF($C$5,8,0),1,1))) -> 4079.95 | H93: =IF($A93>$B$30,NA(),IF($A93>$A$8,"",OFFSET(InputIndexData!$B$15,$A93+$A$11,0,1,1))) -> 2021-04-07 | I93: =IF($A93>$B$30,NA(),IF($A93>$A$8,"",OFFSET(InputIndexData!$G$15,CalculationsAndCharts!$A93+$A$11,IF($C$5,8,0),1,1))) -> 0 | J93: =IF($A93>$B$30,NA(),IF($A93>$A$8,"",OFFSET(InputIndexData!$C$15,CalculationsAndCharts!$A93+$A$11,IF($C$5,8,0),1,1))) -> 17.99 | K93: =IF($A93>$B$30,NA(),IF($A93>$A$8,"",OFFSET(InputIndexData!$D$15,CalculationsAndCharts!$A93+$A$11,IF($C$5,8,0),1,1))) -> 18.17 | L93: =IF($A93>$B$30,NA(),IF($A93>$A$8,"",OFFSET(InputIndexData!$E$15,CalculationsAndCharts!$A93+$A$11,IF($C$5,8,0),1,1))) -> 16.87 | M93: =IF($A93>$B$30,NA(),IF($A93>$A$8,"",OFFSET(InputIndexData!$F$15,CalculationsAndCharts!$A93+$A$11,IF($C$5,8,0),1,1))) -> 17.16 | N93: 17.16 | O93: 0 | P93: 11.41779991 | Q93: 7.335601255 | R93: 0.2176776598 | S93: 2.176776598 | T93: 0.5775957451 | U93: 4070.142178 | V93: 17.16 | W93: 0 | X93: 11.06132464 | Y93: 8.834295115 | Z93: 0.1119356137 | AA93: 1.119356137 | AB93: 0.2018434417 | AC93: 4009.325237 | AW93: 4112640000
A94: 62 | B94: =IF(A94>$B$30,NA(),IF($A94>$A$8,"",OFFSET(InputPriceData!$B$15,$A94+$A$11,0,1,1))) -> 2021-04-06 | C94: =IF(A94>$B$30,NA(),IF($A94>$A$8,"",OFFSET(InputPriceData!$G$15,CalculationsAndCharts!$A94+$A$11,IF($C$5,8,0),1,1))) -> 4027880000 | D94: =IF(A94>$B$30,NA(),IF(A94>$A$8,"",OFFSET(InputPriceData!$C$15,CalculationsAndCharts!$A94+$A$11,IF($C$5,8,0),1,1))) -> 4075.57 | E94: =IF(A94>$B$30,NA(),IF(A94>$A$8,"",OFFSET(InputPriceData!$D$15,CalculationsAndCharts!$A94+$A$11,IF($C$5,8,0),1,1))) -> 4086.23 | F94: =IF(A94>$B$30,NA(),IF(A94>$A$8,"",OFFSET(InputPriceData!$E$15,CalculationsAndCharts!$A94+$A$11,IF($C$5,8,0),1,1))) -> 4068.14 | G94: =IF(A94>$B$30,NA(),IF(A94>$A$8,"",OFFSET(InputPriceData!$F$15,CalculationsAndCharts!$A94+$A$11,IF($C$5,8,0),1,1))) -> 4073.94 | H94: =IF($A94>$B$30,NA(),IF($A94>$A$8,"",OFFSET(InputIndexData!$B$15,$A94+$A$11,0,1,1))) -> 2021-04-06 | I94: =IF($A94>$B$30,NA(),IF($A94>$A$8,"",OFFSET(InputIndexData!$G$15,CalculationsAndCharts!$A94+$A$11,IF($C$5,8,0),1,1))) -> 0 | J94: =IF($A94>$B$30,NA(),IF($A94>$A$8,"",OFFSET(InputIndexData!$C$15,CalculationsAndCharts!$A94+$A$11,IF($C$5,8,0),1,1))) -> 18.07 | K94: =IF($A94>$B$30,NA(),IF($A94>$A$8,"",OFFSET(InputIndexData!$D$15,CalculationsAndCharts!$A94+$A$11,IF($C$5,8,0),1,1))) -> 18.3 | L94: =IF($A94>$B$30,NA(),IF($A94>$A$8,"",OFFSET(InputIndexData!$E$15,CalculationsAndCharts!$A94+$A$11,IF($C$5,8,0),1,1))) -> 17.37 | M94: =IF($A94>$B$30,NA(),IF($A94>$A$8,"",OFFSET(InputIndexData!$F$15,CalculationsAndCharts!$A94+$A$11,IF($C$5,8,0),1,1))) -> 18.12 | N94: 0 | O94: 18.12 | P94: 10.14175545 | Q94: 8.965734867 | R94: 0.06154758914 | S94: 0.6154758914 | T94: 0.2937228893 | U94: 4056.730958 | V94: 0 | W94: 18.12 | X94: 10.41935882 | Y94: 9.764220917 | Z94: 0.03245893856 | AA94: 0.3245893856 | AB94: 0.1261513701 | AC94: 3991.46515 | AX94: 4027880000
A95: 63 | B95: =IF(A95>$B$30,NA(),IF($A95>$A$8,"",OFFSET(InputPriceData!$B$15,$A95+$A$11,0,1,1))) -> 2021-04-05 | C95: =IF(A95>$B$30,NA(),IF($A95>$A$8,"",OFFSET(InputPriceData!$G$15,CalculationsAndCharts!$A95+$A$11,IF($C$5,8,0),1,1))) -> 3999760000 | D95: =IF(A95>$B$30,NA(),IF(A95>$A$8,"",OFFSET(InputPriceData!$C$15,CalculationsAndCharts!$A95+$A$11,IF($C$5,8,0),1,1))) -> 4034.44 | E95: =IF(A95>$B$30,NA(),IF(A95>$A$8,"",OFFSET(InputPriceData!$D$15,CalculationsAndCharts!$A95+$A$11,IF($C$5,8,0),1,1))) -> 4083.42 | F95: =IF(A95>$B$30,NA(),IF(A95>$A$8,"",OFFSET(InputPriceData!$E$15,CalculationsAndCharts!$A95+$A$11,IF($C$5,8,0),1,1))) -> 4034.44 | G95: =IF(A95>$B$30,NA(),IF(A95>$A$8,"",OFFSET(InputPriceData!$F$15,CalculationsAndCharts!$A95+$A$11,IF($C$5,8,0),1,1))) -> 4077.91 | H95: =IF($A95>$B$30,NA(),IF($A95>$A$8,"",OFFSET(InputIndexData!$B$15,$A95+$A$11,0,1,1))) -> 2021-04-05 | I95: =IF($A95>$B$30,NA(),IF($A95>$A$8,"",OFFSET(InputIndexData!$G$15,CalculationsAndCharts!$A95+$A$11,IF($C$5,8,0),1,1))) -> 0 | J95: =IF($A95>$B$30,NA(),IF($A95>$A$8,"",OFFSET(InputIndexData!$C$15,CalculationsAndCharts!$A95+$A$11,IF($C$5,8,0),1,1))) -> 18.16 | K95: =IF($A95>$B$30,NA(),IF($A95>$A$8,"",OFFSET(InputIndexData!$D$15,CalculationsAndCharts!$A95+$A$11,IF($C$5,8,0),1,1))) -> 18.4 | L95: =IF($A95>$B$30,NA(),IF($A95>$A$8,"",OFFSET(InputIndexData!$E$15,CalculationsAndCharts!$A95+$A$11,IF($C$5,8,0),1,1))) -> 17.35 | M95: =IF($A95>$B$30,NA(),IF($A95>$A$8,"",OFFSET(InputIndexData!$F$15,CalculationsAndCharts!$A95+$A$11,IF($C$5,8,0),1,1))) -> 17.91 | N95: 17.91 | O95: 0 | P95: 12.39547888 | Q95: 6.931453726 | R95: 0.2827154436 | S95: 2.827154436 | T95: 0.6958462611 | U95: 4049.57415 | V95: 17.91 | W95: 0 | X95: 11.51613343 | Y95: 8.884665224 | Z95: 0.1289884263 | AA95: 1.289884263 | AB95: 0.2180842156 | AC95: 3979.558837 | AW95: 3999760000
A96: 64 | B96: =IF(A96>$B$30,NA(),IF($A96>$A$8,"",OFFSET(InputPriceData!$B$15,$A96+$A$11,0,1,1))) -> 2021-04-01 | C96: =IF(A96>$B$30,NA(),IF($A96>$A$8,"",OFFSET(InputPriceData!$G$15,CalculationsAndCharts!$A96+$A$11,IF($C$5,8,0),1,1))) -> 4151240000 | D96: =IF(A96>$B$30,NA(),IF(A96>$A$8,"",OFFSET(InputPriceData!$C$15,CalculationsAndCharts!$A96+$A$11,IF($C$5,8,0),1,1))) -> 3992.78 | E96: =IF(A96>$B$30,NA(),IF(A96>$A$8,"",OFFSET(InputPriceData!$D$15,CalculationsAndCharts!$A96+$A$11,IF($C$5,8,0),1,1))) -> 4020.63 | F96: =IF(A96>$B$30,NA(),IF(A96>$A$8,"",OFFSET(InputPriceData!$E$15,CalculationsAndCharts!$A96+$A$11,IF($C$5,8,0),1,1))) -> 3992.78 | G96: =IF(A96>$B$30,NA(),IF(A96>$A$8,"",OFFSET(InputPriceData!$F$15,CalculationsAndCharts!$A96+$A$11,IF($C$5,8,0),1,1))) -> 4019.87 | H96: =IF($A96>$B$30,NA(),IF($A96>$A$8,"",OFFSET(InputIndexData!$B$15,$A96+$A$11,0,1,1))) -> 2021-04-01 | I96: =IF($A96>$B$30,NA(),IF($A96>$A$8,"",OFFSET(InputIndexData!$G$15,CalculationsAndCharts!$A96+$A$11,IF($C$5,8,0),1,1))) -> 0 | J96: =IF($A96>$B$30,NA(),IF($A96>$A$8,"",OFFSET(InputIndexData!$C$15,CalculationsAndCharts!$A96+$A$11,IF($C$5,8,0),1,1))) -> 18.6 | K96: =IF($A96>$B$30,NA(),IF($A96>$A$8,"",OFFSET(InputIndexData!$D$15,CalculationsAndCharts!$A96+$A$11,IF($C$5,8,0),1,1))) -> 18.64 | L96: =IF($A96>$B$30,NA(),IF($A96>$A$8,"",OFFSET(InputIndexData!$E$15,CalculationsAndCharts!$A96+$A$11,IF($C$5,8,0),1,1))) -> 17.29 | M96: =IF($A96>$B$30,NA(),IF($A96>$A$8,"",OFFSET(InputIndexData!$F$15,CalculationsAndCharts!$A96+$A$11,IF($C$5,8,0),1,1))) -> 17.33 | N96: 17.33 | O96: 0 | P96: 11.17002974 | Q96: 8.471776776 | R96: 0.1373728831 | S96: 1.373728831 | T96: 0.4315870601 | U96: 3984.747083 | V96: 17.33 | W96: 0 | X96: 10.84309484 | Y96: 9.819893142 | Z96: 0.04951855003 | AA96: 0.4951855003 | AB96: 0.1423986191 | AC96: 3952.127703 | AW96: 4151240000
A97: 65 | B97: =IF(A97>$B$30,NA(),IF($A97>$A$8,"",OFFSET(InputPriceData!$B$15,$A97+$A$11,0,1,1))) -> 2021-03-31 | C97: =IF(A97>$B$30,NA(),IF($A97>$A$8,"",OFFSET(InputPriceData!$G$15,CalculationsAndCharts!$A97+$A$11,IF($C$5,8,0),1,1))) -> 4564980000 | D97: =IF(A97>$B$30,NA(),IF(A97>$A$8,"",OFFSET(InputPriceData!$C$15,CalculationsAndCharts!$A97+$A$11,IF($C$5,8,0),1,1))) -> 3967.25 | E97: =IF(A97>$B$30,NA(),IF(A97>$A$8,"",OFFSET(InputPriceData!$D$15,CalculationsAndCharts!$A97+$A$11,IF($C$5,8,0),1,1))) -> 3994.41 | F97: =IF(A97>$B$30,NA(),IF(A97>$A$8,"",OFFSET(InputPriceData!$E$15,CalculationsAndCharts!$A97+$A$11,IF($C$5,8,0),1,1))) -> 3966.98 | G97: =IF(A97>$B$30,NA(),IF(A97>$A$8,"",OFFSET(InputPriceData!$F$15,CalculationsAndCharts!$A97+$A$11,IF($C$5,8,0),1,1))) -> 3972.89 | H97: =IF($A97>$B$30,NA(),IF($A97>$A$8,"",OFFSET(InputIndexData!$B$15,$A97+$A$11,0,1,1))) -> 2021-03-31 | I97: =IF($A97>$B$30,NA(),IF($A97>$A$8,"",OFFSET(InputIndexData!$G$15,CalculationsAndCharts!$A97+$A$11,IF($C$5,8,0),1,1))) -> 0 | J97: =IF($A97>$B$30,NA(),IF($A97>$A$8,"",OFFSET(InputIndexData!$C$15,CalculationsAndCharts!$A97+$A$11,IF($C$5,8,0),1,1))) -> 19.8 | K97: =IF($A97>$B$30,NA(),IF($A97>$A$8,"",OFFSET(InputIndexData!$D$15,CalculationsAndCharts!$A97+$A$11,IF($C$5,8,0),1,1))) -> 20.11 | L97: =IF($A97>$B$30,NA(),IF($A97>$A$8,"",OFFSET(InputIndexData!$E$15,CalculationsAndCharts!$A97+$A$11,IF($C$5,8,0),1,1))) -> 18.85 | M97: =IF($A97>$B$30,NA(),IF($A97>$A$8,"",OFFSET(InputIndexData!$F$15,CalculationsAndCharts!$A97+$A$11,IF($C$5,8,0),1,1))) -> 19.4 | N97: 19.4 | O97: 0 | P97: 9.80114746 | Q97: 10.35439384 | R97: 0.02744883382 | S97: 0.2744883382 | T97: 0.2317251524 | U97: 3958.0788 | V97: 19.4 | W97: 0 | X97: 10.16026272 | Y97: 10.8535661 | Z97: 0.03299270498 | AA97: 0.3299270498 | AB97: 0.126659719 | AC97: 3940.879576 | AW97: =IF(G97>=D97,C97,NA()) -> 4564980000 | AX97: =IF(G97<D97,C97,NA()) -> 
A98: 66 | B98: =IF(A98>$B$30,NA(),IF($A98>$A$8,"",OFFSET(InputPriceData!$B$15,$A98+$A$11,0,1,1))) -> 2021-03-30 | C98: =IF(A98>$B$30,NA(),IF($A98>$A$8,"",OFFSET(InputPriceData!$G$15,CalculationsAndCharts!$A98+$A$11,IF($C$5,8,0),1,1))) -> 4103570000 | D98: =IF(A98>$B$30,NA(),IF(A98>$A$8,"",OFFSET(InputPriceData!$C$15,CalculationsAndCharts!$A98+$A$11,IF($C$5,8,0),1,1))) -> 3963.34 | E98: =IF(A98>$B$30,NA(),IF(A98>$A$8,"",OFFSET(InputPriceData!$D$15,CalculationsAndCharts!$A98+$A$11,IF($C$5,8,0),1,1))) -> 3968.01 | F98: =IF(A98>$B$30,NA(),IF(A98>$A$8,"",OFFSET(InputPriceData!$E$15,CalculationsAndCharts!$A98+$A$11,IF($C$5,8,0),1,1))) -> 3944.35 | G98: =IF(A98>$B$30,NA(),IF(A98>$A$8,"",OFFSET(InputPriceData!$F$15,CalculationsAndCharts!$A98+$A$11,IF($C$5,8,0),1,1))) -> 3958.55 | H98: =IF($A98>$B$30,NA(),IF($A98>$A$8,"",OFFSET(InputIndexData!$B$15,$A98+$A$11,0,1,1))) -> 2021-03-30 | I98: =IF($A98>$B$30,NA(),IF($A98>$A$8,"",OFFSET(InputIndexData!$G$15,CalculationsAndCharts!$A98+$A$11,IF($C$5,8,0),1,1))) -> 0 | J98: =IF($A98>$B$30,NA(),IF($A98>$A$8,"",OFFSET(InputIndexData!$C$15,CalculationsAndCharts!$A98+$A$11,IF($C$5,8,0),1,1))) -> 20.76 | K98: =IF($A98>$B$30,NA(),IF($A98>$A$8,"",OFFSET(InputIndexData!$D$15,CalculationsAndCharts!$A98+$A$11,IF($C$5,8,0),1,1))) -> 21.75 | L98: =IF($A98>$B$30,NA(),IF($A98>$A$8,"",OFFSET(InputIndexData!$E$15,CalculationsAndCharts!$A98+$A$11,IF($C$5,8,0),1,1))) -> 19.47 | M98: =IF($A98>$B$30,NA(),IF($A98>$A$8,"",OFFSET(InputIndexData!$F$15,CalculationsAndCharts!$A98+$A$11,IF($C$5,8,0),1,1))) -> 19.61 | N98: =IF($A98>$N$30,NA(),IF($G98>$G99,$M98,0)) -> 0 | O98: =IF($A98>$N$30,NA(),IF($G98<$G99,$M98,0)) -> 19.61 | P98: =IF($A98>$P$30,NA(),IF($A98=$P$30,AVERAGE(OFFSET(N98,0,0,$A$18,1)),$D$18*(N98-P99)+P99)) -> 7.668069117 | Q98: =IF($A98>$P$30,NA(),IF($A98=$P$30,AVERAGE(OFFSET(O98,0,0,$A$18,1)),$D$18*(O98-Q99)+Q99)) -> 12.65537025 | R98: =IF($A98>$P$30,NA(),ABS(P98-Q98)/(P98+Q98+0.00001)) -> 0.2453963911 | S98: =IF($A98>$P$30,NA(),R98*$A$19) -> 2.453963911 | T98: =IF($A98>$P$30,NA(),$D$17*(1+S98)) -> 0.6279934384 | U98: =IF($A98>$P$30,NA(),IF($A98=$P$30,AVERAGE(OFFSET($G98,0,0,$A$18,1)),T98*($G98-U99)+U99)) -> 3953.611483 | V98: =IF($A98>$V$30,NA(),IF($G98>$G99,$M98,0)) -> 0 | W98: =IF($A98>$V$30,NA(),IF($G98<$G99,$M98,0)) -> 19.61 | X98: =IF($A98>$X$30,NA(),IF($A98=$X$30,AVERAGE(OFFSET(V98,0,0,$A$23,1)),$D$23*(V98-X99)+X99)) -> 9.187658795 | Y98: =IF($A98>$X$30,NA(),IF($A98=$X$30,AVERAGE(OFFSET(W98,0,0,$A$23,1)),$D$23*(W98-Y99)+Y99)) -> 11.99604675 | Z98: =IF($A98>$X$30,NA(),ABS(X98-Y98)/(X98+Y98+0.00001)) -> 0.1325729637 | AA98: =IF($A98>$X$30,NA(),Z98*$A$24) -> 1.325729637 | AB98: =IF($A98>$X$30,NA(),$D$22*(1+AA98)) -> 0.2214980607 | AC98: =IF($A98>$X$30,NA(),IF($A98=$X$30,AVERAGE(OFFSET($G98,0,0,$A$23,1)),AB98*($G98-AC99)+AC99)) -> 3936.237134 | AX98: 4103570000
A99: 67 | B99: =IF(A99>$B$30,NA(),IF($A99>$A$8,"",OFFSET(InputPriceData!$B$15,$A99+$A$11,0,1,1))) -> 2021-03-29 | C99: =IF(A99>$B$30,NA(),IF($A99>$A$8,"",OFFSET(InputPriceData!$G$15,CalculationsAndCharts!$A99+$A$11,IF($C$5,8,0),1,1))) -> 4619840000 | D99: =IF(A99>$B$30,NA(),IF(A99>$A$8,"",OFFSET(InputPriceData!$C$15,CalculationsAndCharts!$A99+$A$11,IF($C$5,8,0),1,1))) -> 3969.31 | E99: =IF(A99>$B$30,NA(),IF(A99>$A$8,"",OFFSET(InputPriceData!$D$15,CalculationsAndCharts!$A99+$A$11,IF($C$5,8,0),1,1))) -> 3981.83 | F99: =IF(A99>$B$30,NA(),IF(A99>$A$8,"",OFFSET(InputPriceData!$E$15,CalculationsAndCharts!$A99+$A$11,IF($C$5,8,0),1,1))) -> 3943.25 | G99: =IF(A99>$B$30,NA(),IF(A99>$A$8,"",OFFSET(InputPriceData!$F$15,CalculationsAndCharts!$A99+$A$11,IF($C$5,8,0),1,1))) -> 3971.09 | H99: =IF($A99>$B$30,NA(),IF($A99>$A$8,"",OFFSET(InputIndexData!$B$15,$A99+$A$11,0,1,1))) -> 2021-03-29 | I99: =IF($A99>$B$30,NA(),IF($A99>$A$8,"",OFFSET(InputIndexData!$G$15,CalculationsAndCharts!$A99+$A$11,IF($C$5,8,0),1,1))) -> 0 | J99: =IF($A99>$B$30,NA(),IF($A99>$A$8,"",OFFSET(InputIndexData!$C$15,CalculationsAndCharts!$A99+$A$11,IF($C$5,8,0),1,1))) -> 20.4 | K99: =IF($A99>$B$30,NA(),IF($A99>$A$8,"",OFFSET(InputIndexData!$D$15,CalculationsAndCharts!$A99+$A$11,IF($C$5,8,0),1,1))) -> 21.6 | L99: =IF($A99>$B$30,NA(),IF($A99>$A$8,"",OFFSET(InputIndexData!$E$15,CalculationsAndCharts!$A99+$A$11,IF($C$5,8,0),1,1))) -> 19.42 | M99: =IF($A99>$B$30,NA(),IF($A99>$A$8,"",OFFSET(InputIndexData!$F$15,CalculationsAndCharts!$A99+$A$11,IF($C$5,8,0),1,1))) -> 20.74 | N99: 0 | O99: 20.74 | P99: 9.372084477 | Q99: 11.10989697 | R99: 0.08484587525 | S99: 0.8484587525 | T99: 0.3360834095 | U99: 3945.274651 | V99: 0 | W99: 20.74 | X99: 10.15478077 | Y99: 11.19457798 | Z99: 0.04870388542 | AA99: 0.4870388542 | AB99: 0.141622748 | AC99: 3929.888715 | AW99: 4619840000
A100: 68 | B100: =IF(A100>$B$30,NA(),IF($A100>$A$8,"",OFFSET(InputPriceData!$B$15,$A100+$A$11,0,1,1))) -> 2021-03-26 | C100: =IF(A100>$B$30,NA(),IF($A100>$A$8,"",OFFSET(InputPriceData!$G$15,CalculationsAndCharts!$A100+$A$11,IF($C$5,8,0),1,1))) -> 5467850000 | D100: =IF(A100>$B$30,NA(),IF(A100>$A$8,"",OFFSET(InputPriceData!$C$15,CalculationsAndCharts!$A100+$A$11,IF($C$5,8,0),1,1))) -> 3917.12 | E100: =IF(A100>$B$30,NA(),IF(A100>$A$8,"",OFFSET(InputPriceData!$D$15,CalculationsAndCharts!$A100+$A$11,IF($C$5,8,0),1,1))) -> 3978.19 | F100: =IF(A100>$B$30,NA(),IF(A100>$A$8,"",OFFSET(InputPriceData!$E$15,CalculationsAndCharts!$A100+$A$11,IF($C$5,8,0),1,1))) -> 3917.12 | G100: =IF(A100>$B$30,NA(),IF(A100>$A$8,"",OFFSET(InputPriceData!$F$15,CalculationsAndCharts!$A100+$A$11,IF($C$5,8,0),1,1))) -> 3974.54 | H100: =IF($A100>$B$30,NA(),IF($A100>$A$8,"",OFFSET(InputIndexData!$B$15,$A100+$A$11,0,1,1))) -> 2021-03-26 | I100: =IF($A100>$B$30,NA(),IF($A100>$A$8,"",OFFSET(InputIndexData!$G$15,CalculationsAndCharts!$A100+$A$11,IF($C$5,8,0),1,1))) -> 0 | J100: =IF($A100>$B$30,NA(),IF($A100>$A$8,"",OFFSET(InputIndexData!$C$15,CalculationsAndCharts!$A100+$A$11,IF($C$5,8,0),1,1))) -> 19.32 | K100: =IF($A100>$B$30,NA(),IF($A100>$A$8,"",OFFSET(InputIndexData!$D$15,CalculationsAndCharts!$A100+$A$11,IF($C$5,8,0),1,1))) -> 21.49 | L100: =IF($A100>$B$30,NA(),IF($A100>$A$8,"",OFFSET(InputIndexData!$E$15,CalculationsAndCharts!$A100+$A$11,IF($C$5,8,0),1,1))) -> 18.68 | M100: =IF($A100>$B$30,NA(),IF($A100>$A$8,"",OFFSET(InputIndexData!$F$15,CalculationsAndCharts!$A100+$A$11,IF($C$5,8,0),1,1))) -> 18.86 | N100: 18.86 | O100: 0 | P100: 11.45476992 | Q100: 8.969874071 | R100: 0.1216615883 | S100: 1.216615883 | T100: 0.4030210696 | U100: 3932.206578 | V100: 18.86 | W100: 0 | X100: 11.22370507 | Y100: 10.18979672 | Z100: 0.04828298868 | AA100: 0.4828298868 | AB100: 0.141221894 | AC100: 3923.090959 | AW100: 5467850000
A101: 69 | B101: =IF(A101>$B$30,NA(),IF($A101>$A$8,"",OFFSET(InputPriceData!$B$15,$A101+$A$11,0,1,1))) -> 2021-03-25 | C101: =IF(A101>$B$30,NA(),IF($A101>$A$8,"",OFFSET(InputPriceData!$G$15,CalculationsAndCharts!$A101+$A$11,IF($C$5,8,0),1,1))) -> 4940800000 | D101: =IF(A101>$B$30,NA(),IF(A101>$A$8,"",OFFSET(InputPriceData!$C$15,CalculationsAndCharts!$A101+$A$11,IF($C$5,8,0),1,1))) -> 3879.34 | E101: =IF(A101>$B$30,NA(),IF(A101>$A$8,"",OFFSET(InputPriceData!$D$15,CalculationsAndCharts!$A101+$A$11,IF($C$5,8,0),1,1))) -> 3919.54 | F101: =IF(A101>$B$30,NA(),IF(A101>$A$8,"",OFFSET(InputPriceData!$E$15,CalculationsAndCharts!$A101+$A$11,IF($C$5,8,0),1,1))) -> 3853.5 | G101: =IF(A101>$B$30,NA(),IF(A101>$A$8,"",OFFSET(InputPriceData!$F$15,CalculationsAndCharts!$A101+$A$11,IF($C$5,8,0),1,1))) -> 3909.52 | H101: =IF($A101>$B$30,NA(),IF($A101>$A$8,"",OFFSET(InputIndexData!$B$15,$A101+$A$11,0,1,1))) -> 2021-03-25 | I101: =IF($A101>$B$30,NA(),IF($A101>$A$8,"",OFFSET(InputIndexData!$G$15,CalculationsAndCharts!$A101+$A$11,IF($C$5,8,0),1,1))) -> 0 | J101: =IF($A101>$B$30,NA(),IF($A101>$A$8,"",OFFSET(InputIndexData!$C$15,CalculationsAndCharts!$A101+$A$11,IF($C$5,8,0),1,1))) -> 20.8 | K101: =IF($A101>$B$30,NA(),IF($A101>$A$8,"",OFFSET(InputIndexData!$D$15,CalculationsAndCharts!$A101+$A$11,IF($C$5,8,0),1,1))) -> 23.55 | L101: =IF($A101>$B$30,NA(),IF($A101>$A$8,"",OFFSET(InputIndexData!$E$15,CalculationsAndCharts!$A101+$A$11,IF($C$5,8,0),1,1))) -> 19.81 | M101: =IF($A101>$B$30,NA(),IF($A101>$A$8,"",OFFSET(InputIndexData!$F$15,CalculationsAndCharts!$A101+$A$11,IF($C$5,8,0),1,1))) -> 19.81 | N101: 19.81 | O101: 0 | P101: 9.80916323 | Q101: 10.96317942 | R101: 0.0555553918 | S101: 0.555553918 | T101: 0.2828279851 | U101: 3903.627243 | V101: 19.81 | W101: 0 | X101: 10.41988455 | Y101: 11.2624069 | Z101: 0.03885760722 | AA101: 0.3885760722 | AB101: 0.1322453402 | AC101: 3914.630414 | AW101: 4940800000
A102: 70 | B102: =IF(A102>$B$30,NA(),IF($A102>$A$8,"",OFFSET(InputPriceData!$B$15,$A102+$A$11,0,1,1))) -> 2021-03-24 | C102: =IF(A102>$B$30,NA(),IF($A102>$A$8,"",OFFSET(InputPriceData!$G$15,CalculationsAndCharts!$A102+$A$11,IF($C$5,8,0),1,1))) -> 4766990000 | D102: =IF(A102>$B$30,NA(),IF(A102>$A$8,"",OFFSET(InputPriceData!$C$15,CalculationsAndCharts!$A102+$A$11,IF($C$5,8,0),1,1))) -> 3919.93 | E102: =IF(A102>$B$30,NA(),IF(A102>$A$8,"",OFFSET(InputPriceData!$D$15,CalculationsAndCharts!$A102+$A$11,IF($C$5,8,0),1,1))) -> 3942.08 | F102: =IF(A102>$B$30,NA(),IF(A102>$A$8,"",OFFSET(InputPriceData!$E$15,CalculationsAndCharts!$A102+$A$11,IF($C$5,8,0),1,1))) -> 3889.07 | G102: =IF(A102>$B$30,NA(),IF(A102>$A$8,"",OFFSET(InputPriceData!$F$15,CalculationsAndCharts!$A102+$A$11,IF($C$5,8,0),1,1))) -> 3889.14 | H102: =IF($A102>$B$30,NA(),IF($A102>$A$8,"",OFFSET(InputIndexData!$B$15,$A102+$A$11,0,1,1))) -> 2021-03-24 | I102: =IF($A102>$B$30,NA(),IF($A102>$A$8,"",OFFSET(InputIndexData!$G$15,CalculationsAndCharts!$A102+$A$11,IF($C$5,8,0),1,1))) -> 0 | J102: =IF($A102>$B$30,NA(),IF($A102>$A$8,"",OFFSET(InputIndexData!$C$15,CalculationsAndCharts!$A102+$A$11,IF($C$5,8,0),1,1))) -> 20.64 | K102: =IF($A102>$B$30,NA(),IF($A102>$A$8,"",OFFSET(InputIndexData!$D$15,CalculationsAndCharts!$A102+$A$11,IF($C$5,8,0),1,1))) -> 21.49 | L102: =IF($A102>$B$30,NA(),IF($A102>$A$8,"",OFFSET(InputIndexData!$E$15,CalculationsAndCharts!$A102+$A$11,IF($C$5,8,0),1,1))) -> 19.3 | M102: =IF($A102>$B$30,NA(),IF($A102>$A$8,"",OFFSET(InputIndexData!$F$15,CalculationsAndCharts!$A102+$A$11,IF($C$5,8,0),1,1))) -> 21.2 | N102: 0 | O102: 21.2 | P102: 7.586755059 | Q102: 13.39944151 | R102: 0.2769765195 | S102: 2.769765195 | T102: 0.6854118537 | U102: 3901.303343 | V102: 0 | W102: 21.2 | X102: 9.43145134 | Y102: 12.44792342 | Z102: 0.1378682311 | AA102: 1.378682311 | AB102: 0.2265411725 | AC102: 3915.409239 | AX102: 4766990000
A103: 71 | B103: =IF(A103>$B$30,NA(),IF($A103>$A$8,"",OFFSET(InputPriceData!$B$15,$A103+$A$11,0,1,1))) -> 2021-03-23 | C103: =IF(A103>$B$30,NA(),IF($A103>$A$8,"",OFFSET(InputPriceData!$G$15,CalculationsAndCharts!$A103+$A$11,IF($C$5,8,0),1,1))) -> 4645340000 | D103: =IF(A103>$B$30,NA(),IF(A103>$A$8,"",OFFSET(InputPriceData!$C$15,CalculationsAndCharts!$A103+$A$11,IF($C$5,8,0),1,1))) -> 3937.6 | E103: =IF(A103>$B$30,NA(),IF(A103>$A$8,"",OFFSET(InputPriceData!$D$15,CalculationsAndCharts!$A103+$A$11,IF($C$5,8,0),1,1))) -> 3949.13 | F103: =IF(A103>$B$30,NA(),IF(A103>$A$8,"",OFFSET(InputPriceData!$E$15,CalculationsAndCharts!$A103+$A$11,IF($C$5,8,0),1,1))) -> 3901.57 | G103: =IF(A103>$B$30,NA(),IF(A103>$A$8,"",OFFSET(InputPriceData!$F$15,CalculationsAndCharts!$A103+$A$11,IF($C$5,8,0),1,1))) -> 3910.52 | H103: =IF($A103>$B$30,NA(),IF($A103>$A$8,"",OFFSET(InputIndexData!$B$15,$A103+$A$11,0,1,1))) -> 2021-03-23 | I103: =IF($A103>$B$30,NA(),IF($A103>$A$8,"",OFFSET(InputIndexData!$G$15,CalculationsAndCharts!$A103+$A$11,IF($C$5,8,0),1,1))) -> 0 | J103: =IF($A103>$B$30,NA(),IF($A103>$A$8,"",OFFSET(InputIndexData!$C$15,CalculationsAndCharts!$A103+$A$11,IF($C$5,8,0),1,1))) -> 19.46 | K103: =IF($A103>$B$30,NA(),IF($A103>$A$8,"",OFFSET(InputIndexData!$D$15,CalculationsAndCharts!$A103+$A$11,IF($C$5,8,0),1,1))) -> 21.58 | L103: =IF($A103>$B$30,NA(),IF($A103>$A$8,"",OFFSET(InputIndexData!$E$15,CalculationsAndCharts!$A103+$A$11,IF($C$5,8,0),1,1))) -> 18.8 | M103: =IF($A103>$B$30,NA(),IF($A103>$A$8,"",OFFSET(InputIndexData!$F$15,CalculationsAndCharts!$A103+$A$11,IF($C$5,8,0),1,1))) -> 20.3 | N103: 0 | O103: 20.3 | P103: 9.272700628 | Q103: 11.66598407 | R103: 0.114299553 | S103: 1.14299553 | T103: 0.3896355509 | U103: 3927.804339 | V103: 0 | W103: 20.3 | X103: 10.42423569 | Y103: 11.5266522 | Z103: 0.05022193211 | AA103: 0.5022193211 | AB103: 0.1430685068 | AC103: 3923.103331 | AX103: 4645340000
A104: 72 | B104: =IF(A104>$B$30,NA(),IF($A104>$A$8,"",OFFSET(InputPriceData!$B$15,$A104+$A$11,0,1,1))) -> 2021-03-22 | C104: =IF(A104>$B$30,NA(),IF($A104>$A$8,"",OFFSET(InputPriceData!$G$15,CalculationsAndCharts!$A104+$A$11,IF($C$5,8,0),1,1))) -> 4311380000 | D104: =IF(A104>$B$30,NA(),IF(A104>$A$8,"",OFFSET(InputPriceData!$C$15,CalculationsAndCharts!$A104+$A$11,IF($C$5,8,0),1,1))) -> 3916.48 | E104: =IF(A104>$B$30,NA(),IF(A104>$A$8,"",OFFSET(InputPriceData!$D$15,CalculationsAndCharts!$A104+$A$11,IF($C$5,8,0),1,1))) -> 3955.31 | F104: =IF(A104>$B$30,NA(),IF(A104>$A$8,"",OFFSET(InputPriceData!$E$15,CalculationsAndCharts!$A104+$A$11,IF($C$5,8,0),1,1))) -> 3914.16 | G104: =IF(A104>$B$30,NA(),IF(A104>$A$8,"",OFFSET(InputPriceData!$F$15,CalculationsAndCharts!$A104+$A$11,IF($C$5,8,0),1,1))) -> 3940.59 | H104: =IF($A104>$B$30,NA(),IF($A104>$A$8,"",OFFSET(InputIndexData!$B$15,$A104+$A$11,0,1,1))) -> 2021-03-22 | I104: =IF($A104>$B$30,NA(),IF($A104>$A$8,"",OFFSET(InputIndexData!$G$15,CalculationsAndCharts!$A104+$A$11,IF($C$5,8,0),1,1))) -> 0 | J104: =IF($A104>$B$30,NA(),IF($A104>$A$8,"",OFFSET(InputIndexData!$C$15,CalculationsAndCharts!$A104+$A$11,IF($C$5,8,0),1,1))) -> 21.91 | K104: =IF($A104>$B$30,NA(),IF($A104>$A$8,"",OFFSET(InputIndexData!$D$15,CalculationsAndCharts!$A104+$A$11,IF($C$5,8,0),1,1))) -> 22.29 | L104: =IF($A104>$B$30,NA(),IF($A104>$A$8,"",OFFSET(InputIndexData!$E$15,CalculationsAndCharts!$A104+$A$11,IF($C$5,8,0),1,1))) -> 18.87 | M104: =IF($A104>$B$30,NA(),IF($A104>$A$8,"",OFFSET(InputIndexData!$F$15,CalculationsAndCharts!$A104+$A$11,IF($C$5,8,0),1,1))) -> 18.88 | N104: 18.88 | O104: 0 | P104: 11.33330077 | Q104: 9.747313867 | R104: 0.07523434095 | S104: 0.7523434095 | T104: 0.3186078926 | U104: 3938.838063 | V104: 18.88 | W104: 0 | X104: 11.52152366 | Y104: 10.6031419 | Z104: 0.04150938877 | AA104: 0.4150938877 | AB104: 0.1347708464 | AC104: 3925.204174 | AW104: 4311380000
A105: 73 | B105: =IF(A105>$B$30,NA(),IF($A105>$A$8,"",OFFSET(InputPriceData!$B$15,$A105+$A$11,0,1,1))) -> 2021-03-19 | C105: =IF(A105>$B$30,NA(),IF($A105>$A$8,"",OFFSET(InputPriceData!$G$15,CalculationsAndCharts!$A105+$A$11,IF($C$5,8,0),1,1))) -> 7725050000 | D105: =IF(A105>$B$30,NA(),IF(A105>$A$8,"",OFFSET(InputPriceData!$C$15,CalculationsAndCharts!$A105+$A$11,IF($C$5,8,0),1,1))) -> 3913.14 | E105: =IF(A105>$B$30,NA(),IF(A105>$A$8,"",OFFSET(InputPriceData!$D$15,CalculationsAndCharts!$A105+$A$11,IF($C$5,8,0),1,1))) -> 3930.12 | F105: =IF(A105>$B$30,NA(),IF(A105>$A$8,"",OFFSET(InputPriceData!$E$15,CalculationsAndCharts!$A105+$A$11,IF($C$5,8,0),1,1))) -> 3886.75 | G105: =IF(A105>$B$30,NA(),IF(A105>$A$8,"",OFFSET(InputPriceData!$F$15,CalculationsAndCharts!$A105+$A$11,IF($C$5,8,0),1,1))) -> 3913.1 | H105: =IF($A105>$B$30,NA(),IF($A105>$A$8,"",OFFSET(InputIndexData!$B$15,$A105+$A$11,0,1,1))) -> 2021-03-19 | I105: =IF($A105>$B$30,NA(),IF($A105>$A$8,"",OFFSET(InputIndexData!$G$15,CalculationsAndCharts!$A105+$A$11,IF($C$5,8,0),1,1))) -> 0 | J105: =IF($A105>$B$30,NA(),IF($A105>$A$8,"",OFFSET(InputIndexData!$C$15,CalculationsAndCharts!$A105+$A$11,IF($C$5,8,0),1,1))) -> 21.43 | K105: =IF($A105>$B$30,NA(),IF($A105>$A$8,"",OFFSET(InputIndexData!$D$15,CalculationsAndCharts!$A105+$A$11,IF($C$5,8,0),1,1))) -> 23.17 | L105: =IF($A105>$B$30,NA(),IF($A105>$A$8,"",OFFSET(InputIndexData!$E$15,CalculationsAndCharts!$A105+$A$11,IF($C$5,8,0),1,1))) -> 19.9 | M105: =IF($A105>$B$30,NA(),IF($A105>$A$8,"",OFFSET(InputIndexData!$F$15,CalculationsAndCharts!$A105+$A$11,IF($C$5,8,0),1,1))) -> 20.95 | N105: 0 | O105: 20.95 | P105: 9.656256494 | Q105: 11.91338361 | R105: 0.1046436595 | S105: 1.046436595 | T105: 0.3720793808 | U105: 3938.018886 | V105: 0 | W105: 20.95 | X105: 10.7469472 | Y105: 11.7192621 | Z105: 0.04327897296 | AA105: 0.4327897296 | AB105: 0.1364561647 | AC105: 3922.807629 | AX105: 7725050000
A106: 74 | B106: =IF(A106>$B$30,NA(),IF($A106>$A$8,"",OFFSET(InputPriceData!$B$15,$A106+$A$11,0,1,1))) -> 2021-03-18 | C106: =IF(A106>$B$30,NA(),IF($A106>$A$8,"",OFFSET(InputPriceData!$G$15,CalculationsAndCharts!$A106+$A$11,IF($C$5,8,0),1,1))) -> 4043170000 | D106: =IF(A106>$B$30,NA(),IF(A106>$A$8,"",OFFSET(InputPriceData!$C$15,CalculationsAndCharts!$A106+$A$11,IF($C$5,8,0),1,1))) -> 3953.5 | E106: =IF(A106>$B$30,NA(),IF(A106>$A$8,"",OFFSET(InputPriceData!$D$15,CalculationsAndCharts!$A106+$A$11,IF($C$5,8,0),1,1))) -> 3969.62 | F106: =IF(A106>$B$30,NA(),IF(A106>$A$8,"",OFFSET(InputPriceData!$E$15,CalculationsAndCharts!$A106+$A$11,IF($C$5,8,0),1,1))) -> 3910.86 | G106: =IF(A106>$B$30,NA(),IF(A106>$A$8,"",OFFSET(InputPriceData!$F$15,CalculationsAndCharts!$A106+$A$11,IF($C$5,8,0),1,1))) -> 3915.46 | H106: =IF($A106>$B$30,NA(),IF($A106>$A$8,"",OFFSET(InputIndexData!$B$15,$A106+$A$11,0,1,1))) -> 2021-03-18 | I106: =IF($A106>$B$30,NA(),IF($A106>$A$8,"",OFFSET(InputIndexData!$G$15,CalculationsAndCharts!$A106+$A$11,IF($C$5,8,0),1,1))) -> 0 | J106: =IF($A106>$B$30,NA(),IF($A106>$A$8,"",OFFSET(InputIndexData!$C$15,CalculationsAndCharts!$A106+$A$11,IF($C$5,8,0),1,1))) -> 18.95 | K106: =IF($A106>$B$30,NA(),IF($A106>$A$8,"",OFFSET(InputIndexData!$D$15,CalculationsAndCharts!$A106+$A$11,IF($C$5,8,0),1,1))) -> 22.6 | L106: =IF($A106>$B$30,NA(),IF($A106>$A$8,"",OFFSET(InputIndexData!$E$15,CalculationsAndCharts!$A106+$A$11,IF($C$5,8,0),1,1))) -> 18.95 | M106: =IF($A106>$B$30,NA(),IF($A106>$A$8,"",OFFSET(InputIndexData!$F$15,CalculationsAndCharts!$A106+$A$11,IF($C$5,8,0),1,1))) -> 21.58 | N106: 0 | O106: 21.58 | P106: 11.80209127 | Q106: 9.90524664 | R106: 0.08738260602 | S106: 0.8738260602 | T106: 0.3406956473 | U106: 3952.78477 | V106: 0 | W106: 21.58 | X106: 11.8782048 | Y106: 10.74760548 | Z106: 0.04996942915 | AA106: 0.4996942915 | AB106: 0.1428280278 | AC106: 3924.341617 | AX106: 4043170000
A107: 75 | B107: =IF(A107>$B$30,NA(),IF($A107>$A$8,"",OFFSET(InputPriceData!$B$15,$A107+$A$11,0,1,1))) -> 2021-03-17 | C107: =IF(A107>$B$30,NA(),IF($A107>$A$8,"",OFFSET(InputPriceData!$G$15,CalculationsAndCharts!$A107+$A$11,IF($C$5,8,0),1,1))) -> 4541620000 | D107: =IF(A107>$B$30,NA(),IF(A107>$A$8,"",OFFSET(InputPriceData!$C$15,CalculationsAndCharts!$A107+$A$11,IF($C$5,8,0),1,1))) -> 3949.57 | E107: =IF(A107>$B$30,NA(),IF(A107>$A$8,"",OFFSET(InputPriceData!$D$15,CalculationsAndCharts!$A107+$A$11,IF($C$5,8,0),1,1))) -> 3983.87 | F107: =IF(A107>$B$30,NA(),IF(A107>$A$8,"",OFFSET(InputPriceData!$E$15,CalculationsAndCharts!$A107+$A$11,IF($C$5,8,0),1,1))) -> 3935.74 | G107: =IF(A107>$B$30,NA(),IF(A107>$A$8,"",OFFSET(InputPriceData!$F$15,CalculationsAndCharts!$A107+$A$11,IF($C$5,8,0),1,1))) -> 3974.12 | H107: =IF($A107>$B$30,NA(),IF($A107>$A$8,"",OFFSET(InputIndexData!$B$15,$A107+$A$11,0,1,1))) -> 2021-03-17 | I107: =IF($A107>$B$30,NA(),IF($A107>$A$8,"",OFFSET(InputIndexData!$G$15,CalculationsAndCharts!$A107+$A$11,IF($C$5,8,0),1,1))) -> 0 | J107: =IF($A107>$B$30,NA(),IF($A107>$A$8,"",OFFSET(InputIndexData!$C$15,CalculationsAndCharts!$A107+$A$11,IF($C$5,8,0),1,1))) -> 20.1 | K107: =IF($A107>$B$30,NA(),IF($A107>$A$8,"",OFFSET(InputIndexData!$D$15,CalculationsAndCharts!$A107+$A$11,IF($C$5,8,0),1,1))) -> 20.95 | L107: =IF($A107>$B$30,NA(),IF($A107>$A$8,"",OFFSET(InputIndexData!$E$15,CalculationsAndCharts!$A107+$A$11,IF($C$5,8,0),1,1))) -> 19.18 | M107: =IF($A107>$B$30,NA(),IF($A107>$A$8,"",OFFSET(InputIndexData!$F$15,CalculationsAndCharts!$A107+$A$11,IF($C$5,8,0),1,1))) -> 19.23 | N107: 19.23 | O107: 0 | P107: 14.42477822 | Q107: 7.310857005 | R107: 0.3272928474 | S107: 3.272928474 | T107: 0.7768960861 | U107: 3972.072352 | V107: 19.23 | W107: 0 | X107: 13.12854215 | Y107: 9.607353425 | Z107: 0.154873476 | AA107: 1.54873476 | AB107: 0.2427366438 | AC107: 3925.821535 | AW107: 4541620000
A108: 76 | B108: =IF(A108>$B$30,NA(),IF($A108>$A$8,"",OFFSET(InputPriceData!$B$15,$A108+$A$11,0,1,1))) -> 2021-03-16 | C108: =IF(A108>$B$30,NA(),IF($A108>$A$8,"",OFFSET(InputPriceData!$G$15,CalculationsAndCharts!$A108+$A$11,IF($C$5,8,0),1,1))) -> 4604870000 | D108: =IF(A108>$B$30,NA(),IF(A108>$A$8,"",OFFSET(InputPriceData!$C$15,CalculationsAndCharts!$A108+$A$11,IF($C$5,8,0),1,1))) -> 3973.59 | E108: =IF(A108>$B$30,NA(),IF(A108>$A$8,"",OFFSET(InputPriceData!$D$15,CalculationsAndCharts!$A108+$A$11,IF($C$5,8,0),1,1))) -> 3981.04 | F108: =IF(A108>$B$30,NA(),IF(A108>$A$8,"",OFFSET(InputPriceData!$E$15,CalculationsAndCharts!$A108+$A$11,IF($C$5,8,0),1,1))) -> 3953.44 | G108: =IF(A108>$B$30,NA(),IF(A108>$A$8,"",OFFSET(InputPriceData!$F$15,CalculationsAndCharts!$A108+$A$11,IF($C$5,8,0),1,1))) -> 3962.71 | H108: =IF($A108>$B$30,NA(),IF($A108>$A$8,"",OFFSET(InputIndexData!$B$15,$A108+$A$11,0,1,1))) -> 2021-03-16 | I108: =IF($A108>$B$30,NA(),IF($A108>$A$8,"",OFFSET(InputIndexData!$G$15,CalculationsAndCharts!$A108+$A$11,IF($C$5,8,0),1,1))) -> 0 | J108: =IF($A108>$B$30,NA(),IF($A108>$A$8,"",OFFSET(InputIndexData!$C$15,CalculationsAndCharts!$A108+$A$11,IF($C$5,8,0),1,1))) -> 20.14 | K108: =IF($A108>$B$30,NA(),IF($A108>$A$8,"",OFFSET(InputIndexData!$D$15,CalculationsAndCharts!$A108+$A$11,IF($C$5,8,0),1,1))) -> 20.31 | L108: =IF($A108>$B$30,NA(),IF($A108>$A$8,"",OFFSET(InputIndexData!$E$15,CalculationsAndCharts!$A108+$A$11,IF($C$5,8,0),1,1))) -> 19.33 | M108: =IF($A108>$B$30,NA(),IF($A108>$A$8,"",OFFSET(InputIndexData!$F$15,CalculationsAndCharts!$A108+$A$11,IF($C$5,8,0),1,1))) -> 19.79 | N108: 0 | O108: 19.79 | P108: 13.35695116 | Q108: 8.935491895 | R108: 0.1983388392 | S108: 1.983388392 | T108: 0.5424342532 | U108: 3964.942001 | V108: 0 | W108: 19.79 | X108: 12.48628343 | Y108: 10.61865379 | Z108: 0.08083245667 | AA108: 0.8083245667 | AB108: 0.1722213873 | AC108: 3910.339725 | AX108: 4604870000
A109: 77 | B109: =IF(A109>$B$30,NA(),IF($A109>$A$8,"",OFFSET(InputPriceData!$B$15,$A109+$A$11,0,1,1))) -> 2021-03-15 | C109: =IF(A109>$B$30,NA(),IF($A109>$A$8,"",OFFSET(InputPriceData!$G$15,CalculationsAndCharts!$A109+$A$11,IF($C$5,8,0),1,1))) -> 4882190000 | D109: =IF(A109>$B$30,NA(),IF(A109>$A$8,"",OFFSET(InputPriceData!$C$15,CalculationsAndCharts!$A109+$A$11,IF($C$5,8,0),1,1))) -> 3942.96 | E109: =IF(A109>$B$30,NA(),IF(A109>$A$8,"",OFFSET(InputPriceData!$D$15,CalculationsAndCharts!$A109+$A$11,IF($C$5,8,0),1,1))) -> 3970.08 | F109: =IF(A109>$B$30,NA(),IF(A109>$A$8,"",OFFSET(InputPriceData!$E$15,CalculationsAndCharts!$A109+$A$11,IF($C$5,8,0),1,1))) -> 3923.54 | G109: =IF(A109>$B$30,NA(),IF(A109>$A$8,"",OFFSET(InputPriceData!$F$15,CalculationsAndCharts!$A109+$A$11,IF($C$5,8,0),1,1))) -> 3968.94 | H109: =IF($A109>$B$30,NA(),IF($A109>$A$8,"",OFFSET(InputIndexData!$B$15,$A109+$A$11,0,1,1))) -> 2021-03-15 | I109: =IF($A109>$B$30,NA(),IF($A109>$A$8,"",OFFSET(InputIndexData!$G$15,CalculationsAndCharts!$A109+$A$11,IF($C$5,8,0),1,1))) -> 0 | J109: =IF($A109>$B$30,NA(),IF($A109>$A$8,"",OFFSET(InputIndexData!$C$15,CalculationsAndCharts!$A109+$A$11,IF($C$5,8,0),1,1))) -> 21.84 | K109: =IF($A109>$B$30,NA(),IF($A109>$A$8,"",OFFSET(InputIndexData!$D$15,CalculationsAndCharts!$A109+$A$11,IF($C$5,8,0),1,1))) -> 21.86 | L109: =IF($A109>$B$30,NA(),IF($A109>$A$8,"",OFFSET(InputIndexData!$E$15,CalculationsAndCharts!$A109+$A$11,IF($C$5,8,0),1,1))) -> 19.87 | M109: =IF($A109>$B$30,NA(),IF($A109>$A$8,"",OFFSET(InputIndexData!$F$15,CalculationsAndCharts!$A109+$A$11,IF($C$5,8,0),1,1))) -> 20.03 | N109: 20.03 | O109: 0 | P109: 16.32516253 | Q109: 6.523378983 | R109: 0.4289892749 | S109: 4.289892749 | T109: 0.9617986816 | U109: 3967.587989 | V109: 20.03 | W109: 0 | X109: 13.80062905 | Y109: 9.65324892 | Z109: 0.1768312417 | AA109: 1.768312417 | AB109: 0.2636488016 | AC109: 3899.44396 | AW109: 4882190000
A110: 78 | B110: =IF(A110>$B$30,NA(),IF($A110>$A$8,"",OFFSET(InputPriceData!$B$15,$A110+$A$11,0,1,1))) -> 2021-03-12 | C110: =IF(A110>$B$30,NA(),IF($A110>$A$8,"",OFFSET(InputPriceData!$G$15,CalculationsAndCharts!$A110+$A$11,IF($C$5,8,0),1,1))) -> 4469240000 | D110: =IF(A110>$B$30,NA(),IF(A110>$A$8,"",OFFSET(InputPriceData!$C$15,CalculationsAndCharts!$A110+$A$11,IF($C$5,8,0),1,1))) -> 3924.52 | E110: =IF(A110>$B$30,NA(),IF(A110>$A$8,"",OFFSET(InputPriceData!$D$15,CalculationsAndCharts!$A110+$A$11,IF($C$5,8,0),1,1))) -> 3944.99 | F110: =IF(A110>$B$30,NA(),IF(A110>$A$8,"",OFFSET(InputPriceData!$E$15,CalculationsAndCharts!$A110+$A$11,IF($C$5,8,0),1,1))) -> 3915.21 | G110: =IF(A110>$B$30,NA(),IF(A110>$A$8,"",OFFSET(InputPriceData!$F$15,CalculationsAndCharts!$A110+$A$11,IF($C$5,8,0),1,1))) -> 3943.34 | H110: =IF($A110>$B$30,NA(),IF($A110>$A$8,"",OFFSET(InputIndexData!$B$15,$A110+$A$11,0,1,1))) -> 2021-03-12 | I110: =IF($A110>$B$30,NA(),IF($A110>$A$8,"",OFFSET(InputIndexData!$G$15,CalculationsAndCharts!$A110+$A$11,IF($C$5,8,0),1,1))) -> 0 | J110: =IF($A110>$B$30,NA(),IF($A110>$A$8,"",OFFSET(InputIndexData!$C$15,CalculationsAndCharts!$A110+$A$11,IF($C$5,8,0),1,1))) -> 22.57 | K110: =IF($A110>$B$30,NA(),IF($A110>$A$8,"",OFFSET(InputIndexData!$D$15,CalculationsAndCharts!$A110+$A$11,IF($C$5,8,0),1,1))) -> 22.99 | L110: =IF($A110>$B$30,NA(),IF($A110>$A$8,"",OFFSET(InputIndexData!$E$15,CalculationsAndCharts!$A110+$A$11,IF($C$5,8,0),1,1))) -> 20.63 | M110: =IF($A110>$B$30,NA(),IF($A110>$A$8,"",OFFSET(InputIndexData!$F$15,CalculationsAndCharts!$A110+$A$11,IF($C$5,8,0),1,1))) -> 20.69 | N110: 20.69 | O110: 0 | P110: 15.50186531 | Q110: 7.973018756 | R110: 0.3207190853 | S110: 3.207190853 | T110: 0.7649437915 | U110: 3933.548262 | V110: 20.69 | W110: 0 | X110: 13.1449058 | Y110: 10.66938039 | Z110: 0.1039512313 | AA110: 1.039512313 | AB110: 0.1942392679 | AC110: 3874.561067 | AW110: 4469240000
A111: 79 | B111: =IF(A111>$B$30,NA(),IF($A111>$A$8,"",OFFSET(InputPriceData!$B$15,$A111+$A$11,0,1,1))) -> 2021-03-11 | C111: =IF(A111>$B$30,NA(),IF($A111>$A$8,"",OFFSET(InputPriceData!$G$15,CalculationsAndCharts!$A111+$A$11,IF($C$5,8,0),1,1))) -> 5300010000 | D111: =IF(A111>$B$30,NA(),IF(A111>$A$8,"",OFFSET(InputPriceData!$C$15,CalculationsAndCharts!$A111+$A$11,IF($C$5,8,0),1,1))) -> 3915.54 | E111: =IF(A111>$B$30,NA(),IF(A111>$A$8,"",OFFSET(InputPriceData!$D$15,CalculationsAndCharts!$A111+$A$11,IF($C$5,8,0),1,1))) -> 3960.27 | F111: =IF(A111>$B$30,NA(),IF(A111>$A$8,"",OFFSET(InputPriceData!$E$15,CalculationsAndCharts!$A111+$A$11,IF($C$5,8,0),1,1))) -> 3915.54 | G111: =IF(A111>$B$30,NA(),IF(A111>$A$8,"",OFFSET(InputPriceData!$F$15,CalculationsAndCharts!$A111+$A$11,IF($C$5,8,0),1,1))) -> 3939.34 | H111: =IF($A111>$B$30,NA(),IF($A111>$A$8,"",OFFSET(InputIndexData!$B$15,$A111+$A$11,0,1,1))) -> 2021-03-11 | I111: =IF($A111>$B$30,NA(),IF($A111>$A$8,"",OFFSET(InputIndexData!$G$15,CalculationsAndCharts!$A111+$A$11,IF($C$5,8,0),1,1))) -> 0 | J111: =IF($A111>$B$30,NA(),IF($A111>$A$8,"",OFFSET(InputIndexData!$C$15,CalculationsAndCharts!$A111+$A$11,IF($C$5,8,0),1,1))) -> 22.5 | K111: =IF($A111>$B$30,NA(),IF($A111>$A$8,"",OFFSET(InputIndexData!$D$15,CalculationsAndCharts!$A111+$A$11,IF($C$5,8,0),1,1))) -> 22.5 | L111: =IF($A111>$B$30,NA(),IF($A111>$A$8,"",OFFSET(InputIndexData!$E$15,CalculationsAndCharts!$A111+$A$11,IF($C$5,8,0),1,1))) -> 21.45 | M111: =IF($A111>$B$30,NA(),IF($A111>$A$8,"",OFFSET(InputIndexData!$F$15,CalculationsAndCharts!$A111+$A$11,IF($C$5,8,0),1,1))) -> 21.91 | N111: 21.91 | O111: 0 | P111: 14.34894649 | Q111: 9.744800702 | R111: 0.1910928939 | S111: 1.910928939 | T111: 0.5292598071 | U111: 3901.682991 | V111: 21.91 | W111: 0 | X111: 12.35068535 | Y111: 11.79247306 | Z111: 0.02312092127 | AA111: 0.2312092127 | AB111: 0.1172580203 | AC111: 3857.980997 | AW111: 5300010000
A112: 80 | B112: =IF(A112>$B$30,NA(),IF($A112>$A$8,"",OFFSET(InputPriceData!$B$15,$A112+$A$11,0,1,1))) -> 2021-03-10 | C112: =IF(A112>$B$30,NA(),IF($A112>$A$8,"",OFFSET(InputPriceData!$G$15,CalculationsAndCharts!$A112+$A$11,IF($C$5,8,0),1,1))) -> 5827250000 | D112: =IF(A112>$B$30,NA(),IF(A112>$A$8,"",OFFSET(InputPriceData!$C$15,CalculationsAndCharts!$A112+$A$11,IF($C$5,8,0),1,1))) -> 3891.99 | E112: =IF(A112>$B$30,NA(),IF(A112>$A$8,"",OFFSET(InputPriceData!$D$15,CalculationsAndCharts!$A112+$A$11,IF($C$5,8,0),1,1))) -> 3917.35 | F112: =IF(A112>$B$30,NA(),IF(A112>$A$8,"",OFFSET(InputPriceData!$E$15,CalculationsAndCharts!$A112+$A$11,IF($C$5,8,0),1,1))) -> 3885.73 | G112: =IF(A112>$B$30,NA(),IF(A112>$A$8,"",OFFSET(InputPriceData!$F$15,CalculationsAndCharts!$A112+$A$11,IF($C$5,8,0),1,1))) -> 3898.81 | H112: =IF($A112>$B$30,NA(),IF($A112>$A$8,"",OFFSET(InputIndexData!$B$15,$A112+$A$11,0,1,1))) -> 2021-03-10 | I112: =IF($A112>$B$30,NA(),IF($A112>$A$8,"",OFFSET(InputIndexData!$G$15,CalculationsAndCharts!$A112+$A$11,IF($C$5,8,0),1,1))) -> 0 | J112: =IF($A112>$B$30,NA(),IF($A112>$A$8,"",OFFSET(InputIndexData!$C$15,CalculationsAndCharts!$A112+$A$11,IF($C$5,8,0),1,1))) -> 23.76 | K112: =IF($A112>$B$30,NA(),IF($A112>$A$8,"",OFFSET(InputIndexData!$D$15,CalculationsAndCharts!$A112+$A$11,IF($C$5,8,0),1,1))) -> 23.87 | L112: =IF($A112>$B$30,NA(),IF($A112>$A$8,"",OFFSET(InputIndexData!$E$15,CalculationsAndCharts!$A112+$A$11,IF($C$5,8,0),1,1))) -> 22.38 | M112: =IF($A112>$B$30,NA(),IF($A112>$A$8,"",OFFSET(InputIndexData!$F$15,CalculationsAndCharts!$A112+$A$11,IF($C$5,8,0),1,1))) -> 22.56 | N112: 22.56 | O112: 0 | P112: 12.66871237 | Q112: 11.91031197 | R112: 0.03085558183 | S112: 0.3085558183 | T112: 0.2379192397 | U112: 3859.344688 | V112: 22.56 | W112: 0 | X112: 11.34444171 | Y112: 13.03378601 | Z112: 0.06929722828 | AA112: 0.6929722828 | AB112: 0.1612354555 | AC112: 3847.173767 | AW112: 5827250000
A113: 81 | B113: =IF(A113>$B$30,NA(),IF($A113>$A$8,"",OFFSET(InputPriceData!$B$15,$A113+$A$11,0,1,1))) -> 2021-03-09 | C113: =IF(A113>$B$30,NA(),IF($A113>$A$8,"",OFFSET(InputPriceData!$G$15,CalculationsAndCharts!$A113+$A$11,IF($C$5,8,0),1,1))) -> 5496340000 | D113: =IF(A113>$B$30,NA(),IF(A113>$A$8,"",OFFSET(InputPriceData!$C$15,CalculationsAndCharts!$A113+$A$11,IF($C$5,8,0),1,1))) -> 3851.93 | E113: =IF(A113>$B$30,NA(),IF(A113>$A$8,"",OFFSET(InputPriceData!$D$15,CalculationsAndCharts!$A113+$A$11,IF($C$5,8,0),1,1))) -> 3903.76 | F113: =IF(A113>$B$30,NA(),IF(A113>$A$8,"",OFFSET(InputPriceData!$E$15,CalculationsAndCharts!$A113+$A$11,IF($C$5,8,0),1,1))) -> 3851.93 | G113: =IF(A113>$B$30,NA(),IF(A113>$A$8,"",OFFSET(InputPriceData!$F$15,CalculationsAndCharts!$A113+$A$11,IF($C$5,8,0),1,1))) -> 3875.44 | H113: =IF($A113>$B$30,NA(),IF($A113>$A$8,"",OFFSET(InputIndexData!$B$15,$A113+$A$11,0,1,1))) -> 2021-03-09 | I113: =IF($A113>$B$30,NA(),IF($A113>$A$8,"",OFFSET(InputIndexData!$G$15,CalculationsAndCharts!$A113+$A$11,IF($C$5,8,0),1,1))) -> 0 | J113: =IF($A113>$B$30,NA(),IF($A113>$A$8,"",OFFSET(InputIndexData!$C$15,CalculationsAndCharts!$A113+$A$11,IF($C$5,8,0),1,1))) -> 25.11 | K113: =IF($A113>$B$30,NA(),IF($A113>$A$8,"",OFFSET(InputIndexData!$D$15,CalculationsAndCharts!$A113+$A$11,IF($C$5,8,0),1,1))) -> 25.25 | L113: =IF($A113>$B$30,NA(),IF($A113>$A$8,"",OFFSET(InputIndexData!$E$15,CalculationsAndCharts!$A113+$A$11,IF($C$5,8,0),1,1))) -> 22.9 | M113: =IF($A113>$B$30,NA(),IF($A113>$A$8,"",OFFSET(InputIndexData!$F$15,CalculationsAndCharts!$A113+$A$11,IF($C$5,8,0),1,1))) -> 24.03 | N113: 24.03 | O113: 0 | P113: 10.47064846 | Q113: 14.55704796 | R113: 0.1632750295 | S113: 1.632750295 | T113: 0.4786818718 | U113: 3847.023741 | V113: 24.03 | W113: 0 | X113: 10.16385662 | Y113: 14.40576349 | Z113: 0.1726483811 | AA113: 1.726483811 | AB113: 0.2596651249 | AC113: 3837.247749 | AW113: 5496340000
A114: 82 | B114: =IF(A114>$B$30,NA(),IF($A114>$A$8,"",OFFSET(InputPriceData!$B$15,$A114+$A$11,0,1,1))) -> 2021-03-08 | C114: =IF(A114>$B$30,NA(),IF($A114>$A$8,"",OFFSET(InputPriceData!$G$15,CalculationsAndCharts!$A114+$A$11,IF($C$5,8,0),1,1))) -> 5852240000 | D114: =IF(A114>$B$30,NA(),IF(A114>$A$8,"",OFFSET(InputPriceData!$C$15,CalculationsAndCharts!$A114+$A$11,IF($C$5,8,0),1,1))) -> 3844.39 | E114: =IF(A114>$B$30,NA(),IF(A114>$A$8,"",OFFSET(InputPriceData!$D$15,CalculationsAndCharts!$A114+$A$11,IF($C$5,8,0),1,1))) -> 3881.06 | F114: =IF(A114>$B$30,NA(),IF(A114>$A$8,"",OFFSET(InputPriceData!$E$15,CalculationsAndCharts!$A114+$A$11,IF($C$5,8,0),1,1))) -> 3819.25 | G114: =IF(A114>$B$30,NA(),IF(A114>$A$8,"",OFFSET(InputPriceData!$F$15,CalculationsAndCharts!$A114+$A$11,IF($C$5,8,0),1,1))) -> 3821.35 | H114: =IF($A114>$B$30,NA(),IF($A114>$A$8,"",OFFSET(InputIndexData!$B$15,$A114+$A$11,0,1,1))) -> 2021-03-08 | I114: =IF($A114>$B$30,NA(),IF($A114>$A$8,"",OFFSET(InputIndexData!$G$15,CalculationsAndCharts!$A114+$A$11,IF($C$5,8,0),1,1))) -> 0 | J114: =IF($A114>$B$30,NA(),IF($A114>$A$8,"",OFFSET(InputIndexData!$C$15,CalculationsAndCharts!$A114+$A$11,IF($C$5,8,0),1,1))) -> 27.61 | K114: =IF($A114>$B$30,NA(),IF($A114>$A$8,"",OFFSET(InputIndexData!$D$15,CalculationsAndCharts!$A114+$A$11,IF($C$5,8,0),1,1))) -> 28.39 | L114: =IF($A114>$B$30,NA(),IF($A114>$A$8,"",OFFSET(InputIndexData!$E$15,CalculationsAndCharts!$A114+$A$11,IF($C$5,8,0),1,1))) -> 24.07 | M114: =IF($A114>$B$30,NA(),IF($A114>$A$8,"",OFFSET(InputIndexData!$F$15,CalculationsAndCharts!$A114+$A$11,IF($C$5,8,0),1,1))) -> 25.47 | N114: 0 | O114: 25.47 | P114: 7.457459227 | Q114: 17.79194751 | R114: 0.4092961192 | S114: 4.092961192 | T114: 0.9259929441 | U114: 3820.931519 | V114: 0 | W114: 25.47 | X114: 8.704262584 | Y114: 15.92215964 | Z114: 0.293095524 | AA114: 2.93095524 | AB114: 0.3743766896 | AC114: 3823.852195 | AX114: 5852240000
A115: 83 | B115: =IF(A115>$B$30,NA(),IF($A115>$A$8,"",OFFSET(InputPriceData!$B$15,$A115+$A$11,0,1,1))) -> 2021-03-05 | C115: =IF(A115>$B$30,NA(),IF($A115>$A$8,"",OFFSET(InputPriceData!$G$15,CalculationsAndCharts!$A115+$A$11,IF($C$5,8,0),1,1))) -> 6842570000 | D115: =IF(A115>$B$30,NA(),IF(A115>$A$8,"",OFFSET(InputPriceData!$C$15,CalculationsAndCharts!$A115+$A$11,IF($C$5,8,0),1,1))) -> 3793.58 | E115: =IF(A115>$B$30,NA(),IF(A115>$A$8,"",OFFSET(InputPriceData!$D$15,CalculationsAndCharts!$A115+$A$11,IF($C$5,8,0),1,1))) -> 3851.69 | F115: =IF(A115>$B$30,NA(),IF(A115>$A$8,"",OFFSET(InputPriceData!$E$15,CalculationsAndCharts!$A115+$A$11,IF($C$5,8,0),1,1))) -> 3730.19 | G115: =IF(A115>$B$30,NA(),IF(A115>$A$8,"",OFFSET(InputPriceData!$F$15,CalculationsAndCharts!$A115+$A$11,IF($C$5,8,0),1,1))) -> 3841.94 | H115: =IF($A115>$B$30,NA(),IF($A115>$A$8,"",OFFSET(InputIndexData!$B$15,$A115+$A$11,0,1,1))) -> 2021-03-05 | I115: =IF($A115>$B$30,NA(),IF($A115>$A$8,"",OFFSET(InputIndexData!$G$15,CalculationsAndCharts!$A115+$A$11,IF($C$5,8,0),1,1))) -> 0 | J115: =IF($A115>$B$30,NA(),IF($A115>$A$8,"",OFFSET(InputIndexData!$C$15,CalculationsAndCharts!$A115+$A$11,IF($C$5,8,0),1,1))) -> 29.48 | K115: =IF($A115>$B$30,NA(),IF($A115>$A$8,"",OFFSET(InputIndexData!$D$15,CalculationsAndCharts!$A115+$A$11,IF($C$5,8,0),1,1))) -> 30.03 | L115: =IF($A115>$B$30,NA(),IF($A115>$A$8,"",OFFSET(InputIndexData!$E$15,CalculationsAndCharts!$A115+$A$11,IF($C$5,8,0),1,1))) -> 24.33 | M115: =IF($A115>$B$30,NA(),IF($A115>$A$8,"",OFFSET(InputIndexData!$F$15,CalculationsAndCharts!$A115+$A$11,IF($C$5,8,0),1,1))) -> 24.66 | N115: 24.66 | O115: 0 | P115: 9.114672388 | Q115: 16.08571362 | R115: 0.2766242734 | S115: 2.766242734 | T115: 0.6847714061 | U115: 3815.695388 | V115: 24.66 | W115: 0 | X115: 9.620500751 | Y115: 14.91712382 | Z115: 0.2158571174 | AA115: 2.158571174 | AB115: 0.3008163023 | AC115: 3825.349524 | AW115: 6842570000
A116: 84 | B116: =IF(A116>$B$30,NA(),IF($A116>$A$8,"",OFFSET(InputPriceData!$B$15,$A116+$A$11,0,1,1))) -> 2021-03-04 | C116: =IF(A116>$B$30,NA(),IF($A116>$A$8,"",OFFSET(InputPriceData!$G$15,CalculationsAndCharts!$A116+$A$11,IF($C$5,8,0),1,1))) -> 7142240000 | D116: =IF(A116>$B$30,NA(),IF(A116>$A$8,"",OFFSET(InputPriceData!$C$15,CalculationsAndCharts!$A116+$A$11,IF($C$5,8,0),1,1))) -> 3818.53 | E116: =IF(A116>$B$30,NA(),IF(A116>$A$8,"",OFFSET(InputPriceData!$D$15,CalculationsAndCharts!$A116+$A$11,IF($C$5,8,0),1,1))) -> 3843.67 | F116: =IF(A116>$B$30,NA(),IF(A116>$A$8,"",OFFSET(InputPriceData!$E$15,CalculationsAndCharts!$A116+$A$11,IF($C$5,8,0),1,1))) -> 3723.34 | G116: =IF(A116>$B$30,NA(),IF(A116>$A$8,"",OFFSET(InputPriceData!$F$15,CalculationsAndCharts!$A116+$A$11,IF($C$5,8,0),1,1))) -> 3768.47 | H116: =IF($A116>$B$30,NA(),IF($A116>$A$8,"",OFFSET(InputIndexData!$B$15,$A116+$A$11,0,1,1))) -> 2021-03-04 | I116: =IF($A116>$B$30,NA(),IF($A116>$A$8,"",OFFSET(InputIndexData!$G$15,CalculationsAndCharts!$A116+$A$11,IF($C$5,8,0),1,1))) -> 0 | J116: =IF($A116>$B$30,NA(),IF($A116>$A$8,"",OFFSET(InputIndexData!$C$15,CalculationsAndCharts!$A116+$A$11,IF($C$5,8,0),1,1))) -> 26.52 | K116: =IF($A116>$B$30,NA(),IF($A116>$A$8,"",OFFSET(InputIndexData!$D$15,CalculationsAndCharts!$A116+$A$11,IF($C$5,8,0),1,1))) -> 31.9 | L116: =IF($A116>$B$30,NA(),IF($A116>$A$8,"",OFFSET(InputIndexData!$E$15,CalculationsAndCharts!$A116+$A$11,IF($C$5,8,0),1,1))) -> 24.93 | M116: =IF($A116>$B$30,NA(),IF($A116>$A$8,"",OFFSET(InputIndexData!$F$15,CalculationsAndCharts!$A116+$A$11,IF($C$5,8,0),1,1))) -> 28.57 | N116: 0 | O116: 28.57 | P116: 5.660155141 | Q116: 19.66031665 | R116: 0.5529184486 | S116: 5.529184486 | T116: 1.187124452 | U116: 3758.68419 | V116: 0 | W116: 28.57 | X116: 8.037395567 | Y116: 16.48734738 | Z116: 0.3445478871 | AA116: 3.445478871 | AB116: 0.4233789401 | AC116: 3818.211649 | AX116: 7142240000
A117: 85 | B117: =IF(A117>$B$30,NA(),IF($A117>$A$8,"",OFFSET(InputPriceData!$B$15,$A117+$A$11,0,1,1))) -> 2021-03-03 | C117: =IF(A117>$B$30,NA(),IF($A117>$A$8,"",OFFSET(InputPriceData!$G$15,CalculationsAndCharts!$A117+$A$11,IF($C$5,8,0),1,1))) -> 6150790000 | D117: =IF(A117>$B$30,NA(),IF(A117>$A$8,"",OFFSET(InputPriceData!$C$15,CalculationsAndCharts!$A117+$A$11,IF($C$5,8,0),1,1))) -> 3863.99 | E117: =IF(A117>$B$30,NA(),IF(A117>$A$8,"",OFFSET(InputPriceData!$D$15,CalculationsAndCharts!$A117+$A$11,IF($C$5,8,0),1,1))) -> 3874.47 | F117: =IF(A117>$B$30,NA(),IF(A117>$A$8,"",OFFSET(InputPriceData!$E$15,CalculationsAndCharts!$A117+$A$11,IF($C$5,8,0),1,1))) -> 3818.86 | G117: =IF(A117>$B$30,NA(),IF(A117>$A$8,"",OFFSET(InputPriceData!$F$15,CalculationsAndCharts!$A117+$A$11,IF($C$5,8,0),1,1))) -> 3819.72 | H117: =IF($A117>$B$30,NA(),IF($A117>$A$8,"",OFFSET(InputIndexData!$B$15,$A117+$A$11,0,1,1))) -> 2021-03-03 | I117: =IF($A117>$B$30,NA(),IF($A117>$A$8,"",OFFSET(InputIndexData!$G$15,CalculationsAndCharts!$A117+$A$11,IF($C$5,8,0),1,1))) -> 0 | J117: =IF($A117>$B$30,NA(),IF($A117>$A$8,"",OFFSET(InputIndexData!$C$15,CalculationsAndCharts!$A117+$A$11,IF($C$5,8,0),1,1))) -> 22.8 | K117: =IF($A117>$B$30,NA(),IF($A117>$A$8,"",OFFSET(InputIndexData!$D$15,CalculationsAndCharts!$A117+$A$11,IF($C$5,8,0),1,1))) -> 26.79 | L117: =IF($A117>$B$30,NA(),IF($A117>$A$8,"",OFFSET(InputIndexData!$E$15,CalculationsAndCharts!$A117+$A$11,IF($C$5,8,0),1,1))) -> 22.45 | M117: =IF($A117>$B$30,NA(),IF($A117>$A$8,"",OFFSET(InputIndexData!$F$15,CalculationsAndCharts!$A117+$A$11,IF($C$5,8,0),1,1))) -> 26.67 | N117: 0 | O117: 26.67 | P117: 6.917967395 | Q117: 17.68038702 | R117: 0.4375258226 | S117: 4.375258226 | T117: 0.9773196774 | U117: 3820.76573 | V117: 0 | W117: 26.67 | X117: 8.883437205 | Y117: 15.2154892 | Z117: 0.2627523427 | AA117: 2.627523427 | AB117: 0.3454784216 | AC117: 3854.734017 | AX117: 6150790000
A118: 86 | B118: =IF(A118>$B$30,NA(),IF($A118>$A$8,"",OFFSET(InputPriceData!$B$15,$A118+$A$11,0,1,1))) -> 2021-03-02 | C118: =IF(A118>$B$30,NA(),IF($A118>$A$8,"",OFFSET(InputPriceData!$G$15,CalculationsAndCharts!$A118+$A$11,IF($C$5,8,0),1,1))) -> 5493690000 | D118: =IF(A118>$B$30,NA(),IF(A118>$A$8,"",OFFSET(InputPriceData!$C$15,CalculationsAndCharts!$A118+$A$11,IF($C$5,8,0),1,1))) -> 3903.64 | E118: =IF(A118>$B$30,NA(),IF(A118>$A$8,"",OFFSET(InputPriceData!$D$15,CalculationsAndCharts!$A118+$A$11,IF($C$5,8,0),1,1))) -> 3906.41 | F118: =IF(A118>$B$30,NA(),IF(A118>$A$8,"",OFFSET(InputPriceData!$E$15,CalculationsAndCharts!$A118+$A$11,IF($C$5,8,0),1,1))) -> 3868.57 | G118: =IF(A118>$B$30,NA(),IF(A118>$A$8,"",OFFSET(InputPriceData!$F$15,CalculationsAndCharts!$A118+$A$11,IF($C$5,8,0),1,1))) -> 3870.29 | H118: =IF($A118>$B$30,NA(),IF($A118>$A$8,"",OFFSET(InputIndexData!$B$15,$A118+$A$11,0,1,1))) -> 2021-03-02 | I118: =IF($A118>$B$30,NA(),IF($A118>$A$8,"",OFFSET(InputIndexData!$G$15,CalculationsAndCharts!$A118+$A$11,IF($C$5,8,0),1,1))) -> 0 | J118: =IF($A118>$B$30,NA(),IF($A118>$A$8,"",OFFSET(InputIndexData!$C$15,CalculationsAndCharts!$A118+$A$11,IF($C$5,8,0),1,1))) -> 23.58 | K118: =IF($A118>$B$30,NA(),IF($A118>$A$8,"",OFFSET(InputIndexData!$D$15,CalculationsAndCharts!$A118+$A$11,IF($C$5,8,0),1,1))) -> 24.6 | L118: =IF($A118>$B$30,NA(),IF($A118>$A$8,"",OFFSET(InputIndexData!$E$15,CalculationsAndCharts!$A118+$A$11,IF($C$5,8,0),1,1))) -> 22.8 | M118: =IF($A118>$B$30,NA(),IF($A118>$A$8,"",OFFSET(InputIndexData!$F$15,CalculationsAndCharts!$A118+$A$11,IF($C$5,8,0),1,1))) -> 24.1 | N118: 0 | O118: 24.1 | P118: 8.455293482 | Q118: 15.68269524 | R118: 0.2994200904 | S118: 2.994200904 | T118: 0.7262183462 | U118: 3865.827378 | V118: 0 | W118: 24.1 | X118: 9.818535859 | Y118: 14.00975123 | Z118: 0.1758923583 | AA118: 1.758923583 | AB118: 0.2627546269 | AC118: 3873.215589 | AX118: 5493690000
A119: 87 | B119: =IF(A119>$B$30,NA(),IF($A119>$A$8,"",OFFSET(InputPriceData!$B$15,$A119+$A$11,0,1,1))) -> 2021-03-01 | C119: =IF(A119>$B$30,NA(),IF($A119>$A$8,"",OFFSET(InputPriceData!$G$15,CalculationsAndCharts!$A119+$A$11,IF($C$5,8,0),1,1))) -> 5071540000 | D119: =IF(A119>$B$30,NA(),IF(A119>$A$8,"",OFFSET(InputPriceData!$C$15,CalculationsAndCharts!$A119+$A$11,IF($C$5,8,0),1,1))) -> 3842.51 | E119: =IF(A119>$B$30,NA(),IF(A119>$A$8,"",OFFSET(InputPriceData!$D$15,CalculationsAndCharts!$A119+$A$11,IF($C$5,8,0),1,1))) -> 3914.5 | F119: =IF(A119>$B$30,NA(),IF(A119>$A$8,"",OFFSET(InputPriceData!$E$15,CalculationsAndCharts!$A119+$A$11,IF($C$5,8,0),1,1))) -> 3842.51 | G119: =IF(A119>$B$30,NA(),IF(A119>$A$8,"",OFFSET(InputPriceData!$F$15,CalculationsAndCharts!$A119+$A$11,IF($C$5,8,0),1,1))) -> 3901.82 | H119: =IF($A119>$B$30,NA(),IF($A119>$A$8,"",OFFSET(InputIndexData!$B$15,$A119+$A$11,0,1,1))) -> 2021-03-01 | I119: =IF($A119>$B$30,NA(),IF($A119>$A$8,"",OFFSET(InputIndexData!$G$15,CalculationsAndCharts!$A119+$A$11,IF($C$5,8,0),1,1))) -> 0 | J119: =IF($A119>$B$30,NA(),IF($A119>$A$8,"",OFFSET(InputIndexData!$C$15,CalculationsAndCharts!$A119+$A$11,IF($C$5,8,0),1,1))) -> 25.2 | K119: =IF($A119>$B$30,NA(),IF($A119>$A$8,"",OFFSET(InputIndexData!$D$15,CalculationsAndCharts!$A119+$A$11,IF($C$5,8,0),1,1))) -> 25.39 | L119: =IF($A119>$B$30,NA(),IF($A119>$A$8,"",OFFSET(InputIndexData!$E$15,CalculationsAndCharts!$A119+$A$11,IF($C$5,8,0),1,1))) -> 23.17 | M119: =IF($A119>$B$30,NA(),IF($A119>$A$8,"",OFFSET(InputIndexData!$F$15,CalculationsAndCharts!$A119+$A$11,IF($C$5,8,0),1,1))) -> 23.35 | N119: 23.35 | O119: 0 | P119: 10.33424759 | Q119: 13.81218308 | R119: 0.1440351203 | S119: 1.440351203 | T119: 0.4437002187 | U119: 3853.990068 | V119: 23.35 | W119: 0 | X119: 10.85206595 | Y119: 12.94761978 | Z119: 0.08804960581 | AA119: 0.8804960581 | AB119: 0.1790948627 | AC119: 3874.25827 | AW119: 5071540000
A120: 88 | B120: =IF(A120>$B$30,NA(),IF($A120>$A$8,"",OFFSET(InputPriceData!$B$15,$A120+$A$11,0,1,1))) -> 2021-02-26 | C120: =IF(A120>$B$30,NA(),IF($A120>$A$8,"",OFFSET(InputPriceData!$G$15,CalculationsAndCharts!$A120+$A$11,IF($C$5,8,0),1,1))) -> 6512950000 | D120: =IF(A120>$B$30,NA(),IF(A120>$A$8,"",OFFSET(InputPriceData!$C$15,CalculationsAndCharts!$A120+$A$11,IF($C$5,8,0),1,1))) -> 3839.66 | E120: =IF(A120>$B$30,NA(),IF(A120>$A$8,"",OFFSET(InputPriceData!$D$15,CalculationsAndCharts!$A120+$A$11,IF($C$5,8,0),1,1))) -> 3861.08 | F120: =IF(A120>$B$30,NA(),IF(A120>$A$8,"",OFFSET(InputPriceData!$E$15,CalculationsAndCharts!$A120+$A$11,IF($C$5,8,0),1,1))) -> 3789.54 | G120: =IF(A120>$B$30,NA(),IF(A120>$A$8,"",OFFSET(InputPriceData!$F$15,CalculationsAndCharts!$A120+$A$11,IF($C$5,8,0),1,1))) -> 3811.15 | H120: =IF($A120>$B$30,NA(),IF($A120>$A$8,"",OFFSET(InputIndexData!$B$15,$A120+$A$11,0,1,1))) -> 2021-02-26 | I120: =IF($A120>$B$30,NA(),IF($A120>$A$8,"",OFFSET(InputIndexData!$G$15,CalculationsAndCharts!$A120+$A$11,IF($C$5,8,0),1,1))) -> 0 | J120: =IF($A120>$B$30,NA(),IF($A120>$A$8,"",OFFSET(InputIndexData!$C$15,CalculationsAndCharts!$A120+$A$11,IF($C$5,8,0),1,1))) -> 28.73 | K120: =IF($A120>$B$30,NA(),IF($A120>$A$8,"",OFFSET(InputIndexData!$D$15,CalculationsAndCharts!$A120+$A$11,IF($C$5,8,0),1,1))) -> 30.82 | L120: =IF($A120>$B$30,NA(),IF($A120>$A$8,"",OFFSET(InputIndexData!$E$15,CalculationsAndCharts!$A120+$A$11,IF($C$5,8,0),1,1))) -> 25.23 | M120: =IF($A120>$B$30,NA(),IF($A120>$A$8,"",OFFSET(InputIndexData!$F$15,CalculationsAndCharts!$A120+$A$11,IF($C$5,8,0),1,1))) -> 27.95 | N120: 0 | O120: 27.95 | P120: 7.441858165 | Q120: 16.88155709 | R120: 0.3880908559 | S120: 3.880908559 | T120: 0.8874379199 | U120: 3815.8413 | V120: 0 | W120: 27.95 | X120: 9.536493944 | Y120: 14.31052712 | Z120: 0.2001940269 | AA120: 2.001940269 | AB120: 0.2858990732 | AC120: 3868.245195 | AX120: 6512950000
A121: 89 | B121: =IF(A121>$B$30,NA(),IF($A121>$A$8,"",OFFSET(InputPriceData!$B$15,$A121+$A$11,0,1,1))) -> 2021-02-25 | C121: =IF(A121>$B$30,NA(),IF($A121>$A$8,"",OFFSET(InputPriceData!$G$15,CalculationsAndCharts!$A121+$A$11,IF($C$5,8,0),1,1))) -> 6513060000 | D121: =IF(A121>$B$30,NA(),IF(A121>$A$8,"",OFFSET(InputPriceData!$C$15,CalculationsAndCharts!$A121+$A$11,IF($C$5,8,0),1,1))) -> 3915.8 | E121: =IF(A121>$B$30,NA(),IF(A121>$A$8,"",OFFSET(InputPriceData!$D$15,CalculationsAndCharts!$A121+$A$11,IF($C$5,8,0),1,1))) -> 3925.02 | F121: =IF(A121>$B$30,NA(),IF(A121>$A$8,"",OFFSET(InputPriceData!$E$15,CalculationsAndCharts!$A121+$A$11,IF($C$5,8,0),1,1))) -> 3814.04 | G121: =IF(A121>$B$30,NA(),IF(A121>$A$8,"",OFFSET(InputPriceData!$F$15,CalculationsAndCharts!$A121+$A$11,IF($C$5,8,0),1,1))) -> 3829.34 | H121: =IF($A121>$B$30,NA(),IF($A121>$A$8,"",OFFSET(InputIndexData!$B$15,$A121+$A$11,0,1,1))) -> 2021-02-25 | I121: =IF($A121>$B$30,NA(),IF($A121>$A$8,"",OFFSET(InputIndexData!$G$15,CalculationsAndCharts!$A121+$A$11,IF($C$5,8,0),1,1))) -> 0 | J121: =IF($A121>$B$30,NA(),IF($A121>$A$8,"",OFFSET(InputIndexData!$C$15,CalculationsAndCharts!$A121+$A$11,IF($C$5,8,0),1,1))) -> 21.73 | K121: =IF($A121>$B$30,NA(),IF($A121>$A$8,"",OFFSET(InputIndexData!$D$15,CalculationsAndCharts!$A121+$A$11,IF($C$5,8,0),1,1))) -> 31.16 | L121: =IF($A121>$B$30,NA(),IF($A121>$A$8,"",OFFSET(InputIndexData!$E$15,CalculationsAndCharts!$A121+$A$11,IF($C$5,8,0),1,1))) -> 21.52 | M121: =IF($A121>$B$30,NA(),IF($A121>$A$8,"",OFFSET(InputIndexData!$F$15,CalculationsAndCharts!$A121+$A$11,IF($C$5,8,0),1,1))) -> 28.89 | N121: 0 | O121: 28.89 | P121: 9.095604424 | Q121: 14.42190311 | R121: 0.2264821821 | S121: 2.264821821 | T121: 0.5936039674 | U121: 3852.827443 | V121: 0 | W121: 28.89 | X121: 10.54033541 | Y121: 12.87479313 | Z121: 0.09969865084 | AA121: 0.9969865084 | AB121: 0.1901891913 | AC121: 3891.103958 | AX121: 6513060000
A122: 90 | B122: =IF(A122>$B$30,NA(),IF($A122>$A$8,"",OFFSET(InputPriceData!$B$15,$A122+$A$11,0,1,1))) -> 2021-02-24 | C122: =IF(A122>$B$30,NA(),IF($A122>$A$8,"",OFFSET(InputPriceData!$G$15,CalculationsAndCharts!$A122+$A$11,IF($C$5,8,0),1,1))) -> 5942350000 | D122: =IF(A122>$B$30,NA(),IF(A122>$A$8,"",OFFSET(InputPriceData!$C$15,CalculationsAndCharts!$A122+$A$11,IF($C$5,8,0),1,1))) -> 3873.71 | E122: =IF(A122>$B$30,NA(),IF(A122>$A$8,"",OFFSET(InputPriceData!$D$15,CalculationsAndCharts!$A122+$A$11,IF($C$5,8,0),1,1))) -> 3928.65 | F122: =IF(A122>$B$30,NA(),IF(A122>$A$8,"",OFFSET(InputPriceData!$E$15,CalculationsAndCharts!$A122+$A$11,IF($C$5,8,0),1,1))) -> 3859.6 | G122: =IF(A122>$B$30,NA(),IF(A122>$A$8,"",OFFSET(InputPriceData!$F$15,CalculationsAndCharts!$A122+$A$11,IF($C$5,8,0),1,1))) -> 3925.43 | H122: =IF($A122>$B$30,NA(),IF($A122>$A$8,"",OFFSET(InputIndexData!$B$15,$A122+$A$11,0,1,1))) -> 2021-02-24 | I122: =IF($A122>$B$30,NA(),IF($A122>$A$8,"",OFFSET(InputIndexData!$G$15,CalculationsAndCharts!$A122+$A$11,IF($C$5,8,0),1,1))) -> 0 | J122: =IF($A122>$B$30,NA(),IF($A122>$A$8,"",OFFSET(InputIndexData!$C$15,CalculationsAndCharts!$A122+$A$11,IF($C$5,8,0),1,1))) -> 23.76 | K122: =IF($A122>$B$30,NA(),IF($A122>$A$8,"",OFFSET(InputIndexData!$D$15,CalculationsAndCharts!$A122+$A$11,IF($C$5,8,0),1,1))) -> 25.04 | L122: =IF($A122>$B$30,NA(),IF($A122>$A$8,"",OFFSET(InputIndexData!$E$15,CalculationsAndCharts!$A122+$A$11,IF($C$5,8,0),1,1))) -> 21.31 | M122: =IF($A122>$B$30,NA(),IF($A122>$A$8,"",OFFSET(InputIndexData!$F$15,CalculationsAndCharts!$A122+$A$11,IF($C$5,8,0),1,1))) -> 21.34 | N122: 21.34 | O122: 0 | P122: 11.11684985 | Q122: 11.20677047 | R122: 0.004028046442 | S122: 0.04028046442 | T122: 0.1891419026 | U122: 3887.13447 | V122: 21.34 | W122: 0 | X122: 11.6498444 | Y122: 11.18898188 | Z122: 0.02017889668 | AA122: 0.2017889668 | AB122: 0.1144560921 | AC122: 3905.609614 | AW122: 5942350000
A123: 91 | B123: =IF(A123>$B$30,NA(),IF($A123>$A$8,"",OFFSET(InputPriceData!$B$15,$A123+$A$11,0,1,1))) -> 2021-02-23 | C123: =IF(A123>$B$30,NA(),IF($A123>$A$8,"",OFFSET(InputPriceData!$G$15,CalculationsAndCharts!$A123+$A$11,IF($C$5,8,0),1,1))) -> 6280650000 | D123: =IF(A123>$B$30,NA(),IF(A123>$A$8,"",OFFSET(InputPriceData!$C$15,CalculationsAndCharts!$A123+$A$11,IF($C$5,8,0),1,1))) -> 3857.07 | E123: =IF(A123>$B$30,NA(),IF(A123>$A$8,"",OFFSET(InputPriceData!$D$15,CalculationsAndCharts!$A123+$A$11,IF($C$5,8,0),1,1))) -> 3895.98 | F123: =IF(A123>$B$30,NA(),IF(A123>$A$8,"",OFFSET(InputPriceData!$E$15,CalculationsAndCharts!$A123+$A$11,IF($C$5,8,0),1,1))) -> 3805.59 | G123: =IF(A123>$B$30,NA(),IF(A123>$A$8,"",OFFSET(InputPriceData!$F$15,CalculationsAndCharts!$A123+$A$11,IF($C$5,8,0),1,1))) -> 3881.37 | H123: =IF($A123>$B$30,NA(),IF($A123>$A$8,"",OFFSET(InputIndexData!$B$15,$A123+$A$11,0,1,1))) -> 2021-02-23 | I123: =IF($A123>$B$30,NA(),IF($A123>$A$8,"",OFFSET(InputIndexData!$G$15,CalculationsAndCharts!$A123+$A$11,IF($C$5,8,0),1,1))) -> 0 | J123: =IF($A123>$B$30,NA(),IF($A123>$A$8,"",OFFSET(InputIndexData!$C$15,CalculationsAndCharts!$A123+$A$11,IF($C$5,8,0),1,1))) -> 22.82 | K123: =IF($A123>$B$30,NA(),IF($A123>$A$8,"",OFFSET(InputIndexData!$D$15,CalculationsAndCharts!$A123+$A$11,IF($C$5,8,0),1,1))) -> 27.01 | L123: =IF($A123>$B$30,NA(),IF($A123>$A$8,"",OFFSET(InputIndexData!$E$15,CalculationsAndCharts!$A123+$A$11,IF($C$5,8,0),1,1))) -> 22.5 | M123: =IF($A123>$B$30,NA(),IF($A123>$A$8,"",OFFSET(InputIndexData!$F$15,CalculationsAndCharts!$A123+$A$11,IF($C$5,8,0),1,1))) -> 23.11 | N123: 23.11 | O123: 0 | P123: 8.845038707 | Q123: 13.69716391 | R123: 0.2152461821 | S123: 2.152461821 | T123: 0.5731748766 | U123: 3878.201601 | V123: 23.11 | W123: 0 | X123: 10.62982802 | Y123: 12.36676945 | Z123: 0.07553033333 | AA123: 0.7553033333 | AB123: 0.167171746 | AC123: 3903.047839 | AW123: 6280650000
A124: 92 | B124: =IF(A124>$B$30,NA(),IF($A124>$A$8,"",OFFSET(InputPriceData!$B$15,$A124+$A$11,0,1,1))) -> 2021-02-22 | C124: =IF(A124>$B$30,NA(),IF($A124>$A$8,"",OFFSET(InputPriceData!$G$15,CalculationsAndCharts!$A124+$A$11,IF($C$5,8,0),1,1))) -> 5870190000 | D124: =IF(A124>$B$30,NA(),IF(A124>$A$8,"",OFFSET(InputPriceData!$C$15,CalculationsAndCharts!$A124+$A$11,IF($C$5,8,0),1,1))) -> 3885.55 | E124: =IF(A124>$B$30,NA(),IF(A124>$A$8,"",OFFSET(InputPriceData!$D$15,CalculationsAndCharts!$A124+$A$11,IF($C$5,8,0),1,1))) -> 3902.92 | F124: =IF(A124>$B$30,NA(),IF(A124>$A$8,"",OFFSET(InputPriceData!$E$15,CalculationsAndCharts!$A124+$A$11,IF($C$5,8,0),1,1))) -> 3874.71 | G124: =IF(A124>$B$30,NA(),IF(A124>$A$8,"",OFFSET(InputPriceData!$F$15,CalculationsAndCharts!$A124+$A$11,IF($C$5,8,0),1,1))) -> 3876.5 | H124: =IF($A124>$B$30,NA(),IF($A124>$A$8,"",OFFSET(InputIndexData!$B$15,$A124+$A$11,0,1,1))) -> 2021-02-22 | I124: =IF($A124>$B$30,NA(),IF($A124>$A$8,"",OFFSET(InputIndexData!$G$15,CalculationsAndCharts!$A124+$A$11,IF($C$5,8,0),1,1))) -> 0 | J124: =IF($A124>$B$30,NA(),IF($A124>$A$8,"",OFFSET(InputIndexData!$C$15,CalculationsAndCharts!$A124+$A$11,IF($C$5,8,0),1,1))) -> 24.46 | K124: =IF($A124>$B$30,NA(),IF($A124>$A$8,"",OFFSET(InputIndexData!$D$15,CalculationsAndCharts!$A124+$A$11,IF($C$5,8,0),1,1))) -> 25.09 | L124: =IF($A124>$B$30,NA(),IF($A124>$A$8,"",OFFSET(InputIndexData!$E$15,CalculationsAndCharts!$A124+$A$11,IF($C$5,8,0),1,1))) -> 21.96 | M124: =IF($A124>$B$30,NA(),IF($A124>$A$8,"",OFFSET(InputIndexData!$F$15,CalculationsAndCharts!$A124+$A$11,IF($C$5,8,0),1,1))) -> 23.45 | N124: 0 | O124: 23.45 | P124: 5.675047309 | Q124: 16.74097811 | R124: 0.4936613721 | S124: 4.936613721 | T124: 1.079384313 | U124: 3873.946821 | V124: 0 | W124: 23.45 | X124: 9.31612571 | Y124: 13.66853466 | Z124: 0.1893613821 | AA124: 1.893613821 | AB124: 0.2755822686 | AC124: 3907.399183 | AX124: 5870190000
A125: 93 | B125: =IF(A125>$B$30,NA(),IF($A125>$A$8,"",OFFSET(InputPriceData!$B$15,$A125+$A$11,0,1,1))) -> 2021-02-19 | C125: =IF(A125>$B$30,NA(),IF($A125>$A$8,"",OFFSET(InputPriceData!$G$15,CalculationsAndCharts!$A125+$A$11,IF($C$5,8,0),1,1))) -> 4823940000 | D125: =IF(A125>$B$30,NA(),IF(A125>$A$8,"",OFFSET(InputPriceData!$C$15,CalculationsAndCharts!$A125+$A$11,IF($C$5,8,0),1,1))) -> 3921.16 | E125: =IF(A125>$B$30,NA(),IF(A125>$A$8,"",OFFSET(InputPriceData!$D$15,CalculationsAndCharts!$A125+$A$11,IF($C$5,8,0),1,1))) -> 3930.41 | F125: =IF(A125>$B$30,NA(),IF(A125>$A$8,"",OFFSET(InputPriceData!$E$15,CalculationsAndCharts!$A125+$A$11,IF($C$5,8,0),1,1))) -> 3903.07 | G125: =IF(A125>$B$30,NA(),IF(A125>$A$8,"",OFFSET(InputPriceData!$F$15,CalculationsAndCharts!$A125+$A$11,IF($C$5,8,0),1,1))) -> 3906.71 | H125: =IF($A125>$B$30,NA(),IF($A125>$A$8,"",OFFSET(InputIndexData!$B$15,$A125+$A$11,0,1,1))) -> 2021-02-19 | I125: =IF($A125>$B$30,NA(),IF($A125>$A$8,"",OFFSET(InputIndexData!$G$15,CalculationsAndCharts!$A125+$A$11,IF($C$5,8,0),1,1))) -> 0 | J125: =IF($A125>$B$30,NA(),IF($A125>$A$8,"",OFFSET(InputIndexData!$C$15,CalculationsAndCharts!$A125+$A$11,IF($C$5,8,0),1,1))) -> 23.1 | K125: =IF($A125>$B$30,NA(),IF($A125>$A$8,"",OFFSET(InputIndexData!$D$15,CalculationsAndCharts!$A125+$A$11,IF($C$5,8,0),1,1))) -> 23.19 | L125: =IF($A125>$B$30,NA(),IF($A125>$A$8,"",OFFSET(InputIndexData!$E$15,CalculationsAndCharts!$A125+$A$11,IF($C$5,8,0),1,1))) -> 20.84 | M125: =IF($A125>$B$30,NA(),IF($A125>$A$8,"",OFFSET(InputIndexData!$F$15,CalculationsAndCharts!$A125+$A$11,IF($C$5,8,0),1,1))) -> 22.05 | N125: 0 | O125: 22.05 | P125: 6.936168933 | Q125: 15.25008436 | R125: 0.3747325684 | S125: 3.747325684 | T125: 0.8631501243 | U125: 3908.662264 | V125: 0 | W125: 22.05 | X125: 10.29677052 | Y125: 12.63890673 | Z125: 0.1021175507 | AA125: 1.021175507 | AB125: 0.1924929054 | AC125: 3919.153819 | AX125: 4823940000
A126: 94 | B126: =IF(A126>$B$30,NA(),IF($A126>$A$8,"",OFFSET(InputPriceData!$B$15,$A126+$A$11,0,1,1))) -> 2021-02-18 | C126: =IF(A126>$B$30,NA(),IF($A126>$A$8,"",OFFSET(InputPriceData!$G$15,CalculationsAndCharts!$A126+$A$11,IF($C$5,8,0),1,1))) -> 4773430000 | D126: =IF(A126>$B$30,NA(),IF(A126>$A$8,"",OFFSET(InputPriceData!$C$15,CalculationsAndCharts!$A126+$A$11,IF($C$5,8,0),1,1))) -> 3915.86 | E126: =IF(A126>$B$30,NA(),IF(A126>$A$8,"",OFFSET(InputPriceData!$D$15,CalculationsAndCharts!$A126+$A$11,IF($C$5,8,0),1,1))) -> 3921.98 | F126: =IF(A126>$B$30,NA(),IF(A126>$A$8,"",OFFSET(InputPriceData!$E$15,CalculationsAndCharts!$A126+$A$11,IF($C$5,8,0),1,1))) -> 3885.03 | G126: =IF(A126>$B$30,NA(),IF(A126>$A$8,"",OFFSET(InputPriceData!$F$15,CalculationsAndCharts!$A126+$A$11,IF($C$5,8,0),1,1))) -> 3913.97 | H126: =IF($A126>$B$30,NA(),IF($A126>$A$8,"",OFFSET(InputIndexData!$B$15,$A126+$A$11,0,1,1))) -> 2021-02-18 | I126: =IF($A126>$B$30,NA(),IF($A126>$A$8,"",OFFSET(InputIndexData!$G$15,CalculationsAndCharts!$A126+$A$11,IF($C$5,8,0),1,1))) -> 0 | J126: =IF($A126>$B$30,NA(),IF($A126>$A$8,"",OFFSET(InputIndexData!$C$15,CalculationsAndCharts!$A126+$A$11,IF($C$5,8,0),1,1))) -> 21.98 | K126: =IF($A126>$B$30,NA(),IF($A126>$A$8,"",OFFSET(InputIndexData!$D$15,CalculationsAndCharts!$A126+$A$11,IF($C$5,8,0),1,1))) -> 24.23 | L126: =IF($A126>$B$30,NA(),IF($A126>$A$8,"",OFFSET(InputIndexData!$E$15,CalculationsAndCharts!$A126+$A$11,IF($C$5,8,0),1,1))) -> 21.8 | M126: =IF($A126>$B$30,NA(),IF($A126>$A$8,"",OFFSET(InputIndexData!$F$15,CalculationsAndCharts!$A126+$A$11,IF($C$5,8,0),1,1))) -> 22.49 | N126: 0 | O126: 22.49 | P126: 8.477539807 | Q126: 13.73899199 | R126: 0.2368258856 | S126: 2.368258856 | T126: 0.612410701 | U126: 3920.975735 | V126: 0 | W126: 22.49 | X126: 11.3806411 | Y126: 11.64826533 | Z126: 0.01162122527 | AA126: 0.1162122527 | AB126: 0.1063059288 | AC126: 3922.120167 | AX126: 4773430000
A127: 95 | B127: =IF(A127>$B$30,NA(),IF($A127>$A$8,"",OFFSET(InputPriceData!$B$15,$A127+$A$11,0,1,1))) -> 2021-02-17 | C127: =IF(A127>$B$30,NA(),IF($A127>$A$8,"",OFFSET(InputPriceData!$G$15,CalculationsAndCharts!$A127+$A$11,IF($C$5,8,0),1,1))) -> 4718280000 | D127: =IF(A127>$B$30,NA(),IF(A127>$A$8,"",OFFSET(InputPriceData!$C$15,CalculationsAndCharts!$A127+$A$11,IF($C$5,8,0),1,1))) -> 3918.5 | E127: =IF(A127>$B$30,NA(),IF(A127>$A$8,"",OFFSET(InputPriceData!$D$15,CalculationsAndCharts!$A127+$A$11,IF($C$5,8,0),1,1))) -> 3933.61 | F127: =IF(A127>$B$30,NA(),IF(A127>$A$8,"",OFFSET(InputPriceData!$E$15,CalculationsAndCharts!$A127+$A$11,IF($C$5,8,0),1,1))) -> 3900.43 | G127: =IF(A127>$B$30,NA(),IF(A127>$A$8,"",OFFSET(InputPriceData!$F$15,CalculationsAndCharts!$A127+$A$11,IF($C$5,8,0),1,1))) -> 3931.33 | H127: =IF($A127>$B$30,NA(),IF($A127>$A$8,"",OFFSET(InputIndexData!$B$15,$A127+$A$11,0,1,1))) -> 2021-02-17 | I127: =IF($A127>$B$30,NA(),IF($A127>$A$8,"",OFFSET(InputIndexData!$G$15,CalculationsAndCharts!$A127+$A$11,IF($C$5,8,0),1,1))) -> 0 | J127: =IF($A127>$B$30,NA(),IF($A127>$A$8,"",OFFSET(InputIndexData!$C$15,CalculationsAndCharts!$A127+$A$11,IF($C$5,8,0),1,1))) -> 22.02 | K127: =IF($A127>$B$30,NA(),IF($A127>$A$8,"",OFFSET(InputIndexData!$D$15,CalculationsAndCharts!$A127+$A$11,IF($C$5,8,0),1,1))) -> 23.44 | L127: =IF($A127>$B$30,NA(),IF($A127>$A$8,"",OFFSET(InputIndexData!$E$15,CalculationsAndCharts!$A127+$A$11,IF($C$5,8,0),1,1))) -> 21.09 | M127: =IF($A127>$B$30,NA(),IF($A127>$A$8,"",OFFSET(InputIndexData!$F$15,CalculationsAndCharts!$A127+$A$11,IF($C$5,8,0),1,1))) -> 21.5 | N127: 0 | O127: 21.5 | P127: 10.36143754 | Q127: 11.79432355 | R127: 0.06467326276 | S127: 0.6467326276 | T127: 0.2994059323 | U127: 3932.045152 | V127: 0 | W127: 21.5 | X127: 12.57860332 | Y127: 10.5070301 | Z127: 0.08973426412 | AA127: 0.8973426412 | AB127: 0.1806992992 | AC127: 3923.089639 | AW127: 4718280000
A128: 96 | B128: =IF(A128>$B$30,NA(),IF($A128>$A$8,"",OFFSET(InputPriceData!$B$15,$A128+$A$11,0,1,1))) -> 2021-02-16 | C128: =IF(A128>$B$30,NA(),IF($A128>$A$8,"",OFFSET(InputPriceData!$G$15,CalculationsAndCharts!$A128+$A$11,IF($C$5,8,0),1,1))) -> 5037360000 | D128: =IF(A128>$B$30,NA(),IF(A128>$A$8,"",OFFSET(InputPriceData!$C$15,CalculationsAndCharts!$A128+$A$11,IF($C$5,8,0),1,1))) -> 3939.61 | E128: =IF(A128>$B$30,NA(),IF(A128>$A$8,"",OFFSET(InputPriceData!$D$15,CalculationsAndCharts!$A128+$A$11,IF($C$5,8,0),1,1))) -> 3950.43 | F128: =IF(A128>$B$30,NA(),IF(A128>$A$8,"",OFFSET(InputPriceData!$E$15,CalculationsAndCharts!$A128+$A$11,IF($C$5,8,0),1,1))) -> 3923.85 | G128: =IF(A128>$B$30,NA(),IF(A128>$A$8,"",OFFSET(InputPriceData!$F$15,CalculationsAndCharts!$A128+$A$11,IF($C$5,8,0),1,1))) -> 3932.59 | H128: =IF($A128>$B$30,NA(),IF($A128>$A$8,"",OFFSET(InputIndexData!$B$15,$A128+$A$11,0,1,1))) -> 2021-02-16 | I128: =IF($A128>$B$30,NA(),IF($A128>$A$8,"",OFFSET(InputIndexData!$G$15,CalculationsAndCharts!$A128+$A$11,IF($C$5,8,0),1,1))) -> 0 | J128: =IF($A128>$B$30,NA(),IF($A128>$A$8,"",OFFSET(InputIndexData!$C$15,CalculationsAndCharts!$A128+$A$11,IF($C$5,8,0),1,1))) -> 21.13 | K128: =IF($A128>$B$30,NA(),IF($A128>$A$8,"",OFFSET(InputIndexData!$D$15,CalculationsAndCharts!$A128+$A$11,IF($C$5,8,0),1,1))) -> 22.46 | L128: =IF($A128>$B$30,NA(),IF($A128>$A$8,"",OFFSET(InputIndexData!$E$15,CalculationsAndCharts!$A128+$A$11,IF($C$5,8,0),1,1))) -> 20.88 | M128: =IF($A128>$B$30,NA(),IF($A128>$A$8,"",OFFSET(InputIndexData!$F$15,CalculationsAndCharts!$A128+$A$11,IF($C$5,8,0),1,1))) -> 21.46 | N128: 0 | O128: 21.46 | P128: 12.66397922 | Q128: 9.637506557 | R128: 0.1357071602 | S128: 1.357071602 | T128: 0.4285584731 | U128: 3932.350779 | V128: 0 | W128: 21.46 | X128: 13.90266683 | Y128: 9.349875373 | Z128: 0.1957974943 | AA128: 1.957974943 | AB128: 0.2817118994 | AC128: 3921.272202 | AX128: 5037360000
A129: 97 | B129: =IF(A129>$B$30,NA(),IF($A129>$A$8,"",OFFSET(InputPriceData!$B$15,$A129+$A$11,0,1,1))) -> 2021-02-12 | C129: =IF(A129>$B$30,NA(),IF($A129>$A$8,"",OFFSET(InputPriceData!$G$15,CalculationsAndCharts!$A129+$A$11,IF($C$5,8,0),1,1))) -> 4119260000 | D129: =IF(A129>$B$30,NA(),IF(A129>$A$8,"",OFFSET(InputPriceData!$C$15,CalculationsAndCharts!$A129+$A$11,IF($C$5,8,0),1,1))) -> 3911.65 | E129: =IF(A129>$B$30,NA(),IF(A129>$A$8,"",OFFSET(InputPriceData!$D$15,CalculationsAndCharts!$A129+$A$11,IF($C$5,8,0),1,1))) -> 3937.23 | F129: =IF(A129>$B$30,NA(),IF(A129>$A$8,"",OFFSET(InputPriceData!$E$15,CalculationsAndCharts!$A129+$A$11,IF($C$5,8,0),1,1))) -> 3905.78 | G129: =IF(A129>$B$30,NA(),IF(A129>$A$8,"",OFFSET(InputPriceData!$F$15,CalculationsAndCharts!$A129+$A$11,IF($C$5,8,0),1,1))) -> 3934.83 | H129: =IF($A129>$B$30,NA(),IF($A129>$A$8,"",OFFSET(InputIndexData!$B$15,$A129+$A$11,0,1,1))) -> 2021-02-12 | I129: =IF($A129>$B$30,NA(),IF($A129>$A$8,"",OFFSET(InputIndexData!$G$15,CalculationsAndCharts!$A129+$A$11,IF($C$5,8,0),1,1))) -> 0 | J129: =IF($A129>$B$30,NA(),IF($A129>$A$8,"",OFFSET(InputIndexData!$C$15,CalculationsAndCharts!$A129+$A$11,IF($C$5,8,0),1,1))) -> 21.6 | K129: =IF($A129>$B$30,NA(),IF($A129>$A$8,"",OFFSET(InputIndexData!$D$15,CalculationsAndCharts!$A129+$A$11,IF($C$5,8,0),1,1))) -> 22.45 | L129: =IF($A129>$B$30,NA(),IF($A129>$A$8,"",OFFSET(InputIndexData!$E$15,CalculationsAndCharts!$A129+$A$11,IF($C$5,8,0),1,1))) -> 19.95 | M129: =IF($A129>$B$30,NA(),IF($A129>$A$8,"",OFFSET(InputIndexData!$F$15,CalculationsAndCharts!$A129+$A$11,IF($C$5,8,0),1,1))) -> 19.97 | N129: 19.97 | O129: 0 | P129: 15.47819682 | Q129: 7.010285792 | R129: 0.3765441808 | S129: 3.765441808 | T129: 0.8664439651 | U129: 3932.171373 | V129: 19.97 | W129: 0 | X129: 15.36610545 | Y129: 8.075125413 | Z129: 0.3110321709 | AA129: 3.110321709 | AB129: 0.3914592104 | AC129: 3916.833373 | AW129: 4119260000
A130: 98 | B130: =IF(A130>$B$30,NA(),IF($A130>$A$8,"",OFFSET(InputPriceData!$B$15,$A130+$A$11,0,1,1))) -> 2021-02-11 | C130: =IF(A130>$B$30,NA(),IF($A130>$A$8,"",OFFSET(InputPriceData!$G$15,CalculationsAndCharts!$A130+$A$11,IF($C$5,8,0),1,1))) -> 4570080000 | D130: =IF(A130>$B$30,NA(),IF(A130>$A$8,"",OFFSET(InputPriceData!$C$15,CalculationsAndCharts!$A130+$A$11,IF($C$5,8,0),1,1))) -> 3916.4 | E130: =IF(A130>$B$30,NA(),IF(A130>$A$8,"",OFFSET(InputPriceData!$D$15,CalculationsAndCharts!$A130+$A$11,IF($C$5,8,0),1,1))) -> 3925.99 | F130: =IF(A130>$B$30,NA(),IF(A130>$A$8,"",OFFSET(InputPriceData!$E$15,CalculationsAndCharts!$A130+$A$11,IF($C$5,8,0),1,1))) -> 3890.39 | G130: =IF(A130>$B$30,NA(),IF(A130>$A$8,"",OFFSET(InputPriceData!$F$15,CalculationsAndCharts!$A130+$A$11,IF($C$5,8,0),1,1))) -> 3916.38 | H130: =IF($A130>$B$30,NA(),IF($A130>$A$8,"",OFFSET(InputIndexData!$B$15,$A130+$A$11,0,1,1))) -> 2021-02-11 | I130: =IF($A130>$B$30,NA(),IF($A130>$A$8,"",OFFSET(InputIndexData!$G$15,CalculationsAndCharts!$A130+$A$11,IF($C$5,8,0),1,1))) -> 0 | J130: =IF($A130>$B$30,NA(),IF($A130>$A$8,"",OFFSET(InputIndexData!$C$15,CalculationsAndCharts!$A130+$A$11,IF($C$5,8,0),1,1))) -> 22.09 | K130: =IF($A130>$B$30,NA(),IF($A130>$A$8,"",OFFSET(InputIndexData!$D$15,CalculationsAndCharts!$A130+$A$11,IF($C$5,8,0),1,1))) -> 23.25 | L130: =IF($A130>$B$30,NA(),IF($A130>$A$8,"",OFFSET(InputIndexData!$E$15,CalculationsAndCharts!$A130+$A$11,IF($C$5,8,0),1,1))) -> 21.11 | M130: =IF($A130>$B$30,NA(),IF($A130>$A$8,"",OFFSET(InputIndexData!$F$15,CalculationsAndCharts!$A130+$A$11,IF($C$5,8,0),1,1))) -> 21.25 | N130: 21.25 | O130: 0 | P130: 14.48001834 | Q130: 8.568127079 | R130: 0.2565017092 | S130: 2.565017092 | T130: 0.6481849258 | U130: 3914.923549 | V130: 21.25 | W130: 0 | X130: 14.88148497 | Y130: 8.925138614 | Z130: 0.2501969181 | AA130: 2.501969181 | AB130: 0.3335208744 | AC130: 3905.256588 | AX130: 4570080000
A131: 99 | B131: =IF(A131>$B$30,NA(),IF($A131>$A$8,"",OFFSET(InputPriceData!$B$15,$A131+$A$11,0,1,1))) -> 2021-02-10 | C131: =IF(A131>$B$30,NA(),IF($A131>$A$8,"",OFFSET(InputPriceData!$G$15,CalculationsAndCharts!$A131+$A$11,IF($C$5,8,0),1,1))) -> 4815380000 | D131: =IF(A131>$B$30,NA(),IF(A131>$A$8,"",OFFSET(InputPriceData!$C$15,CalculationsAndCharts!$A131+$A$11,IF($C$5,8,0),1,1))) -> 3920.78 | E131: =IF(A131>$B$30,NA(),IF(A131>$A$8,"",OFFSET(InputPriceData!$D$15,CalculationsAndCharts!$A131+$A$11,IF($C$5,8,0),1,1))) -> 3931.5 | F131: =IF(A131>$B$30,NA(),IF(A131>$A$8,"",OFFSET(InputPriceData!$E$15,CalculationsAndCharts!$A131+$A$11,IF($C$5,8,0),1,1))) -> 3884.94 | G131: =IF(A131>$B$30,NA(),IF(A131>$A$8,"",OFFSET(InputPriceData!$F$15,CalculationsAndCharts!$A131+$A$11,IF($C$5,8,0),1,1))) -> 3909.88 | H131: =IF($A131>$B$30,NA(),IF($A131>$A$8,"",OFFSET(InputIndexData!$B$15,$A131+$A$11,0,1,1))) -> 2021-02-10 | I131: =IF($A131>$B$30,NA(),IF($A131>$A$8,"",OFFSET(InputIndexData!$G$15,CalculationsAndCharts!$A131+$A$11,IF($C$5,8,0),1,1))) -> 0 | J131: =IF($A131>$B$30,NA(),IF($A131>$A$8,"",OFFSET(InputIndexData!$C$15,CalculationsAndCharts!$A131+$A$11,IF($C$5,8,0),1,1))) -> 21.64 | K131: =IF($A131>$B$30,NA(),IF($A131>$A$8,"",OFFSET(InputIndexData!$D$15,CalculationsAndCharts!$A131+$A$11,IF($C$5,8,0),1,1))) -> 23.85 | L131: =IF($A131>$B$30,NA(),IF($A131>$A$8,"",OFFSET(InputIndexData!$E$15,CalculationsAndCharts!$A131+$A$11,IF($C$5,8,0),1,1))) -> 19.69 | M131: =IF($A131>$B$30,NA(),IF($A131>$A$8,"",OFFSET(InputIndexData!$F$15,CalculationsAndCharts!$A131+$A$11,IF($C$5,8,0),1,1))) -> 21.99 | N131: 0 | O131: 21.99 | P131: 12.97557797 | Q131: 10.47215532 | R131: 0.1067660379 | S131: 1.067660379 | T131: 0.3759382507 | U131: 3912.240179 | V131: 0 | W131: 21.99 | X131: 14.21111496 | Y131: 9.864626889 | Z131: 0.1805338459 | AA131: 1.805338459 | AB131: 0.2671750913 | AC131: 3899.690187 | AX131: 4815380000
A132: 100 | B132: =IF(A132>$B$30,NA(),IF($A132>$A$8,"",OFFSET(InputPriceData!$B$15,$A132+$A$11,0,1,1))) -> 2021-02-09 | C132: =IF(A132>$B$30,NA(),IF($A132>$A$8,"",OFFSET(InputPriceData!$G$15,CalculationsAndCharts!$A132+$A$11,IF($C$5,8,0),1,1))) -> 4554610000 | D132: =IF(A132>$B$30,NA(),IF(A132>$A$8,"",OFFSET(InputPriceData!$C$15,CalculationsAndCharts!$A132+$A$11,IF($C$5,8,0),1,1))) -> 3910.49 | E132: =IF(A132>$B$30,NA(),IF(A132>$A$8,"",OFFSET(InputPriceData!$D$15,CalculationsAndCharts!$A132+$A$11,IF($C$5,8,0),1,1))) -> 3918.35 | F132: =IF(A132>$B$30,NA(),IF(A132>$A$8,"",OFFSET(InputPriceData!$E$15,CalculationsAndCharts!$A132+$A$11,IF($C$5,8,0),1,1))) -> 3902.64 | G132: =IF(A132>$B$30,NA(),IF(A132>$A$8,"",OFFSET(InputPriceData!$F$15,CalculationsAndCharts!$A132+$A$11,IF($C$5,8,0),1,1))) -> 3911.23 | H132: =IF($A132>$B$30,NA(),IF($A132>$A$8,"",OFFSET(InputIndexData!$B$15,$A132+$A$11,0,1,1))) -> 2021-02-09 | I132: =IF($A132>$B$30,NA(),IF($A132>$A$8,"",OFFSET(InputIndexData!$G$15,CalculationsAndCharts!$A132+$A$11,IF($C$5,8,0),1,1))) -> 0 | J132: =IF($A132>$B$30,NA(),IF($A132>$A$8,"",OFFSET(InputIndexData!$C$15,CalculationsAndCharts!$A132+$A$11,IF($C$5,8,0),1,1))) -> 21.57 | K132: =IF($A132>$B$30,NA(),IF($A132>$A$8,"",OFFSET(InputIndexData!$D$15,CalculationsAndCharts!$A132+$A$11,IF($C$5,8,0),1,1))) -> 22.26 | L132: =IF($A132>$B$30,NA(),IF($A132>$A$8,"",OFFSET(InputIndexData!$E$15,CalculationsAndCharts!$A132+$A$11,IF($C$5,8,0),1,1))) -> 20.65 | M132: =IF($A132>$B$30,NA(),IF($A132>$A$8,"",OFFSET(InputIndexData!$F$15,CalculationsAndCharts!$A132+$A$11,IF($C$5,8,0),1,1))) -> 21.63 | N132: 0 | O132: 21.63 | P132: 15.85903974 | Q132: 7.912634279 | R132: 0.3342802914 | S132: 3.342802914 | T132: 0.7896005297 | U132: 3913.661964 | V132: 0 | W132: 21.63 | X132: 15.7070218 | Y132: 8.588271825 | Z132: 0.2930093028 | AA132: 2.930093028 | AB132: 0.3742945741 | AC132: 3895.975161 | AW132: 4554610000
